Workbook

Sheet PRESENTACION
B23: Autoridades: | G23: Esta publicación ha sido elaborada por los integrantes del Área de Investigación y Estadística de la Dirección de Educación del Ministerio de Educación y Cultura:
B24: Sr. José Alberto Mujica Cordano Presidente de la República Dr. Ricardo Ehrlich Ministro de Educación y Cultura Mtro. Oscar Gómez Subsecretario de Educación y Cultura Sr. Pablo Álvarez Director General de Secretaría Mtro. Luis Garibaldi Director de Educación
G25: Mag. Gabriel Errandonea Lennon (Coordinador)
G26: Lic. Gabriel Gómez Lic. Leandro Pereira Lic. Carla Orós Lic. Daniel Zoppis Lic. Daniel Manber Sra. Nathalia Ascue Lic. Felipe Maestro.

Sheet SINOPSIS - ÍNDICE DE CUADROS

Sheet SINOPSIS - ÍNDICE DE GRÁFICOS
F18: Gráfico I-1.2.3 ASISTENCIA A ALGÚN ESTABLECIMIENTO EDUCATIVO POR EDADES SIMPLES SEGÚN GRANDES ÁREAS.

Sheet SINOPSIS - ÍNDICE DE MAPAS
A10: Mapa II-1 INDICADORES ESCOGIDOS EN EDUCACIÓN EN LA PRIMERA INFANCIA Y EDUCACIÓN INICIAL. AÑO 2012.

Sheet Indicadores Escogidos
A1: Ministerio de Educación y Cultura Dirección de Educación
A3: INDICADORES ESCOGIDOS.
A4: INICIAL
A5: Cantidad de Establecimientos de Educación Inicial y Primera Infancia (Supervisados por CEIP, públicos y privados) | D5: 249
A6: Cantidad de Centros CAIF (Supervisados por el INAU) | D6: 336
A7: Cantidad de Centros de Educación Infantil Privados (Supervisados por el MEC) | D7: 454
A8: Cantidad de alumnos en Educación Inicial y Primera Infancia (Supervisados por CEIP públicos y privados) | D8: 109602
A9: Cantidad de alumnos en Centros CAIF (Supervisados por el INAU) | D9: 45620
A10: Cantidad de alumnos en Centros de Educación Infantil Privados (Supervisados por el MEC) | D10: 21255
A11: EDUCACIÓN PRIMARIA
A12: Cantidad de establecimientos | D12: 2421
A13: Cantidad de alumnos | D13: 319238
A14: Porcentaje de alumnos de educación pública | D14: 83.4
A15: Porcentaje de alumnos de Montevideo en educación pública | D15: 71.3
A16: Porcentaje de alumnos del Resto del País en educación pública | D16: 90.1
A17: Porcentaje de alumnos de educación pública que se encuentran en Área Urbana | D17: 93.8
A18: Razón Público/Privado en Educación Primaria | D18: 5
A19: Porcentaje de alumnos que no aprobaron en 1ero | D19: 13.7
A20: Porcentaje de alumnos que no aprobaron de 1ero a 6to | D20: 5.6
A21: Porcentaje de alumnos que no aprobaron de 1ero a 6to en escuelas rurales | D21: 4.1
A22: Porcentaje de alumnos que no aprobaron de 1ero a 6to en escuelas urbanas | D22: 5.7
A23: Porcentaje de personas de 14 a 15 que culminaron primaria | D23: 96.7
A24: Porcentaje de personas de 15 a 20 que no culminaron educación media básica, no estudian, no trabajan y no buscan trabajo | D24: 9.4
A25: EDUCACIÓN MEDIA
A26: Cantidad de establecimientos dependientes del CES | D26: 471
A27: Cantidad de establecimientos dependientes del CETP (UTU) | D27: 235
A28: Porcentaje de establecimientos dependientes del CES en Montevideo | D28: 37.4
A29: Porcentaje de establecimientos dependientes del CETP (UTU) en Montevideo | D29: 21.7
A30: Cantidad de alumnos en Educación Media Básica | D30: 181444
A31: Cantidad de alumnos en Educación Media Superior | D31: 153682
A32: Razón Público/Privado en Educación Media Básica | D32: 5
A33: Razón Público/Privado en Educación Media Superior | D33: 5.8
A34: Porcentaje de no aprobación de 1º a 3º año diurno público en Educación Media Básica General | D34: 28.6
A35: Porcentaje de desvinculación de 1º a 3º año diurno público en Educación Media Básica General | D35: 3.5
A36: Porcentaje de personas de 17 a 18 años que culminaron ciclo básico | D36: 64.4
A37: Porcentaje de personas de 21 a 22 años que culminaron segundo ciclo | D37: 36.8
A38: EDUCACIÓN TERCIARIA
A39: Cantidad de matriculados en cursos de grado en universidades e institutos universitarios | D39: 151081
A40: Cantidad de matriculados en ofertas terciarias de Formación en Educación | D40: 22754
A41: Cantidad de matriculados en ofertas terciarias del Ministerio del Interior y del Ministerio de Defensa Nacional | D41: 572
A42: Cantidad de ingresos en cursos de grado en universidades e institutos universitarios | D42: 23275
A43: Cantidad de egresos en cursos de grado en universidades e institutos universitarios | D43: 7826
A44: LOGRO EDUCATIVO Y ASISTENCIA
A45: Porcentaje personas de 25 años o más con primaria completa o menos como nivel máximo alcanzado | D45: 37.7
A46: Porcentaje personas de 25 a 29 años con primaria completa o menos como nivel máximo alcanzado | D46: 16.2
A47: Tasa de analfabetismo (Uruguay) | D47: 1.6
A48: Tasa de analfabetismo (MERCOSUR) | D48: 7.7
A49: Tasa de analfabetismo (UNASUR) | D49: 8.2
A50: Porcentaje de jóvenes de 15 a 20 años que no asiste a ningún establecimiento, no trabaja y no busca trabajo | D50: 13
A51: CONTEXTO DE LA EDUCACIÓN
A52: Cantidad de alumnos atendidos por el Programa Maestros Comunitarios | D52: 15608
A53: Cantidad de alumnos atendidos por los CECAP’s | D53: 2135
A54: Alumnos atendidos por el Programa de Educación Física Escolar | D54: 306532
A55: Razón alumnos/docente en el Programa Maestros Comunitarios | D55: 29
A56: Razón alumnos/educadores en los CECAP’s | D56: 8
A57: Razón alumnos/docente en el Programa de Educación Física Escolar | D57: 309.9
A58: GASTO
A59: Gasto público en educación como porcentaje de gasto del Gobierno Central | D59: 20.5
A60: Gasto público en educación como % del PBI (Uruguay) | D60: 4.6
A61: Notas: La categoría Centros de Educación Infantil Privados incluye el Proyecto Nuestros Niños de la Intendencia de Montevideo. La categoría CAIF incluye Centros Diurnos. Para Educación Primaria, en todos los casos se consideró educación común. Para Educación Media, la relación matriculados en educación pública, matriculados en educación privada, se realiza sin incorporar en el sector público la matrícula del CETP (UTU), por no contar con información sobre la matrícula técnico-vocacional en educación media del sector privado.

Sheet O I-1.1.1
B2: Organigrama I-1.1.1 SISTEMA NACIONAL DE EDUCACIÓN - 2012
BO4: SISTEMA NACIONAL DE EDUCACIÓN - 2012
K6: ESCOLARIDAD OBLIGATORIA
BI7: CAMPO LABORAL
K11: EDUC. INICIAL | P11: EDUCACIÓN PRIMARIA | Y11: EDUCACIÓN MEDIA | AX11: EDUCACIÓN TERCIARIA
C14: 0 | D14: 1 | E14: 2 | F14: 3 | K14: 4 | L14: 5 | P14: 1º | Q14: 2º | R14: 3º | S14: 4º | T14: 5º | U14: 6º | AH14: Formación profesional técnica y tecnológica | AX14: EDUCACIÓN UNIVERSITARIA
C15: EDUCACIÓN EN LA PRIMERA INFANCIA | K15: EDUCACIÓN INICIAL | P15: EDUCACIÓN PRIMARIA | R15: Incluye: - Urbana común - Rural común - T.C. - Especial - Escuelas Aprender - Práctica
AA16: 1º | AB16: 2º | AC16: 3º
Y17: EDUCACIÓN MEDIA BÁSICA | Z17: Educación media básica general (incluye 7º, 8º y 9º rural)
AL19: 1º | AM19: 2º | AN19: 3º
AH20: EDUCACIÓN MEDIA SUPERIOR | AL20: Educación media tecnológica superior
AZ21: 1º | BA21: 2º | BB21: 3º | BC21: 4º
AX22: FORMACIÓN EN EDUCACIÓN
AA26: 1º | AB26: 2º | AC26: 3º
Z27: Educación media básica tecnológica | AZ27: 1º | BA27: 2º | BB27: 3º | BC27: 4º
AL28: 4º | AM28: 5º | AN28: 6º | AX28: EDUCACIÓN TERCIARIA NO UNIVERSITARIA (técnicas, policial, militar, artística, etc.)
AL29: Educación media general superior
C35: 0-3 años | K35: 4-5 años | P35: 6 años | Y35: 12 años | AH35: 15 años | AX35: 18 años
C38: EDUCACIÓN NO FORMAL

Sheet O I-1.1.2
B2: Organigrama I-1.1.2
B3: ESTRUCTURA ORGANIZACIONAL DEL SISTEMA NACIONAL DE EDUCACIÓN - 2012
Q6: SNEP
E11: MEC | Q11: ANEP | AB11: UdelaR
I37: Habilita y/o autoriza y/o supervisa
C38: Autoriza / supervisa
S41: SECTOR PRIVADO
F46: Centros de educación en la primera infancia de Intervención social (INAU) | S46: UNIVERSIDADES PRIVADAS | AB46: INSTITUTOS UNIVERSITARIOS PRIVADOS
F51: Centros de educación inicial, primaria y media privados (ANEP) | S51: Tres o más áreas disciplinarias no afines orgánicamente estructuradas en facultades, departamentos o unidades académicas equivalentes. | AB51: Al menos una carrera completa de grado universitario, una maestría o un doctorado.
F56: Centros de educación infantil privados (MEC)
G61: Consejo Consultivo de Enseñanza Universitaria Privada
O64: Reconocimiento de carreras universitarias y terciarias no universitarias privadas
H65: y coordina …

Sheet I-1.1.1
A1: Ministerio de Educación y Cultura Dirección de Educación
A3: Cuadro I-1.1.1 UNIVERSO CUBIERTO POR EL ANUARIO ESTADÍSTICO DE EDUCACIÓN 2012 POR FORMA DE ADMINISTRACIÓN, MATRÍCULA Y FUENTE DE INFORMACIÓN SEGÚN TIPO DE OFERTA Y NIVEL EDUCATIVO
A4: Nivel (Edad teórica) | C4: Descripción (Oferta por forma de administración) | E4: Matricula 2012 | F4: Fuentes de información
A5: EDUCACIÓN EN LA PRIMERA INFANCIA 0 a 3 años | C5: PÚBLICO: centros de educación infantil gestionados por organismos públicos (por ej. centros de INAU o intendencias). | E5: 49586 | F5: · Área de Educación en la Primera Infancia y Área de Investigación y Estadística de la Dirección de Educación del Ministerio de Educación y Cultura – Registro Nacional de Centros de Educación en la Primera Infancia; · Sistema de Información Para la Infancia (SIPI) de INAU
C6: PRIVADO: Centros de Educación Infantil Privados bajo supervisión del MEC En todos los casos la matrícula reportada excluye a los niños matriculados en centros que ya han sido habilitados por ANEP.
C7: PÚBLICO/PRIVADO: CAIF (modalidad diaria)
A8: EDUCACIÓN INICIAL 3 a 5 años (4 y 5 años obligatorio) | C8: PUBLICO:Esta.del Consejo de Educación Inicial y Primaria (CEIP) Jardines y clases jardineras en escuelas de educación común. | E8: 109602 | F8: · Área de Educación en la Primera Infancia, AIEde la Dir. de Edu. del MEC; · Depto. de Estadística Educativa del CEIP; · SIPI de INAU.
C9: PRIVADO: jardines de infantes privados, jardines en colegios privados y clases jardineras en colegios privados (bajo supervisión de ANEP).
A10: EDUCACIÓN PRIMARIA 6 a 11 años (obligatorio) | C10: PUBLICO: Establecimientos del Consejo de Educación Inicial y Primaria. | E10: 329742 | F10: · Departamento de Estadística Educativa del CEIP.
C11: PRIVADO: Establecimientos privados bajo supervisión de ANEP.
A12: EDUCACIÓN FORMAL DE JÓVENES Y ADULTOS | C12: Dirección Sectorial de Educación de Jóvenes y Adultos de la ANEP (Niveles I y II y Acreditación). | E12: 4388 | F12: · Dirección Sectorial de Educación de Jóvenes y Adultos de la ANEP
A13: EDUCACIÓN MEDIA BÁSICA 12 a 14 años | C13: PÚBLICO: establecimientos del Consejo de Educación Secundaria, del Consejo de Educación Técnico Profesional y del Ciclo Básico Rural (7º, 8º y 9º) | D13: MEDIA BÁSICA 12 a 14 años (obligatorio) | E13: 181444 | F13: · Departamento de Estadística del CES (oficiales, habilitados privados y habilitados militares); · Departamento de Estadística del CETP y · Departamento de Estadística del CEIP(para 7º, 8º y 9º) a través de planillas estadísticas.
C14: PRIVADO: liceos habilitados privados bajo supervisión de ANEP.
A15: EDUCACIÓN MEDIA SUPERIOR 15 a 17 años | C15: PÚBLICO: establecimientos del Consejo de Educación Secundaria, del Consejo de Educación Técnico Profesional y los Habilitados Liceo Militar y Escuela Naval. | D15: MEDIA SUPERIOR 15 a 17 años | E15: 153682
C16: PRIVADO: liceos habilitados privados bajo supervisión de ANEP.
A17: FORMACIÓN EN EDUCACIÓN | C17: PÚBLICOS: ANEP - CONSEJO DE FORMACIÓN EN EDUCACIÓN, CEN.FOR.ES - I.N.A.U. | E17: 22754 | F17: · Of. de información para la Gestión del CFE de ANEP; · CEN.FOR.ES - I.N.A.U. . C.I.E.P
C18: PRIVADOS: C.I.E.P
A19: EDUCACIÓN TERCIARIA (18 y más años) | C19: PÚBLICOS: Inst. Terc. Univ. y No Univ. (UdelaR; CFE, Esc. Mun. de Arte Dramático, Esc. Nacional de Policía, Esc. Militar, Esc. Militar de Aeronáutica, Esc. Naval, IMES). | E19: 114455 | F19: · Div. de Estadística de la DGP de la UdelaR; . Unidades de planeamiento y/o asuntos estudiantiles de univ. e inst. univ. y no univ. públicos y privados.
C20: PRIVADOS: Univ. e Inst. Univ. Privados (UC, ORT, de Montevideo, de la Empresa; Fundación Politécnico de Punta del Este, Asociación Cristiana de Jóvenes, CLAEH, Crandon, BIOS, Mariano Soler).
A21: EDUCACIÓN NO FORMAL | C21: Instituciones de Educación Técnico-Profesional públicas y privadas | E21: 83530
C22: Centros de Capacitación y Producción (CECAP) y Consejo De Capacitación Profesional (COCAP) del MEC. | E22: 3003 | F22: · Relevamiento propio de Instituciones de Educación Técnico-profesional (Área de Investigación y Estadística, Dir. Edu., MEC.) · Departamento de Estadística del CETP; · Área de Educación No Formal de la Dirección de Educación del MEC; · Gerencia de Programas Especiales de CODICEN; · Oficina Nacional del Servicio Civil; e · Información brindada por las instituciones universitarias.
C23: PÚBLICO: Establecimientos del Consejo de Educación Técnico Profesional | D23: TÉCNICO-PROFESIONAL DE INSERCIÓN LABORAL 15 y más años | E23: 9859
C24: INEFOP
C25: Dir. Sectorial de Edu.de Jóvenes y Adultos de la ANEP (Talleres). | E25: 4291
C26: Escuela de Funcionarios Públicos de la ONSC. | E26: 4640
C27: Educación no terciaria en universidades e instituciones universitarias privadas. | E27: 4497
A28: Nota: Educación en la primera infancia de 0 a 3 años y Educación Inicial 3 a 5 años: Esta definición etaria responde a la lógica de los hechos: prácticamente la mitad de los niños atendidos en Centros de Educación Infantil Privados tienen 3 años (también existe una porción minoritaria de niños de 4 y 5 años). En términos teóricos, este nivel atendería a niños de 0 a 36 meses (o hasta 2 años cumplidos y 11 meses). Algo similar sucede en el caso del nivel “Educación Inicial”, donde la enorme mayoría de los niños tienen 4 o 5 años y cuya definición teórica apuntaría a aquellos de 3, 4 y 5. Educación Primaria: La matrícula de Educación Primaria Educación de Jóvenes y Adultos de la ANEP. Educación Media: Media Básica incluye Ciclo Básico Rural, Educación Media Básica General (CEM) y Educación Media Tecnológica Básica (CETP); y Media Superior incluye Ciclo Superior de Secundaria, Bachillerato Tecnológico y Educación Media Tecnológica. Instituciones de Educación Técnico-profesional públicas y privadas: incluye a todas las ofertas de educación técnico-profesional públicas y privadas; no incluye ofertas de ANEP o UdelaR. Técnico-profesional de inserción laboral: incluye a los cursos de las ofertas de Nivel de Formación Profesional del CETP.

Sheet I-1.2.1
A1: Ministerio de Educación y Cultura Dirección de Educación
A3: Cuadro I-1.2.1
A4: TASA DE ANALFABETISMO Y PORCENTAJE DE POBLACIÓN POR ÁREA DEMOGRÁFICA SEGÚN AÑO LECTIVO. AÑO 2012.
A5: AÑO LECTIVO | B5: Fuente | C5: TASA | E5: % de población rural | F5: % de analfabetos rurales sobre total país
C6: Total del país | D6: Área Rural
A7: 1963 | B7: CENSO | C7: 8.8 | D7: 15.4 | E7: 19.2 | F7: 2.96
A8: 1975 | B8: CENSO | C8: 5.7 | D8: 10.3 | E8: 17 | F8: 1.75
A9: 1985 | B9: CENSO | C9: 4.3 | D9: 8.4 | E9: 12.7 | F9: 1.06
A10: 1996 | B10: CENSO | C10: 3.1 | D10: 6.2 | E10: 9.2 | F10: 0.57
A11: 2006 | B11: ENHA | C11: 2.2 | D11: 3 | E11: 6.4 | F11: 0.19
A12: 2007 | B12: ECH | C12: 2.1 | D12: 3.4 | E12: 6.6 | F12: 0.21
A13: 2008 | B13: ECH | C13: 1.9 | D13: 3.1 | E13: 6.2 | F13: 0.19
A14: 2009 | B14: ECH | C14: 1.8 | D14: 3.4 | E14: 7.9 | F14: 0.27
A15: 2010 | B15: ECH | C15: 2 | D15: 3.2 | E15: 5.8 | F15: 0.19
A16: 2011 | B16: ECH | C16: 1.7 | D16: 3.4 | E16: 8.58 | F16: 0.29
A17: 2012 | B17: ECH | C17: 1.6 | D17: 2.5 | E17: 6.4 | F17: 0.16
A18: Fuente: 1963 a 1996: Censos de Población .
A19: 2006: Encuesta Nacional de Hogares Ampliada (ENHA) 2006. Condiciones de vida de la población residente en el área rural. Enero-Marzo 200, INE.
A20: 2007 a 2012: Elaboración propia con base en las ECH de 2007 a 2011 y las Proyecciones Poblacionales, Revisión 2005 del INE. (ÁREA SOCIODEMOGRÁFICA)
A21: Nota Las tasas fueron calculadas sobre población con 15 y más años de edad. La evolución de la población rural con base en el total poblacional.

Sheet I-1.2.2
A1: Ministerio de Educación y Cultura Dirección de Educación
A3: Cuadro I-1.2.2
A4: TASA DE ANALFABETISMO POR DEPARTAMENTO
A5: DEPARTAMENTO | B5: Población analfabeta | C5: TASA DE ANALFABETISMO
A6: MONTEVIDEO | B6: 10192 | C6: 0.95
A7: RESTO DEL PAÍS | B7: =SUM(B8:B25) -> 31567 | C7: 1.91
A8: Artigas | B8: 1721 | C8: 2.81
A9: Canelones | B9: 6330 | C9: 1.44
A10: Cerro Largo | B10: 2151 | C10: 3.03
A11: Colonia | B11: 1431 | C11: 1.38
A12: Durazno | B12: 1020 | C12: 2.12
A13: Flores | B13: 391 | C13: 1.84
A14: Florida | B14: 1072 | C14: 1.88
A15: Lavalleja | B15: 958 | C15: 1.89
A16: Maldonado | B16: 1482 | C16: 1.08
A17: Paysandú | B17: 1643 | C17: 1.73
A18: Río Negro | B18: 988 | C18: 2.18
A19: Rivera | B19: 3041 | C19: 3.51
A20: Rocha | B20: 1168 | C20: 2.06
A21: Salto | B21: 2225 | C21: 2.14
A22: San José | B22: 1522 | C22: 1.69
A23: Soriano | B23: 1462 | C23: 2.11
A24: Tacuarembó | B24: 2065 | C24: 2.72
A25: Treinta y Tres | B25: 897 | C25: 2.19
A26: Fuentes: | B26: Censo Nacional 2011, INE.
A27: Notas: | B27: En el relevamiento censal a las personas con más de 3º grado de educación primaria aprobado no les fue realizada la pregunta "¿Sabe leer y escribir?". Es posible suponer que el valor de la tasa pudiera haber sido levemente superior de no haber existido este filtro.

Sheet I-1.2.3
A1: Ministerio de Educación y Cultura Dirección de Educación
A3: Cuadro I-1.2.3
A4: TASA DE ANALFABETISMO SEGÚN TRAMOS DE EDAD. AÑO 2012.
A5: TASA DE ANALFABETISMO | C5: TRAMOS DE EDAD
C6: TOTAL | D6: 15 a 20 años | E6: 21 a 39 años | F6: 40 a 49 años | G6: 50 a 59 años | H6: 60 a 64 años | I6: 65 y más años
A7: 2006 | C7: 2.2 | D7: 1.2 | E7: 1.4 | F7: 1.4 | G7: 2.1 | H7: 2.6 | I7: 4.7
A8: 2007 | C8: 2.1 | D8: 1.2 | E8: 1.3 | F8: 1.5 | G8: 1.8 | H8: 2.3 | I8: 4.7
A9: 2008 | C9: 1.9 | D9: 0.9 | E9: 1.3 | F9: 1.3 | G9: 1.9 | H9: 2 | I9: 4
A10: 2009 | C10: 1.8 | D10: 1 | E10: 1.1 | F10: 1.1 | G10: 1.5 | H10: 2.3 | I10: 4.2
A11: 2010 | C11: 2 | D11: 1.2 | E11: 1.3 | F11: 1.3 | G11: 1.8 | H11: 2.1 | I11: 4.5
A12: 2011 | C12: 1.7 | D12: 1.3 | E12: 1.1 | F12: 1.2 | G12: 1.6 | H12: 1.8 | I12: 3.6
A13: 2012 | C13: 1.6 | D13: 1 | E13: 1.1 | F13: 1.3 | G13: 1.6 | H13: 2 | I13: 3.2
A14: Fuentes: Elaboración propia en base a la ECH 2012. Nota: Población con 15 y más años para todo el país (Año 2006-2012)

Sheet I-1.2.4
A1: Ministerio de Educación y Cultura Dirección de Educación
A3: Cuadro I-1.2.4 ASISTENCIA A ALGÚN ESTABLECIMIENTO EDUCATIVO POR EDADES SIMPLES SEGÚN AÑO LECTIVO. AÑO 2012.
A4: EDADES SIMPLES | B4: AÑO LECTIVO
B5: 2006 | C5: 2007 | D5: 2008 | E5: 2009 | F5: 2010 | G5: 2011 | H5: 2012
A6: 0 | B6: s/d | C6: s/d | D6: s/d | E6: 6.4 | F6: 7.9 | G6: 6.1 | H6: 7.3
A7: 1 | B7: s/d | C7: s/d | D7: s/d | E7: 20.7 | F7: 24 | G7: 19.9 | H7: 28.5
A8: 2 | B8: s/d | C8: s/d | D8: s/d | E8: 40.7 | F8: 41.1 | G8: 41.3 | H8: 44.6
A9: 3 | B9: 46.3 | C9: 49.4 | D9: 49.9 | E9: 58.5 | F9: 61.3 | G9: 60.4 | H9: 63.8
A10: 4 | B10: 76.5 | C10: 78.9 | D10: 81.2 | E10: 86.6 | F10: 86.1 | G10: 86.1 | H10: 89.1
A11: 5 | B11: 95.2 | C11: 94.7 | D11: 96.4 | E11: 97.3 | F11: 97.3 | G11: 96.3 | H11: 97.7
A12: 6 | B12: 99.3 | C12: 99.3 | D12: 99 | E12: 98.9 | F12: 99.3 | G12: 98 | H12: 98.8
A13: 7 | B13: 99.6 | C13: 99.5 | D13: 99.1 | E13: 98.7 | F13: 99 | G13: 98.6 | H13: 99.7
A14: 8 | B14: 99.8 | C14: 99.7 | D14: 99.1 | E14: 98.8 | F14: 98.8 | G14: 98.9 | H14: 99.8
A15: 9 | B15: 99.8 | C15: 99.9 | D15: 99.3 | E15: 98.8 | F15: 99.2 | G15: 98.4 | H15: 99.7
A16: 10 | B16: 99.6 | C16: 99.8 | D16: 99.1 | E16: 98.9 | F16: 99.3 | G16: 98.5 | H16: 99.6
A17: 11 | B17: 99.6 | C17: 99.9 | D17: 99.1 | E17: 99 | F17: 98.5 | G17: 97.6 | H17: 98.9
A18: 12 | B18: 98.5 | C18: 99.8 | D18: 97.5 | E18: 98 | F18: 98.3 | G18: 97.7 | H18: 97.6
A19: 13 | B19: 95.2 | C19: 95 | D19: 94.3 | E19: 94.5 | F19: 95.6 | G19: 96 | H19: 96.6
A20: 14 | B20: 90.2 | C20: 88.7 | D20: 89.7 | E20: 91 | F20: 91.2 | G20: 92.4 | H20: 92.6
A21: 15 | B21: 82.1 | C21: 82.1 | D21: 82.6 | E21: 83.8 | F21: 82.1 | G21: 85.2 | H21: 87
A22: 16 | B22: 76.6 | C22: 74.6 | D22: 73.3 | E22: 77.7 | F22: 78.1 | G22: 77.7 | H22: 80.1
A23: 17 | B23: 66.9 | C23: 65.5 | D23: 67.7 | E23: 70.2 | F23: 66.4 | G23: 68.2 | H23: 68.8
A24: 18 | B24: 55 | C24: 53.4 | D24: 52.8 | E24: 53.3 | F24: 49.2 | G24: 49.1 | H24: 53.9
A25: 19 | B25: 47 | C25: 46.3 | D25: 45.3 | E25: 44.9 | F25: 44.2 | G25: 45.2 | H25: 45.5
A26: 20 | B26: 40.5 | C26: 39.3 | D26: 42.2 | E26: 41.4 | F26: 40.5 | G26: 39.3 | H26: 39.2
A27: 21 | B27: 35.6 | C27: 37.1 | D27: 39 | E27: 37.6 | F27: 36.1 | G27: 36.8 | H27: 36.7
A28: 22 | B28: 34.3 | C28: 31.5 | D28: 33.5 | E28: 32.7 | F28: 32.1 | G28: 36.6 | H28: 31.4
A29: Fuentes:Elaboración propia en base a ECH 2006 y ECH de 2007 a 2012 del INE. Nota:Todo el país (Años 2006 a 2012)

Sheet I-1.2.5
A1: Ministerio de Educación y Cultura Dirección de Educación
A3: Cuadro I-1.2.5 ASISTENCIA A ALGÚN ESTABLECIMIENTO EDUCATIVO POR EDADES SIMPLES SEGÚN AÑO LECTIVO Y PERTENENCIA DE LOS HOGARES A LOS QUINTILES EXTREMOS DE INGRESOS. AÑO 2012.
A4: AÑO LECTIVO | C4: EDADES SIMPLES
C5: 12 | D5: 13 | E5: 14
A6: 1er Quintil
A7: 2006 | C7: 97.5 | D7: 93 | E7: 83.7
A8: 2007 | C8: 98.5 | D8: 92.6 | E8: 81.9
A9: 2008 | C9: 96.9 | D9: 90.2 | E9: 81.8
A10: 2009 | C10: 97.5 | D10: 91.2 | E10: 83.5
A11: 2010 | C11: 97.8 | D11: 92.6 | E11: 83.7
A12: 2011 | C12: 97.5 | D12: 93.7 | E12: 86.9
A13: 2012 | C13: 96.52658662 | D13: 94.03934566 | E13: 85.7397306
A14: Quintil Mayor
A15: 2006 | C15: 100 | D15: 99.2 | E15: 99.3
A16: 2007 | C16: 99.1 | D16: 100 | E16: 100
A17: 2008 | C17: 98.3 | D17: 98.1 | E17: 99.3
A18: 2009 | C18: 98 | D18: 94.5 | E18: 91
A19: 2010 | C19: 99.3 | D19: 99.2 | E19: 99.5
A20: 2011 | C20: 97.9 | D20: 99.5 | E20: 100
A21: 2012 | C21: 97.65282435 | D21: 100 | E21: 98.52494577
A22: Fuentes:Elaboración propia en base a la ENHA 2006 y a las ECH 2007 a 2012. Nota:Todo el país (Años 2006 a 2012)

Sheet I-1.2.6
A1: Ministerio de Educación y Cultura Dirección de Educación
A3: Cuadro I-1.2.6 DIFERENCIA DE ASISTENCIA ENTRE EL QUINTIL MAYOR Y EL PRIMER Y EL SEGUNDO QUINTIL Y EL PRIMERO DE INGRESOS DE LOS HOGARES PARA 2012 Y DIFERENCIA CON 2011
A4: DIFERENCIAS | D4: EDADES SIMPLES
D5: 12 | E5: 13 | F5: 14
A6: Entre el Quintil mayor y el 1erQuintil | C6: Diferencia 2012 | D6: 1.1 | E6: 6 | F6: 12.8
C7: Diferencia 2012-diferencia 2011 = | D7: 0.8 | E7: 0.2 | F7: -0.3
A8: Entre el 2do quintil y el 1erquintil | C8: Diferencia 2012 | D8: 1.9 | E8: 2.5 | F8: 7.9
C9: Diferencia 2012-diferencia 2011 = | D9: 1.2 | E9: -0.5 | F9: 3
A10: Fuentes:Elaboración propia en base en las ECH 2011 y 2012. Notas:Las diferencias “2012-2011” son el resultado de restar a la diferencia entre quintiles de 2012, idéntica diferencia entre quintiles de 2011. Estos valores son interpretados como indicadores de evolución de la brecha entre el año de referencia y el anterior. Todo el país (Años 2011 y 2012)

Sheet I-1.2.7
A1: Ministerio de Educación y Cultura Dirección de Educación
A3: Cuadro I-1.2.7
A4: ASISTENCIA A ALGÚN ESTABLECIMIENTO EDUCATIVO POR EDADES SIMPLES SEGÚN GRANDES ÁREAS Y AÑO LECTIVO.
A5: AÑO LECTIVO | B5: EDADES SIMPLES
B6: 3 | C6: 4 | D6: 5 | E6: 6 | F6: 7 | G6: 8 | H6: 9 | I6: 10 | J6: 11 | K6: 12 | L6: 13 | M6: 14 | N6: 15 | O6: 16 | P6: 17 | Q6: 18 | R6: 19 | S6: 20 | T6: 21 | U6: 22
A7: Montevideo
A8: 2006 | B8: 53.7 | C8: 79.4 | D8: 95.8 | E8: 99.1 | F8: 99.5 | G8: 99.7 | H8: 99.8 | I8: 99.6 | J8: 99.6 | K8: 99.1 | L8: 96.8 | M8: 93.3 | N8: 86.1 | O8: 79.1 | P8: 72.9 | Q8: 62.7 | R8: 55.1 | S8: 51.3 | T8: 47.9 | U8: 46
A9: 2007 | B9: 59.6 | C9: 82.5 | D9: 94.5 | E9: 99.1 | F9: 99.1 | G9: 99.6 | H9: 100 | I9: 99.8 | J9: 99.9 | K9: 99.2 | L9: 96.5 | M9: 90.7 | N9: 85.5 | O9: 80.3 | P9: 70.4 | Q9: 60.5 | R9: 56.9 | S9: 49.2 | T9: 49.1 | U9: 42.6
A10: 2008 | B10: 61.5 | C10: 86.5 | D10: 96.5 | E10: 99.1 | F10: 98.9 | G10: 99 | H10: 99.4 | I10: 98.8 | J10: 98.9 | K10: 98.1 | L10: 96.2 | M10: 92.8 | N10: 87.3 | O10: 79.1 | P10: 74.1 | Q10: 57.6 | R10: 54.2 | S10: 51.5 | T10: 48.5 | U10: 45.9
A11: 2009 | B11: 67.2 | C11: 86.5 | D11: 95.5 | E11: 98.6 | F11: 98.5 | G11: 97.9 | H11: 99.4 | I11: 99.2 | J11: 99.3 | K11: 98.5 | L11: 96.7 | M11: 93.5 | N11: 88.6 | O11: 81.8 | P11: 74.8 | Q11: 60.9 | R11: 51 | S11: 50.8 | T11: 52 | U11: 42
A12: 2010 | B12: 72.2 | C12: 89 | D12: 95.6 | E12: 99 | F12: 98.4 | G12: 99.2 | H12: 98.5 | I12: 99.3 | J12: 98.2 | K12: 97.9 | L12: 96.9 | M12: 93.6 | N12: 85.9 | O12: 82.1 | P12: 70.9 | Q12: 56.8 | R12: 52.6 | S12: 50.5 | T12: 48.6 | U12: 44.2
A13: 2011 | B13: 64.7 | C13: 87.1 | D13: 93.3 | E13: 97.6 | F13: 97.1 | G13: 98.8 | H13: 98.5 | I13: 98.4 | J13: 97.3 | K13: 97.5 | L13: 97.5 | M13: 94.8 | N13: 89.2 | O13: 81.2 | P13: 73 | Q13: 57 | R13: 53.1 | S13: 50.1 | T13: 48.7 | U13: 49.9
A14: 2012 | B14: 68.7 | C14: 88.7 | D14: 96.7 | E14: 98.9 | F14: 99.8 | G14: 99.7 | H14: 99.8 | I14: 99.5 | J14: 98.8 | K14: 98.2 | L14: 97.9 | M14: 94.7 | N14: 88.6 | O14: 82.1 | P14: 73.2 | Q14: 59.3 | R14: 53 | S14: 49.3 | T14: 45.3 | U14: 40.4
A15: Resto del país
A16: 2006 | B16: 41.9 | C16: 74.8 | D16: 94.8 | E16: 99.4 | F16: 99.6 | G16: 99.8 | H16: 99.8 | I16: 99.6 | J16: 99.5 | K16: 98.2 | L16: 94.4 | M16: 88.4 | N16: 79.7 | O16: 75.1 | P16: 63 | Q16: 49.6 | R16: 41.8 | S16: 33.1 | T16: 25.9 | U16: 24.5
A17: 2007 | B17: 43.3 | C17: 76.9 | D17: 94.8 | E17: 99.5 | F17: 99.8 | G17: 99.7 | H17: 99.9 | I17: 99.8 | J17: 99.8 | K17: 98.5 | L17: 94.2 | M17: 87.7 | N17: 80.2 | O17: 71.5 | P17: 62.5 | Q17: 48.9 | R17: 38.9 | S17: 32.7 | T17: 27.9 | U17: 23
A18: 2008 | B18: 42.8 | C18: 78 | D18: 96.3 | E18: 98.9 | F18: 99.2 | G18: 99.1 | H18: 99.2 | I18: 99.3 | J18: 99.1 | K18: 97.1 | L18: 93.4 | M18: 88.1 | N18: 79.9 | O18: 69.9 | P18: 63.6 | Q18: 49.7 | R18: 39.1 | S18: 35.2 | T18: 31.2 | U18: 23
A19: 2009 | B19: 52.5 | C19: 86.7 | D19: 98.4 | E19: 99.1 | F19: 98.9 | G19: 99.3 | H19: 98.5 | I19: 98.8 | J19: 98.8 | K19: 97.7 | L19: 93.4 | M19: 89.7 | N19: 80.9 | O19: 75.3 | P19: 67.4 | Q19: 48.5 | R19: 40.5 | S19: 34 | T19: 26.6 | U19: 24.5
A20: 2010 | B20: 58 | C20: 86.3 | D20: 98.4 | E20: 99.5 | F20: 99.2 | G20: 98.4 | H20: 99.6 | I20: 99.3 | J20: 98.8 | K20: 98.7 | L20: 95.4 | M20: 91.7 | N20: 81.3 | O20: 77.2 | P20: 64.8 | Q20: 45.6 | R20: 39.4 | S20: 34.8 | T20: 28.9 | U20: 23.7
A21: 2011 | B21: 57.8 | C21: 85.5 | D21: 98 | E21: 98.3 | F21: 99.3 | G21: 98.9 | H21: 98.4 | I21: 98.5 | J21: 97.7 | K21: 97.8 | L21: 95.3 | M21: 91.3 | N21: 83.1 | O21: 75.8 | P21: 65.8 | Q21: 44.8 | R21: 40.2 | S21: 32.3 | T21: 27.4 | U21: 26
A22: 2012 | B22: 60.7 | C22: 89.4 | D22: 98.3 | E22: 98.7 | F22: 99.7 | G22: 99.8 | H22: 99.6 | I22: 99.6 | J22: 99 | K22: 97.3 | L22: 96.1 | M22: 91.5 | N22: 86.1 | O22: 79 | P22: 66.5 | Q22: 50.6 | R22: 41.3 | S22: 32.6 | T22: 29.7 | U22: 23.6
A23: Fuentes | B23: Elaboración propia en base a la ENHA 2006 y a las ECH 2007 a 2012.
A24: Nota: | B24: Todo el país (Años 2006 a 2012)

Sheet I-1.2.8
A1: Ministerio de Educación y Cultura Dirección de Educación
A3: Cuadro I-1.2.8 JÓVENES DE 15 A 20 AÑOS DE EDAD POR ASISTENCIA A ALGÚN ESTABLECIMIENTO DE EDUCACIÓN Y ACTIVIDAD SEGÚN NIVEL EDUCATIVO MÁXIMO ALCANZADO. AÑO 2012.
A4: NIVEL EDUCATIVO MÁXIMO ALCANZADO | B4: ASISTENCIA A ALGÚN ESTABLECIMIENTO DE EDUCACIÓN Y ACTIVIDAD
B5: TOTAL | C5: Asiste y trabaja o busca trabajo | D5: Asiste y no trabaja ni busca trabajo | E5: No Asiste y trabaja o busca trabajo | F5: No asiste, no trabaja y no busca trabajo
A6: TOTAL | B6: 100 | C6: 13.25513815 | D6: 50.27336968 | E6: 23.66727422 | F6: 12.95546559
A7: Sin instrucción | B7: 0.1729115925 | C7: 0 | D7: 0 | E7: 0.03774376179 | F7: 0.1351678307
A8: Educación inicial | B8: 0.0170976015 | C8: 0 | D8: 0 | E8: 0 | F8: 0.0170976015
A9: Primaria incompleta | B9: 2.201074246 | C9: 0.01483942771 | D9: 0.401632337 | E9: 0.7280997468 | F9: 1.056502734
A10: Primaria completa | B10: 8.321692985 | C10: 0.2235592045 | D10: 0.729712728 | E10: 4.277626337 | F10: 3.090794716
A11: Media Básica incompleta | B11: 29.30174041 | C11: 2.403019501 | D11: 13.57549559 | E11: 8.217494395 | F11: 5.105730922
A12: Media Básica completa | B12: 8.817200832 | C12: 0.6577737632 | D12: 1.876542413 | E12: 4.553446134 | F12: 1.729438521
A13: Media Superior incompleta | B13: 37.79602239 | C13: 6.854847815 | D13: 26.05448651 | E13: 3.778247335 | F13: 1.108440731
A14: Media Superior completa | B14: 3.13981483 | C14: 0.3 | D14: 0.3355001048 | E14: 1.877510202 | F14: 0.6268045228
A15: Terciaria Incompleta | B15: 10.24046486 | C15: 2.70109844 | D15: 7.3 | E15: 0.1538784135 | F15: 0.08548800748
A16: Terciaria Completa | B16: 0.1432278981 | C16: 0.1 | D16: 0 | E16: 0.04322789812 | F16: 0
A18: Fuentes: Elaboración propia en base a la ECH 2012.
A19: Nota: Todo el país (Año 2012)

Sheet I.1.2.9
A1: Ministerio de Educación y Cultura Dirección de Educación
A3: Cuadro I-1.2.9 JÓVENES DE 15 A 20 AÑOS DE EDAD POR ASISTENCIA A ALGÚN ESTABLECIMIENTO DE EDUCACIÓN Y ACTIVIDAD SEGÚN AÑO LECTIVO. AÑO 2012.
C4: ASISTENCIA A ALGÚN ESTABLECIMIENTO DE EDUCACIÓN Y ACTIVIDAD
A5: AÑO LECTIVO | C5: Asiste y no trabaja y no busca trabajo | D5: Asiste y trabaja o busca trabajo | E5: No asiste y trabaja o busca trabajo | F5: No asiste y no trabaja y no busca trabajo | G5: TOTAL
A6: 2006 | C6: 47.9 | D6: 14.4 | E6: 25.7 | F6: 12.1 | G6: 100
A7: 2007 | C7: 47.1 | D7: 13.9 | E7: 27.3 | F7: 11.8 | G7: 100
A8: 2008 | C8: 48.2 | D8: 13.3 | E8: 25.9 | F8: 12.6 | G8: 100
A9: 2009 | C9: 48.4 | D9: 14.3 | E9: 25.6 | F9: 11.7 | G9: 100
A10: 2010 | C10: 48.2 | D10: 13.2 | E10: 26.2 | F10: 12.4 | G10: 100
A11: 2011 | C11: 48.9 | D11: 12.9 | E11: 25.6 | F11: 12.5 | G11: 100
A12: 2012 | C12: 50.2 | D12: 13 | E12: 23.7 | F12: 13 | G12: 100
A13: Fuentes: Elaboración propia en base a la ENHA 2006 y a las ECH 2007 a 2012. Nota:Todo el país (Años 2006 a 2012)

Sheet I.1.2.10
A1: Ministerio de Educación y Cultura Dirección de Educación
A3: Cuadro I-1.2.10 JÓVENES DE 12 A 29 AÑOS DE EDAD POR TRAMOS DE EDAD Y QUINTILES EXTREMOS DE INGRESO SEGÚN LA PRINCIPAL RAZÓN POR LA CUAL SE HAN DESVINCULADO DEL SISTEMA EDUCATIVO. AÑO 2012.
A4: NIVEL EDUCATIVO MÁXIMO | C4: TOTAL | D4: TRAMOS DE EDAD | G4: QUINTILES EXTREMOS DE INGRESO
D5: 12 a 17 años | E5: 18 a 29 años | G5: Primer quintil | H5: Quintil mayor
A6: TOTAL | C6: 100 | D6: 100 | E6: 100 | G6: 100 | H6: 100
A7: Comenzó a trabajar | C7: 27.4 | D7: 5 | E7: 30.2 | G7: 20.3 | H7: 32.3
A8: No tenía interés o le interesaban otras cosas | C8: 47.6 | D8: 64.8 | E8: 45.4 | G8: 44.1 | H8: 53.4
A9: Quedó ella o su pareja embarazada | C9: 7.1 | D9: 4.7 | E9: 7.4 | G9: 11.5 | H9: 1.4
A10: Le resultaba difícil | C10: 5.4 | D10: 8.1 | E10: 5 | G10: 6.5 | H10: 3.3
A11: Debió atender asuntos familiares | C11: 4 | D11: 4 | E11: 4 | G11: 5.2 | H11: 3.6
A12: Otras razones | C12: 4 | D12: 9.9 | E12: 3.2 | G12: 4.8 | H12: 3.6
A13: Dificultades económicas | C13: 4.6 | D13: 3.5 | E13: 4.7 | G13: 7.7 | H13: 2.3
A14: Fuentes: Elaboración propia en base a la ECH 2012. Nota: Jóvenes de 12 a 29 años de todo el país, que declararon haber asistido a educación media pero que hoy no lo hacen (Año 2012)

Sheet I-1.2.11
A1: Ministerio de Educación y Cultura Dirección de Educación
A3: Cuadro I-1.2.11 SITUACIÓN DE LOS JÓVENES QUE NO ESTUDIAN Y NO TRABAJAN POR ASISTENCIA Y CONDICIÓN DE ACTIVIDAD SEGÚN SEXO, GRANDES ÁREAS Y QUINTILES DE INGRESOS DE LOS HOGARES.
B4: ASISTENCIA Y CONDICIÓN DE ACTIVIDAD ECONÓMICA | E4: Total
C5: No estudia y no trabaja, pero en las últimas 4 semanas buscó trabajo | D5: No estudia, no trabaja y no busca trabajo
A7: SEXO | B7: Hombre | C7: 48.06064753 | D7: 35.10763525 | E7: 39.11363079
B8: Mujer | C8: 51.93935247 | D8: 64.89236475 | E8: 60.88636921
A10: GRANDES ÁREAS | B10: Montevideo | C10: 37.75704974 | D10: 33.0097557 | E10: 34.47795772
B11: Resto del país | C11: 62.24295026 | D11: 66.9902443 | E11: 65.52204228
A13: QUINTILES DE INGRESOS DE LOS HOGARES | B13: 1er quintil | C13: 40.71019556 | D13: 48.676933 | E13: 46.21304939
B14: 2do quintil | C14: 29.15331148 | D14: 26.12754979 | E14: 27.06333118
B15: 3er quintil | C15: 16.59523895 | D15: 14.94477143 | E15: 15.45521374
B16: 4to quintil | C16: 9.021500342 | D16: 6.70644199 | E16: 7.422423203
B17: Quintil mayor | C17: 4.519753664 | D17: 3.544303797 | E17: 3.845982491
B19: Total | C19: 100 | D19: 100 | E19: 100
A20: Fuente: Elaboración propia en base a la ECH 2012.

Sheet I-1-2-12
A1: Ministerio de Educación y Cultura Dirección de Educación
A3: Cuadro I-1.2.12 SITUACIÓN DE LOS JÓVENES QUE NO ESTUDIAN Y NO TRABAJAN POR ASISTENCIA Y CONDICIÓN DE ACTIVIDAD SEGÚN NIVEL EDUCATIVO ALCANZADO
A4: NIVEL EDUCATIVO ALCANZADO | B4: ASISTENCIA Y CONDICIÓN DE ACTIVIDAD ECONÓMICA | D4: Total
B6: No estudia y no trabaja, pero en las últimas 4 semanas buscó trabajo | C6: No estudia, no trabaja y no busca trabajo
A7: Sin instrucción | B7: 0.1 | C7: 1.2 | D7: 0.9
A8: Educación inicial | B8: 0 | C8: 0.1 | D8: 0.1
A9: Educación Primaria | B9: 18.8 | C9: 31.6 | D9: 27.6
A10: Media Básica | B10: 51 | C10: 48.4 | D10: 49.2
A11: Media Superior | B11: 26.6 | C11: 17.1 | D11: 20.1
A12: Terciaria Completa | B12: 3.5 | C12: 1.6 | D12: 2.1
A13: Total | B13: 100 | C13: 100 | D13: 100
A14: Fuente:Elaboración propia en base a la ECH 2012.

Sheet I-1.2.13
A1: Ministerio de Educación y Cultura Dirección de Educación
A3: Cuadro I-1.2.13
A4: MATRÍCULA DEL SISTEMA EDUCATIVO POR AÑO LECTIVO SEGÚN NIVEL, FORMA DE ADMINISTRACIÓN Y MODALIDAD
A5: NIVEL/FORMA DE ADMINISTRACIÓN/MODALIDAD | D5: AÑO LECTIVO
D6: 2002 | E6: 2003 | F6: 2004 | G6: 2005 | H6: 2006 | I6: 2007 | J6: 2008 | K6: 2009 | L6: 2010 | M6: 2011 | N6: 2012
A8: TOTAL SISTEMA | D8: =D9+D17+D29+D43+D45 -> 943130 | E8: =E9+E17+E29+E43+E45 -> 949606 | F8: 954690 | G8: 937573 | H8: 950464 | I8: 949746 | J8: 973186 | K8: 986125 | L8: 970759 | M8: 966785 | N8: 975512
A9: Total Edu. en la Primera Infancia e Inicial | D9: =D11+D13 -> 144319 | E9: 133964 | F9: 140628 | G9: 133640 | H9: 144052 | I9: 141307 | J9: 160934 | K9: 173003 | L9: 160504 | M9: =M11+M13 -> 156089 | N9: =N11+N13 -> 159188
B11: Primera Infancia1 | D11: 38096 | E11: 30345 | F11: 35413 | G11: 28069 | H11: 37416 | I11: 34429 | J11: 47928 | K11: 61112 | L11: 50685 | M11: 47845 | N11: 49586
B13: Total Educación Inicial2 | D13: =D14+D15 -> 106223 | E13: 103619 | F13: 105215 | G13: 105571 | H13: 106636 | I13: 106878 | J13: 113006 | K13: 111891 | L13: 109819 | M13: =M14+M15 -> 108244 | N13: =N14+N15 -> 109602
A14: Inicial pública | D14: 86906 | E14: 85628 | F14: 84612 | G14: 83546 | H14: 81833 | I14: 81176 | J14: 86001 | K14: 83854 | L14: 81875 | M14: 79405 | N14: 79985
A15: Inicial privada | D15: 19317 | E15: 17991 | F15: 20603 | G15: 22025 | H15: 24803 | I15: 25702 | J15: 27005 | K15: 28037 | L15: 27944 | M15: 28839 | N15: 29617
A17: Total Educación Primaria | D17: =D19+D22+D25 -> 365004 | E17: 365495 | F17: 367428 | G17: 365840 | H17: 365879 | I17: 360653 | J17: 354852 | K17: 349271 | L17: 347207 | M17: 341607 | N17: 334130
B19: Primaria Común | D19: =D20+D21 -> 353826 | E19: 354843 | F19: 355568 | G19: 354777 | H19: 353528 | I19: 348579 | J19: 342498 | K19: 336865 | L19: 330548 | M19: =M20+M21 -> 325509 | N19: =N20+N21 -> 319238
A20: Común pública | D20: 307756 | E20: 311141 | F20: 311350 | G20: 309286 | H20: 306030 | I20: 300143 | J20: 292542 | K20: 286092 | L20: 279445 | M20: 273440 | N20: 266349
A21: Común privada | D21: 46070 | E21: 43702 | F21: 44218 | G21: 45491 | H21: 47498 | I21: 48436 | J21: 49956 | K21: 50773 | L21: 51103 | M21: 52069 | N21: 52889
B22: Primaria Especial | D22: =D23+D24 -> 11178 | E22: 10652 | F22: 11860 | G22: 11063 | H22: 12351 | I22: 12074 | J22: 12354 | K22: 12406 | L22: 11808 | M22: =M23+M24 -> 11253 | N22: =N23+N24 -> 10504
A23: Especial pública | D23: 9076 | E23: 8884 | F23: 8553 | G23: 8379 | H23: 8221 | I23: 7913 | J23: 7778 | K23: 7535 | L23: 7416 | M23: 7286 | N23: 6910
A24: Especial privada | D24: 2102 | E24: 1768 | F24: 3307 | G24: 2684 | H24: 4130 | I24: 4161 | J24: 4576 | K24: 4871 | L24: 4392 | M24: 3967 | N24: 3594
B25: Programa Jóvenes y Adultos ANEP | L25: =L26+L27 -> 4851 | M25: =M26+M27 -> 4845 | N25: =N26+N27 -> 4388
A26: Educación Primaria (Niveles I y II y Programa de Alfabetización) | L26: 3827 | M26: 3804 | N26: 3234
A27: Pruebas de Acreditación | L27: 1024 | M27: 1041 | N27: 1154
A29: Total Educación Media | D29: =D31+D37 -> 295399 | E29: 306417 | F29: 306778 | G29: 302311 | H29: 300681 | I29: 298925 | J29: 310128 | K29: 320420 | L29: 322977 | M29: 331659 | N29: 335126
B31: Total Educación Media Básica | D31: =D32+D33+D36 -> 162664 | E31: 164180 | F31: 161736 | G31: 158131 | H31: 160028 | I31: 160367 | J31: 171502 | K31: 177015 | L31: 177619 | M31: =M32+M33+M36 -> 182175 | N31: =N32+N33+N36 -> 181444
A32: Ciclo Básico Rural (7º, 8º y 9º) | D32: 1498 | E32: 1771 | F32: 1869 | G32: 1797 | H32: 1818 | I32: 1784 | J32: 2028 | K32: 1991 | L32: 1934 | M32: 1966 | N32: 1916
A33: Total Media Básica General | D33: 146588 | E33: 147146 | F33: 144374 | G33: 140743 | H33: 142350 | I33: 142420 | J33: 151798 | K33: 155409 | L33: 155444 | M33: =M34+M35 -> 156418 | N33: =N34+N35 -> 153287
A34: Pública | D34: 125367 | E34: 127162 | F34: 123869 | G34: 120487 | H34: 121195 | I34: 120960 | J34: 127681 | K34: 130013 | L34: 130073 | M34: 130978 | N34: 127593
A35: Privada3 | D35: 21221 | E35: 19984 | F35: 20505 | G35: 20256 | H35: 21155 | I35: 21460 | J35: 24117 | K35: 25396 | L35: 25371 | M35: 25440 | N35: 25694
A36: Media Básica Tecnológica | D36: 14578 | E36: 15263 | F36: 15493 | G36: 15591 | H36: 15860 | I36: 16163 | J36: 17676 | K36: 19615 | L36: 20241 | M36: 23791 | N36: 26241
B37: Total Educación Media Superior | D37: =D38+D41 -> 132735 | E37: 142237 | F37: 145042 | G37: 144180 | H37: 140653 | I37: 138558 | J37: 138626 | K37: 143405 | L37: 145358 | M37: 149484 | N37: 153682
A38: Total Media Superior General | D38: 122617 | E38: 129454 | F38: 127356 | G38: 124512 | H38: 119418 | I38: 112877 | J38: 110507 | K38: 112664 | L38: 113327 | M38: =M39+M40 -> 116117 | N38: =N39+N40 -> 117497
A39: Pública | D39: 108589 | E39: 115157 | F39: 112669 | G39: 108459 | H39: 103938 | I39: 97136 | J39: 94506 | K39: 96319 | L39: 96902 | M39: 99175 | N39: 100265
A40: Privada3 | D40: 14028 | E40: 14297 | F40: 14687 | G40: 16053 | H40: 15480 | I40: 15741 | J40: 16001 | K40: 16345 | L40: 16425 | M40: 16942 | N40: 17232
A41: Total Media Superior Tecnológica | D41: 10118 | E41: 12783 | F41: 17686 | G41: 19668 | H41: 21235 | I41: 25681 | J41: 28119 | K41: 30741 | L41: 32031 | M41: 33367 | N41: 36185
A43: Total Edu. Técnica (s/cont. educativa) | D43: 36416 | E43: 37219 | F43: 32372 | G43: 27146 | H43: 28840 | I43: 24419 | J43: 19957 | K43: 16769 | L43: 11912 | M43: 7546 | N43: 9859
L44: .
A45: Total Educación Terciaria | D45: =D47+D54+D60 -> 101992 | E45: 106511 | F45: 107484 | G45: 108636 | H45: 111012 | I45: 124442 | J45: 127315 | K45: 126662 | L45: 128159 | M45: 129884 | N45: 137209
B47: Terciaria No Universitaria | D47: =D48+D52 -> 5496 | E47: =E48+E52 -> 7238 | F47: =F48+F52 -> 6437 | G47: =G48+G52 -> 5454 | H47: =H48 -> 5726 | I47: =I48 -> 5786 | J47: 6718 | K47: 7179 | L47: 7560 | M47: 7339 | N47: 8308
A48: Terciaria No Universitaria Pública | D48: =D49+D50+D51 -> 5148 | E48: 6107 | F48: 6129 | G48: 5297 | H48: 5726 | I48: 5786 | J48: 6718 | K48: 7179 | L48: 7560 | M48: =M49+M50+M51 -> 7339 | N48: =N49+N50+N51 -> 8308
A49: CETP | D49: 2564 | E49: 3514 | F49: 3671 | G49: 4024 | H49: 3961 | I49: 3896 | J49: 4650 | K49: 4964 | L49: 6158 | M49: 6780 | N49: 7610
A50: Terciaria Policial o Militar | D50: 620 | E50: 623 | F50: 653 | G50: 679 | H50: 724 | I50: 652 | J50: 557 | K50: 649 | L50: 603 | M50: 470 | N50: 572
A51: Otras terciaria pública4 | D51: 1964 | E51: 1970 | F51: 1805 | G51: 594 | H51: 1041 | I51: 1238 | J51: 1511 | K51: 1566 | L51: 799 | M51: 89 | N51: 126
A52: Terciaria No Universitaria Privada5 | D52: 348 | E52: 1131 | F52: 308 | G52: 157 | H52: n/c | I52: n/c | J52: n/c | K52: n/c | L52: n/c | M52: n/c | N52: n/c
B54: Formación en Educación | D54: =D55+D58 -> 16735 | E54: =E55+E58 -> 19411 | F54: 21397 | G54: 20779 | H54: 21537 | I54: 22609 | J54: 22747 | K54: 20951 | L54: 20703 | M54: 21242 | N54: 22754
A55: Publica | B55: Publica | D55: =D56 -> 16610 | E55: =E56 -> 19298 | F55: =F56+F57 -> 21260 | G55: =G56+G57 -> 20631 | H55: 21406 | I55: 22456 | J55: 22572 | K55: 20855 | L55: 20655 | M55: 21149 | N55: 22649
A56: Consejo de Formación en Educación (CFE) | D56: 16610 | E56: 19298 | F56: 20968 | G56: 20435 | H56: 21175 | I56: 21992 | J56: 22108 | K56: 20391 | L56: 20191 | M56: 20919 | N56: 22331
A57: CENFORES - INAU | D57: n/c | E57: n/c | F57: 292 | G57: 196 | H57: 231 | I57: 464 | J57: 464 | K57: 464 | L57: 464 | M57: 230 | N57: 318
A58: Privada | D58: =D59 -> 125 | E58: =E59 -> 113 | F58: 137 | G58: 148 | H58: 131 | I58: 153 | J58: 175 | K58: 96 | L58: 48 | M58: 93 | N58: 105
A59: Centro de Inv. y Experim. Pedagógica (CIEP) | D59: 125 | E59: 113 | F59: 137 | G59: 148 | H59: 131 | I59: 153 | J59: 175 | K59: 96 | L59: 48 | M59: 93 | N59: 105
B60: Total Educación Universitaria6 | D60: =D61+D62 -> 79761 | E60: 79862 | F60: 79650 | G60: 82403 | H60: 83749 | I60: 96047 | J60: 97850 | K60: 98532 | L60: 99896 | M60: 101303 | N60: =N61+N62+N63 -> 106147
A61: Universitaria Pública (UdelaR)7 | D61: 70156 | E61: 70156 | F61: 70156 | G61: 70156 | H61: 70156 | I61: 81774 | J61: 81774 | K61: 81774 | L61: 81774 | M61: 81774 | N61: 85905
A62: Universitaria Privada | D62: 9605 | E62: 9706 | F62: 9494 | G62: 12247 | H62: 13593 | I62: 14273 | J62: 16076 | K62: 16758 | L62: 18122 | M62: 19529 | N62: 20140
A63: Seguridad y Defensa | D63: n/c | E63: n/c | F63: n/c | G63: n/c | H63: n/c | I63: n/c | J63: n/c | K63: n/c | L63: n/c | M63: s/d | N63: 102
A65: Fuentes: Departamentos de Estadística (u oficinas productoras de información) del CEP, CES y CETP y de la Universidad de la República, Dirección de Formación y Perfeccionamiento Docente, e instituciones privadas de educación terciaria Notas: 1- Los datos de primera infancia consideran la matrícula de CAÍF solo de niños de 2 a 5 años y la totalidad de la matrícula de los establecimientos privados del MEC. Hoy se cuenta con información detallada sobre las desagregaciones de las ofertas de primera infancia e inicial. En el presente cuadro a fin de mantener la serie histórica se conservan los criterios utilizados en el pasado. Para un examen en detalle ver el apartado 1 de "Educación inicial y en la primera infancia" del capítulo 2 de la sinopsis estadística. 2- La matrícula de Educación Inicial incluye la matrícula de los Centros Educativos de la Primera Infancia (CEPI) y los Centros de Educación Inicial en Colegios Autorizados por el CEIP. 3- Los datos de secundaria privada corresponden a la educación secundaria habilitada, que se componen en su gran mayoría por liceos privados a los que se suma el Liceo Militar y el bachillerato de la Escuela Naval. 4- La baja significativa de matriculados en la categoría “Otras terciaria pública” en 2005, responde a que el ISEF no reportó información para dicho año sí lo había hecho en 2004. En 2006 y 2007 reportó en UdelaR, institución de la cual pasó a formar parte. 5- Algunas instituciones de educación terciaria no universitaria privada fueron reportadas en distintos niveles a lo largo de la serie o bien no reportaron en algunos de los años, lo que explica la irregularidad de la evolución de la matrícula en este nivel. 6- Los datos de enseñanza terciaria universitaria pública y privada corresponden a carreras cortas y de grado (excluyen carreras de postgrado). 7- Los datos de UdelaR del 2000 a 2006 corresponden a una proyección realizada del Censo 1999 de carreras de grado. El dato de 2007 corresponde al Censo 2007 y los datos 2008 a 2011 responden a la proyección del Censo 2007 (no incluyen carreras de postgrado). El dato de 2012 responde al resultado del VII Censo de Estudiantes de Grado de la UdelaR, es el número de estudiantes contados una sola vez independientemente de la cantidad de carreras que están inscriptos.

Sheet I-1.2.14
A1: Ministerio de Educación y Cultura Dirección de Educación
A3: Cuadro I-1.2.14 PORCENTAJE DE POBLACIÓN DE 25 AÑOS O MÁS POR TRAMOS DE EDAD SEGÚN NIVEL EDUCATIVO MÁXIMO ALCANZADO. AÑO 2012.
A4: NIVEL EDUCATIVO MÁXIMO ALCANZADO | C4: TRAMOS DE EDAD
C5: TOTAL | D5: 25 a 29 años | E5: 30 a 39 años | F5: 40 a 49 años | G5: 50 a 59 años | H5: 60 a 69 años | I5: 70 y más años
A6: TOTAL | C6: =SUM(C10:C16) -> 99.99002999 | D6: =SUM(D10:D16) -> 99.99864629 | E6: 100 | F6: 99.98423293 | G6: 99.97892559 | H6: 100 | I6: 99.98125799
A7: Sin instrucción | C7: 0.7544953024 | D7: 0.2499853348 | E7: 0.302422683 | F7: 0.3423706162 | G7: 0.5785883976 | H7: 0.935731876 | I7: 2.27669354
A8: Primaria incompleta | C8: 10.69146919 | D8: 2.507524378 | E8: 3.466195351 | F8: 4.932589528 | G8: 9.439420645 | H8: 17.88756206 | I8: 28.63932996
A9: Primaria completa | C9: 26.24742441 | D9: 13.45182819 | E9: 17.92437672 | F9: 25.23781994 | G9: 28.23670123 | H9: 33.88614666 | I9: 39.01810294
A10: HASTA PRIMARIA COMPLETA | C10: =SUM(C7:C9) -> 37.6933889 | D10: 16.2093379 | E10: 21.69299475 | F10: 30.51278008 | G10: 38.25471027 | H10: 52.7094406 | I10: 69.93412644
A11: Media Básica incompleta | C11: 9.936045307 | D11: 13.86425887 | E11: 12.45479617 | F11: 10.98188789 | G11: 9.419988395 | H11: 7.152022475 | I11: 5.43395438
A12: Media Básica completa | C12: 10.67094269 | D12: 12.61297848 | E12: 13.94181775 | F12: 12.82363158 | G12: 10.97101037 | H12: 7.495505413 | I12: 4.532801593
A13: Media Superior incompleta | C13: 14.16504084 | D13: 18.421302 | E13: 18.74294292 | F13: 15.31332668 | G13: 13.78649705 | H13: 10.98645012 | I13: 6.62422574
A14: Media Superior completa | C14: 8.600845692 | D14: 9.802674031 | E14: 9.225872767 | F14: 9.89621265 | G14: 10.27637586 | H14: 7.498722215 | I14: 4.386245207
A15: Terciaria incompleta | C15: 7.997220126 | D15: 18.6112728 | E15: 10.3897819 | F15: 7.806700754 | G15: 5.806684694 | H15: 4.862731922 | I15: 2.817753908
A16: Terciaria completa | C16: 10.92654643 | D16: 10.47682221 | E16: 13.55179374 | F16: 12.64969329 | G16: 11.46365896 | H16: 9.29512726 | I16: 6.252150723
A17: Fuentes:Elaboración propia en base a la ECH 2012. Nota:Todo el país (Año 2012)

Sheet I-1.2.15
A1: Ministerio de Educación y Cultura Dirección de Educación
A3: CUADRO I-1.2.15 PORCENTAJE DE POBLACIÓN POR NIVEL AL CUAL ASISTE SEGÚN NIVEL EDUCATIVO MÁXIMO ALCANZADO
A4: NIVEL EDUCATIVO MÁXIMO ALCANZADO | B4: NIVEL EDUCATIVO AL CUAL ASISTE
B5: No asiste | C5: Preescolar | D5: Primaria | E5: Técnica | F5: Media básica | G5: Media superior | H5: No Universitaria | I5: Magisterio o profesorado | J5: Universitaria | K5: Postgrado
A7: TOTAL | B7: =SUM(B9:B26) -> 100 | C7: =SUM(C9:C26) -> 100 | D7: 100 | E7: 100 | F7: 100 | G7: 100 | H7: 100 | I7: 100 | J7: 100 | K7: 100
A9: Sin instrucción | B9: 5.6 | C9: 22.5
A10: Inicial | B10: 0.1 | C10: 77.5
A11: Primaria incompleta | B11: 9.7 | D11: 100
A12: Primaria completa | B12: 26.4 | F12: 34.8
A13: M. Básica incompleta | B13: 10.2 | F13: 65.2
A14: M. Básica completa | B14: 11.9 | E14: 48.8 | G14: 32.6
A15: M. Sup. incompleta (CES) | B15: 12.9 | E15: 21.3 | G15: 59.3
A16: M. Sup. completa (CES) | B16: 7.9 | E16: 18.9
A17: M.Sup. incompleta (CETP) | B17: 0.5 | E17: 0.6 | G17: 8.1
A18: M. sup. completa (CETP) | B18: 0.6 | E18: 1.2
A19: Terc. no univ. incompleta | B19: 0.3 | E19: 3.4 | H19: 99.2 | I19: 1.6 | J19: 1.1
A20: Terc. no univ. completa | B20: 1.7 | E20: 0.4 | H20: 0.5 | I20: 2 | J20: 2.9
A21: Mag. o prof. incompleto | B21: 0.6 | E21: 0.5 | I21: 78.8
A22: Mag. o prof. completo | B22: 2.2 | E22: 0.4
A23: Univ. o similar incompleta | B23: 3.7 | E23: 4.1 | I23: 15.7 | J23: 96
A24: Univ. o similar completa | B24: 4.3 | E24: 0.3 | I24: 1.9
A25: Posgrado incompleto | B25: 0.1 | E25: 0.1 | K25: 100
A26: Posgrado completo | B26: 1.3 | H26: 0.3
A28: Fuentes: | B28: Elaboración propia con base en la Encuesta Continua de Hogares 2012
A29: Nota: | B29: Todo el país (año 2012)

Sheet I.2.1.1
A1: Ministerio de Educación y Cultura Dirección de Educación
A3: Cuadro I-2.1.1 TASA NETA DE MATRICULACIÓN ENTRE LOS NIÑOS DE 3 A 5 AÑOS POR AÑO LECTIVO Y TRAMOS DE EDAD. AÑO 2012.
A4: TRAMOS DE EDAD | B4: AÑO LECTIVO | F4: TOTAL
B5: 2008 | C5: 2009 | D5: 2010 | E5: 2011 | F5: 2012
A6: 3 a 5 años | B6: 76.8 | C6: 81.2 | D6: 81.9 | E6: 81.5 | F6: 83.9
A7: 4 y 5 años | B7: 88.9 | C7: 92 | D7: 91.9 | E7: 91.2 | F7: 93.6
A8: Fuente: Elaboración propia en base en las ECH 2008 a 2012.

Sheet I.2.2.1
A1: Ministerio de Educación y Cultura Dirección de Educación
A3: Cuadro I-2.2.1 MATRÍCULA EN EDUCACIÓN PRIMARIA ESPECIAL SEGÚN REGIÓN Y FORMA DE ADMINISTRACIÓN. AÑO 2012.
A4: REGIÓN Y FORMA DE ADMINISTRACIÓN | B4: Cantidad absoluta | C4: Porcentaje
A5: TOTAL REGIÓN | B5: =SUM(B7+B8) -> 10504 | C5: 100
A7: Montevideo | B7: 5153 | C7: 49.0575019
A8: Resto del país | B8: 5351 | C8: 50.9424981
A9: FORMA DE ADMINISTRACIÓN | B9: =B10+B11 -> 10504 | C9: =C10+C11 -> 100
A10: Público | B10: 6910 | C10: 65.78446306
A11: Privado | B11: 3594 | C11: 34.21553694
A12: Fuente: Elaboración propia en base a información del Departamento de Estadística del CEIP.

Sheet I.2.2.2
A1: Ministerio de Educación y Cultura Dirección de Educación
A3: Cuadro I-2.2.2 MATRÍCULA EN EDUCACIÓN PRIMARIA PÚBLICA COMÚN POR AÑO LECTIVO SEGÚN ÁREAS DEMOGRÁFICAS. AÑOS 2001 A 2012.
A5: ÁREAS | B5: AÑO LECTIVO
B6: 2000 | C6: 2001 | D6: 2002 | E6: 2003 | F6: 2004 | G6: 2005 | H6: 2006 | I6: 2007 | J6: 2008 | K6: 2009 | L6: 2010 | M6: 2011 | N6: 2012
A7: TOTAL | B7: =SUM(B9+B8) -> 301182 | C7: =SUM(C9+C8) -> 304452 | D7: 307756 | E7: 311141 | F7: 311350 | G7: 309286 | H7: 306030 | I7: 300143 | J7: 292542 | K7: 286092 | L7: 279445 | M7: 273440 | N7: 266349
A8: Urbana | B8: 285077 | C8: 288168 | D8: 291484 | E8: 294182 | F8: 293879 | G8: 292143 | H8: 285826 | I8: 280554 | J8: 273491 | K8: 267638 | L8: 262192 | M8: 256775 | N8: 249885
A9: Rural | B9: 16105 | C9: 16284 | D9: 16272 | E9: 16959 | F9: 17471 | G9: 17143 | H9: 20204 | I9: 19589 | J9: 19051 | K9: 18454 | L9: 17253 | M9: 16665 | N9: 16464
A10: % Urbana | B10: 94.7 | C10: 94.7 | D10: 94.7 | E10: 94.5 | F10: 94.4 | G10: 94.5 | H10: 93.4 | I10: 93.5 | J10: 93.5 | K10: 93.6 | L10: 93.8 | M10: 93.9 | N10: 93.81863645
A11: Fuente: Elaboración propia en base a información del Departamento de Estadística del CEIP.

Sheet I.2.2.3
A1: Ministerio de Educación y Cultura Dirección de Educación
A3: Cuadro I-2.2.3 PORCENTAJE DE ASISTENCIA INSUFICIENTE Y ABANDONO INTERMITENTE DE 1.º A 6.º GRADO EN EDUCACIÓN PRIMARIA COMÚN PÚBLICA SEGÚN REGIONES Y CONTEXTO 1er QUINTIL Y QUINTIL MAYOR. AÑO 2012.
B4: ASISTENCIA INSUFICIENTE | C4: ABANDONO INTERMITENTE
A5: TOTAL | B5: 6.6 | C5: 1
A6: MONTEVIDEO | B6: 9 | C6: 1.3
A7: RESTO DEL PAÍS | B7: 5.5 | C7: 0.9
A8: 1Quintil-Urbano | B8: 11.3 | C8: 1.7
A9: 1Quintil-Rural | B9: 6.4 | C9: 0.9
A10: 5Quintil-Urbano | B10: 2.9 | C10: 0.4
A11: 5Quintil-Rural | B11: 3.3 | C11: 0.6
A12: Fuente: Monitor Educativo de Enseñanza Estado de Situación 2012.

Sheet I.2.3.1
A1: Ministerio de Educación y Cultura Dirección de Educación
A3: Cuadro I-2.3.1 PORCENTAJE DE PROMOCIÓN, NO PROMOCIÓN Y DESVINCULACIÓN DE 1º A 3º GRADO DE EDUCACIÓN MEDIA BÁSICA TÉCNICO PROFESIONAL PÚBLICA SEGÚN TIPO DE CURSO. AÑO 2012.
A4: TIPO DE CURSO | B4: % DE PROMOCIÓN | C4: % DE NO PROMOCIÓN | D4: % DE DESVINCULADOS | E4: TOTAL
A5: TOTAL | B5: 61.6 | C5: 18.2 | D5: 20.1 | E5: =B5+C5+D5 -> 99.9
A6: Ciclo Básico Tecnológico | B6: 60 | C6: 21.9 | D6: 18.1 | E6: =B6+C6+D6 -> 100
A7: C.B.T Agrario | B7: 80.9 | C7: 3.8 | D7: 15.3 | E7: =B7+C7+D7 -> 100
A8: Formación Profesional Básica 2007 | B8: 62 | C8: 13.2 | D8: 24.7 | E8: =B8+C8+D8 -> 99.9
A9: Fuente: Departamento de Estadística del CETP
A10: Nota: No se incluye Articulación Educación Media Básica

Sheet I.2.3.2
A1: Ministerio de Educación y Cultura Dirección de Educación
A3: Cuadro I-2.3.2 PORCENTAJE DE PROMOCIÓN, NO PROMOCIÓN Y DESVINCULACIÓN DE 1º A 3º GRADO DE EDUCACIÓN MEDIA BÁSICA TÉCNICO PROFESIONAL PÚBLICA SEGÚN TIPO DE CURSO. AÑO 2012.
A4: TIPO DE CURSO | B4: % DE PROMOCIÓN | C4: % DE NO PROMOCIÓN | D4: % DE DESVINCULADOS | E4: TOTAL
A5: TOTAL | B5: 63 | C5: 11.8 | D5: 25.2 | E5: =B5+C5+D5 -> 100
A6: Curso Técnico | B6: 66.7 | C6: 9.2 | D6: 24.1 | E6: =B6+C6+D6 -> 100
A7: Formación Profesional Superior | B7: 55.8 | C7: 8.6 | D7: 35.6 | E7: =B7+C7+D7 -> 100
A8: E.M.P. Especialización | B8: 67.1 | C8: 4.1 | D8: 28.8 | E8: 100
A9: Educación Media Profesional | B9: 63 | C9: 7.9 | D9: 29.1 | E9: 100
A10: Educación Media Tecnológica | B10: 63.2 | C10: 14.1 | D10: 22.7 | E10: 100
A11: Bachillerato Profesional | B11: 58.2 | C11: 15.6 | D11: 26.2 | E11: 100
A12: Bachillerato Figari | B12: 51.4 | C12: 17.8 | D12: 30.8 | E12: 100
A13: Fuente: Departamento de Estadística del CETP

Sheet I.2.4.1
A1: Ministerio de Educación y Cultura Dirección de Educación
A3: Cuadro I-2.4.1. ESTABLECIMIENTOS DE EDUCACIÓN TÉCNICO PROFESIONAL POR NIVEL EDUCATIVO IMPARTIDO EN EL ESTABLECIMIENTO SEGÚN GRANDES ÁREAS. AÑO 2012.
B4: TOTAL | C4: GRANDES ÁREAS
C5: Resto del País | D5: Montevideo
A6: TOTAL | B6: =C6+D6 -> 235 | C6: =SUM(C7:C19) -> 184 | D6: =SUM(D7:D19) -> 51
A7: Básica | B7: =C7+D7 -> 25 | C7: 19 | D7: 6
A8: Básica y Superior | B8: 14 | C8: 14 | D8: 0
A9: Básica y JYA | B9: 0 | C9: 0 | D9: 0
A10: Superior | B10: 9 | C10: 8 | D10: 1
A11: Terciaria | B11: 76 | C11: 60 | D11: 16
A12: JYA | B12: 7 | C12: 4 | D12: 3
A13: Superior y Terciaria | B13: 6 | C13: 3 | D13: 3
A14: Superior y JYA | B14: 12 | C14: 8 | D14: 4
A15: Basica Superior y JYA | B15: 33 | C15: 25 | D15: 8
A16: Superior Terciaria y JYA | B16: 12 | C16: 5 | D16: 7
A17: Basica Superior y Terciaria | B17: 3 | C17: 1 | D17: 2
A18: Basica Superior JYA y Terciaria | B18: 37 | C18: 36 | D18: 1
A19: Terciaria y JYA | B19: 1 | C19: 1 | D19: 0
A21: Fuente: Departamento de Estadísticas CETP-UTU
A22: Nota: Dentro de la cantidad de establecimentos declarados se encuentran 114 reparticiones denominadas satélites en las cuales se imparten cursos administrados por el CETP. Estos son establecimientos que no forman parte de los activos de ANEP.

Sheet I.2.4.2
A1: Ministerio de Educación y Cultura Dirección de Educación
A3: Cuadro I.2.4.2 ALUMNOS MATRICULADOS EN EDUCACIÓN TÉCNICA POR GRANDES ÁREAS Y SEXO SEGÚN NIVEL Y TIPO DE CURSO. AÑO 2012.
A4: NIVEL DEL CURSO | C4: GRANDES ÁREAS
C5: TOTAL | F5: MONTEVIDEO | I5: RESTO DEL PAÍS
D6: Sexo | G6: Sexo | J6: Sexo
C7: Total | D7: Femenino | E7: Masculino | F7: Total | G7: Femenino | H7: Masculino | I7: Total | J7: Femenino | K7: Masculino
A8: TOTAL | C8: =D8+E8 -> 79895 | D8: =SUM(D9:D12) -> 34718 | E8: =SUM(E9:E12) -> 45177 | F8: =G8+H8 -> 29846 | G8: =SUM(G9:G12) -> 12672 | H8: =SUM(H9:H12) -> 17174 | I8: =J8+K8 -> 50049 | J8: =SUM(J9:J12) -> 22046 | K8: =SUM(K9:K12) -> 28003
A9: Educación Media Básica | C9: =+D9+E9 -> 26241 | D9: =+G9+J9 -> 10256 | E9: 15985 | F9: =+G9+H9 -> 4849 | G9: 1873 | H9: 2976 | I9: =+J9+K9 -> 21392 | J9: 8383 | K9: 13009
A10: Educación Media Superior | C10: =+D10+E10 -> 36185 | D10: 16202 | E10: 19983 | F10: =+G10+H10 -> 15569 | G10: 6425 | H10: 9144 | I10: =+J10+K10 -> 20616 | J10: 9777 | K10: 10839
A11: Nivel de Formación Profesional | C11: =+D11+E11 -> 9859 | D11: 4964 | E11: 4895 | F11: 4501 | G11: 2261 | H11: 2240 | I11: 5358 | J11: 2703 | K11: 2655
A12: Nivel Terciario | C12: =+D12+E12 -> 7610 | D12: 3296 | E12: 4314 | F12: =+G12+H12 -> 4927 | G12: 2113 | H12: 2814 | I12: =+J12+K12 -> 2683 | J12: 1183 | K12: 1500
A13: Fuente: Elaboración propia en base a información del Departamento de Estadísticas CETP - U.T.U

Sheet I.2.4.3
A1: Ministerio de Educación y Cultura Dirección de Educación Área de Investigación y Estadística
A3: Cuadro I.2.4.3 ALUMNOS MATRICULADOS EN EDUCACIÓN MEDIA, TÉCNICA Y TERCIARIA POR NIVEL DEL CURSO SEGÚN SECTORES DE ESTUDIO. AÑO 2012.
A4: ÁREAS DE ESTUDIO | C4: TOTAL | D4: NIVEL DEL CURSO
D5: Educación Media Básica | E5: Educación Media Superior | F5: Nivel de Formación Profesional | G5: Nivel Terciario
A6: TOTAL | C6: =SUM(D6:G6) -> 79895 | D6: =SUM(D7:D15) -> 26241 | E6: =SUM(E7:E15) -> 36185 | F6: =SUM(F7:F15) -> 9859 | G6: =SUM(G7:G15) -> 7610
A7: Agricultura y Pesca | C7: =SUM(D7:G7) -> 3155 | D7: 210 | E7: 2280 | F7: 161 | G7: 504
A8: Artes y Artesanías | C8: =SUM(D8:G8) -> 958 | D8: 0 | E8: 129 | F8: 829 | G8: 0
A9: Comercio y Administración | C9: 13682 | D9: 0 | E9: 12131 | F9: 176 | G9: 1375
A10: Comunicación | C10: 769 | D10: 0 | E10: 0 | F10: 0 | G10: 769
A11: Construcción | C11: 3259 | D11: 151 | E11: 2266 | F11: 636 | G11: 206
A12: Industria | C12: 21301 | D12: 4307 | E12: 7924 | F12: 5073 | G12: 3997
A13: Informática | C13: 8350 | D13: 965 | E13: 6003 | F13: 1081 | G13: 301
A14: Programas Generales | C14: 17829 | D14: 17829 | E14: 0 | F14: 0 | G14: 0
A15: Servicios | C15: 10592 | D15: 2779 | E15: 5452 | F15: 1903 | G15: 458
A16: Fuente:Departamento de Estadísticas CETP - U.T.U

Sheet I.2.7.1
A1: Ministerio de Educación y Cultura Dirección de Educación
A3: Cuadro I-2.7.1
A4: EVOLUCIÓN DE LA MATRÍCULA DE LAS INSTITUCIONES UNIVERSITARIAS (2000 – 2012)
A5: INSTITUCIONES | B5: AÑO LECTIVO
A6: UNIVERSITARIAS | B6: 2000 | C6: 2001 | D6: 2002 | E6: 2003 | F6: 2004 | G6: 2005 | H6: 2006 | I6: 2007 | J6: 2008 | K6: 2009 | L6: 2010 | M6: 2011 | N6: 2012
A8: TOTAL | B8: 78634 | C8: 79678 | D8: 79761 | E8: 79862 | F8: 79650 | G8: 85019 | H8: 86802 | I8: 131000 | J8: 132905 | K8: 133699 | L8: 135288 | M8: =M10+M19+M30 -> 136946 | N8: =N10+N19+N30 -> 155916
A10: Total Universidades | B10: 78419 | C10: 79340 | D10: 79353 | E10: 79449 | F10: 79057 | G10: 83621 | H10: 85153 | I10: 129122 | J10: 130136 | K10: 131409 | L10: 132726 | M10: =M12+M14 -> 133910 | N10: =N12+N14 -> 153627
A12: UdelaR | B12: 70156 | C12: 70156 | D12: 70156 | E12: 70156 | F12: 70156 | G12: 70156 | H12: 70156 | I12: 112891 | J12: 112891 | K12: 112891 | L12: 112891 | M12: =112891 -> 112891 | N12: 130941
A14: Universidades privadas | B14: 8263 | C14: 9184 | D14: 9197 | E14: 9293 | F14: 8901 | G14: 13465 | H14: 14997 | I14: 16231 | J14: 17245 | K14: 18518 | L14: 19835 | M14: =SUM(M15:M18) -> 21019 | N14: =SUM(N15:N18) -> 22686
A15: Univ Católica del Uruguay | B15: 4057 | C15: 4180 | D15: 3591 | E15: 3849 | F15: 3286 | G15: 5580 | H15: 5911 | I15: 6401 | J15: 7126 | K15: 7227 | L15: 7996 | M15: =6655+2244 -> 8899 | N15: 9478
A16: Univ ORT Uruguay | B16: 3445 | C16: 3572 | D16: 3900 | E16: 3777 | F16: 3827 | G16: 5674 | H16: 5863 | I16: 6118 | J16: 6442 | K16: 7202 | L16: 7199 | M16: =6991+631 -> 7622 | N16: 7511
A17: Univ de la Empresa | B17: 0 | C17: 609 | D17: 909 | E17: 790 | F17: 872 | G17: 911 | H17: 1611 | I17: 1756 | J17: 1739 | K17: 2064 | L17: 2465 | M17: =1667+472 -> 2139 | N17: 3475
A18: Univ de Montevideo | B18: 575 | C18: 775 | D18: 749 | E18: 824 | F18: 916 | G18: 1300 | H18: 1612 | I18: 1956 | J18: 1938 | K18: 2025 | L18: 2175 | M18: =1780+579 -> 2359 | N18: 2222
A19: Total Institutos Universitarios | B19: 215 | C19: 338 | D19: 408 | E19: 413 | F19: 593 | G19: 1398 | H19: 1649 | I19: 1878 | J19: 2769 | K19: 2290 | L19: 2562 | M19: 2930 | N19: =SUM(N20:N29) -> 2132
A20: IU Autónomo del Sur | B20: 215 | C20: 211 | D20: 218 | E20: 184 | F20: 195 | G20: 318 | H20: 428 | I20: 414 | J20: 428 | K20: 515 | L20: 605 | M20: 691 | N20: n/c
A21: IU Asoc Cristiana de Jóvenes | B21: 0 | C21: 93 | D21: 140 | E21: 141 | F21: 184 | G21: 407 | H21: 508 | I21: 449 | J21: 352 | K21: 346 | L21: 427 | M21: 515 | N21: 587
A22: IU CLAEH | B22: 0 | C22: 0 | D22: 0 | E22: 39 | F22: 91 | G22: 283 | H22: 412 | I22: 483 | J22: 483 | K22: 740 | L22: 651 | M22: =354+352 -> 706 | N22: 532
A23: IU Monseñor Mariano Soler * | B23: 0 | C23: 0 | D23: 0 | E23: 0 | F23: 59 | G23: 65 | H23: 50 | I23: 83 | J23: 54 | K23: 50 | L23: 42 | M23: 61 | N23: 61
A24: IU Asoc Psico del Uruguay | B24: 0 | C24: 0 | D24: 0 | E24: 0 | F24: 35 | G24: 25 | H24: 31 | I24: 29 | J24: 34 | K24: 38 | L24: 40 | M24: 48 | N24: 42
A25: IU Crandon | B25: 0 | C25: 0 | D25: 0 | E25: 0 | F25: 29 | G25: 60 | H25: 59 | I25: 72 | J25: 21 | K25: 89 | L25: 78 | M25: =48+9 -> 57 | N25: 48
A26: IU San Francisco de Asis | B26: 0 | C26: 0 | D26: 0 | E26: 0 | F26: 0 | G26: 83 | H26: 161 | I26: 202 | J26: 202 | K26: 237 | L26: 380 | M26: 489 | N26: 441
A27: IU Bios | B27: 0 | C27: 0 | D27: 0 | E27: 0 | F27: 0 | G27: 157 | H27: 0 | I27: 146 | J27: 178 | K27: 112 | L27: 109 | M27: =51+43 -> 94 | N27: 68
A28: IU Maldonado – P del Este | B28: n/c | C28: n/c | D28: n/c | E28: n/c | F28: n/c | G28: n/c | H28: n/c | I28: n/c | J28: 1017 | K28: n/c | L28: n/c | M28: n/c | N28: 42
A29: IU CEDIIAP | B29: 0 | C29: 34 | D29: 50 | E29: 49 | F29: 0 | G29: 0 | H29: 0 | I29: 0 | J29: 0 | K29: 163 | L29: 230 | M29: =227+42 -> 269 | N29: 311
A30: Total Área Seguridad y Defensa | B30: n/c | C30: n/c | D30: n/c | E30: n/c | F30: n/c | G30: n/c | H30: n/c | I30: n/c | J30: n/c | K30: n/c | L30: n/c | M30: =SUM(M31:M44) -> 106 | N30: =SUM(N31:N33) -> 157
A31: Escuela de Policía | B31: n/c | C31: n/c | D31: n/c | E31: n/c | F31: n/c | G31: n/c | H31: n/c | I31: n/c | J31: n/c | K31: n/c | L31: n/c | M31: s/d | N31: 77
A32: Escuela Naval | B32: n/c | C32: n/c | D32: n/c | E32: n/c | F32: n/c | G32: n/c | H32: n/c | I32: n/c | J32: n/c | K32: n/c | L32: n/c | M32: s/d | N32: 25
A33: CALEN | B33: n/c | C33: n/c | D33: n/c | E33: n/c | F33: n/c | G33: n/c | H33: n/c | I33: n/c | J33: n/c | K33: n/c | L33: n/c | M33: 106 | N33: 55
A34: Fuentes: Oficinas productoras de cada una de las instituciones
A35: Nota: UdelaR incluye tecnicaturas y grado, no incluye matrícula de postgrados
A36: Las Universidades privadas incluyen grado y postgrado.
A37: Para el instituto CEDIIAP no se incluye información de los años anteriores por no haber reportado información en el períodos 2004-2008.
A38: El Instituto Universitario "Instituto de Estudios para la Salud y el Desarrollo Florence Ninghtingale" (INSADE), que registrara actividad en los años 2000 a 2003 de la serie presentada, luego no reportó información, por lo cual fue retirado de la tabla. Sin embargo la matrícula correspondiente a dichos años sigue incluida en el ítem "Total de Institutos Universitarios".

Sheet I.2.7.2
A1: Ministerio de Educación y Cultura Dirección de Educación
A3: Cuadro I-2.7.2
A4: INGRESOS A INSTITUCIONES UNIVERSITARIAS POR AÑO LECTIVO SEGÚN ÁREA DE CONOCIMIENTO. AÑOS 2000 A 2012.
A5: ÁREA DE CONOCIMIENTO | B5: AÑO LECTIVO
B6: 2000 | C6: 2001 | D6: 2002 | E6: 2003 | F6: 2004 | G6: 2005 | H6: 2006 | I6: 2007 | J6: 2008 | K6: 2009 | L6: 2010 | M6: 2011 | N6: 2012
A7: TOTAL | B7: =SUM(B8:B29) -> 18131 | C7: 19265 | D7: 20090 | E7: 21169 | F7: 21558 | G7: 21964 | H7: 22798 | I7: 23014 | J7: 23566 | K7: 24981 | L7: 26357 | M7: 26283 | N7: =SUM(N8:N29) -> 26854
A8: Agricultura, silvicultura y pesca | B8: 210 | C8: 225 | D8: 176 | E8: 252 | F8: 283 | G8: 398 | H8: 362 | I8: 414 | J8: 436 | K8: 638 | L8: 806 | M8: 864 | N8: 608
A9: Arquitectura y construcción | B9: 788 | C9: 704 | D9: 756 | E9: 645 | F9: 602 | G9: 628 | H9: 648 | I9: 665 | J9: 646 | K9: 832 | L9: 770 | M9: 754 | N9: 688
A10: Artes | B10: 488 | C10: 539 | D10: 574 | E10: 642 | F10: 710 | G10: 809 | H10: 744 | I10: 752 | J10: 746 | K10: 839 | L10: 1219 | M10: 997 | N10: 895
A11: Ciencias de la vida | B11: 474 | C11: 492 | D11: 515 | E11: 633 | F11: 815 | G11: 785 | H11: 955 | I11: 939 | J11: 818 | K11: 581 | L11: 650 | M11: 649 | N11: 473
A12: Ciencias físicas | B12: 505 | C12: 374 | D12: 545 | E12: 540 | F12: 653 | G12: 624 | H12: 771 | I12: 653 | J12: 687 | K12: 760 | L12: 636 | M12: 667 | N12: 711
A13: Ciencias sociales y del comportamiento | B13: 2965 | C13: 2466 | D13: 3152 | E13: 2933 | F13: 3126 | G13: 3353 | H13: 2987 | I13: 3057 | J13: 4830 | K13: 5692 | L13: 5936 | M13: 5399 | N13: 3774
A14: Derecho | B14: 2378 | C14: 2033 | D14: 2047 | E14: 2087 | F14: 1828 | G14: 2000 | H14: 1837 | I14: 1754 | J14: 1850 | K14: 1855 | L14: 2031 | M14: 2005 | N14: 2911
A15: Docencia y ciencias de la educación | B15: 315 | C15: 505 | D15: 542 | E15: 588 | F15: 515 | G15: 766 | H15: 911 | I15: 901 | J15: 941 | K15: 709 | L15: 800 | M15: 785 | N15: 957
A16: Enseñanza comercial y administración | B16: 2546 | C16: 4252 | D16: 3903 | E16: 4132 | F16: 3942 | G16: 3828 | H16: 4292 | I16: 4885 | J16: 3127 | K16: 3253 | L16: 4176 | M16: 3661 | N16: 5462
A17: Humanidades | B17: 568 | C17: 663 | D17: 709 | E17: 803 | F17: 899 | G17: 967 | H17: 1038 | I17: 889 | J17: 909 | K17: 791 | L17: 541 | M17: 707 | N17: 806
A18: Industria y producción | B18: 43 | C18: 151 | D18: 172 | E18: 214 | F18: 247 | G18: 114 | H18: 141 | I18: 104 | J18: 111 | K18: 115 | L18: 116 | M18: 219 | N18: 383
A19: Informática | B19: 792 | C19: 701 | D19: 749 | E19: 790 | F19: 813 | G19: 843 | H19: 917 | I19: 962 | J19: 1186 | K19: 1248 | L19: 1319 | M19: 1280 | N19: 1128
A20: Ingeniería y profesiones afines | B20: 720 | C20: 676 | D20: 672 | E20: 752 | F20: 767 | G20: 570 | H20: 701 | I20: 633 | J20: 671 | K20: 686 | L20: 856 | M20: 828 | N20: 891
A21: Matemáticas y estadística | B21: 107 | C21: 142 | D21: 113 | E21: 131 | F21: 324 | G21: 244 | H21: 328 | I21: 329 | J21: 238 | K21: 218 | L21: 155 | M21: 176 | N21: 132
A22: Medicina | B22: 3673 | C22: 3817 | D22: 3573 | E22: 3960 | F22: 4135 | G22: 3633 | H22: 3572 | I22: 3562 | J22: 3888 | K22: 4823 | L22: 4361 | M22: 4656 | N22: 4785
A23: Otras | B23: n/c | C23: n/c | D23: n/c | E23: n/c | F23: n/c | G23: n/c | H23: n/c | I23: n/c | J23: n/c | K23: n/c | L23: 104 | M23: 327 | N23: 32
A24: Periodismo e información | B24: 945 | C24: 838 | D24: 1118 | E24: 1174 | F24: 972 | G24: 1170 | H24: 1219 | I24: 1036 | J24: 1038 | K24: 1049 | L24: 816 | M24: 1218 | N24: 1027
A25: Protección del medio ambiente | B25: n/c | C25: n/c | D25: n/c | E25: n/c | F25: n/c | G25: n/c | H25: n/c | I25: n/c | J25: n/c | K25: n/c | L25: n/c | M25: 6 | N25: 43
A26: Servicios personales | B26: 8 | C26: 0 | D26: 0 | E26: 14 | F26: 8 | G26: 0 | H26: 318 | I26: 328 | J26: 331 | K26: 272 | L26: 411 | M26: 327 | N26: 491
A27: Servicios de seguridad | B27: n/c | C27: n/c | D27: n/c | E27: n/c | F27: n/c | G27: n/c | H27: n/c | I27: n/c | J27: n/c | K27: n/c | L27: n/c | M27: s/d | N27: 102
A28: Servicios sociales | B28: 311 | C28: 367 | D28: 457 | E28: 498 | F28: 508 | G28: 724 | H28: 573 | I28: 626 | J28: 594 | K28: 87 | L28: 146 | M28: 82 | N28: 0
A29: Veterinaria | B29: 295 | C29: 320 | D29: 317 | E29: 381 | F29: 411 | G29: 508 | H29: 484 | I29: 525 | J29: 519 | K29: 533 | L29: 508 | M29: 578 | N29: 555
A30: Fuente:Elaboración propia en base información de las oficinas productoras de las instituciones. Nota:Las áreas corresponden a la clasificación CINE 1997 de UNESCO.

Sheet I.2.7.3
A1: Ministerio de Educación y Cultura Dirección de Educación
A3: Cuadro I-2.7.3 EGRESOS DE INSTITUCIONES UNIVERSITARIAS POR AÑO LECTIVO SEGÚN ÁREA DE CONOCIMIENTO. AÑOS 2000 A 2012.
A4: INSTITUCIONES UNIVERSITARIAS | B4: AÑO LECTIVO
B5: 2000 | C5: 2001 | D5: 2002 | E5: 2003 | F5: 2004 | G5: 2005 | H5: 2006 | I5: 2007 | J5: 2008 | K5: 2009 | L5: 2010 | M5: 2011 | N5: 2012
A6: TOTAL | B6: =SUM(B7:B27) -> 4646 | C6: 4402 | D6: 5902 | E6: 5697 | F6: 6177 | G6: 5514 | H6: 6151 | I6: 6381 | J6: 7018 | K6: 7185 | L6: 7223 | M6: =SUM(M7:M27) -> 7808 | N6: =SUM(N7:N27) -> 9101
A7: Agricultura, silvicultura y pesca | B7: 226 | C7: 145 | D7: 164 | E7: 161 | F7: 213 | G7: 123 | H7: 126 | I7: 111 | J7: 164 | K7: 301 | L7: 279 | M7: 294 | N7: 216
A8: Arquitectura y construcción | B8: 233 | C8: 136 | D8: 294 | E8: 208 | F8: 308 | G8: 437 | H8: 324 | I8: 303 | J8: 280 | K8: 275 | L8: 341 | M8: 349 | N8: 362
A9: Artes | B9: 40 | C9: 33 | D9: 39 | E9: 60 | F9: 46 | G9: 42 | H9: 104 | I9: 120 | J9: 181 | K9: 184 | L9: 211 | M9: 162 | N9: 184
A10: Ciencias de la vida | B10: 97 | C10: 62 | D10: 72 | E10: 73 | F10: 107 | G10: 108 | H10: 141 | I10: 137 | J10: 183 | K10: 169 | L10: 166 | M10: 240 | N10: 242
A11: Ciencias físicas | B11: 110 | C11: 94 | D11: 153 | E11: 118 | F11: 162 | G11: 140 | H11: 105 | I11: 125 | J11: 143 | K11: 154 | L11: 158 | M11: 158 | N11: 141
A12: Ciencias sociales y del comportamiento | B12: 381 | C12: 534 | D12: 739 | E12: 671 | F12: 655 | G12: 634 | H12: 689 | I12: 641 | J12: 923 | K12: 720 | L12: 746 | M12: 930 | N12: 1262
A13: Derecho | B13: 500 | C13: 613 | D13: 686 | E13: 676 | F13: 816 | G13: 781 | H13: 838 | I13: 777 | J13: 886 | K13: 806 | L13: 786 | M13: 910 | N13: 1013
A14: Enseñanza comercial y administración | B14: 914 | C14: 865 | D14: 1328 | E14: 1509 | F14: 1205 | G14: 918 | H14: 1032 | I14: 1071 | J14: 1135 | K14: 1289 | L14: 1280 | M14: 1239 | N14: 1999
A15: Formación de personal docente y ciencias de la educación | B15: 66 | C15: 61 | D15: 81 | E15: 120 | F15: 113 | G15: 136 | H15: 291 | I15: 372 | J15: 399 | K15: 275 | L15: 235 | M15: 246 | N15: 241
A16: Humanidades | B16: 80 | C16: 33 | D16: 74 | E16: 33 | F16: 73 | G16: 64 | H16: 76 | I16: 75 | J16: 92 | K16: 90 | L16: 66 | M16: 75 | N16: 68
A17: Industria y producción | B17: 0 | C17: 12 | D17: 8 | E17: 16 | F17: 10 | G17: 26 | H17: 16 | I17: 31 | J17: 33 | K17: 24 | L17: 27 | M17: 25 | N17: 45
A18: Informática | B18: 285 | C18: 234 | D18: 257 | E18: 194 | F18: 237 | G18: 277 | H18: 235 | I18: 215 | J18: 242 | K18: 260 | L18: 250 | M18: 277 | N18: 288
A19: Ingeniería y profesiones afines | B19: 133 | C19: 124 | D19: 187 | E19: 201 | F19: 224 | G19: 214 | H19: 200 | I19: 204 | J19: 194 | K19: 257 | L19: 222 | M19: 232 | N19: 275
A20: Matemáticas y estadística | B20: 9 | C20: 4 | D20: 6 | E20: 9 | F20: 10 | G20: 12 | H20: 5 | I20: 13 | J20: 27 | K20: 19 | L20: 14 | M20: 11 | N20: 21
A21: Medicina | B21: 1323 | C21: 1311 | D21: 1476 | E21: 1276 | F21: 1578 | G21: 1243 | H21: 1537 | I21: 1726 | J21: 1532 | K21: 1874 | L21: 1962 | M21: 1953 | N21: 2027
A22: Periodismo e información | B22: 120 | C22: 78 | D22: 208 | E22: 249 | F22: 289 | G22: 174 | H22: 191 | I22: 213 | J22: 234 | K22: 242 | L22: 201 | M22: 241 | N22: 280
A23: Protección del medio ambiente | B23: s/d | C23: s/d | D23: s/d | E23: s/d | F23: s/d | G23: s/d | H23: s/d | I23: s/d | J23: s/d | K23: s/d | L23: s/d | M23: 5 | N23: 12
A24: Servicios de Seguridad | B24: n/c | C24: n/c | D24: n/c | E24: n/c | F24: n/c | G24: n/c | H24: n/c | I24: n/c | J24: n/c | K24: n/c | L24: n/c | M24: s/d | N24: 41
A25: Servicios personales | B25: 0 | C25: 0 | D25: 0 | E25: 16 | F25: 7 | G25: 19 | H25: 96 | I25: 145 | J25: 194 | K25: 67 | L25: 51 | M25: 181 | N25: 125
A26: Servicios sociales | B26: 17 | C26: 14 | D26: 23 | E26: 18 | F26: 33 | G26: 48 | H26: 51 | I26: 47 | J26: 106 | K26: 88 | L26: 123 | M26: 148 | N26: 139
A27: Veterinaria | B27: 112 | C27: 49 | D27: 107 | E27: 89 | F27: 91 | G27: 118 | H27: 94 | I27: 55 | J27: 70 | K27: 91 | L27: 105 | M27: 132 | N27: 120
A28: Fuente: Elaboración propia en base a información brindada por las oficinas productoras de las instituciones. Nota: Las áreas corresponden a la clasificación CINE 1997 de UNESCO.

Sheet I.2.7.4
A1: Ministerio de Educación y Cultura Dirección de Educación
A3: Cuadro I.2.7.4 EGRESOS DE INSTITUCIONES UNIVERSITARIAS POR NIVEL ACADÉMICO SEGÚN ÁREA DE CONOCIMIENTO. AÑO 2012.
A5: INSTITUCIONES UNIVERSITARIAS | B5: TOTAL | C5: % | D5: NIVEL ACADÉMICO
D6: Carrera corta o tecnicatura | E6: Carrera de grado, licenciatura | F6: Postgrado de especialización | G6: Maestría | H6: Doctorado
A7: TOTAL | B7: =SUM(D7:H7) -> 9101 | C7: =SUM(C8:C28) -> 100 | D7: 614 | E7: 7213 | F7: 434 | G7: 789 | H7: 51
A8: Agricultura, silvicultura y pesca | B8: =SUM(D8:H8) -> 216 | C8: =(B8*100)/$B$7 -> 2.373365564 | D8: 0 | E8: 188 | F8: 1 | G8: 27 | H8: 0
A9: Arquitectura y construcción | B9: 362 | C9: 3.977584881 | D9: 1 | E9: 361 | F9: 0 | G9: 0 | H9: 0
A10: Artes | B10: 184 | C10: 2.021755851 | D10: 26 | E10: 158 | F10: 0 | G10: 0 | H10: 0
A11: Ciencias de la vida | B11: 242 | C11: 2.659048456 | D11: 0 | E11: 190 | F11: 0 | G11: 41 | H11: 11
A12: Ciencias físicas | B12: 141 | C12: 1.549280299 | D12: 9 | E12: 108 | F12: 0 | G12: 7 | H12: 17
A13: Ciencias sociales y del comportamiento | B13: 1262 | C13: 13.86660807 | D13: 3 | E13: 1113 | F13: 92 | G13: 54 | H13: 0
A14: Derecho | B14: 1013 | C14: 11.13064498 | D14: 103 | E14: 872 | F14: 2 | G14: 36 | H14: 0
A15: Enseñanza comercial y administración | B15: 1999 | C15: 21.96461927 | D15: 185 | E15: 1480 | F15: 205 | G15: 129 | H15: 0
A16: Formación de personal docente y ciencias de la educación | B16: 241 | C16: 2.648060653 | D16: 25 | E16: 42 | F16: 82 | G16: 78 | H16: 14
A17: Humanidades | B17: 68 | C17: 0.7471706406 | D17: 10 | E17: 44 | F17: 0 | G17: 14 | H17: 0
A18: Industria y producción | B18: 45 | C18: 0.4944511592 | D18: 0 | E18: 45 | F18: 0 | G18: 0 | H18: 0
A19: Informática | B19: 288 | C19: 3.164487419 | D19: 20 | E19: 228 | F19: 19 | G19: 16 | H19: 5
A20: Ingeniería y profesiones afines | B20: 275 | C20: 3.021645973 | D20: 33 | E20: 222 | F20: 1 | G20: 16 | H20: 3
A21: Matemáticas y estadística | B21: 21 | C21: 0.2307438743 | D21: 0 | E21: 16 | F21: 2 | G21: 3 | H21: 0
A22: Medicina | B22: 2027 | C22: 22.27227777 | D22: 137 | E22: 1512 | F22: 27 | G22: 350 | H22: 1
A23: Periodismo e información | B23: 280 | C23: 3.076584991 | D23: 46 | E23: 231 | F23: 2 | G23: 1 | H23: 0
A24: Protección del medio ambiente | B24: 12 | C24: 0.1318536425 | D24: 0 | E24: 2 | F24: 0 | G24: 10 | H24: 0
A25: Servicios de seguridad | B25: =SUM(D25:H25) -> 41 | C25: =(B25*100)/$B$7 -> 0.4504999451 | D25: 0 | E25: 41 | G25: 0
A26: Servicios personales | B26: 125 | C26: 1.373475442 | D26: 16 | E26: 109 | F26: 0 | G26: 0 | H26: 0
A27: Servicios sociales | B27: 139 | C27: 1.527304692 | D27: 0 | E27: 137 | F27: 1 | G27: 1 | H27: 0
A28: Veterinaria | B28: 120 | C28: 1.318536425 | D28: 0 | E28: 114 | F28: 0 | G28: 6 | H28: 0
A29: Fuente: Elaboración propia en base información de las oficinas productoras de las instituciones Nota: Las áreas corresponden a la clasificación CINE 1997 de UNESCO.

Sheet I.2.7.5
A1: Ministerio de Educación y Cultura Dirección de Educación
A3: Cuadro I-2.7.5 INGRESOS A INSTITUCIONES UNIVERSITARIAS POR NIVEL ACADÉMICO SEGÚN ÁREA DE CONOCIMIENTO. AÑO 2012.
A4: INSTITUCIONES UNIVERSITARIAS | B4: NIVEL ACADÉMICO
B5: TOTAL | D5: Carrera corta o tecnicatura | E5: Carrera de grado, licenciatura | F5: Postgrado de especialización | G5: Maestría | H5: Doctorado
A7: TOTAL | B7: =SUM(D7:H7) -> 26854 | C7: =SUM(C8:C29) -> 100 | D7: 2424 | E7: 20851 | F7: 1488 | G7: 1965 | H7: 126
A8: Agricultura, silvicultura y pesca | B8: =SUM(D8:H8) -> 608 | C8: =(B8*100)/$B$7 -> 2.264094734 | D8: 33 | E8: 483 | F8: 29 | G8: 49 | H8: 14
A9: Arquitectura y construcción | B9: 688 | C9: 2.562001936 | D9: 5 | E9: 650 | F9: 33 | G9: 0 | H9: 0
A10: Artes | B10: 895 | C10: 3.332836821 | D10: 48 | E10: 847 | F10: 0 | G10: 0 | H10: 0
A11: Ciencias de la vida | B11: 473 | C11: 1.761376331 | D11: 0 | E11: 340 | F11: 0 | G11: 102 | H11: 31
A12: Ciencias físicas | B12: 711 | C12: 2.647650257 | D12: 46 | E12: 618 | F12: 0 | G12: 20 | H12: 27
A13: Ciencias sociales y del comportamiento | B13: 3774 | C13: 14.05377225 | D13: 10 | E13: 3073 | F13: 418 | G13: 256 | H13: 17
A14: Derecho | B14: 2911 | C14: 10.84009831 | D14: 0 | E14: 2731 | F14: 26 | G14: 154 | H14: 0
A15: Enseñanza comercial y administración | B15: 5462 | C15: 20.33961421 | D15: 1276 | E15: 3516 | F15: 467 | G15: 203 | H15: 0
A16: Formación de personal docente y ciencias de la educación | B16: 957 | C16: 3.563714903 | D16: 88 | E16: 376 | F16: 213 | G16: 267 | H16: 13
A17: Humanidades | B17: 806 | C17: 3.001415059 | D17: 155 | E17: 550 | F17: 0 | G17: 101 | H17: 0
A18: Industria y producción | B18: 383 | C18: 1.426230729 | D18: 50 | E18: 329 | F18: 0 | G18: 4 | H18: 0
A19: Informática | B19: 1128 | C19: 4.200491547 | D19: 35 | E19: 1030 | F19: 22 | G19: 38 | H19: 3
A20: Ingeniería y profesiones afines | B20: 891 | C20: 3.317941461 | D20: 96 | E20: 707 | F20: 29 | G20: 51 | H20: 8
A21: Matemáticas y estadística | B21: 132 | C21: 0.4915468831 | D21: 0 | E21: 106 | F21: 20 | G21: 3 | H21: 3
A22: Medicina | B22: 4785 | C22: 17.81857451 | D22: 375 | E22: 3569 | F22: 190 | G22: 649 | H22: 2
A23: Periodismo e información | B23: 1027 | C23: 3.824383704 | D23: 55 | E23: 915 | F23: 8 | G23: 49 | H23: 0
A24: Servicios de seguridad | B24: =SUM(D24:H24) -> 102 | C24: =(B24*100)/$B$7 -> 0.3798316824 | D24: 0 | E24: 102 | F24: 0 | G24: 0 | H24: 0
A25: Servicios personales | B25: 491 | C25: 1.828405452 | D25: 120 | E25: 338 | F25: 33 | G25: 0 | H25: 0
A26: Servicios sociales | B26: 0 | C26: 0 | D26: 0 | E26: 0 | F26: 0 | G26: 0 | H26: 0
A27: Protección del medio ambiente | B27: 43 | C27: 0.160125121 | D27: 0 | E27: 35 | F27: 0 | G27: 7 | H27: 1
A28: Veterinaria | B28: 555 | C28: 2.066731213 | D28: 0 | E28: 536 | F28: 0 | G28: 12 | H28: 7
A29: Otras | B29: =SUM(D29:H29) -> 32 | C29: =(B29*100)/$B$7 -> 0.1191628808 | D29: 32 | E29: n/c | F29: n/c | G29: n/c | H29: n/c
A30: Fuente: Elaboración propia en base información de las oficinas productoras de las instituciones
A31: Nota: Las áreas corresponden a la clasificación CINE 1997 de UNESCO.
A32: La categoría "Otras", refiere a estudiantes que ingresaron al Ciclo Inicial en UdelaR y no pueden ser clasificables por área.

Sheet I.2.7.6
A1: Ministerio de Educación y Cultura Dirección de Educación
A3: Cuadro I-2.7.6 INGRESOS, MATRÍCULA Y EGRESOS DE OFERTAS DE GRADO SEGÚN FORMA DE ADMINISTRACIÓN EN CANTIDADES ABSOLUTAS Y PORCENTAJES. AÑO 2012.
A4: FORMA DE ADMINISTRACIÓN | B4: INGRESOS | C4: MATRÍCULA | D4: EGRESOS
A5: TOTAL VALORES ABSOLUTOS | B5: =SUM(B6:B8) -> 23275 | C5: =SUM(C6:C8) -> 151081 | D5: =SUM(D6:D8) -> 7826
A6: Universidad de la República | B6: 19334 | C6: 130941 | D6: 6315
A7: Instituciones Universitarias Privadas | B7: 3839 | C7: 20038 | D7: 1470
A8: Área seguridad y defensa (oferta pública universitaria) | B8: 102 | C8: 102 | D8: 41
A9: TOTAL PORCENTAJES | B9: 1 | C9: 1 | D9: 1
A10: Universidad de la República | B10: =B6/B5*100% -> 0.8306766917 | C10: =C6/C5*100% -> 0.8666940251 | D10: =D6/D5*100% -> 0.8069256325
A11: Instituciones Universitarias Privadas | B11: =B7/B5*100% -> 0.1649409237 | C11: 0.1326308404 | D11: 0.1878354204
A12: Área seguridad y defensa (oferta pública universitaria) | B12: 0.005275680149 | C12: 0.0007789767911 | D12: 0.006492478226
A13: Fuentes: Elaboración propia en base a información brindada por las oficinas productoras de las instituciones.

Sheet I.2.8.1
A1: Ministerio de Educación y Cultura
A2: Dirección de Educación
A5: Cuadro I-2.8.1
A6: ALUMNOS MATRICULADOS EN EL PROGRAMA NACIONAL DE JÓVENES Y ADULTOS POR MODALIDAD, NIVEL Y SEXO SEGÚN GRANDES ÁREAS. AÑO 2012.
A7: GRANDES ÁREAS | B7: ALUMNOS MATRICULADOS EN EDUCACIÓN PRIMARIA | I7: ALUMNOS MATRICULADOS EN TALLERES
B8: TOTAL Ed Primaria | C8: PRIMER TRAMO: NIVEL I | F8: PRIMER TRAMO: NIVEL II | I8: TOTAL | J8: SEXO
C9: TOTAL | D9: SEXO | F9: TOTAL | G9: SEXO
D10: Masculino | E10: Femenino | G10: Masculino | H10: Femenino | J10: Masculino | K10: Femenino
A11: TOTAL | B11: =C11+F11 -> 2709 | C11: =SUM(D11:E11) -> 1172 | D11: =D12+D13 -> 585 | E11: =E12+E13 -> 587 | F11: =SUM(G11:H11) -> 1537 | G11: =G12+G13 -> 745 | H11: =H12+H13 -> 792 | I11: =SUM(J11:K11) -> 4291 | J11: =J12+J13 -> 1879 | K11: =K12+K13 -> 2412
A12: Montevideo | B12: =C12+F12 -> 1280 | C12: =SUM(D12:E12) -> 571 | D12: 295 | E12: 276 | F12: =SUM(G12:H12) -> 709 | G12: 406 | H12: 303 | I12: =SUM(J12:K12) -> 3603 | J12: 1545 | K12: 2058
A13: Resto del País | B13: =C13+F13 -> 1429 | C13: =SUM(D13:E13) -> 601 | D13: 290 | E13: 311 | F13: =SUM(G13:H13) -> 828 | G13: 339 | H13: 489 | I13: =SUM(J13:K13) -> 688 | J13: 334 | K13: 354
A14: Fuentes: ANEP -CODICEN - Programa de Eduacación de Jóvenes y Adultos

Sheet I.2.8.2
A1: Ministerio de Educación y Cultura
A2: Dirección de Educación
A5: Cuadro I.2.8.2
A6: ALUMNOS QUE RINDIERON LA PRUEBA DE ACREDITACIÓN EN EL PROGRAMA NACIONAL DE JÓVENES Y ADULTOS POR SEXO SEGÚN GRANDES ÁREAS. AÑO 2012.
A7: GRANDES ÁREAS | B7: ALUMNOS PARTICIPANTES EN PRUEBA DE ACREDITACIÓN
B8: TOTAL PRUEBAS DE ACREDITACIÓN | C8: SEXO
C10: Masculino | D10: Femenino
A11: TOTAL | B11: =SUM(C11:D11) -> 1154 | C11: =C12+C13 -> 534 | D11: =D12+D13 -> 620
A12: Montevideo | B12: =SUM(C12:D12) -> 333 | C12: 175 | D12: 158
A13: Resto del País | B13: =SUM(C13:D13) -> 821 | C13: 359 | D13: 462
A14: Fuentes : ANEP-CODICEN - Programa de Educación de jóvnes y Adultos .

Sheet I.2.9.1
A1: Ministerio de Educación y Cultura
A2: Dirección de Educación
A5: Cuadro I.2.9.1
A6: TOTAL DE INSTITUCIONES DEL RELEVAMIENTO TÉCNICO-PROFESIONAL POR FORMA DE ADMINISTRACIÓN,GRANDES ÁREAS SEGÚN ÁREA DE CONOCIMIENTO. AÑO 2012
A7: AREA DE CONOCIMIENTO | B7: TOTAL | C7: FORMA DE ADMINISTRACIÓN | E7: ÁREA GEOGRÁFICA
C8: PÚBLICO | D8: PRIVADO | E8: MONTEVIDEO | F8: RESTO DEL PAÍS
A9: TOTAL | B9: =SUM(B10:B27) -> 302 | C9: =SUM(C10:C27) -> 11 | D9: =SUM(D10:D27) -> 291 | E9: =SUM(E10:E27) -> 191 | F9: =SUM(F10:F27) -> 111
A10: Administración-Comercialización | B10: =C10+D10 -> 25 | C10: 1 | D10: 24 | E10: 20 | F10: 5
A11: Agraria | B11: =C11+D11 -> 6 | C11: 0 | D11: 6 | E11: 3 | F11: 3
A12: Artes-Artesanias | B12: 21 | C12: 0 | D12: 21 | E12: 19 | F12: 2
A13: Comunicaciones | B13: 4 | C13: 0 | D13: 4 | E13: 4 | F13: 0
A14: Construcción-Arquitectura | B14: 3 | C14: 0 | D14: 3 | E14: 3 | F14: 0
A15: Diseños | B15: 4 | C15: 0 | D15: 4 | E15: 3 | F15: 1
A16: Electrotecnia y Electrónica | B16: 2 | C16: 0 | D16: 2 | E16: 2 | F16: 0
A17: Gastronomía | B17: 10 | C17: 1 | D17: 9 | E17: 7 | F17: 3
A18: Gráficos | B18: 1 | C18: 0 | D18: 1 | E18: 1 | F18: 0
A19: Hoteleria y Turismo | B19: 1 | C19: 0 | D19: 1 | E19: 1 | F19: 0
A20: Idiomas | B20: 106 | C20: 0 | D20: 106 | E20: 51 | F20: 55
A21: Informática | B21: 36 | C21: 2 | D21: 34 | E21: 13 | F21: 23
A22: Marítima | B22: 2 | C22: 0 | D22: 2 | E22: 1 | F22: 1
A23: Metal-Mecánica | B23: 1 | C23: 0 | D23: 1 | E23: 1 | F23: 0
A24: Salud; Seguridad e Higiene | B24: 10 | C24: 0 | D24: 10 | E24: 4 | F24: 6
A25: Servicios Personales-Estética | B25: 2 | C25: 0 | D25: 2 | E25: 2 | F25: 0
A26: Vestimenta | B26: 3 | C26: 0 | D26: 3 | E26: 3 | F26: 0
A27: Otros | B27: =C27+D27 -> 65 | C27: 7 | D27: 58 | E27: 53 | F27: 12
A28: Fuente: Elaboración propia en base a la información del Relevamiento de Instituciones de Formación Técnico-Profesional.Realizado por el Área de Investigación y Estadística.

Sheet I.2.9.2
A1: Ministerio de Educación y Cultura
A2: Dirección de Educación
A6: Cuadro I.2.9.2
A7: ALUMNOS MATRICULADOS POR REGIÓN SEGÚN ÁREA DE CONOCIMIENTO. AÑO 2012.
A8: ÁREA DE CONOCIMIENTO | C8: REGIÓN
B9: TOTAL | C9: Montevideo | D9: Resto del país
A10: TOTAL | B10: =C10+D10 -> 83530 | C10: =SUM(C11:C28) -> 66696 | D10: =SUM(D11:D28) -> 16834
A11: Administración-Comercialización | B11: =SUM(C11:D11) -> 3127 | C11: 2784 | D11: 343
A12: Agraria | B12: 367 | C12: 206 | D12: 161
A13: Artes-Artesanias | B13: 2855 | C13: 2701 | D13: 154
A14: Comunicaciones | B14: 822 | C14: 822 | D14: 0
A15: Construcción-Arquitectura | B15: 470 | C15: 470 | D15: 0
A16: Diseños | B16: 147 | C16: 135 | D16: 12
A17: Electrotecnia y Electrónica | B17: 120 | C17: 120 | D17: 0
A18: Gastronomía | B18: 1650 | C18: 1475 | D18: 175
A19: Gráficos | B19: 241 | C19: 241 | D19: 0
A20: Hoteleria y Turismo | B20: 340 | C20: 340 | D20: 0
A21: Idiomas | B21: 21256 | C21: 12377 | D21: 8879
A22: Informática | B22: 7570 | C22: 2992 | D22: 4578
A23: Marítima | B23: 72 | C23: 51 | D23: 21
A24: Metal-Mecánica | B24: 387 | C24: 387 | D24: 0
A25: Otros | B25: 42164 | C25: 40553 | D25: 1611
A26: Salud, Seguridad e Higiene | B26: 1663 | C26: 763 | D26: 900
A27: Servicios Personales-Estética | B27: 123 | C27: 123 | D27: 0
A28: Vestimenta | B28: 156 | C28: 156 | D28: 0
A29: Fuente: Área de Investigación y Estadística.

Sheet I.2.9.3
A1: Ministerio de Educación y Cultura Dirección de Educación
A2: Área de Investigación y Estadística
A4: Cuadro I.2.9.3 ALUMNOS DEL RELEVAMIENTO DE INSTITUCIONES DE FORMACIÓN TÉCNICO-PROFESIONAL DESVINCULADOS, INGRESADOS Y EGRESADOS POR TIPO DE INSTITUCIÓN Y REGIÓN SEGÚN ÁREA DE CONOCIMIENTO. AÑO 2012
A5: ÁREA DE CONOCIMIENTO
B6: TOTAL | F6: TIPO DE INSTITUCIÓN | K6: ÁREA GEOGRÁFICA
E7: PRIVADO | H7: PÚBLICO | K7: MONTEVIDEO | N7: RESTO DEL PÁIS
B8: Desvinculados | C8: Ingresos | D8: Egresos | E8: Desvinculados | F8: Ingresos | G8: Egresos | H8: Desvinculados | I8: Ingresos | J8: Egresos | K8: Desvinculados | L8: Ingresos | M8: Egresos | N8: Desvinculados | O8: Ingresos | P8: Egresos
A9: TOTAL | B9: =SUM(E9+H9) -> 14550 | C9: =SUM(F9+I9) -> 78533 | D9: 56215 | E9: =SUM(E10:E28) -> 14453 | F9: =SUM(F10:F28) -> 76348 | G9: =SUM(G10:G28) -> 55395 | H9: 97 | I9: =SUM(I10:I28) -> 2185 | J9: 820 | K9: 11808 | L9: =SUM(L10:L28) -> 57744 | M9: 45257 | N9: 2742 | O9: 20789 | P9: 10958
A10: Administración-Comercialización | B10: 333 | C10: 8908 | D10: 3411 | E10: 328 | F10: 8820 | G10: 3398 | H10: 5 | I10: 88 | J10: 13 | K10: 269 | L10: 7461 | M10: 3100 | N10: 64 | O10: 1447 | P10: 311
A11: Agraria | B11: 94 | C11: 1193 | D11: 747 | E11: 94 | F11: 1193 | G11: 747 | K11: 16 | L11: 441 | M11: 70 | N11: 78 | O11: 752 | P11: 677
A12: Artes-Artesanias | B12: 1511 | C12: 3103 | D12: 875 | E12: 1511 | F12: 3103 | G12: 875 | K12: 1494 | L12: 2767 | M12: 862 | N12: 17 | O12: 336 | P12: 13
A13: Comunicaciones | B13: 96 | C13: 1110 | D13: 701 | E13: 96 | F13: 983 | G13: 701 | I13: 127 | K13: 96 | L13: 1027 | M13: 701 | O13: 83
A14: Construcción-Arquitectura | B14: 13 | C14: 1892 | D14: 457 | E14: 13 | F14: 1825 | G14: 457 | I14: 67 | K14: 13 | L14: 1700 | M14: 457 | O14: 192
A15: Diseños | B15: 16 | C15: 1239 | D15: 24 | E15: 16 | F15: 1218 | G15: 24 | I15: 21 | K15: 12 | L15: 997 | M15: 16 | N15: 4 | O15: 221 | P15: 8
A16: Electrotecnia y Electrónica | B16: 7 | C16: 621 | D16: 102 | E16: 7 | F16: 621 | G16: 102 | K16: 7 | L16: 573 | M16: 102 | O16: 69
A17: Gastronomía | B17: 305 | C17: 1962 | D17: 1203 | E17: 305 | F17: 1937 | G17: 1178 | H17: 0 | I17: 25 | J17: 25 | K17: 284 | L17: 1796 | M17: 1141 | N17: 21 | O17: 166 | P17: 62
A18: Gráficos | B18: 31 | C18: 1313 | D18: 156 | E18: 31 | F18: 1313 | G18: 156 | K18: 31 | L18: 1194 | M18: 156 | O18: 119
A19: Hoteleria y Turismo | B19: 70 | C19: 482 | D19: 176 | E19: 70 | F19: 456 | G19: 176 | I19: 26 | K19: 70 | L19: 262 | M19: 176 | O19: 220
A20: Idiomas | B20: 2953 | C20: 15037 | D20: 14798 | E20: 2953 | F20: 15037 | G20: 14798 | K20: 1657 | L20: 8688 | M20: 9118 | N20: 1296 | O20: 6349 | P20: 5680
A21: Informática | B21: 1207 | C21: 11221 | D21: 4949 | E21: 1150 | F21: 10950 | G21: 4813 | H21: 57 | I21: 271 | J21: 136 | K21: 401 | L21: 7878 | M21: 1760 | N21: 806 | O21: 3343 | P21: 3189
A22: Marítima | B22: 2 | C22: 72 | D22: 70 | E22: 2 | F22: 72 | G22: 70 | K22: 1 | L22: 51 | M22: 50 | N22: 1 | O22: 21 | P22: 20
A23: Metal-Mecánica | B23: 0 | C23: 1041 | D23: 387 | E23: 0 | F23: 1026 | G23: 387 | I23: 15 | K23: 0 | L23: 805 | M23: 387 | O23: 236
A24: Química | C24: =SUM(F24+I24) -> 251 | F24: 15 | I24: 236 | L24: 251
A25: Salud; Seguridad e Higiene | B25: =SUM(E25+H25) -> 264 | C25: =SUM(F25+I25) -> 2824 | D25: =SUM(G25+J25) -> 892 | E25: 264 | F25: 2695 | G25: 892 | I25: 129 | K25: 78 | L25: 1987 | M25: 514 | N25: 186 | O25: 837 | P25: 378
A26: Servicios Personales-Estética | B26: =SUM(E26+H26) -> 6 | C26: =SUM(F26+I26) -> 753 | D26: =SUM(G26+J26) -> 110 | E26: 6 | F26: 753 | G26: 110 | K26: 6 | L26: 729 | M26: 110 | O26: 24
A27: Vestimenta | B27: =SUM(E27+H27) -> 114 | C27: =SUM(F27+I27) -> 296 | D27: =SUM(G27+J27) -> 122 | E27: 114 | F27: 296 | G27: 122 | K27: 114 | L27: 281 | M27: 122 | O27: 15
A28: Otros | B28: =SUM(E28+H28) -> 7528 | C28: =SUM(F28+I28) -> 25215 | D28: =SUM(G28+J28) -> 27035 | E28: 7493 | F28: 24035 | G28: 26389 | H28: 35 | I28: 1180 | J28: 646 | K28: 7259 | L28: 18856 | M28: 26415 | N28: 269 | O28: 6359 | P28: 620
A29: Fuente: Elaboración propia en base a la información del Relevamiento de Instituciones de Formación Técnico-Profesional. Realizado por el Área de Investigación y Estadística.

Sheet I.2.9.4
A1: Ministerio de Educación y Cultura
A2: Dirección de Educación
A6: Cuadro I.2.9.4
A7: CANTIDAD DE CURSOS POR TRAMOS DE DURACIÓN EN HORAS SEGÚN ÁREA DE CONOCIMIENTO. AÑO 2012.
A8: ÁREA DE | B8: TOTAL | C8: 0 a 40 | D8: 41 a 140 | E8: 141 a 320 | F8: 321 a 440 | G8: 440 y más
A9: CONOCIMIENTO
A10: TOTAL | B10: =SUM(C10:G10) -> 2004 | C10: =SUM(C11:C29) -> 626 | D10: =SUM(D11:D29) -> 858 | E10: =SUM(E11:E29) -> 354 | F10: =SUM(F11:F29) -> 78 | G10: =SUM(G11:G29) -> 88
A11: Administración - Comercialización | B11: 230 | C11: 86 | D11: 83 | E11: 40 | F11: 13 | G11: 8
A12: Agraria | B12: 24 | C12: 8 | D12: 6 | E12: 8 | F12: 1 | G12: 1
A13: Artes - Artesanías | B13: 84 | C13: 35 | D13: 25 | E13: 14 | F13: 1 | G13: 9
A14: Comunicaciones | B14: 34 | C14: 8 | D14: 11 | E14: 3 | F14: 9 | G14: 3
A15: Construcción - Arquitectura | B15: 24 | C15: 4 | D15: 13 | E15: 5 | F15: 1 | G15: 1
A16: Electrotecnia y Electrónica | B16: 15 | C16: 1 | D16: 11 | E16: 2 | F16: 0 | G16: 1
A17: Gastronomía | B17: 72 | C17: 13 | D17: 28 | E17: 7 | F17: 14 | G17: 10
A18: Gráficos | B18: 16 | C18: 6 | D18: 5 | E18: 3 | F18: 0 | G18: 2
A19: Diseños | B19: 42 | C19: 7 | D19: 22 | E19: 7 | F19: 3 | G19: 3
A20: Hotelería y Turismo | B20: 24 | C20: 8 | D20: 4 | E20: 5 | F20: 4 | G20: 3
A21: Informática | B21: 321 | C21: 160 | D21: 135 | E21: 19 | F21: 2 | G21: 5
A22: Marítima | B22: 2 | C22: 1 | D22: 1 | E22: 0 | F22: 0 | G22: 0
A23: Metal - Mecánica | B23: 10 | C23: 0 | D23: 5 | E23: 5 | F23: 0 | G23: 0
A24: Química | B24: 2 | C24: 1 | D24: 0 | E24: 0 | F24: 1 | G24: 0
A25: Salud, Seguridad e Higiene | B25: 60 | C25: 32 | D25: 14 | E25: 12 | F25: 0 | G25: 2
A26: Servicios Personales - Estética | B26: 27 | C26: 9 | D26: 13 | E26: 1 | F26: 3 | G26: 1
A27: Idiomas | B27: 554 | C27: 62 | D27: 338 | E27: 132 | F27: 12 | G27: 10
A28: Vestimenta | B28: 48 | C28: 16 | D28: 18 | E28: 11 | F28: 1 | G28: 2
A29: Otros | B29: 415 | C29: 169 | D29: 126 | E29: 80 | F29: 13 | G29: 27
A30: Fuente: Área de Investigación y Estadística.

Sheet I.2.9.5
A1: Ministerio de Educación y Cultura
A2: Dirección de Educación
A6: Cuadro I-2.9.5
A7: ALUMNOS MATRICULADOS EN EL CETP (UTU) POR SEXO Y GRANDES ÁREAS SEGÚN TIPO DE CURSOS DE NIVEL DE FORMACIÓN PROFESIONAL
A8: CURSOS DE NIVEL DE FORMACIÓN PROFESIONAL | B8: TOTAL | C8: SEXO | E8: GRANDES ÁREAS
C9: Masculino | D9: Femenino | E9: Montevideo | F9: Resto del País
A10: TOTAL | B10: 9859 | C10: 4964 | D10: 4895 | E10: 4501 | F10: 5358
A12: Acreditación de saberes | B12: 60 | C12: 4 | D12: 56 | E12: 0 | F12: 60
A13: Capacitación Profesional | B13: 213 | C13: 129 | D13: 84 | E13: 107 | F13: 106
A14: Capacitación Profesional Básica | B14: 4469 | C14: 2274 | D14: 2195 | E14: 1100 | F14: 3369
A15: Curso Básico | B15: 767 | C15: 374 | D15: 393 | E15: 567 | F15: 200
A16: Curso Básico Especialización | B16: 822 | C16: 398 | D16: 424 | E16: 449 | F16: 373
A17: Form.Prof. en Artes y Artesanías | B17: 502 | C17: 290 | D17: 212 | E17: 483 | F17: 19
A18: Formación Profesional Acelerada | B18: 14 | C18: 13 | D18: 1 | E18: 14 | F18: 0
A19: Formación Profesional Básica | B19: 1943 | C19: 942 | D19: 1001 | E19: 960 | F19: 983
A20: Formación Profesional Especializada | B20: 185 | C20: 24 | D20: 161 | E20: 185 | F20: 0
A21: Capacitación Profesional Superior | B21: 361 | C21: 226 | D21: 135 | E21: 167 | F21: 194
A22: Capacitación Técnica | B22: 65 | C22: 14 | D22: 51 | E22: 65 | F22: 0
A23: E. M. P. Especialización | B23: 73 | C23: 7 | D23: 66 | E23: 70 | F23: 3
A24: Formación Profesional Superior | B24: 385 | C24: 269 | D24: 116 | E24: 334 | F24: 51
A25: Fuente: Procesamiento propio en base a datos proporcionados por el D.E. - CETP (U.T.U) .

Sheet I.2.9.6
A1: Ministerio de Educación y Cultura Dirección de Educación
A3: Cuadro I.2.9.6 ALUMNOS INGRESADOS Y MATRICULADOS EN CECAP POR SEXO SEGÚN GRANDES ÁREAS. AÑO 2012.
A4: NIVEL EDUCATIVO MÁXIMO ALCANZADO | B4: TOTAL | C4: INGRESADOS | F4: MATRICULADOS
C5: Masculino | D5: Femenino | E5: TOTAL | F5: Masculino | G5: Femenino
A6: TOTAL | B6: =B7+B8 -> 1044 | C6: 562 | D6: 482 | E6: 2135 | F6: 1171 | G6: 964
A7: Montevideo | B7: =C7+D7 -> 284 | C7: 146 | D7: 138 | E7: =F7+G7 -> 697 | F7: 352 | G7: 345
A8: Resto del país | B8: =C8+D8 -> 760 | C8: 416 | D8: 344 | E8: =F8+G8 -> 1438 | F8: 819 | G8: 619
A9: Fuente: Área de Educación No Formal de la Dirección de Educación - MEC

Sheet I.2.9.7
A1: Ministerio de Educación y Cultura Dirección de Educación
A3: Cuadro I-2.9.7
A4: ALUMNOS MATRICULADOS DEL COCAP SEGÚN TIPO DE CURSO Y ÁREA DE FORMACIÓN. AÑO 2012.
A5: TIPO DE CURSO | C5: TOTAL | D5: SEXO
D6: Masculino | E6: Femenino
A7: TOTAL | C7: =C8+C9 -> 868 | D7: =D8+D9 -> 860 | E7: =E8+E9 -> 8
A8: Cursos Abiertos | C8: =D8+E8 -> 770 | D8: 764 | E8: 6
A9: Cursos Cerrados | C9: =D9+E9 -> 98 | D9: 96 | E9: 2
A10: Fuente: COCAP

Sheet I.2.9.8
A1: Ministerio de Educación y Cultura Dirección de Educación
A4: Cuadro I-2.9.8 FUNCIONARIOS PARTICIPANTES EN LOS CURSOS DE LA ENAP DR. AQUILES LANZA, CANTIDAD DE CURSOS Y HORAS TIPO DE CURSO. AÑO 2012.
A5: GRANDES ÁREAS | C5: FUNCIONARIOS PARTICIPANTES | D5: CANTIDAD DE CURSOS | E5: HORAS
A6: TOTAL | C6: =SUM(C7:C9) -> 4640 | D6: =SUM(D7:D9) -> 295 | E6: =SUM(E7:E9) -> 9496
A7: Programas de Formación: Programa de Dirección Media, Diploma en Gestión Humana y Programa de Desarrollo Administrativo | C7: 325 | D7: 13 | E7: 3100
A8: Cursos y Seminarios | C8: 3050 | D8: 243 | E8: 5446
A9: Cursos e-learning | C9: 1265 | D9: 39 | E9: 950
A10: Fuentes: Oficina Nacional del Servicio Civil - Escuela Nacional de Administración Pública "Dr. Aquiles Lanza"
A11: Nota: Por no contar con información, no se incluye la "Maestría en Políticas y Gestión Pública".

Sheet I.2.9.9
A1: Ministerio de Educación y Cultura Dirección de Educación
A3: Cuadro I-2.9.9 ALUMNOS INGRESADOS Y MATRICULADOS EN CARRERAS NO TERCIARIAS EN UNIVERSIDADES E INSTITUTOS UNIVERSITARIOS. AÑO 2012.
A4: UNIVERSIDADES E INSTITUTOS UNIVERSITARIOS | D4: INGRESADOS | G4: MATRICULADOS
C5: TOTAL | D5: SEXO | F5: TOTAL | G5: SEXO
D6: Masculino | E6: Femenino | G6: Masculino | H6: Femenino
A7: TOTAL | C7: =C8+C9 -> 1260 | D7: 809 | E7: 451 | F7: 4497 | G7: 3075 | H7: 1422
A8: Universidad ORT Uruguay | C8: =D8+E8 -> 956 | D8: 640 | E8: 316 | F8: =G8+H8 -> 3819 | G8: 2703 | H8: 1116
A9: Universidad de la Empresa | C9: =D9+E9 -> 304 | D9: 169 | E9: 135 | F9: =G9+H9 -> 678 | G9: 372 | H9: 306
A10: Fuente: Procesamiento propio en base a datos proporcionados por el Área de Educación No Formal, Dirección de Educación, MEC.

Sheet I-3.1.1
A1: Ministerio de Educación y Cultura Dirección de Educación
A3: Cuadro I-3.1.1
A4: ESCUELAS, MAESTROS Y ALUMNOS ATENDIDOS POR EL PROGRAMA MAESTROS COMUNITARIOS SEGÚN AÑO LECTIVO. AÑO 2012.
A5: AÑO LECTIVO | C5: Escuelas | F5: Maestros comunitarios | G5: Alumnos
C6: Total | D6: Montevideo | E6: Resto del país | G6: atendidos
A7: 2005 | C7: =+D7+E7 -> 255 | D7: 97 | E7: 158 | F7: 437 | G7: 9292
A8: 2006 | C8: =+D8+E8 -> 252 | D8: 95 | E8: 157 | F8: 433 | G8: 14884
A9: 2007 | C9: 334 | D9: 101 | E9: 233 | F9: 553 | G9: 18163
A10: 2008 | C10: 334 | D10: 100 | E10: 234 | F10: 533 | G10: 16802
A11: 2009 | C11: 337 | D11: 101 | E11: 236 | F11: 553 | G11: 16166
A12: 2010 | C12: 337 | D12: 101 | E12: 236 | F12: 553 | G12: 16749
A13: 2011 | C13: 342 | D13: 104 | E13: 238 | F13: 554 | G13: 15680
A14: 2012 | C14: 327 | D14: 101 | E14: 226 | F14: 539 | G14: 15608
A15: Fuente: Coordinación Técnica, Programa INFAMILIA / CEP INFAMILIA

Sheet I-3.1.2
A1: Ministerio de Educación y Cultura Dirección de Educación
A3: Cuadro I-3.1.2
A4: MAESTROS Y ESCUELAS DEL PROGRAMA MAESTROS COMUNITARIOS SEGÚN REQUERIMIENTO
A5: AÑO LECTIVO | C5: Maestros comunitarios | D5: Escuelas
A6: Total | C6: =SUM(C7:C9) -> 539 | D6: =SUM(D7:D9) -> 327
A7: Requerimiento 1 | C7: 268 | D7: 145
A8: Requerimiento 2 | C8: 200 | D8: 118
A9: Requerimiento 3 | C9: 71 | D9: 64
A10: Fuente: Coordinación Técnica, Programa INFAMILIA / CEP INFAMILIA Nota: Todo el país (Año 2012).

Sheet I-3.1.3
A1: Ministerio de Educación y Cultura
A2: Dirección de Educación
A6: Cuadro I-3.1.3
A7: ESCUELAS, MAESTROS Y ALUMNOS ATENDIDOS POR EL PROGRAMA EDUCACIÓN FÍSICA ESCOLAR SEGÚN AÑO LECTIVO.
A8: AÑO LECTIVO | C8: Escuelas | D8: Profesores | E8: Alumnos atendidos
A9: 2005 | C9: 160 | D9: 157 | E9: 67462
A10: 2006 | C10: 248 | D10: 238 | E10: 86473
A11: 2007 | C11: 245 | D11: 248 | E11: 88023
A12: 2008 | C12: 605 | D12: 605 | E12: 213858
A13: 2009 | C13: 1004 | D13: 973 | E13: 325164
A14: 2010 | C14: 1016 | D14: 977 | E14: 308260
A15: 2011 | C15: 1016 | D15: 977 | E15: 306318
A16: 2012 | C16: 1016 | D16: 989 | E16: 306532
A17: Fuente: Coordinación Técnica, Programa INFAMILIA/CEP INFAMILIA
A18: Nota: Todo el país (Año 2012).

Sheet I-3.1.4
A1: Ministerio de Educación y Cultura Dirección de Educación
A2: Cuadro I-3.1.4
A3: BECAS DE APOYO ECONÓMICO EN EDUCACIÓN MEDIA BÁSICA Y SUPERIOR OTORGADAS POR EL MEC, COMPROMISO EDUCATIVO Y BECAS OTORGADAS POR PUE EN 2012, SEGÚN SEXO Y GRANDES ÁREAS. AÑO 2012.
A4: DEPARTAMENTO | B4: TOTAL | D4: BECAS MEC | H4: COMPROMISO EDUCATIVO | K4: PROGRAMA URUGUAY ESTUDIA
B5: SEXO | D5: Sexo | F5: Nivel | H5: SEXO
B6: Hombres | C6: Mujeres | D6: Hombres | E6: Mujeres | F6: CB | G6: BACH | H6: Hombres | I6: Mujeres | K6: CEIP | L6: CES | M6: UTU
A7: TOTAL | B7: 2671 | C7: 4578 | D7: 1199 | E7: 1695 | F7: 2027 | G7: 867 | H7: 1472 | I7: 2883 | K7: 1000 | L7: 2805 | M7: 1000
A9: Montevideo | B9: 728 | C9: 1253 | D9: 361 | E9: 481 | F9: 640 | G9: 202 | H9: 367 | I9: 772
A11: Resto del país | B11: 1943 | C11: 3325 | D11: 838 | E11: 1214 | F11: 1387 | G11: 665 | H11: 1105 | I11: 2111
A12: Artigas | B12: 178 | C12: 291 | D12: 70 | E12: 88 | F12: 114 | G12: 44 | H12: 108 | I12: 203
A13: Canelones | B13: 412 | C13: 808 | D13: 148 | E13: 236 | F13: 268 | G13: 116 | H13: 264 | I13: 572
A14: Cerro Largo | B14: 51 | C14: 91 | D14: 51 | E14: 91 | F14: 96 | G14: 46
A15: Colonia | B15: 104 | C15: 166 | D15: 62 | E15: 65 | F15: 83 | G15: 44 | H15: 42 | I15: 101
A16: Durazno | B16: 38 | C16: 58 | D16: 38 | E16: 58 | F16: 66 | G16: 30
A17: Flores | B17: 25 | C17: 26 | D17: 25 | E17: 26 | F17: 33 | G17: 18
A18: Florida | B18: 37 | C18: 49 | D18: 37 | E18: 49 | F18: 54 | G18: 32
A19: Lavalleja | B19: 27 | C19: 42 | D19: 27 | E19: 42 | F19: 47 | G19: 22
A20: Maldonado | B20: 70 | C20: 110 | D20: 34 | E20: 33 | F20: 40 | G20: 27 | H20: 36 | I20: 77
A21: Paysandú | B21: 280 | C21: 547 | D21: 31 | E21: 59 | F21: 58 | G21: 32 | H21: 249 | I21: 488
A22: Rio Negro | B22: 15 | C22: 27 | D22: 15 | E22: 27 | F22: 13 | G22: 29
A23: Rivera | B23: 248 | C23: 457 | D23: 51 | E23: 76 | F23: 87 | G23: 40 | H23: 197 | I23: 381
A24: Rocha | B24: 31 | C24: 46 | D24: 31 | E24: 46 | F24: 57 | G24: 20
A25: Salto | B25: 192 | C25: 257 | D25: 65 | E25: 114 | F25: 132 | G25: 47 | H25: 127 | I25: 143
A26: San José | B26: 39 | C26: 50 | D26: 39 | E26: 50 | F26: 72 | G26: 17
A27: Soriano | B27: 65 | C27: 77 | D27: 48 | E27: 51 | F27: 74 | G27: 25 | H27: 17 | I27: 26
A28: Tacuarembó | B28: 100 | C28: 170 | D28: 35 | E28: 50 | F28: 33 | G28: 52 | H28: 65 | I28: 120
A29: Treinta y Tres | B29: 31 | C29: 53 | D29: 31 | E29: 53 | F29: 60 | G29: 24
A30: Nota: | B30: Para el Programa Uruguay Estudia se cuenta con el total de becas por Consejo desconcentrado de ANEP (CEIP, CES y CETP), por lo cual el total de becas otorgadas surge de sumar a estos totales globales la agregación del Total por Sexo de las Becas MEC y Compromiso Educativo. Además incluye 1.000 becas otorgadas a personas jóvenes y adultas para la culminación de educación primaria.
A31: Fuente: | B31: Área de Becas de la Dirección de Educación del Ministerio de Educación y Cultura.

Sheet I-3.1.5
A1: Ministerio de Educación y Cultura
A2: Dirección de Educación
A5: Cuadro I-3.1.5
A6: BECAS DE APOYO ECONÓMICO EN EDUCACIÓN TERCIARIA SEGÚN INSTITUCIONES QUE LAS OTORGA POR GRANDES ÁREAS. AÑO 2012.
A7: DEPARTAMENTO | C7: TOTAL | D7: FONDO DE SOLIDARIDAD | E7: ANII | F7: BIENESTAR ESTUDIANTIL | G7: CARLOS QUIJANO | H7: JULIO CASTRO | J7: Programa Uruguay Estudia
H8: IFD | I8: IINN
A9: Total | C9: =SUM(D9:J9) -> 8452 | D9: =D11+D12 -> 6677 | E9: =E11+E12 -> 171 | F9: =F11+F12 -> 390 | G9: 14 | H9: =H12 -> 520 | I9: =I11 -> 80 | J9: 600
A11: Montevideo | C11: =SUM(D11:J11) -> 1205 | D11: 917 | E11: 135 | F11: 73 | G11: N/C | H11: N/C | I11: 80 | J11: N/C
A12: Resto del País | C12: =SUM(D12:J12) -> 6633 | D12: =SUM(D13:D30) -> 5760 | E12: =SUM(E13:E30) -> 36 | F12: =SUM(F13:F30) -> 317 | G12: N/C | H12: =SUM(H13:H30) -> 520 | I12: N/C | J12: N/C
A13: Artigas | C13: 377 | D13: 314 | F13: 19 | G13: N/C | H13: 44 | I13: N/C | J13: N/C
A14: Canelones | C14: 1151 | D14: 1076 | E14: 5 | F14: 24 | G14: N/C | H14: 46 | I14: N/C | J14: N/C
A15: Cerro Largo | C15: 359 | D15: 291 | F15: 14 | G15: N/C | H15: 54 | I15: N/C | J15: N/C
A16: Colonia | C16: 445 | D16: 407 | E16: 6 | F16: 13 | G16: N/C | H16: 19 | I16: N/C | J16: N/C
A17: Durazno | C17: 261 | D17: 207 | E17: 25 | F17: 10 | G17: N/C | H17: 19 | I17: N/C | J17: N/C
A18: Flores | C18: 128 | D18: 121 | F18: 7 | G18: N/C | H18: 0 | I18: N/C | J18: N/C
A19: Florida | C19: 331 | D19: 300 | F19: 13 | G19: N/C | H19: 18 | I19: N/C | J19: N/C
A20: Lavalleja | C20: 219 | D20: 183 | F20: 9 | G20: N/C | H20: 27 | I20: N/C | J20: N/C
A21: Maldonado | C21: 199 | D21: 159 | F21: 8 | G21: N/C | H21: 32 | I21: N/C | J21: N/C
A22: Paysandú | C22: 495 | D22: 424 | F22: 34 | G22: N/C | H22: 37 | I22: N/C | J22: N/C
A23: Rio Negro | C23: 215 | D23: 183 | F23: 11 | G23: N/C | H23: 21 | I23: N/C | J23: N/C
A24: Rivera | C24: 428 | D24: 341 | F24: 28 | G24: N/C | H24: 59 | I24: N/C | J24: N/C
A25: Rocha | C25: 201 | D25: 188 | F25: 10 | G25: N/C | H25: 3 | I25: N/C | J25: N/C
A26: Salto | C26: 611 | D26: 509 | F26: 42 | G26: N/C | H26: 60 | I26: N/C | J26: N/C
A27: San José | C27: 306 | D27: 260 | F27: 15 | G27: N/C | H27: 31 | I27: N/C | J27: N/C
A28: Soriano | C28: 340 | D28: 310 | F28: 16 | G28: N/C | H28: 14 | I28: N/C | J28: N/C
A29: Tacuarembó | C29: 413 | D29: 359 | F29: 37 | G29: N/C | H29: 17 | I29: N/C | J29: N/C
A30: Treinta y Tres | C30: =SUM(D30:J30) -> 154 | D30: 128 | F30: 7 | G30: N/C | H30: 19 | I30: N/C | J30: N/C
A31: Fuente: Área de Becas, Dir. de Edu, MEC; Fondo de Solidaridad.
A32: Nota: El total no se corresponde con la suma de Montevideo y Resto del País, debido a que incluye las Becas Carlos Quijano y Programa Uruguay Estudia, para las cuales no se cuenta con información por Departamento.

Sheet I-3.1.6
A1: Ministerio de Educación y Cultura Dirección de Educación
A3: Cuadro I-3.1.6
A4: BECAS DEL PROGRAMA URUGUAY ESTUDIA POR MODALIDAD SEGÚN AÑO LECTIVO.
A5: AÑO | B5: TOTAL | C5: EP | D5: CES Tutoreado | E5: EMB | F5: EMS | G5: CETP (UTU) | H5: Magisterio y Profesorado
A6: 2010 | B6: 2248 | C6: 937 | D6: 20 | E6: s/d | F6: 328 | G6: 963 | H6: s/d
A7: 2011 | B7: 2812 | C7: 1026 | D7: 21 | E7: s/d | F7: 359 | G7: 1406 | H7: s/d
A8: 2012 | B8: 5405 | C8: 1000 | D8: 43 | E8: 2012 | F8: 750 | G8: 1000 | H8: 600
A9: Nota: Todo el país, año 2012.
A10: Fuente: PUE.

Sheet I.3.1.7
A1: Ministerio de Educación y Cultura Dirección de Educación
A5: Cuadro I-3.1.7
A6: BECAS OTORGADAS POR LA FUNDACIÓN CHAMANGÁ. AÑO 2012.
A7: GRANDES ÁREAS / DEPTO. | C7: TOTAL | D7: SEXO
D8: Hombres | E8: Mujeres
A9: Total | C9: =C11+C12 -> 30 | D9: 10 | E9: 20
A11: Montevideo | C11: 6 | D11: S/D | E11: S/D
A12: Resto del interior | C12: =SUM(C14:C31) -> 24 | D12: S/D | E12: S/D
A14: Artigas | C14: 4 | D14: S/D | E14: S/D
A15: Canelones | C15: 3 | D15: S/D | E15: S/D
A16: Cerro Largo | C16: 0 | D16: S/D | E16: S/D
A17: Colonia | C17: 2 | D17: S/D | E17: S/D
A18: Durazno | C18: 0 | D18: S/D | E18: S/D
A19: Flores | C19: 1 | D19: S/D | E19: S/D
A20: Florida | C20: 0 | D20: S/D | E20: S/D
A21: Lavalleja | C21: 0 | D21: S/D | E21: S/D
A22: Maldonado | C22: 0 | D22: S/D | E22: S/D
A23: Paysandú | C23: 6 | D23: S/D | E23: S/D
A24: Rio Negro | C24: 3 | D24: S/D | E24: S/D
A25: Rivera | C25: 0 | D25: S/D | E25: S/D
A26: Rocha | C26: 0 | D26: S/D | E26: S/D
A27: Salto | C27: 1 | D27: S/D | E27: S/D
A28: San José | C28: 1 | D28: S/D | E28: S/D
A29: Soriano | C29: 3 | D29: S/D | E29: S/D
A30: Tacuarembó | C30: 0 | D30: S/D | E30: S/D
A31: Treinta y Tres | C31: 0 | D31: S/D | E31: S/D
A32: Fuente: Datos otorgados por la fundación Chamangá.

Sheet I-3.1.8
A1: Ministerio de Educación y Cultura
A2: Dirección de Educación
A6: Cuadro I-3.1.8
A7: CANTIDAD DE CENTROS MEC Y TOTAL DE ALFABETIZADOS DIGITALES SEGÚN GRANDES ÁREAS Y DEPARTAMENTO – AÑO 2012
A8: GRANDES ÁREAS / DEPTO. | C8: ALFABETIZADOS | D8: CENTROS MEC
A9: Total | C9: =C11+C12 -> 6931 | D9: =D11+D12 -> 115
A11: Montevideo | C11: 400 | D11: 1
A12: Resto del interior | C12: =SUM(C13:C30) -> 6531 | D12: =SUM(D13:D30) -> 114
A13: Artigas | C13: 270 | D13: 7
A14: Canelones | C14: 606 | D14: 10
A15: Cerro Largo | C15: 660 | D15: 6
A16: Colonia | C16: 270 | D16: 7
A17: Durazno | C17: 213 | D17: 7
A18: Flores | C18: 150 | D18: 6
A19: Florida | C19: 548 | D19: 9
A20: Lavalleja | C20: 350 | D20: 3
A21: Maldonado | C21: 139 | D21: 6
A22: Paysandú | C22: 330 | D22: 9
A23: Rio Negro | C23: 208 | D23: 5
A24: Rivera | C24: 592 | D24: 5
A25: Rocha | C25: 518 | D25: 9
A26: Salto | C26: 710 | D26: 8
A27: San José | C27: 463 | D27: 5
A28: Soriano | C28: 150 | D28: 4
A29: Tacuarembó | C29: 138 | D29: 2
A30: Treinta y Tres | C30: 216 | D30: 6
A31: Fuente : Centros Mec.

Sheet I-3.1.9
A1: Ministerio de Educación y Cultura
A2: Dirección de Educación
A6: Cuadro I-3.1.9
A7: BECARIOS DEL PROGRAMA YO ESTUDIO Y TRABAJO SEGÚN GRANDES ÁREAS Y DEPARTAMENTO. AÑO 2012.
A8: GRANDES ÁREAS / DEPTO. | C8: BECARIOS | E8: %
A9: Total | C9: =+C11+C12 -> 590 | E9: =+E11+E12 -> 100
A11: Montevideo | C11: 340 | E11: 57.6
A12: Resto del interior | C12: =SUM(C14:C31) -> 250 | E12: 42.4
A14: Artigas | C14: 4 | E14: 0.7
A15: Canelones | C15: 55 | E15: 9.3
A16: Cerro Largo | C16: 8 | E16: 1.4
A17: Colonia | C17: 17 | E17: 2.9
A18: Durazno | C18: 14 | E18: 2.4
A19: Flores | C19: 4 | E19: 0.7
A20: Florida | C20: 7 | E20: 1.2
A21: Lavalleja | C21: 15 | E21: 2.5
A22: Maldonado | C22: 12 | E22: 2
A23: Paysandú | C23: 25 | E23: 4.2
A24: Rio Negro | C24: 5 | E24: 0.8
A25: Rivera | C25: 9 | E25: 1.5
A26: Rocha | C26: 13 | E26: 2.2
A27: Salto | C27: 9 | E27: 1.5
A28: San José | C28: 13 | E28: 2.2
A29: Soriano | C29: 14 | E29: 2.4
A30: Tacuarembó | C30: 13 | E30: 2.2
A31: Treinta y Tres | C31: 13 | E31: 2.2
A32: Fuente: MTSS. Año 2012.

Sheet I-3.1.10
A1: Ministerio de Educación y Cultura
A2: Dirección de Educación
A5: Cuadro I-3.1.10
A6: BECAS OTORGADAS PARA CADA NIVEL DE ESTUDIO DEL PROGRAMA YO ESTUDIO Y YO TRABAJO. (AÑO 2012).
A8: NIVEL | C8: CANTIDAD | D8: %
A10: TOTAL | C10: =SUM(C12:C19) -> 590 | D10: =C10/$C$10*100 -> 100
A12: Educación No Formal | C12: 21 | D12: =C12/$C$10*100 -> 3.559322034
A13: Educación Media Básica (CES) | C13: 70 | D13: =C13/$C$10*100 -> 11.86440678
A14: Educación Media Básica (CETP) | C14: 20 | D14: 3.389830508
A15: Educación Media Superior (CES) | C15: 250 | D15: 42.37288136
A16: Educación Media Superior (CETP) | C16: 115 | D16: 19.49152542
A17: Magisterio o Profesorado | C17: 11 | D17: 1.86440678
A18: Terciario No Universitario | C18: 21 | D18: 3.559322034
A19: Universitario | C19: 82 | D19: 13.89830508
A20: Fuente: MTSS. Año 2012.

Sheet I-3.1.11
A1: Ministerio de Educación y Cultura
A2: Dirección de Educación
A5: Cuadro I-3.1.11
A6: BENEFICIARIOS DEL PROGRAMA JÓVENES EN RED SEGÚN GRANDES ÁREAS Y DEPARTAMENTO. AÑO 2012.
C7: Becarios | D7: Porcentaje
A8: TOTAL | C8: =C10+C11 -> 2117 | D8: =D10+D11 -> 100
A10: Montevideo | C10: 889 | D10: =C10/$C$8*100 -> 41.99338687
A11: Resto del País | C11: 1228 | D11: 58.00661313
A12: Artigas | C12: 196 | D12: 9.258384506
A13: Canelones | C13: 835 | D13: 39.44260746
A14: Cerro Largo | C14: 153 | D14: 7.227208314
A15: San José | C15: 44 | D15: 2.078412848
A16: Fuente: MIDES. Año 2012.

Sheet I-3.1.12
A1: Ministerio de Educación y Cultura
A2: Dirección de Educación
A5: Cuadro I-3.1.12
A6: BECARIOS DEL PROGRAMA JÓVENES EN RED POR SEXO SEGÚN TRAMOS DE EDAD. AÑO 2012.
A8: EDAD | B8: TOTAL | C8: SEXO
C9: Hombre | D9: Mujer
A10: TOTAL | B10: 2117 | C10: 46.2 | D10: 53.8
A12: Menores de 14 años | B12: 39 | C12: 51.3 | D12: 48.7
A13: Entre 14 y 15 años | B13: 495 | C13: 55.4 | D13: 44.6
A14: Entre 15 y 16 años | B14: 679 | C14: 53 | D14: 47
A15: Entre 18 y 21 años | B15: 662 | C15: 39.4 | D15: 60.6
A16: Entre 22 y 24 años | B16: 225 | C16: 26.2 | D16: 73.8
A17: Más de 24 años | B17: 17 | C17: 29.4 | D17: 70.6
A18: Fuente: MIDES. Año 2012.

Sheet I-3.1.13
A1: Ministerio de Educación y Cultura
A2: Dirección de Educación
A5: Cuadro I-3.1.13
A6: PARTICIPANTES DEL PROGRAMA CENTROS EDUCATIVOS ABIERTOS POR TIPO DE PARTICIPANTE Y PERTENENCIA AL CENTRO SEGÚN GRANDES ÁREAS Y DEPARTAMENTO. AÑO 2012.
A7: GRANDES ÁREAS / DEPTO. | C7: TOTAL | D7: ESTUDIANTES | E7: DOCENTES | F7: PARTICIPANTES QUE NO SON DEL CENTRO | G7: PERSONAS DE OTRAS ORGANIZACIONES
A9: TOTAL | C9: =C10+C11 -> 36354 | D9: =D10+D11 -> 17122 | E9: =E10+E11 -> 1786 | F9: =F10+F11 -> 11859 | G9: =G10+G11 -> 5587
A10: Montevideo | C10: =SUM(D10:G10) -> 2063 | D10: 1330 | E10: 191 | F10: 368 | G10: 174
A11: Resto del País | C11: =SUM(D11:G11) -> 34291 | D11: =SUM(D12:D29) -> 15792 | E11: =SUM(E12:E29) -> 1595 | F11: =SUM(F12:F29) -> 11491 | G11: =SUM(G12:G29) -> 5413
A12: Artigas | C12: 1525 | D12: 910 | E12: 187 | F12: 315 | G12: 113
A13: Canelones | C13: 2472 | D13: 1388 | E13: 156 | F13: 706 | G13: 222
A14: Cerro Largo | C14: 928 | D14: 363 | E14: 27 | F14: 378 | G14: 160
A15: Colonia | C15: 3730 | D15: 1140 | E15: 147 | F15: 2254 | G15: 189
A16: Durazno | C16: 3587 | D16: 851 | E16: 82 | F16: 1872 | G16: 782
A17: Flores | C17: 0 | D17: 0 | E17: 0 | F17: 0 | G17: 0
A18: Florida | C18: 1198 | D18: 628 | E18: 51 | F18: 353 | G18: 166
A19: Lavalleja | C19: 2514 | D19: 469 | E19: 84 | F19: 1162 | G19: 799
A20: Maldonado | C20: 0 | D20: 0 | E20: 0 | F20: 0 | G20: 0
A21: Paysandú | C21: 1404 | D21: 882 | E21: 217 | F21: 228 | G21: 77
A22: Rio Negro | C22: 1023 | D22: 809 | E22: 19 | F22: 145 | G22: 50
A23: Rivera | C23: 1315 | D23: 176 | E23: 23 | F23: 176 | G23: 940
A24: Rocha | C24: 4153 | D24: 1520 | E24: 146 | F24: 2042 | G24: 445
A25: Salto | C25: 2172 | D25: 1309 | E25: 121 | F25: 483 | G25: 259
A26: San José | C26: 3478 | D26: 2585 | E26: 101 | F26: 390 | G26: 402
A27: Soriano | C27: 1596 | D27: 963 | E27: 57 | F27: 337 | G27: 239
A28: Tacuarembó | C28: 1372 | D28: 760 | E28: 82 | F28: 105 | G28: 425
A29: Treinta y Tres | C29: 1824 | D29: 1039 | E29: 95 | F29: 545 | G29: 145
A30: Fuente: MIDES. Año 2012.

Sheet I-.3.1.14
A1: Ministerio de Educación y Cultura
A2: Dirección de Educación
A5: Cuadro I-3.1.14
A6: CENTROS Y BENEFICIARIOS CON EQUIPO DE CEIBAL POR TIPO DE USUARIO SEGÚN AÑO LECTIVO - 2012
A7: AÑO | C7: Cantidad de centros con equipos | D7: TOTAL | E7: ALUMNOS | F7: DOCENTES
A8: 2007 | C8: - | D8: 5266 | E8: 4964 | F8: 302
A9: 2008 | C9: - | D9: 179505 | E9: 164711 | F9: 14794
A10: 2009 | C10: 1779 | D10: 350004 | E10: 327736 | F10: 22268
A11: 2010 | C11: 1882 | D11: 417445 | E11: 393521 | F11: 23924
A12: 2011 | C12: 2127 | D12: 503609 | E12: 476065 | F12: 27544
A13: 2012 | C13: 2392 | D13: 566552 | E13: 527312 | F13: 39240
A14: Fuente : Plan Ceibal

Sheet I-3.4.1
A1: Ministerio de Educación y Cultura
A2: Dirección de Educación
A6: Cuadro I-3.4.1
A7: GASTO EN MILLONES DE PESOS CONSTANTES DE 2006 POR AÑO LECTIVO SEGÚN ÁMBITO DEL GASTO (2004 - 2012).
A8: ÁMBITO DEL GASTO | B8: AÑO LECTIVO
B9: 2004 | C9: 2005 | D9: 2006 | E9: 2007 | F9: 2008 | G9: 2009 | H9: 2010 | I9: 2011 | J9: 2012
A10: TOTAL | B10: 13806 | C10: 14406 | D10: 15866 | E10: 18386 | F10: 22388 | G10: 25023 | H10: 25608.20163 | I10: 28090.37611 | J10: 30264.69827
A11: Inst. básicas del sist. educación formal | B11: 12883 | C11: 13314 | D11: 14345 | E11: 16157 | F11: 19010 | G11: 22020 | H11: 22218.74291 | I11: 24360.78088 | J11: 25721.20623
A12: ANEP | B12: 10337 | C12: 10702 | D12: 11455 | E12: 12881 | F12: 15223 | G12: 17662 | H12: 17771.8124 | I12: 19422.88393 | J12: 20568.57046
A13: UDELAR | B13: 2546 | C13: 2612 | D13: 2890 | E13: 3276 | F13: 3787 | G13: 4358 | H13: 4446.93051 | I13: 4937.896944 | J13: 5152.635773
A14: Administración Central e Inciso 21 | B14: 656 | C14: 733 | D14: 1079 | E14: 1152 | F14: 1327 | G14: 1294 | H14: 1523.082115 | I14: 1734.117378 | J14: 2456.356198
A15: Educación policial y militar | B15: 391 | C15: 436 | D15: 482 | E15: 569 | F15: 608 | G15: 628 | H15: 694.2412637 | I15: 708.7408959 | J15: 946.5824513
A16: Otros Administración Central1 | B16: 69 | C16: 91 | D16: 185 | E16: 159 | F16: 257 | G16: 164 | H16: 263.1640961 | I16: 390.1556544 | J16: 890.9245623
A17: Partidas del inciso 21 con destino a educación2 | B17: 196 | C17: 206 | D17: 412 | E17: 424 | F17: 462 | G17: 502 | H17: 565.6767556 | I17: 635.2208281 | J17: 618.849184
A18: Educación no formal inicial (CAIF) y CENFORES | B18: 141 | C18: 191 | D18: 240 | E18: 281 | F18: 473 | G18: 540 | H18: 535.6258651 | I18: 666.6665992 | J18: 833.0443091
A19: Ciencia y Tecnología | B19: 126 | C19: 168 | D19: 202 | E19: 299 | F19: 291 | G19: 206 | H19: 229.9738005 | I19: 278.1368348 | J19: 318.2973661
A20: MEC3 | B20: 109 | C20: 125 | D20: 147 | E20: 240 | F20: 161 | G20: 79 | H20: 84.64402293 | I20: 73.69579869 | J20: 93.59018017
A21: PEDECIBA, Instituto Pasteur, ANII4 | B21: 17 | C21: 43 | D21: 55 | E21: 59 | F21: 129 | G21: 127 | H21: 145.3297776 | I21: 204.4410361 | J21: 224.7071859
A22: Plan Ceibal | B22: 0 | C22: 0 | D22: 0 | E22: 497 | F22: 1203 | G22: 801 | H22: 908.9556789 | I22: 843.9074011 | J22: 729.0830849
A23: Incentivo a la demanda educativa en secundaria | B23: 0 | C23: 0 | D23: 0 | E23: 0 | F23: 84 | G23: 162 | H23: 191.8212572 | I23: 206.7670244 | J23: 206.7110772
A25: Fuentes: Elaborado en base a datos del MEF.
A26: Notas:
A27: 1. Se incluyen gastos en Dirección de Educación del MEC, ISEF, capacitación laboral, Centro de Diseño Industrial, escuelas de formación artística y otros componentes considerados en MIDES-DINEM (2006), "Identificación y análisis del Gasto Público Social en Uruguay 2002-2005" Además, se incluye el subsidio al boleto estudiantil que realiza el MTOP. 2. Incluye subsidios a escuelas para niños con capacidades especiales, rentas afectadas al Fondo de Solidaridad y al Fondo de Reconversión Laboral. 3. Se considera la Dirección Nacional de Ciencia y Tecnología (DINACYT) y el Clemente Estable La baja de recursos se explica por la finalización del Programa de Desarrollo Tecnológico (PDT) y el traspaso de algunos programas a la ANII. 4. Del presupuesto de la ANII se toma en cuenta sólo el componente 2, de Fortalecimiento y orientación de la investigación.

Sheet I-4.4.1
A1: Ministerio de Educación y Cultura
A2: Dirección de Educación
A5: Cuadro I-4.4.1
A6: INDICADORES Y VALORES 2008 a 2012 PARA LA META NACIONAL 3 (ODM).
A7: Asistencia (%) al sistema educativo del grupo 3 a 5 por edad simple: | D7: 2008 | E7: 2009 | F7: 2010 | G7: 2011 | H7: 2012
C9: 3 años | D9: 53.8 | E9: 58.5 | F9: 61.3 | G9: 60.4 | H9: 63.8
C10: 4 años | D10: 83 | E10: 86.6 | F10: 86.1 | G10: 86.1 | H10: 89.1
C11: 5 años | D11: 96.9 | E11: 97.3 | F11: 97.3 | G11: 96.3 | H11: 97.7
A12: Tasa neta de asistencia a Educ. Media Básica (12 a 14 años) | D12: 69.2 | E12: 73.1 | F12: 73.4 | G12: 75.9 | H12: 73.8
A13: Tasa neta de asistencia e Educ. Media Superior (15 a 17 años) | D13: 53.2 | E13: 47.6 | F13: 43.2 | G13: 50.5 | H13: 51.4
A14: Fuente: | B14: Procesamiento propio con base en la Encuesta Continua de Hogares 2008 a 2012

Sheet I-4.4.2
A1: Ministerio de Educación y Cultura
A2: Dirección de Educación
A6: Cuadro I-4.4.2
A7: INDICADORES Y VALORES 2011 PARA LAS METAS ESPECÍFICAS NACIONALES (METAS 2021).
A9: INDICADOR: | G9: VALOR | H9: VALOR | J9: META 2021
G10: 2011 | H10: 2012
A13: Indicador 2A: Porcentaje de familias con dificultades socioeconómicas que reciben apoyo económico para garantizar la asistencia habitual de sus hijos a educación básica (niños comprendidos entre los 4 a 14 años de edad) | E13: Total país | G13: Más del 70 % | H13: 0.863 | J13: 1
E14: Zonas rurales | G14: Más del 70 % | H14: 0.854
A15: Indicador 2B: Porcentaje de menores pertenecientes a familias con dificultades socioeconómicas que reciben apoyo económico para garantizar la asistencia habitual de sus hijos a educación básica (niños comprendidos entre los 4 a 14 años de edad) | E15: Total país | G15: Más del 70 % | H15: 0.893 | J15: 1
E16: Total país sexo femenino | G16: Más del 70 % | H16: 0.894
A17: Indicador 4B: Brecha absoluta de escolarización entre el alumnado perteneciente a la poblacion potencialmente no discriminada en lo educativo y el alumnado perteneciente a las poblaciones potencialmente discriminadas en zonas urbanas, escolarizados en nivel terciario | D17: Afrodescendientes | F17: CINE 5b | G17: s/d | H17: 4.061929372 | J17: Aproximarse a 0
F18: CINE 5a | G18: s/d | H18: 27.48262931
D19: Primer quintil de Ingreso | F19: CINE 5b | G19: s/d | H19: 6.162168503
F20: CINE 5a | G20: s/d | H20: 39.32658415
A21: Indicador 4C: Brecha relativa de escolarización entre el alumnado perteneciente a la poblacion potencialmente no discriminada en lo educativo y el alumnado perteneciente a las poblaciones potencialmente discriminadas en zonas urbanas, escolarizados en nivel terciario | D21: Afrodescendientes | F21: CINE 5b | G21: s/d | H21: 2.031730061 | J21: Aproximarse a 1
F22: CINE 5a | G22: s/d | H22: 2.781522091
D23: Primer quintil de Ingreso | F23: CINE 5b | G23: s/d | H23: 4.354896214
F24: CINE 5a | G24: s/d | H24: 11.97731168
A25: Indicador 8: Porcentaje de niñas y niños de 0 a 5 años que participa en programas educativos | D25: Niños de 0 a 2 años de edad | G25: 0.229 | H25: 0.271 | J25: 20% a 50%
D26: Niños de 3 a 5 años de edad | G26: 0.815 | H26: 0.839 | J26: 1
A27: Indicador 10B: Porcentaje de finalización de la Educación primaria1 | G27: 0.986 | H27: 0.987 | J27: > 90%
A28: Indicador 11B: Porcentaje de finalización de la Educación Media Básica2 | G28: 0.661 | H28: 0.666 | J28: 60% al 90%
A29: Indicador 18: Porcentaje de alumnos que elige formación científica o técnica en Educación Terciaria3 | G29: s/d | H29: 0.204 | J29: 0.2
A30: Indicador 21: Porcentaje de escuelas públicas de tiempo completo o extendido en Eduación Primaria4 | G30: 0.076 | H30: 0.09 | J30: 20% al 50%
A31: Indicador 29: Porcentaje de titulación en formación inicial docente con acreditación oficial de su calidad5 | D31: CINE 1 | F31: CEIP | G31: 1 | H31: 1 | J31: 50% al 100%
F32: CES y CETP | G32: 0.547 | H32: 0.547
A33: Indicador 30: Porcentaje de profesorado de primaria con formación especializada en docencia superior al nivel de la Clasificación Internacional Normalizada de la Educación (CINE, nivel 3), y porcentaje de profesorado de secundaria con formación universitaria y pedagógica6 | D33: Porcentaje de maestros de primaria (CINE 1) que tienen una formación especializada en docencia, superior a la clasificación CINE 3 | G33: 1 | H33: 1 | J33: 70% al 100%
D34: Porcentaje de profesorado de secundaria (CINE 2) que tiene una formación universitaria y capacitación pedagógica | G34: 0.067 | H34: 0.067
A36: Fuentes: | B36: OEI (2011). Miradas sobre la Educación en Iberoamérica 2011, Consejo Rector, IESME, OEI. (UNESCO) y, Procesamiento propio en base a la Encuesta Continua de Hogares 2011 y 2012, Censo Nacional Docente 2007 ANEP y datos proporcionados por las oficinas productoras de información.
B37: Área de Investigación y Estadística del Ministerio de Educación y Cultura.
A39: Notas: | B39: Se rectificaron los valores 2011 para los indicadores 8, 10b, 11b, 20, 21 y 30.
B40: Por mayor información sobre la construcción e interpretación de estos indicadores ver, Gabriel Errandonea Lennon, Seguimiento de las Metas 2021: el desafío de la comparabilidad midiendo la diversidad, en: Desarrollo profesional docente y mejora de la educación - Informe país, MEC, ANEP y UdelaR, Montevideo, 2013.
B41: 1. Educación primaria común, pública y privada.
B42: 2. Educación media básica general diurna pública.
B43: 3. Educación Terciaria Universitaria (grado y posgrado) y Terciaria no Universitaria.
B44: 4. En el marco del Consejo Rector, para este indicador, se entiende por Escuelas Públicas de tiempo completo o extendido, la cantidad de Establecimientos públicos de tiempo completo o extendido.
B45: 5. Para los niveles CINE 2 y 3, se tomaron los datos del Censo Nacional Docente 2007, por eso no hay variación entre 2011 y 2012.
B46: 6. Para el cálculo de Porcentaje de profesorado de secundaria (CINE 2) que tiene una formación universitaria y capacitación pedagógica, se tomaron los datos del Censo Nacional Docente 2007, por eso no hay variación entre 2011 y 2012. A su vez, se consideró solamente aquellos docentes que tienen formación terciaria no docente en Educación, debido a que para el resto de los estudios no docentes terciarios se desconoce si tienen formación pedagógica.

Sheet G I-1.2.1
A1: Ministerio de Educación y Cultura Dirección de Educación
A3: Gráfico I-1.2.1
A30: Fuente: Censos de Población 1963, 1975, 1985 y 1996, ENHA 2006 y ECH de 2007 a 2012 del INE.

Sheet G I-1.2.2.
A1: Ministerio de Educación y Cultura Dirección de Educación
A4: Gráfico I-1.2.2
A32: Fuente: Elaboración propia en base a ECH 2012.

Sheet G I-1.2.3
A1: Ministerio de Educación y Cultura Dirección de Educación
A5: Gráficos I-1.2.3
A31: Fuente: Elaboración propia en base a la ECH 2012.

Sheet G I-1.2.4
A1: Ministerio de Educación y Cultura Dirección de Educación
A5: Gráficos I-1.2.4
A31: Fuente: Elaboración propia en base a la ECH 2012.

Sheet G I-1.2.5
A1: Ministerio de Educación y Cultura Dirección de Educación
A5: Gráfico I-1.2.5
A30: Fuente: Elaboración propia en base a la ECH 2012 .

Sheet G I-1.2.6
A1: Ministerio de Educación y Cultura Dirección de Educación
A3: Gráfico I-1.2.6
A30: Fuente: Elaboración propia en base a la ECH 2012.

Sheet G I-1.2.7
A1: Ministerio de Educación y Cultura Dirección de Educación
A5: Gráfico I-1.2.7
A36: Fuentes: Departamentos de Estadística u oficinas productoras de información del CEIP, CES, CETP, UdelaR, DFPD, INAU, y restantes instituciones públicas y privadas de educación terciaria.

Sheet G I-1.2.8
A1: Ministerio de Educación y Cultura Dirección de Educación
A5: Gráfico I-1.2.8
A29: Fuentes: | B29: Departamentos de Estadística y oficinas productoras de información del CEIP, CES, CETP (UTU), UdelaR e Instituciones privadas de Educación Terciaria. Secretaría General EMAD. Gestión Educativa - Escuela Naval. Jefatura de Estudios - Escuela Nacional de Policía. Escuela Militar. Departamento de Bedelía - Escuela Militar de Aeronáutica. Instituto Militar de Estudios Superiores.
A30: Notas: | B30: Media Básica y Superior: no incluye Liceos Oficiales Nocturnos
B31: Formación en Educación: No se cuenta con información sobre la cantidad de hombres y mujeres en Consejo de Formación en Educación (CFE). Solo existe esta información para CENFORES y CIEP, que representan un porcentaje muy bajo del total de Formación en Educación. Por esta razón se excluyó la categoría Formación en Educación del presente gráfico
B32: Universitaria: excluye posgrado

Sheet G I-1.2.9
A1: Ministerio de Educación y Cultura Dirección de Educación
A5: Gráfico I-1.2.8
A6: Gráfico I-1.2.9
A29: Fuentes: | B29: Departamentos de Estadística y oficinas productoras de información del CEIP, CES, CETP (UTU), UdelaR e Instituciones privadas de Educación Terciaria. Secretaría General EMAD. Gestión Educativa - Escuela Naval. Jefatura de Estudios - Escuela Nacional de Policía. Escuela Militar. Departamento de Bedelía - Escuela Militar de Aeronáutica. Instituto Militar de Estudios Superiores.
A32: Nota: | B32: Universitaria: excluye posgrado

Sheet G I-1.2.10
A1: Ministerio de Educación y Cultura Dirección de Educación
A3: Gráfico I-1.2.10
A26: Fuentes: | B26: Departamentos de Estadística y oficinas productoras de información del CEIP, CES, CETP (UTU), UdelaR e Instituciones privadas de Educación Terciaria. Secretaría General EMAD. Gestión Educativa - Escuela Naval. Jefatura de Estudios - Escuela Nacional de Policía. Escuela Militar. Departamento de Bedelía - Escuela Militar de Aeronáutica. Instituto Militar de Estudios Superiores.
A28: Nota: | B28: Universitaria: excluye posgrado

Sheet G I-1.2.11
A1: Ministerio de Educación y Cultura Dirección de Educación
A3: Gráfico I-1.2.11
A29: Fuente : Elaboración propia en base a ECH 2012.

Sheet G I-1.2.12
A1: Ministerio de Educación y Cultura Dirección de Educación
A5: Gráfico I-1.2.12
A31: Fuente : Elaboración propia en base a la ECH 2012

Sheet G I-1.2.13
A1: Ministerio de Educación y Cultura Dirección de Educación
A5: Gráfico I-1.2.13
A29: Fuente : Elaboración propia en base a la ECH 2012

Sheet G I-1.2.14
A1: Ministerio de Educación y Cultura Dirección de Educación
A5: Gráfico I-1.2.14
A28: Fuente: Elaboración propia en base a ECH 2012.

Sheet G I-1.2.15
A1: Ministerio de Educación y Cultura Dirección de Educación
A5: Gráfico I-1.2.15
A35: Fuente : Elaboración propia en base a la ECH 2012.

Sheet G I-1.2.16
A1: Ministerio de Educación y Cultura Dirección de Educación
A5: Gráfico I-1.2.16
A33: Fuente : Elaboración propia en base a la ECH 2012.

Sheet G I-1.2.17
A1: Ministerio de Educación y Cultura Dirección de Educación
A5: Gráfico I-1.2.17
A26: Fuente : Elaboración propia en base a la ECH 2012

Sheet G I-1.2.18
A1: Ministerio de Educación y Cultura Dirección de Educación
A5: Gráfico I-1.2.18
A44: Fuente: Elaboración propia en base a Encuesta Continua de Hogares 2012.

Sheet G I-1.2.19
A1: Ministerio de Educación y Cultura Dirección de Educación
A5: Gráfico I-1.2.19
A30: Fuente: Elaboración propia en base a la ECH 2012.

Sheet G I-1.2.20
A1: Ministerio de Educación y Cultura Dirección de Educación
A5: Gráfico I-1.2.20
A28: Fuente: Elaboración propia en base a la ECH 2012.

Sheet G I-1.2.21
A1: Ministerio de Educación y Cultura Dirección de Educación
A3: Gráfico I-1.2.21
A27: Fuente: Elaboración propia en base a la ECH 2012.

Sheet G I-1.2.22
A1: Ministerio de Educación y Cultura Dirección de Educación
A3: Gráfico I-1.2.22
A21: Fuente: Elaboración propia en base a la ECH 2012.

Sheet O I-2.1.1
A1: Ministerio de Educación y Cultura Dirección de Educación
A4: Organigrama I-2.1.1
A6: Organigrama I-2.1.1
A7: ESTRUCTURA ORGANIZACIONAL DEL SISTEMA NACIONAL DE EDUCACIÓN EN LA PRIMERA INFANCIA Y EN EDUCACIÓN INICIAL - 2012
Z11: EDUCACIÓN EN LA PRIMERA INFANCIA | AH11: EDUCACIÓN INICIAL
Z13: 0 a 24 meses | AC13: 2 años | AH13: 3 a 5 años
U16: Experiencias Oportunas | Z16: Talleres
L17: CAIF
G19: INAU | U19: Modalidad Diaria | Z19: Diseño Básico Curricular (0 a 36 meses)
B21: EDUCACIÓN EN LA PRIMERA INFANCIA E INICIAL
Z22: Diseño Básico Curricular (0 a 36 meses)
L23: Centros Diurnos
U24: Modalidad Diaria
AH26: Programa de Educación Inicial y Primaria
Z29: Diseño Básico Curricular (0 a 36 meses)
L30: Centros Educativos Privados | P30: Colegios y Jardines de Infantes Habilitados o Autorizados
AH33: Programa de Educación Inicial y Primaria
P36: Centros Educativos Primera Infancia (CEPI) | Z36: Diseño Básico Curricular (0 a 36 meses)
U39: Común
G41: ANEP CEIP
U42: Tiempo extendido
P43: Grupos de Educación Inicial en Escuelas (urbanas y rurales)
L45: Centros Educativos Públicos | U45: Tiempo completo
AH46: Programa de Educación Inicial y Primaria
P49: Grupos de Educación Inicial en Jardines de Infantes | U49: APRENDER
U52: JICI
U55: Práctica o Hab. de Prác.
G58: MEC Dir. de Educación | L58: Primera Infancia | P58: Centros de Educación Infantil Privados | Z58: Diseño Básico Curricular (0 a 36 meses)
AH61: Programa de Educación Inicial y Primaria

Sheet G I-2.1.1
A1: Ministerio de Educación y Cultura Dirección de Educación
A5: Gráfico I-2.1.1
A29: Fuente: Elaboración propia en base en datos del Departamento de Estadística del CEIP, Sistema de Información para la Infancia de INAU y Área de Primera Infancia del MEC.

Sheet G I-2.1.2
A1: Ministerio de Educación y Cultura Dirección de Educación
A5: Gráfico I-2.1.2
A35: Fuente: Elaboración propia en base a datos del Departamento de Estadística del CEIP, Sistema de Información para la Infancia de INAU y Área de Primera Infancia del MEC.

Sheet G I-2.1.3
A1: Ministerio de Educación y Cultura Dirección de Educación
A5: Gráfico I-2.1.3
A29: Fuente: Elaboración propia en base a datos del Departamento de Estadística del CEIP, Sistema de Información para la Infancia de INAU y Área de Primera Infancia del MEC.

Sheet G I-2.1.4
A1: Ministerio de Educación y Cultura Dirección de Educación
A4: Gráfico I-2.1.4
A29: Fuente: Elaboración propia en base a información del Departamento de Estadística del CEIP.

Sheet G I-2.1.5
A1: Ministerio de Educación y Cultura Dirección de Educación
A3: Gráfico I-2.1.5
A29: Fuente: Elaboración propia en base a información del Departamento de Estadística del CEIP.

Sheet G I-2.2.1
A1: Ministerio de Educación y Cultura Dirección de Educación
A3: Gráfico I-2.2.1
A40: Fuente: | B40: Elaboración propia en base a datos del Departamento de Estadística del CEIP.
A41: Nota: | B41: Educación primaria común incluye la matrícula de educación en Jardines de Infantes con Ciclo Inicial (JICI).

Sheet G I-2.2.2
A1: Ministerio de Educación y Cultura Dirección de Educación
A6: Gráfico I-2.2.2
A29: Fuente: Elaboración propia en base a datos proporcionados por el Departamento de Estadística del CEIP.

Sheet G I-2.2.3
A1: Ministerio de Educación y Cultura Dirección de Educación
A5: Gráfico I-2.2.3
A30: Fuente: Monitor Educativo de Enseñanza Primaria ANEP.

Sheet G I-2.2.4
A1: Ministerio de Educación y Cultura Dirección de Educación
A5: Gráfico I-2.2.4
A28: Fuente: Monitor Educativo de Enseñanza Primaria. ANEP

Sheet G I-2.3.1
A1: Ministerio de Educación y Cultura Dirección de Educación
A5: Gráfico I-2.3.1
A33: Fuente: Departamentos de Estadísticas del CEIP, CES y CETP.
A34: Nota:Incluye Ciclo Básico Rural, Media General y Media Técnico-profesional.

Sheet G I-2.3.2
A1: Ministerio de Educación y Cultura Dirección de Educación
A5: Gráfico I-2.3.2
A30: Fuente: Departamentos de Estadísticas del CEIP, CES y CETP
A31: Nota: Incluye Ciclo Básico Rural, Media General (pública y privada) y Media Técnica.

Sheet G I-2.3.3
A1: Ministerio de Educación y Cultura Dirección de Educación
A5: Gráfico I-2.3.3
A31: Fuente: Departamentos de Estadísticas del CEIP, CES y CETP

Sheet G I-2.3.4
A1: Ministerio de Educación y Cultura Dirección de Educación
A5: Gráfico I-2.3.4
A28: Fuente: Departamentos de Estadísticas del CEIP, CES y CETP.

Sheet G I-2.3.5
A1: Ministerio de Educación y Cultura Dirección de Educación
A5: Gráfico I-2.3.5
A28: Fuente: Departamentos de Estadística del CEIP, CES y del CETP.
A29: Nota:Media Básica General incluye Ciclo Básico Rural.

Sheet G I-2.3.6
A1: Ministerio de Educación y Cultura Dirección de Educación
A5: Gráfico I-2.3.6
A34: Fuente:Departamento de Estadística del CES.

Sheet GI-2.3.7
A1: Ministerio de Educación y Cultura Dirección de Educación
A5: Gráfico I-2.3.7
A30: Fuente: Departamento de Estadística del CES.

Sheet GI-2.3.8
A1: Ministerio de Educación y Cultura Dirección de Educación
A5: Gráfico I-2.3.8
A29: Fuente: Departamento de Estadística del CES.

Sheet GI-2.3.9
A1: Ministerio de Educación y Cultura Dirección de Educación
A5: Gráfico I-2.3.9
A30: Fuente: Departamento de Estadística del CES.

Sheet G I-2.3.10
A1: Ministerio de Educación y Cultura Dirección de Educación
A5: Gráfico I-2.3.10
A34: Fuente: Departamentos de Estadística del CES y del CETP.

Sheet G I-2.3.11
A1: Ministerio de Educación y Cultura Dirección de Educación
A3: Gráfico I-2.3.11
A39: Fuente: Departamento de Estadística del CES.

Sheet GI-2.3.12
A1: Ministerio de Educación y Cultura Dirección de Educación
A5: Gráfico I-2.3.12
A30: Fuente:Elaboración propia en base a información del Departamento de Estadística del CETP.

Sheet GI-2.3.13
A1: Ministerio de Educación y Cultura Dirección de Educación
A5: Gráfico I-2.3.13
A25: Fuente:Elaboración propia en base a información del Departamento de Estadística del CES.

Sheet GI-2.3.14
A1: Ministerio de Educación y Cultura Dirección de Educación
A5: Gráfico I-2.3.14
A31: Fuente: Elaboración propia en base a información del Monitor Educativo del CES.

Sheet GI-2.3.15
A1: Ministerio de Educación y Cultura Dirección de Educación
A5: Gráfico I-2.3.15
A30: Fuente: Elaboración propia en base a información del Monitor Educativo del CES.
A31: Nota: No Promoción comprende las categorías No Promoción y Desvinculado (fallo ANEP: "No Reinscripto") de Monitor Educativo correspondientes a segundo y tercer año de Bachillerato.
A32: Por No Promoción se entiende: Alumnos con más de tres materias pendientes de aprobación.
A33: Por No Reinscripto se entiende: Alumnos con más de tres materias pendientes de aprobación y que no registran inscripción en el CES al año siguiente.

Sheet GI-2.3.16
A1: Ministerio de Educación y Cultura Dirección de Educación
A5: Gráfico I-2.3.16
A31: Fuente: Elaboración propia en base a información del Monitor Educativo del CES.

Sheet GI-2.3.17
A1: Ministerio de Educación y Cultura Dirección de Educación
A5: Gráfico I-2.3.17
A31: Fuente: Elaboración propia en base a información del Monitor Educativo del CES.

Sheet G I-2.4.1.
A1: Ministerio de Educación y Cultura Dirección de Educación
A5: Gráfico I-2.4.1
A32: Fuente: Elaboración propia en base a información del Departamento de Estadística del CETP.

Sheet G I-.2.5.1
A1: Ministerio de Educación y Cultura Dirección de Educación
A5: Gráfico I-2.5.1
B27: Elaboración propia en base a información del Departamento de Estadística del CETP
A28: Fuente:

Sheet G I-.2.5.2
A1: Ministerio de Educación y Cultura Dirección de Educación
A5: Gráfico I-2.5.2
B27: Elaboración propia en base a información del Departamento de Estadística del CETP
A28: Fuente:
A29: Notas: | B29: No incluye las ofertas del Consejo de Formación en Educación (CFE) de ANEP ni Seguridad y Defensa, que se presentan aparte más adelante.

Sheet G I-2.5.3
A1: Ministerio de Educación y Cultura Dirección de Educación
A5: Gráfico I-2.5.3
A30: Fuente: | B30: Elaboración propia en base a información proporcionada por las oficinas productoras de estadísticas de cada una de las instituciones.

Sheet G-.2.5.4
A1: Ministerio de Educación y Cultura Dirección de Educación
A5: Gráfico I-2.5.4
A27: Fuente: | B27: Elaboración propia en base a información proporcionada por las oficinas productoras de estadísticas de cada una de las instituciones.
A28: Nota: | B28: En esta serie no se toman en cuenta las matrículas de los cursos OMI de la Escuela Naval.

Sheet G I-2.5.5
A1: Ministerio de Educación y Cultura Dirección de Educación
A5: Gráfico I-2.5.5
A28: Fuente: Elaboración propia en base a información proporcionada por las oficinas productoras de estadísticas de cada una de las instituciones.

Sheet GI-.2.6.1
A1: Ministerio de Educación y Cultura Dirección de Educación
A5: Gráfico I-2.6.1
A36: Fuente: Dirección de Formación y Perfeccionamiento Docente.

Sheet GI-.2.6.2.
A1: Ministerio de Educación y Cultura Dirección de Educación
A5: Gráfico I-2.6.2.
A6: Gráfico I-2.5.3.
A33: Fuente: Dirección de Formación y Perfeccionamiento Docente.

Sheet GI-.2.6.3.
A1: Ministerio de Educación y Cultura Dirección de Educación
A5: Gráfico I-2.6.3
A36: Fuente: Dirección de Formación y Perfeccionamiento Docente.

Sheet G I-2.7.1.
A1: Ministerio de Educación y Cultura Dirección de Educación
A5: Gráfico I-2.7.1
A29: Fuente: | B29: Elaboración propia en base a información proporcionada por las oficinas productoras de estadísticas de cada una de las instituciones.

Sheet G I-2.7.2
A1: Ministerio de Educación y Cultura Dirección de Educación
A6: Gráfico I-2.7.2
A36: Fuente: Elaboración propia en base información de las oficinas productoras de las instituciones.
A37: Nota: Los ingresos a cursos de grado para UdelaR correspondientes al período 2000-2011 son extraídos de Estadísticas Básicas 2011 - Dirección General de Planeamiento -UdelaR.

Sheet G I-2.7.3
A1: Ministerio de Educación y Cultura Dirección de Educación
A6: Gráfico I-2.7.3
A36: Fuente: Elaboración propia en base a información proporcionada por la UdelaR y las oficinas productoras de estadísticas educativas de los Institutos Universitarios y de las Universidades Privadas.

Sheet G I-2.7.4
A1: Ministerio de Educación y Cultura Dirección de Educación
A5: Gráfico I-2.7.4
A30: Fuente: | B30: Elaboración propia en base a información proporcionada por UdelaR.
A31: Nota: | B31: Los ingresos y egresos a cursos de grado para UdelaR correspondientes al período 2000-2011 son extraídos de Estadísticas Básicas 2011 - Dirección General de Planeamiento –UdelaR.

Sheet G I-2.7.5
A1: Ministerio de Educación y Cultura Dirección de Educación
A5: Gráfico I-2.7.5
A33: Fuente: | B33: Elaboración propia en base a información proporcionada por la UdelaR y las oficinas productoras de estadísticas educativas de los Institutos Universitarios y de las Universidades Privadas.

Sheet G I-2.7.6
A1: Ministerio de Educación y Cultura Dirección de Educación
A5: Gráfico I-2.7.6
A28: Fuente: Elaboración propia en base a información reportada por las oficinas productoras de estadísticas de las instituciones.

Sheet G I-2.7.7
A1: Ministerio de Educación y Cultura Dirección de Educación
A5: Gráfico I-2.7.7
A27: Fuente: Elaboración propia en base a información reportada por las oficinas productoras de estadísticas de las instituciones.

Sheet G I-2.7.8
A1: Ministerio de Educación y Cultura Dirección de Educación
A5: Gráfico I-2.7.8
A26: Fuente: Elaboración propia en base a información proporcionada por las oficinas productoras de estadísticas educativas de los Institutos Universitarios y de las Universidades Privadas.

Sheet G I-2.9.1
A1: Ministerio de Educación y Cultura Dirección de Educación Área de Investigación y Estadística
A5: Gráfico I-2.9.1.
A30: Fuente: Departamento de Estadística -UTU

Sheet G I-3.1.1
A1: Ministerio de Educación y Cultura Dirección de Educación
A5: Gráfico I-3.1.1
A35: Fuente: Área de Becas de la Dirección de Educación del Ministerio de Educación y Cultura y Fondo de Solidaridad.
A36: Nota: El programa Uruguay Estudia incluye 600 becas otorgadas en Magisterio y Profesorado

Sheet G I-3.1.2
A1: Ministerio de Educación y Cultura Dirección de Educación
A4: Gráfico I-3.1.2
A30: Fuente: Procesamiento propio con base en la ECH 2012 del INE.

Sheet G.I-3.1.3
A1: Ministerio de Educación y Cultura Dirección de Educación
A5: Gráfico I-3.1.3
A27: Fuente: Procesamiento propio con base en la ECH 2012 del INE.

Sheet G I-3.2.1
A1: Ministerio de Educación y Cultura Dirección de Educación
A5: Gráfico I-3.2.1
A30: Fuente: Elaboración propia con base en datos de los Censos 2011, del INE.

Sheet G I-3.2.2
A1: Ministerio de Educación y Cultura Dirección de Educación
A5: Gráfico I-3.2.2
A30: Fuente: Elaboración propia con base en datos de los Censos 2011, del INE.

Sheet G I-3.2.3
A1: Ministerio de Educación y Cultura Dirección de Educación
A5: Gráfico I-3.2.3
A29: Fuente: Elaboración propia con base en datos de los Censos 2011, del INE.

Sheet G I-3.2.4
A1: Ministerio de Educación y Cultura Dirección de Educación
A5: Gráfico I-3.2.4
A29: Fuente: Elaboración propia con base en datos de los Censos 2011, del INE.

Sheet G I-3.2.5
A1: Ministerio de Educación y Cultura Dirección de Educación
A5: Gráfico I-3.2.5
A28: Fuente: Elaboración propia con base en datos de los Censos 2011, del INE.

Sheet G I-3.3.1
A1: Ministerio de Educación y Cultura Dirección de Educación
A5: Gráfico I-3.3.1
A32: Fuente: Banco Central del Uruguay (2005 – 2012).
A33: Nota: Última actualización del Banco Central al 26 de agosto de 2013.

Sheet G I-3.3.2
A1: Ministerio de Educación y Cultura Dirección de Educación
A5: Gráfico I-3.3.2
A33: Fuente: Incidencia de la pobreza e indigencia, INE.
A34: Nota: Los valores medios anuales fueron estimados por el Método del Ingreso de 2006 sobre los datos de las personas.

Sheet G I-3.4.1
A1: Ministerio de Educación y Cultura Dirección de Educación
A5: Gráfico I-3.4.1
A31: Fuente: Elaborado en base a datos del MEF en base a CGN..

Sheet G I-3.4.2
A1: Ministerio de Educación y Cultura Dirección de Educación
A5: Gráfico I-3.4.2
A31: Fuente: Elaborado en base a datos del MEF en base a CGN.

Sheet G I-3.4.3
A1: Ministerio de Educación y Cultura Dirección de Educación
A5: Gráfico I-3.4.3
A34: Fuente: Gerencia General de Programación y Presupuesto, Unidad de Programación y Control Presupuestal del CODICEN
A35: Nota: Datos al 1º de enero de cada año a valores constantes del 1º de enero de 2010. La información corresponde al salario nominal más la partida de alimentación

Sheet G I-4.1.1
A1: Ministerio de Educación y Cultura Dirección de Educación
A5: Gráfico I-4.1.1
A33: Fuente: Indicadores Educativos del Mercosur 2000-2011 y Unidades Productoras de Estadísticas Oficiales de los Países.
A34: Nota: La Tasa de Analfabetismo se mide con base en personas con 15 y más años de edad, con excepción de Argentina, en que refiere a personas con 10 y más años de edad. En el caso de Paraguay, se considera analfabeta a la población que declara tener dos y menos años de estudio.
A35: Los datos fueron provistos por las oficinas de estadística nacionales, a solicitud del Área de Investigación y Estadística de la Dirección de Educación del Ministerio de Educación y Cultura.
A36: No se cuenta con información de Argentina de 2011 y 2012 y se incluye el último dato disponible tomado del Censo Nacional de Población, Hogares y Viviendas 2010.
A37: Brasil y Chile no actualizaron la información para el 2012, por lo que se replica el último dato disponible: año 2011.

Sheet G I-4.1.2
A1: Ministerio de Educación y Cultura Dirección de Educación
A5: Gráfico I-4.1.2
A28: Fuente: | B28: Instituto de Estadística de la Organización de las Naciones Unidas para la Educación, la Ciencia y la Cultura (UNESCO) y, para Uruguay, Área de Investigación y Estadística de la Dirección de Educación del MEC.
A29: Nota: | B29: Los porcentajes por región son promedios ponderados, teniendo en cuenta el tamaño poblacional relativo de los países. Los cálculos se realizaron con el último dato disponible de UNESCO (año 2000 en adelante). Para Uruguay es el dato 2012.

Sheet G I_4.1.3
A1: Ministerio de Educación y Cultura Dirección de Educación
A5: Gráfico I-4.1.3
A29: Fuente: | B29: Instituto de Estadística de la Organización de las Naciones Unidas para la Educación, la Ciencia y la Cultura (UNESCO) y, para Uruguay, Área de Investigación y Estadística de la Dirección de Educación del MEC.
A30: Nota: | B30: Los porcentajes por región son promedios ponderados, teniendo en cuenta el tamaño poblacional relativo de los países. Los cálculos se realizaron con el último dato disponible de UNESCO (año 2000 en adelante). Para Uruguay es el dato 2012.

Sheet G I 4.2.1
A1: Ministerio de Educación y Cultura Dirección de Educación
A5: Gráfico I-4.2.1
A34: Fuente: Indicadores Educativos del Mercosur 2000 – 2010.

Sheet G I 4.2.2
A1: Ministerio de Educación y Cultura Dirección de Educación
A5: Gráfico I-4.2.2
A33: Fuente: Indicadores Educativos del Mercosur 2000 – 2010.

Sheet G I-4.2.3
A1: Ministerio de Educación y Cultura Dirección de Educación
A5: Gráfico I-4.2.3
A30: Fuente: Indicadores Educativos del Mercosur 2000 - 2009.
A33: Fuente: Indicadores Educativos del Mercosur 2000 – 2010.

Sheet G I-4.3.1
A1: Ministerio de Educación y Cultura Dirección de Educación
A5: Gráfico I-4.3.1
B29: Instituto de Estadística de la Organización de las Naciones Unidas para la Educación, la Ciencia y la Cultura (UNESCO) y, para Uruguay, Área de Investigación y Estadística de la Dirección de Educación del MEC, en base a datos del MEF, en base a CGN.
A30: Fuente:
A32: Nota: | B32: Los cálculos se realizaron con el último dato disponible de UNESCO (año 2000 en adelante). Para Uruguay es el dato 2012.

Sheet G I-4.3.2
A1: Ministerio de Educación y Cultura Dirección de Educación
A5: Gráfico I-4.3.2
A30: Fuente: | B30: Instituto de Estadística de la Organización de las Naciones Unidas para la Educación, la Ciencia y la Cultura (UNESCO) y, para Uruguay, Área de Investigación y Estadística de la Dirección de Educación del MEC, en base a datos del MEF, en base a CGN.
A31: Nota: | B31: Los porcentajes por región, son promedios ponderados. Los cálculos se realizaron con base al último dato disponible en la fuente (año 2005 en adelante). Para Uruguay es el dato 2012.

Sheet M I-1.2.1
A1: Ministerio de Educación y Cultura Dirección de Educación
A5: Mapa I-1.2.1 | B5: TASA DE ANALFABETISMO POR DEPARTAMENTO

Sheet M I-1.2.2
A1: Ministerio de Educación y Cultura Dirección de Educación
A5: Mapa I-1.2.2 | B5: TASA NETA DE ASISTENCIA ENTRE PERSONAS DE 4 Y 5 AÑOS POR DEPARTAMENTO

Sheet M I-1.2.3
A1: Ministerio de Educación y Cultura Dirección de Educación
A5: Mapa I-1.2.3 | B5: TASA NETA DE ASISTENCIA ENTRE PERSONAS DE 6 A 11 AÑOS POR DEPARTAMENTO

Sheet M I-1.2.4
A1: Ministerio de Educación y Cultura Dirección de Educación
A5: Mapa I-1.2.4 | B5: TASA NETA DE ASISTENCIA ENTRE PERSONAS DE 12 A 14 AÑOS POR DEPARTAMENTO

Sheet M I-1.2.5
A1: Ministerio de Educación y Cultura Dirección de Educación
A5: Mapa I-1.2.5 | B5: TASA NETA DE ASISTENCIA ENTRE PERSONAS DE 15 A 17 AÑOS POR DEPARTAMENTO

Sheet M I-1.2.6
A1: Ministerio de Educación y Cultura Dirección de Educación
A5: Mapa I-1.2.6 | B5: TASA NETA DE ASISTENCIA ENTRE PERSONAS DE 18 A 24 AÑOS POR DEPARTAMENTO

Sheet M I-3.1
A1: Ministerio de Educación y Cultura Dirección de Educación
A5: Mapa I-3.1 | B5: BECAS OTORGADAS EN LA EDUCACIÓN MEDIA BÁSICA Y SUPERIOR SEGÚN SEXO Y DEPARTAMENTO. AÑO 2012.

Sheet M I-3.2
A1: Ministerio de Educación y Cultura Dirección de Educación
A5: Mapa I-3.2 | B5: BECAS OTORGADAS POR NIVEL EDUCATIVO SEGÚN GRANDES ÁREAS. AÑO 2012.

Sheet M II-1
A1: Ministerio de Educación y Cultura Dirección de Educación
A5: Mapa II-1 | B5: INDICADORES ESCOGIDOS EN EDUCACIÓN DE LA PRIMERA INFANCIA Y EDUCACIÓN INICIAL. AÑO 2012.

Sheet M II-2
A1: Ministerio de Educación y Cultura Dirección de Educación
A5: Mapa II-2 | B5: INDICADORES ESCOGIDOS EN EDUCACIÓN PRIMARIA. AÑO 2012.

Sheet M II-3
A1: Ministerio de Educación y Cultura Dirección de Educación
A5: Mapa II-3 | B5: INDICADORES ESCOGIDOS EN EDUCACIÓN MEDIA BÁSICA. AÑO 2012.

Sheet M II-4
A1: Ministerio de Educación y Cultura Dirección de Educación
A5: Mapa II-4 | B5: INDICADORES ESCOGIDOS EN EDUCACIÓN MEDIA SUPERIOR. AÑO 2012.

Sheet M II-5
A1: Ministerio de Educación y Cultura Dirección de Educación
A5: Mapa II-5 | B5: INDICADORES ESCOGIDOS EN TERCIARIA NO UNIVERSITARIA. AÑO 2012.

Sheet M II-6
A1: Ministerio de Educación y Cultura Dirección de Educación
A5: Mapa II-6 | B5: INDICADORES ESCOGIDOS EN FORMACIÓN EN EDUCACIÓN. AÑO 2012.

Sheet M II-7
A1: Ministerio de Educación y Cultura Dirección de Educación
A5: Mapa II-7 | B5: INDICADORES ESCOGIDOS EN EDUCACIÓN UNIVERSITARIA. AÑO 2012.

Sheet M II-8
A1: Ministerio de Educación y Cultura Dirección de Educación
A5: Mapa II-8 | B5: INDICADORES ESCOGIDOS EN JÓVENES Y ADULTOS. AÑO 2012.

Sheet PRIMERA INFANCIA E INICIAL

Sheet II-1.1.1
A1: CONSEJO DE EDUCACIÓN INICIAL Y PRIMARIA | F1: ESTABLECIMIENTOS
A3: Cuadro Nº II-1.1.1 | H3: VOLVER
A5: CANTIDAD DE ESTABLECIMIENTOS DE EDUCACIÓN EN LA PRIMERA INFANCIA E INICIAL DEL CEIP POR FORMA DE ADMINISTRACIÓN Y MODALIDAD SEGÚN DEPARTAMENTO. AÑO 2012.
A6: DEPARTAMENTO | B6: TOTAL | C6: FORMA DE ADMINISTRACIÓN
C7: PÚBLICA | H7: PRIVADA
C8: Total Público | D8: Jardines de Infantes | E8: JICI | F8: CEPI* | G8: Jardines de Tiempo Completo | H8: Jardines de Infantes
A11: TOTAL | B11: =+B12+B13 -> 249 | C11: =+C12+C13 -> 190 | D11: =SUM(D12:D13) -> 136 | E11: =SUM(E12:E13) -> 14 | F11: =SUM(F12:F13) -> 2 | G11: =SUM(G12:G13) -> 38 | H11: =SUM(H12:H13) -> 59
A12: MONTEVIDEO | B12: =+C12+H12 -> 98 | C12: =+D12+E12+F12+G12 -> 62 | D12: 43 | E12: 4 | F12: 1 | G12: 14 | H12: 36
A13: RESTO DEL PAÍS | B13: =+C13+H13 -> 151 | C13: =+D13+E13+F13+G13 -> 128 | D13: =SUM(D15:D32) -> 93 | E13: =SUM(E15:E32) -> 10 | F13: =SUM(F15:F32) -> 1 | G13: =SUM(G15:G32) -> 24 | H13: =SUM(H15:H32) -> 23
A15: Artigas | B15: =+C15+H15 -> 3 | C15: =+D15+E15+F15+G15 -> 3 | D15: 3 | E15: 0 | F15: 0 | G15: 0 | H15: 0
A16: Canelones | B16: 41 | C16: =+D16+E16+F16+G16 -> 34 | D16: 29 | E16: 2 | F16: 1 | G16: 2 | H16: 7
A17: Cerro Largo | B17: 8 | C17: 7 | D17: 4 | E17: 1 | F17: 0 | G17: 2 | H17: 1
A18: Colonia | B18: 6 | C18: 6 | D18: 5 | E18: 1 | F18: 0 | G18: 0 | H18: 0
A19: Durazno | B19: 5 | C19: 5 | D19: 3 | E19: 1 | F19: 0 | G19: 1 | H19: 0
A20: Flores | B20: 2 | C20: 2 | D20: 1 | E20: 0 | F20: 0 | G20: 1 | H20: 0
A21: Florida | B21: 6 | C21: 4 | D21: 2 | E21: 0 | F21: 0 | G21: 2 | H21: 2
A22: Lavalleja | B22: 7 | C22: 7 | D22: 5 | E22: 0 | F22: 0 | G22: 2 | H22: 0
A23: Maldonado | B23: 10 | C23: 7 | D23: 7 | E23: 0 | F23: 0 | G23: 0 | H23: 3
A24: Paysandú | B24: 5 | C24: 4 | D24: 1 | E24: 1 | F24: 0 | G24: 2 | H24: 1
A25: Río Negro | B25: 6 | C25: 6 | D25: 3 | E25: 1 | F25: 0 | G25: 2 | H25: 0
A26: Rivera | B26: 7 | C26: 7 | D26: 4 | E26: 1 | F26: 0 | G26: 2 | H26: 0
A27: Rocha | B27: 7 | C27: 7 | D27: 7 | E27: 0 | F27: 0 | G27: 0 | H27: 0
A28: Salto | B28: 9 | C28: 4 | D28: 3 | E28: 0 | F28: 0 | G28: 1 | H28: 5
A29: San José | B29: 7 | C29: 6 | D29: 5 | E29: 1 | F29: 0 | G29: 0 | H29: 1
A30: Soriano | B30: 6 | C30: 5 | D30: 4 | E30: 0 | F30: 0 | G30: 1 | H30: 1
A31: Tacuarembó | B31: =+C31+H31 -> 11 | C31: =+D31+E31+F31+G31 -> 9 | D31: 6 | E31: 0 | F31: 0 | G31: 3 | H31: 2
A32: Treinta y Tres | B32: =+C32+H32 -> 5 | C32: =+D32+E32+F32+G32 -> 5 | D32: 1 | E32: 1 | F32: 0 | G32: 3 | H32: 0
A33: Fuente: Procesamiento propio en base a datos proporcionados por el D.E.E. — C.E.I.P.
A34: Nota: * Centro Educativo de Primera Infancia. Refiere a Guarderias en Anuarios Anteriores.

Sheet II-1.1.2
A1: MINISTERIO DE EDUCACIÓN Y CULTURA | E1: Establecimientos
A2: Dirección de Educación – Área de Educación en la Primera Infancia
A4: Cuadro Nº II-1.1.2
A6: CANTIDAD DE ESTABLECIMIENTOS DE PRIMERA INFANCIA E INICIAL DEL MEC E INAU POR FORMA DE ADMINISTRACIÓN SEGÚN DEPARTAMENTO. AÑO 2012.
A7: DEPARTAMENTO
B8: TOTAL | C8: CAIF | D8: DIURNOS-INAU | E8: PRIVADOS
A11: TOTAL | B11: =C11+D11+E11 -> 826 | C11: =C12+C13 -> 336 | D11: =D12+D13 -> 36 | E11: =E12+E13 -> 454
A12: MONTEVIDEO | B12: 337 | C12: 76 | D12: 9 | E12: 252
A13: RESTO DEL PAÍS | B13: 489 | C13: =SUM(C15:C32) -> 260 | D13: =SUM(D15:D32) -> 27 | E13: =SUM(E15:E32) -> 202
A15: Artigas | B15: 21 | C15: 14 | D15: 2 | E15: 5
A16: Canelones | B16: 119 | C16: 47 | D16: 2 | E16: 70
A17: Cerro Largo | B17: 25 | C17: 19 | D17: 1 | E17: 5
A18: Colonia | B18: 36 | C18: 13 | D18: 2 | E18: 21
A19: Durazno | B19: 17 | C19: 14 | D19: 2 | E19: 1
A20: Flores | B20: 9 | C20: 5 | D20: 1 | E20: 3
A21: Florida | B21: 21 | C21: 9 | D21: 2 | E21: 10
A22: Lavalleja | B22: 12 | C22: 5 | D22: 1 | E22: 6
A23: Maldonado | B23: 33 | C23: 10 | D23: 2 | E23: 21
A24: Paysandú | B24: 39 | C24: 23 | D24: 2 | E24: 14
A25: Río Negro | B25: 15 | C25: 11 | D25: 1 | E25: 3
A26: Rivera | B26: 22 | C26: 14 | D26: 1 | E26: 7
A27: Rocha | B27: 17 | C27: 11 | D27: 1 | E27: 5
A28: Salto | B28: 31 | C28: 21 | D28: 1 | E28: 9
A29: San José | B29: 21 | C29: 9 | D29: 2 | E29: 10
A30: Soriano | B30: 21 | C30: 12 | D30: 1 | E30: 8
A31: Tacuarembó | B31: 19 | C31: 13 | D31: 2 | E31: 4
A32: Treinta y Tres | B32: 11 | C32: 10 | D32: 1 | E32: 0
A33: Fuente: Procesamiento propio en base a datos proporcionados por:
A34: Registro Nacional de Centros Educativos en la Primera Infancia. MEC
A35: Para CAIF Y CENTROS DIURNOS: SIPI de INAU.

Sheet II-1.2.1
A1: CONSEJO DE EDUCACIÓN INICIAL Y PRIMARIA | O1: ALUMNOS MATRICULADOS
A3: Cuadro Nº II-1.2.1
A5: ALUMNOS MATRICULADOS EN EDUCACIÓN EN LA PRIMERA INFANCIA E INICIAL POR FORMA DE ADMINISTRACIÓN, MODALIDAD Y SEXO SEGÚN DEPARTAMENTO. AÑO 2012.
A6: DEPARTAMENTO | B6: FORMA DE ADMINISTRACIÓN
B7: TOTAL | E7: PÚBLICA | N7: PRIVADA
E8: Total Público | F8: Inicial en Escuelas* | H8: Jardines de Infantes | J8: JICI** | L8: CEPI*** | N8: Total Privada | O8: Jardines de Infantes | Q8: Inicial en Colegios
B9: TOTAL | C9: SEXO | F9: SEXO | H9: SEXO | J9: SEXO | L9: SEXO | O9: SEXO | Q9: SEXO
C10: M | D10: F | F10: M | G10: F | H10: M | I10: F | J10: M | K10: F | L10: M | M10: F | O10: M | P10: F | Q10: M | R10: F
A11: TOTAL | B11: =+B12+B13 -> 109602 | C11: =+C12+C13 -> 55695 | D11: =+D12+D13 -> 53907 | E11: =+E12+E13 -> 79985 | F11: =F12+F13 -> 23806 | G11: =G12+G13 -> 23068 | H11: =+H12+H13 -> 15369 | I11: =I12+I13 -> 14820 | J11: =J12+J13 -> 1376 | K11: =K12+K13 -> 1339 | L11: =+L12+L13 -> 101 | M11: =M12+M13 -> 106 | N11: =+N12+N13 -> 29617 | O11: =+O12+O13 -> 2771 | P11: =+P12+P13 -> 2694 | Q11: =+Q12+Q13 -> 12272 | R11: =+R12+R13 -> 11880
A12: MONTEVIDEO | B12: =+C12+D12 -> 41738 | C12: =+F12+H12+J12+L12+O12+Q12 -> 21287 | D12: =+G12+I12+K12+M12+P12+R12 -> 20451 | E12: =+F12+G12+H12+I12+J12+K12+L12+M12 -> 23817 | F12: 6091 | G12: 5786 | H12: 5423 | I12: 5285 | J12: 522 | K12: 541 | L12: 78 | M12: 91 | N12: =+O12+P12+Q12+R12 -> 17921 | O12: 1886 | P12: 1787 | Q12: 7287 | R12: 6961
A13: RESTO DEL PAÍS | B13: =SUM(B15:B32) -> 67864 | C13: 34408 | D13: 33456 | E13: 56168 | F13: 17715 | G13: 17282 | H13: =SUM(H15:H32) -> 9946 | I13: 9535 | J13: 854 | K13: 798 | L13: 23 | M13: 15 | N13: 11696 | O13: =SUM(O15:O32) -> 885 | P13: 907 | Q13: 4985 | R13: 4919
A15: Artigas | B15: =+C15+D15 -> 2501 | C15: =+F15+H15+J15+L15+O15+Q15 -> 1317 | D15: =+G15+I15+K15+M15+P15+R15 -> 1184 | E15: =+F15+G15+H15+I15+J15+K15+L15+M15 -> 2396 | F15: 948 | G15: 856 | H15: 311 | I15: 281 | J15: 0 | K15: 0 | L15: 0 | M15: 0 | N15: =+O15+P15+Q15+R15 -> 105 | O15: 0 | P15: 0 | Q15: 58 | R15: 47
A16: Canelones | B16: 16727 | C16: 8476 | D16: 8251 | E16: 12886 | F16: 3458 | G16: 3430 | H16: 2917 | I16: 2777 | J16: 140 | K16: 126 | L16: 23 | M16: 15 | N16: 3841 | O16: 296 | P16: 320 | Q16: 1642 | R16: 1583
A17: Cerro Largo | B17: 2915 | C17: 1478 | D17: 1437 | E17: 2544 | F17: 785 | G17: 781 | H17: 423 | I17: 351 | J17: 94 | K17: 110 | L17: 0 | M17: 0 | N17: 371 | O17: 56 | P17: 56 | Q17: 120 | R17: 139
A18: Colonia | B18: 4118 | C18: 2119 | D18: 1999 | E18: =+F18+G18+H18+I18+J18+K18+L18+M18 -> 3426 | F18: 1235 | G18: 1183 | H18: 444 | I18: 406 | J18: 93 | K18: 65 | L18: 0 | M18: 0 | N18: 692 | O18: 0 | P18: 0 | Q18: 347 | R18: 345
A19: Durazno | B19: 1853 | C19: 958 | D19: 895 | E19: 1603 | F19: 502 | G19: 492 | H19: 278 | I19: 245 | J19: 47 | K19: 39 | L19: 0 | M19: 0 | N19: 250 | O19: 0 | P19: 0 | Q19: 131 | R19: 119
A20: Flores | B20: 821 | C20: 408 | D20: 413 | E20: 672 | F20: 221 | G20: 210 | H20: 118 | I20: 123 | J20: 0 | K20: 0 | L20: 0 | M20: 0 | N20: 149 | O20: 0 | P20: 0 | Q20: 69 | R20: 80
A21: Florida | B21: 2081 | C21: 1045 | D21: 1036 | E21: 1902 | F21: 624 | G21: 642 | H21: 341 | I21: 295 | J21: 0 | K21: 0 | L21: 0 | M21: 0 | N21: 179 | O21: 36 | P21: 54 | Q21: 44 | R21: 45
A22: Lavalleja | B22: 2007 | C22: 991 | D22: 1016 | E22: 1649 | F22: 379 | G22: 407 | H22: 437 | I22: 426 | J22: 0 | K22: 0 | L22: 0 | M22: 0 | N22: 358 | O22: 0 | P22: 0 | Q22: 175 | R22: 183
A23: Maldonado | B23: 6169 | C23: 3107 | D23: 3062 | E23: 4048 | F23: 1270 | G23: 1231 | H23: 759 | I23: 788 | J23: 0 | K23: 0 | L23: 0 | M23: 0 | N23: 2121 | O23: 116 | P23: 94 | Q23: 962 | R23: 949
A24: Paysandú | B24: 3913 | C24: 1984 | D24: 1929 | E24: 3446 | F24: 1339 | G24: 1260 | H24: 323 | I24: 328 | J24: 95 | K24: 101 | L24: 0 | M24: 0 | N24: 467 | O24: 62 | P24: 64 | Q24: 165 | R24: 176
A25: Río Negro | B25: 2188 | C25: 1106 | D25: 1082 | E25: 1919 | F25: 479 | G25: 487 | H25: 422 | I25: 370 | J25: 78 | K25: 83 | L25: 0 | M25: 0 | N25: 269 | O25: 0 | P25: 0 | Q25: 127 | R25: 142
A26: Rivera | B26: 3855 | C26: 1966 | D26: 1889 | E26: 3424 | F26: 1142 | G26: 1075 | H26: 519 | I26: 512 | J26: 91 | K26: 85 | L26: 0 | M26: 0 | N26: 431 | O26: 0 | P26: 0 | Q26: 214 | R26: 217
A27: Rocha | B27: 2418 | C27: 1214 | D27: 1204 | E27: 2180 | F27: 598 | G27: 584 | H27: 496 | I27: 502 | J27: 0 | K27: 0 | L27: 0 | M27: 0 | N27: 238 | O27: 0 | P27: 0 | Q27: 120 | R27: 118
A28: Salto | B28: 4986 | C28: 2541 | D28: 2445 | E28: 4093 | F28: 1541 | G28: 1440 | H28: 537 | I28: 575 | J28: 0 | K28: 0 | L28: 0 | M28: 0 | N28: 893 | O28: 192 | P28: 179 | Q28: 271 | R28: 251
A29: San José | B29: 3582 | C29: 1800 | D29: 1782 | E29: 3147 | F29: 1032 | G29: 1034 | H29: 476 | I29: 441 | J29: 82 | K29: 82 | L29: 0 | M29: 0 | N29: 435 | O29: 49 | P29: 49 | Q29: 161 | R29: 176
A30: Soriano | B30: 2875 | C30: 1472 | D30: 1403 | E30: 2625 | F30: 972 | G30: 973 | H30: 360 | I30: 320 | J30: 0 | K30: 0 | L30: 0 | M30: 0 | N30: 250 | O30: 22 | P30: 21 | Q30: 118 | R30: 89
A31: Tacuarembó | B31: 3304 | C31: 1651 | D31: 1653 | E31: 2742 | F31: 843 | G31: 812 | H31: 533 | I31: 554 | J31: 0 | K31: 0 | L31: 0 | M31: 0 | N31: 562 | O31: 56 | P31: 70 | Q31: 219 | R31: 217
A32: Treinta y Tres | B32: 1551 | C32: 775 | D32: 776 | E32: =+F32+G32+H32+I32+J32+K32+L32+M32 -> 1466 | F32: 347 | G32: 385 | H32: 252 | I32: 241 | J32: 134 | K32: 107 | L32: 0 | M32: 0 | N32: 85 | O32: 0 | P32: 0 | Q32: 42 | R32: 43
A33: Fuente: Procesamiento propio en base a datos proporcionados por el D.E.E. — C.E.I.P.
A34: * Refiere a Clases Jardineras en Anuarios Anteriores.
A35: ** Jardines de Infantes con Ciclo Inicial.
A36: *** Centro Educativo de Primera Infancia. Refiere a Guarderías en Anuarios Anteriores.

Sheet II-1.2.2
A1: CONSEJO DE EDUCACIÓN INICIAL Y PRIMARIA | K1: ALUMNOS MATRICULADOS
A3: Cuadro Nº II-1.2.2
N4: VOLVER
A5: ALUMNOS MATRICULADOS EN EDUCACIÓN PÚBLICA EN LA PRIMERA INFANCIA E INICIAL DEL CEIP POR MODALIDAD Y EDAD SEGÚN DEPARTAMENTO. AÑO 2012.
A6: DEPARTAMENTO
B7: PÚBLICA
B8: Total Público | C8: Inicial en Escuelas* | F8: Jardines de Infantes** | K8: JICI*** | P8: CEPI****
C9: AÑOS | F9: AÑOS | K9: AÑOS | P9: AÑOS
C10: 4 | D10: 5 | F10: <= 2 | G10: 3 | H10: 4 | I10: 5 | K10: <= 2 | L10: 3 | M10: 4 | N10: 5 | P10: <= 2 | Q10: 3 | R10: 4 | S10: 5
A11: TOTAL | B11: =+B12+B13 -> 79985 | C11: =C12+C13 -> 21657 | D11: =D12+D13 -> 25217 | F11: =+F12+F13 -> 47 | G11: =G12+G13 -> 6285 | H11: =H12+H13 -> 12122 | I11: =I12+I13 -> 11735 | K11: =K12+K13 -> 0 | L11: =L12+L13 -> 619 | M11: =M12+M13 -> 1097 | N11: =N12+N13 -> 999 | P11: =+P12+P13 -> 53 | Q11: =+Q12+Q13 -> 95 | R11: =+R12+R13 -> 54 | S11: =+S12+S13 -> 5
A12: MONTEVIDEO | B12: =SUM(C12:S12) -> 23817 | C12: 5135 | D12: 6742 | F12: 47 | G12: 1906 | H12: 4309 | I12: 4446 | K12: 0 | L12: 298 | M12: 393 | N12: 372 | P12: 53 | Q12: 73 | R12: 43 | S12: 0
A13: RESTO DEL PAÍS | B13: =SUM(B15:B32) -> 56168 | C13: =SUM(C15:C32) -> 16522 | D13: =SUM(D15:D32) -> 18475 | F13: =SUM(F15:F32) -> 0 | G13: =SUM(G15:G32) -> 4379 | H13: 7813 | I13: 7289 | K13: 0 | L13: 321 | M13: =SUM(M15:M32) -> 704 | N13: =SUM(N15:N32) -> 627 | P13: 0 | Q13: 22 | R13: 11 | S13: 5
A15: Artigas | B15: =SUM(C15:S15) -> 2396 | C15: 906 | D15: 898 | F15: 0 | G15: 136 | H15: 259 | I15: 197 | K15: 0 | L15: 0 | M15: 0 | N15: 0 | P15: 0 | Q15: 0 | R15: 0 | S15: 0
A16: Canelones | B16: =SUM(C16:S16) -> 12886 | C16: 3201 | D16: 3687 | F16: 0 | G16: 847 | H16: 2352 | I16: 2495 | K16: 0 | L16: 58 | M16: 110 | N16: 98 | P16: 0 | Q16: 22 | R16: 11 | S16: 5
A17: Cerro Largo | B17: 2544 | C17: 766 | D17: 800 | F17: 0 | G17: 115 | H17: 346 | I17: 313 | K17: 0 | L17: 59 | M17: 73 | N17: 72 | P17: 0 | Q17: 0 | R17: 0 | S17: 0
A18: Colonia | B18: 3426 | C18: 1171 | D18: 1247 | F18: 0 | G18: 247 | H18: 308 | I18: 295 | K18: 0 | L18: 29 | M18: 89 | N18: 40 | P18: 0 | Q18: 0 | R18: 0 | S18: 0
A19: Durazno | B19: 1603 | C19: 480 | D19: 514 | F19: 0 | G19: 116 | H19: 227 | I19: 180 | K19: 0 | L19: 21 | M19: 28 | N19: 37 | P19: 0 | Q19: 0 | R19: 0 | S19: 0
A20: Flores | B20: 672 | C20: 203 | D20: 228 | F20: 0 | G20: 84 | H20: 101 | I20: 56 | K20: 0 | L20: 0 | M20: 0 | N20: 0 | P20: 0 | Q20: 0 | R20: 0 | S20: 0
A21: Florida | B21: 1902 | C21: 535 | D21: 731 | F21: 0 | G21: 172 | H21: 301 | I21: 163 | K21: 0 | L21: 0 | M21: 0 | N21: 0 | P21: 0 | Q21: 0 | R21: 0 | S21: 0
A22: Lavalleja | B22: 1649 | C22: 368 | D22: 418 | F22: 0 | G22: 245 | H22: 294 | I22: 324 | K22: 0 | L22: 0 | M22: 0 | N22: 0 | P22: 0 | Q22: 0 | R22: 0 | S22: 0
A23: Maldonado | B23: 4048 | C23: 1152 | D23: 1349 | F23: 0 | G23: 328 | H23: 619 | I23: 600 | K23: 0 | L23: 0 | M23: 0 | N23: 0 | P23: 0 | Q23: 0 | R23: 0 | S23: 0
A24: Paysandú | B24: 3446 | C24: 1265 | D24: 1334 | F24: 0 | G24: 157 | H24: 239 | I24: 255 | K24: 0 | L24: 29 | M24: 83 | N24: 84 | P24: 0 | Q24: 0 | R24: 0 | S24: 0
A25: Río Negro | B25: 1919 | C25: 427 | D25: 539 | F25: 0 | G25: 184 | H25: 303 | I25: 305 | K25: 0 | L25: 25 | M25: 69 | N25: 67 | P25: 0 | Q25: 0 | R25: 0 | S25: 0
A26: Rivera | B26: 3424 | C26: 1029 | D26: 1188 | F26: 0 | G26: 319 | H26: 373 | I26: 339 | K26: 0 | L26: 45 | M26: 70 | N26: 61 | P26: 0 | Q26: 0 | R26: 0 | S26: 0
A27: Rocha | B27: 2180 | C27: 504 | D27: 678 | F27: 0 | G27: 262 | H27: 447 | I27: 289 | K27: 0 | L27: 0 | M27: 0 | N27: 0 | P27: 0 | Q27: 0 | R27: 0 | S27: 0
A28: Salto | B28: 4093 | C28: 1464 | D28: 1517 | F28: 0 | G28: 307 | H28: 402 | I28: 403 | K28: 0 | L28: 0 | M28: 0 | N28: 0 | P28: 0 | Q28: 0 | R28: 0 | S28: 0
A29: San José | B29: 3147 | C29: 1046 | D29: 1020 | F29: 0 | G29: 225 | H29: 342 | I29: 350 | K29: 0 | L29: 0 | M29: 79 | N29: 85 | P29: 0 | Q29: 0 | R29: 0 | S29: 0
A30: Soriano | B30: 2625 | C30: 916 | D30: 1029 | F30: 0 | G30: 242 | H30: 281 | I30: 157 | K30: 0 | L30: 0 | M30: 0 | N30: 0 | P30: 0 | Q30: 0 | R30: 0 | S30: 0
A31: Tacuarembó | B31: 2742 | C31: 759 | D31: 896 | F31: 0 | G31: 287 | H31: 437 | I31: 363 | K31: 0 | L31: 0 | M31: 0 | N31: 0 | P31: 0 | Q31: 0 | R31: 0 | S31: 0
A32: Treinta y Tres | B32: 1466 | C32: 330 | D32: 402 | F32: 0 | G32: 106 | H32: 182 | I32: 205 | K32: 0 | L32: 55 | M32: 103 | N32: 83 | P32: 0 | Q32: 0 | R32: 0 | S32: 0
A33: Fuente: Procesamiento propio en base a datos proporcionados por el D.E.E. — C.E.I.P.
A34: * Refiere a Clases Jardineras en Anuarios Anteriores.
A35: ** Jardines de Infantes incluye Jardines de Infantes comunes y Tiempo Completo.
A36: *** Jardines de Infantes con Ciclo Inicial.
A37: **** Centro Educativo de Primera Infancia. Refiere a Guarderías en Anuarios Anteriores.

Sheet II-1.2.3
A1: CONSEJO DE EDUCACIÓN INICIAL Y PRIMARIA | L1: ALUMNOS MATRICULADOS
A3: Cuadro Nº II-1.2.3
A5: ALUMNOS MATRICULADOS EN EDUCACIÓN EN LA PRIMERA INFANCIA E INICIAL PRIVADA POR MODALIDAD Y NIVEL SEGÚN DEPARTAMENTO. AÑO 2012.
A6: DEPARTAMENTO | D6: MODALIDAD
D7: JARDINES PRIVADOS | J7: INICIAL EN COLEGIOS
B8: TOTAL | D8: NIVEL | J8: NIVEL
C9: Total | D9: Nursery | E9: 2 años | F9: 3 años | G9: 4 años | H9: 5 años | I9: Total | J9: Nursery | K9: 2 años | L9: 3 años | M9: 4 años | N9: 5 años
A11: TOTAL | B11: =+B12+B13 -> 29617 | C11: =+C12+C13 -> 5465 | D11: =SUM(D12:D13) -> 834 | E11: =SUM(E12:E13) -> 1324 | F11: =SUM(F12:F13) -> 1438 | G11: =SUM(G12:G13) -> 1083 | H11: =SUM(H12:H13) -> 786 | I11: =+I12+I13 -> 24152 | J11: =SUM(J12:J13) -> 1292 | K11: =SUM(K12:K13) -> 3403 | L11: =SUM(L12:L13) -> 4821 | M11: =SUM(M12:M13) -> 6688 | N11: =SUM(N12:N13) -> 7948
A12: MONTEVIDEO | B12: =+C12+I12 -> 17921 | C12: =SUM(D12:H12) -> 3673 | D12: 626 | E12: 867 | F12: 925 | G12: 724 | H12: 531 | I12: =SUM(J12:N12) -> 14248 | J12: 830 | K12: 1840 | L12: 2733 | M12: 3995 | N12: 4850
A13: RESTO DEL PAÍS | B13: =SUM(B15:B32) -> 11696 | C13: =SUM(C15:C32) -> 1792 | D13: 208 | E13: 457 | F13: 513 | G13: 359 | H13: 255 | I13: =SUM(I15:I32) -> 9904 | J13: 462 | K13: 1563 | L13: 2088 | M13: 2693 | N13: 3098
A15: Artigas | B15: =+C15+I15 -> 105 | C15: =SUM(D15:H15) -> 0 | D15: 0 | E15: 0 | F15: 0 | G15: 0 | H15: 0 | I15: =+J15+K15+L15+M15+N15 -> 105 | J15: 0 | K15: 24 | L15: 26 | M15: 30 | N15: 25
A16: Canelones | B16: 3841 | C16: 616 | D16: 43 | E16: 130 | F16: 153 | G16: 158 | H16: 132 | I16: 3225 | J16: 134 | K16: 418 | L16: 701 | M16: 904 | N16: 1068
A17: Cerro Largo | B17: 371 | C17: 112 | D17: 23 | E17: 42 | F17: 47 | G17: 0 | H17: 0 | I17: 259 | J17: 0 | K17: 25 | L17: 41 | M17: 74 | N17: 119
A18: Colonia | B18: 692 | C18: 0 | D18: 0 | E18: 0 | F18: 0 | G18: 0 | H18: 0 | I18: 692 | J18: 111 | K18: 106 | L18: 186 | M18: 147 | N18: 142
A19: Durazno | B19: 250 | C19: 0 | D19: 0 | E19: 0 | F19: 0 | G19: 0 | H19: 0 | I19: 250 | J19: 13 | K19: 10 | L19: 60 | M19: 68 | N19: 99
A20: Flores | B20: 149 | C20: 0 | D20: 0 | E20: 0 | F20: 0 | G20: 0 | H20: 0 | I20: 149 | J20: 8 | K20: 33 | L20: 28 | M20: 37 | N20: 43
A21: Florida | B21: 179 | C21: 90 | D21: 31 | E21: 26 | F21: 18 | G21: 15 | H21: 0 | I21: 89 | J21: 0 | K21: 14 | L21: 12 | M21: 22 | N21: 41
A22: Lavalleja | B22: 358 | C22: 0 | D22: 0 | E22: 0 | F22: 0 | G22: 0 | H22: 0 | I22: 358 | J22: 27 | K22: 67 | L22: 62 | M22: 108 | N22: 94
A23: Maldonado | B23: 2121 | C23: 210 | D23: 2 | E23: 48 | F23: 67 | G23: 49 | H23: 44 | I23: 1911 | J23: 41 | K23: 321 | L23: 452 | M23: 533 | N23: 564
A24: Paysandú | B24: 467 | C24: 126 | D24: 22 | E24: 22 | F24: 21 | G24: 28 | H24: 33 | I24: 341 | J24: 6 | K24: 13 | L24: 29 | M24: 125 | N24: 168
A25: Río Negro | B25: 269 | C25: 0 | D25: 0 | E25: 0 | F25: 0 | G25: 0 | H25: 0 | I25: 269 | J25: 11 | K25: 43 | L25: 56 | M25: 79 | N25: 80
A26: Rivera | B26: 431 | C26: 0 | D26: 0 | E26: 0 | F26: 0 | G26: 0 | H26: 0 | I26: 431 | J26: 22 | K26: 94 | L26: 91 | M26: 107 | N26: 117
A27: Rocha | B27: 238 | C27: 0 | D27: 0 | E27: 0 | F27: 0 | G27: 0 | H27: 0 | I27: 238 | J27: 20 | K27: 54 | L27: 59 | M27: 54 | N27: 51
A28: Salto | B28: 893 | C28: 371 | D28: 47 | E28: 116 | F28: 136 | G28: 52 | H28: 20 | I28: 522 | J28: 32 | K28: 107 | L28: 86 | M28: 135 | N28: 162
A29: San José | B29: 435 | C29: 98 | D29: 17 | E29: 19 | F29: 25 | G29: 27 | H29: 10 | I29: 337 | J29: 8 | K29: 86 | L29: 64 | M29: 77 | N29: 102
A30: Soriano | B30: 250 | C30: 43 | D30: 5 | E30: 21 | F30: 12 | G30: 5 | H30: 0 | I30: 207 | J30: 0 | K30: 34 | L30: 37 | M30: 51 | N30: 85
A31: Tacuarembó | B31: 562 | C31: 126 | D31: 18 | E31: 33 | F31: 34 | G31: 25 | H31: 16 | I31: 436 | J31: 29 | K31: 96 | L31: 76 | M31: 122 | N31: 113
A32: Treinta y Tres | B32: 85 | C32: 0 | D32: 0 | E32: 0 | F32: 0 | G32: 0 | H32: 0 | I32: 85 | J32: 0 | K32: 18 | L32: 22 | M32: 20 | N32: 25
A33: Fuente: Procesamiento propio en base a datos proporcionados por el D.E.E. — C.E.I.P.

Sheet II-1.2.4
A1: MINISTERIO DE EDUCACIÓN Y CULTURA | I1: Alumnos Matriculados
A3: Dirección de Educación – Área de Educación en la Primera Infancia
A4: INAU-CAIF
A6: Cuadro Nº II-1.2.4
A8: ALUMNOS MATRICULADOS EN EDUCACIÓN EN LA PRIMERA INFANCIA E INICIAL POR FORMA DE ADMINISTRACIÓN Y SEXO SEGÚN DEPARTAMENTO. AÑO 2012.
A9: DEPARTAMENTO | E9: FORMA DE ADMINISTRACIÓN
B10: TOTAL | E10: CAIF Y CENTROS DIURNOS | G10: Centros Privados
B12: TOTAL | C12: SEXO | E12: SEXO
C13: M | D13: F | E13: M | F13: F | G13: M | H13: F
A14: TOTAL | B14: =+B15+B16 -> 66875 | C14: =E14+G14 -> 34127 | D14: 32748 | E14: =E15+E16 -> 23179 | F14: =F15+F16 -> 22441 | G14: =G15+G16 -> 10948 | H14: =H15+H16 -> 10307
A15: MONTEVIDEO | B15: =+C15+D15 -> 23791 | C15: 12260 | D15: 11531 | E15: 5588 | F15: 5304 | G15: 6672 | H15: 6227
A16: RESTO DEL PAÍS | B16: =+C16+D16 -> 43084 | C16: 21867 | D16: 21217 | E16: =SUM(E17:E35) -> 17591 | F16: =SUM(F17:F35) -> 17137 | G16: =SUM(G17:G35) -> 4276 | H16: =SUM(H17:H35) -> 4080
A18: Artigas | B18: =+C18+D18 -> 2147 | C18: =E18+G18 -> 1091 | D18: =F18+H18 -> 1056 | E18: 984 | F18: 958 | G18: 107 | H18: 98
A19: Canelones | B19: 8931 | C19: =E19+G19 -> 4559 | D19: =F19+H19 -> 4372 | E19: 3178 | F19: 3025 | G19: 1381 | H19: 1347
A20: Cerro Largo | B20: 2747 | C20: 1390 | D20: 1357 | E20: 1316 | F20: 1272 | G20: 74 | H20: 85
A21: Colonia | B21: 2397 | C21: 1177 | D21: 1220 | E21: 865 | F21: 906 | G21: 312 | H21: 314
A22: Durazno | B22: 2018 | C22: 1037 | D22: 981 | E22: 1005 | F22: 969 | G22: 32 | H22: 12
A23: Flores | B23: 772 | C23: 390 | D23: 382 | E23: 336 | F23: 323 | G23: 54 | H23: 59
A24: Florida | B24: 1679 | C24: 864 | D24: 815 | E24: 607 | F24: 544 | G24: 257 | H24: 271
A25: Lavalleja | B25: 883 | C25: 459 | D25: 424 | E25: 367 | F25: 346 | G25: 92 | H25: 78
A26: Maldonado | B26: 2341 | C26: 1213 | D26: 1128 | E26: 671 | F26: 648 | G26: 542 | H26: 480
A27: Paysandú | B27: 3858 | C27: 1869 | D27: 1989 | E27: 1587 | F27: 1700 | G27: 282 | H27: 289
A28: Río Negro | B28: 1457 | C28: 729 | D28: 728 | E28: 638 | F28: 648 | G28: 91 | H28: 80
A29: Rivera | B29: 2573 | C29: 1302 | D29: 1271 | E29: 1059 | F29: 1060 | G29: 243 | H29: 211
A30: Rocha | B30: 1612 | C30: 828 | D30: 784 | E30: 775 | F30: 725 | G30: 53 | H30: 59
A31: Salto | B31: 3338 | C31: 1710 | D31: 1628 | E31: 1419 | F31: 1353 | G31: 291 | H31: 275
A32: San José | B32: 1736 | C32: 906 | D32: 830 | E32: 677 | F32: 624 | G32: 229 | H32: 206
A33: Soriano | B33: 1654 | C33: 849 | D33: 805 | E33: 680 | F33: 641 | G33: 169 | H33: 164
A34: Tacuarembó | B34: 1884 | C34: 929 | D34: 955 | E34: 862 | F34: 903 | G34: 67 | H34: 52
A35: Treinta y Tres | B35: 1057 | C35: 565 | D35: 492 | E35: 565 | F35: 492 | G35: 0 | H35: 0
A36: Fuente: Procesamiento propio en base a datos proporcionados por:
A37: Registro Nacional de Centros de Educación Infantil Privados. MEC
A38: Para CAIF Y CENTROS DIURNOS: SIPI de INAU.
A39: Nota: Los centros pertenecientes al Proyecto Nuestros Niños de la IMM, se encuentran incluidos en la matrícula de Centros Privados, en tanto los mismos son supervisados por el MEC.
A40: CAIF y Centros Diurnos incluyen para este año la matrícula de Experiencia Oportuna.
A41: (0 a 1 año) que en el anuario 2012 solo se incluía en el cuadro II

Sheet II-1.2.5
A1: MINISTERIO DE EDUCACIÓN Y CULTURA | F1: ALUMNOS MATRICULADOS
A2: Dirección de Educación – Área de Educación en la Primera Infancia
A4: Cuadro Nº II-1.2.5
A5: ALUMNOS MATRICULADOS EN EDUCACIÓN EN LA PRIMERA INFANCIA E INICIAL POR FORMA DE ADMINISTRACIÓN SEGÚN EDAD. AÑO 2012.
C6: FORMA DE ADMINISTRACIÓN
A7: EDAD | C7: CEIP- PÚBLICOS | D7: CEIP-PRIVADOS (Habilitados y Autorizados) | E7: CAIF Y DIURNOS | F7: PRIVADOS MEC
A10: TOTAL | B10: =SUM(C10:F10) -> 176477 | C10: =C11+C14+C15+C16 -> 79985 | D10: =SUM(D11:D16) -> 29617 | E10: =SUM(E11:E16) -> 45620 | F10: =SUM(F11:F16) -> 21255
A11: 0 a 11 meses | B11: =SUM(E11:F11) -> 6201 | C11: ='II-1.2.2'!F11+'II-1.2.2'!K11+'II-1.2.2'!P11 -> 100 | D11: ='II-1.2.3'!D11+'II-1.2.3'!J11 -> 2126 | E11: 5441 | F11: 760
A12: 1 año | B12: =SUM(E12:F12) -> 15302 | E12: 11848 | F12: 3454
A13: 2 años | B13: =SUM(C13:F13) -> 23771 | D13: ='II-1.2.3'!E11+'II-1.2.3'!K11 -> 4727 | E13: 12680 | F13: 6364
A14: 3 años | B14: =SUM(C14:F14) -> 31538 | C14: ='II-1.2.2'!G11+'II-1.2.2'!L11+'II-1.2.2'!Q11 -> 6999 | D14: ='II-1.2.3'!F11+'II-1.2.3'!L11 -> 6259 | E14: 12091 | F14: 6189
A15: 4 años | B15: =SUM(C15:F15) -> 49012 | C15: ='II-1.2.2'!C11+'II-1.2.2'!H11+'II-1.2.2'!M11+'II-1.2.2'!R11 -> 34930 | D15: ='II-1.2.3'!G11+'II-1.2.3'!M11 -> 7771 | E15: 3430 | F15: 2881
A16: 5 años | B16: =SUM(C16:F16) -> 48427 | C16: ='II-1.2.2'!D11+'II-1.2.2'!I11+'II-1.2.2'!N11+'II-1.2.2'!S11 -> 37956 | D16: ='II-1.2.3'!H11+'II-1.2.3'!N11 -> 8734 | E16: 130 | F16: 1607
A17: Fuente: Procesamiento propio en base a datos proporcionados por:
A18: Registro Nacional de Centros de Educación Infantil Privados. MEC
A19: Para CAIF Y CENTROS DIURNOS: SIPI de INAU.
A20: Programa Nuestros Niños: IMM. Se encuentran incluidos dentro de la matricula privada.
A21: Nota: En los Centros de Educación Infantil Privados MEC se incluyen 282 niñas y niños que tienen más de 5 años

Sheet II-1.2.6
A1: CONSEJO DE EDUCACIÓN INICIAL Y PRIMARIA | D1: ALUMNOS MATRICULADOS
A3: Cuadro Nº II-1.2.6
A5: ALUMNOS MATRICULADOS EN EDUCACIÓN EN LA PRIMERA INFANCIA E INICIAL PÚBLICA DEL CEIP POR ÁREA DEMOGRÁFICA SEGÚN DEPARTAMENTO. AÑO 2012.
A6: DEPARTAMENTO | B6: TOTAL | C6: ÁREA DEMOGRÁFICA
C7: URBANA | D7: RURAL
A8: TOTAL | B8: =SUM(C8+D8) -> 79985 | C8: =SUM(C9:C10) -> 75661 | D8: =SUM(D9:D10) -> 4324
A9: MONTEVIDEO | B9: =+C9+D9 -> 23817 | C9: 23817 | D9: 0
A10: RESTO DEL PAÍS | B10: =+C10+D10 -> 56168 | C10: =SUM(C12:C29) -> 51844 | D10: =SUM(D12:D29) -> 4324
A12: Artigas | B12: 2396 | C12: 2213 | D12: 183
A13: Canelones | B13: 12886 | C13: 12202 | D13: 684
A14: Cerro Largo | B14: 2544 | C14: 2320 | D14: 224
A15: Colonia | B15: 3426 | C15: 3126 | D15: 300
A16: Durazno | B16: 1603 | C16: 1478 | D16: 125
A17: Flores | B17: 672 | C17: 613 | D17: 59
A18: Florida | B18: 1902 | C18: 1674 | D18: 228
A19: Lavalleja | B19: 1649 | C19: 1521 | D19: 128
A20: Maldonado | B20: 4048 | C20: 3854 | D20: 194
A21: Paysandú | B21: 3446 | C21: 3161 | D21: 285
A22: Río Negro | B22: 1919 | C22: 1761 | D22: 158
A23: Rivera | B23: 3424 | C23: 3150 | D23: 274
A24: Rocha | B24: 2180 | C24: 2082 | D24: 98
A25: Salto | B25: 4093 | C25: 3721 | D25: 372
A26: San José | B26: 3147 | C26: 2776 | D26: 371
A27: Soriano | B27: 2625 | C27: 2412 | D27: 213
A28: Tacuarembó | B28: 2742 | C28: 2421 | D28: 321
A29: Treinta y Tres | B29: 1466 | C29: 1359 | D29: 107
A30: Fuente: Procesamiento propio en base a datos proporcionados
A31: por el D.E.E. — C.E.I.P.
A32: 1- Este año el presente cuadro considera la matrícula total de Educación en la Primera Infancia e Inicial Pública.
A33: Años anteriores solo consideraban la matrícula de Educación Inicial en Escuelas.

Sheet II-1.2.7
A1: MINISTERIO DE EDUCACIÓN Y CULTURA | J1: ALUMNOS MATRICULADOS
A2: Dirección de Educación – Área de Educación en la Primera Infancia
A4: Cuadro Nº II-1.2.7
A6: ALUMNOS MATRICULADOS EN EDUCACIÓN EN LA PRIMERA INFANCIA E INICIAL EN CENTROS PRIVADOS HABILITADOS POR EL MEC POR EDAD SEGÚN DEPARTAMENTO. AÑO 2012.
A7: DEPARTAMENTO | C7: E D A D
B8: TOTAL | C8: 0 a 11 meses | D8: 1 año | E8: 2 años | F8: 3 años | G8: 4 años | H8: 5 años
A10: TOTAL | B10: =+B11+B12 -> 21255 | C10: 760 | D10: 3454 | E10: 6364 | F10: 6189 | G10: 2881 | H10: 1607
A11: MONTEVIDEO | B11: =+C11+D11+E11+F11+G11+H11 -> 12899 | C11: 601 | D11: 2113 | E11: 3774 | F11: 3721 | G11: 1790 | H11: 900
A12: RESTO DEL PAÍS | B12: =SUM(B14:B31) -> 8356 | C12: 159 | D12: 1341 | E12: 2590 | F12: 2468 | G12: 1091 | H12: 707
A14: Artigas | B14: =+C14+D14+E14+F14+G14+H14 -> 205 | C14: 1 | D14: 44 | E14: 70 | F14: 45 | G14: 18 | H14: 27
A15: Canelones | B15: 2728 | C15: 42 | D15: 367 | E15: 835 | F15: 804 | G15: 436 | H15: 244
A16: Cerro Largo | B16: 159 | C16: 0 | D16: 23 | E16: 60 | F16: 37 | G16: 29 | H16: 10
A17: Colonia | B17: 626 | C17: 14 | D17: 104 | E17: 257 | F17: 238 | G17: 13 | H17: 0
A18: Durazno | B18: 44 | C18: 0 | D18: 21 | E18: 10 | F18: 10 | G18: 3 | H18: 0
A19: Flores | B19: 113 | C19: 5 | D19: 23 | E19: 31 | F19: 27 | G19: 13 | H19: 14
A20: Florida | B20: 528 | C20: 23 | D20: 112 | E20: 162 | F20: 129 | G20: 63 | H20: 39
A21: Lavalleja | B21: 170 | C21: 8 | D21: 31 | E21: 67 | F21: 52 | G21: 12 | H21: 0
A22: Maldonado | B22: 1022 | C22: 7 | D22: 125 | E22: 203 | F22: 276 | G22: 212 | H22: 199
A23: Paysandú | B23: 571 | C23: 33 | D23: 120 | E23: 154 | F23: 152 | G23: 76 | H23: 36
A24: Río Negro | B24: 171 | C24: 6 | D24: 44 | E24: 54 | F24: 59 | G24: 2 | H24: 6
A25: Rivera | B25: 454 | C25: 6 | D25: 75 | E25: 147 | F25: 124 | G25: 72 | H25: 30
A26: Rocha | B26: 112 | C26: 1 | D26: 26 | E26: 47 | F26: 34 | G26: 4 | H26: 0
A27: Salto | B27: 566 | C27: 3 | D27: 89 | E27: 165 | F27: 179 | G27: 37 | H27: 93
A28: San José | B28: 435 | C28: 10 | D28: 66 | E28: 156 | F28: 164 | G28: 30 | H28: 9
A29: Soriano | B29: 333 | C29: 0 | D29: 48 | E29: 133 | F29: 98 | G29: 54 | H29: 0
A30: Tacuarembó | B30: 119 | C30: 0 | D30: 23 | E30: 39 | F30: 40 | G30: 17 | H30: 0
A31: Treinta y Tres | B31: 0 | C31: 0 | D31: 0 | E31: 0 | F31: 0 | G31: 0 | H31: 0
A32: Fuente: Procesamiento propio en base a datos proporcionados por:
A33: Registro Nacional de Centros de Educación Infantil Privados. MEC

Sheet II-1.3.1
A1: CONSEJO DE EDUCACIÓN INICIAL Y PRIMARIA | D1: PERSONAL DOCENTE
A3: Cuadro Nº II-1.3.1
A5: PERSONAL DOCENTE DE EDUCACIÓN EN LA PRIMERA INFANCIA E INICIAL PÚBLICA DEL CEIP SEGÚN DEPARTAMENTO. AÑO 2012.
A6: DEPARTAMENTO | B6: DOCENTES
A8: TOTAL | B8: =SUM(B9:B10) -> 2906
A9: MONTEVIDEO | B9: 1003
A10: RESTO DEL PAÍS | B10: =SUM(B12:B29) -> 1903
A12: Artigas | B12: 81
A13: Canelones | B13: 446
A14: Cerro Largo | B14: 95
A15: Colonia | B15: 105
A16: Durazno | B16: 52
A17: Flores | B17: 26
A18: Florida | B18: 75
A19: Lavalleja | B19: 65
A20: Maldonado | B20: 154
A21: Paysandú | B21: 97
A22: Río Negro | B22: 68
A23: Rivera | B23: 112
A24: Rocha | B24: 76
A25: Salto | B25: 127
A26: San José | B26: 96
A27: Soriano | B27: 80
A28: Tacuarembó | B28: 89
A29: Treinta y Tres | B29: 59
A30: Fuente: D.E.E. - C.E.P.

Sheet II-1.3.2
A1: CONSEJO DE EDUCACIÓN INICIAL Y PRIMARIA | E1: PERSONAL DOCENTE
A3: Cuadro Nº II-1.3.2.
A5: PERSONAL DOCENTE DE EDUCACIÓN EN LA PRIMERA INFANCIA E INICIAL PRIVADA SEGÚN DEPARTAMENTO. AÑO 2012.
A6: DEPARTAMENTO | C6: DOCENTES
B8: TOTAL | C8: Colegios Habilitados | D8: Colegios Autorizados | E8: Jardines de Infantes Autorizados
A10: TOTAL | B10: =SUM(B11:B12) -> 918 | C10: =SUM(C11:C12) -> 823 | D10: =SUM(D11:D12) -> 36 | E10: =SUM(E11:E12) -> 59
A11: MONTEVIDEO | B11: =+C11+D11+E11 -> 479 | C11: 423 | D11: 20 | E11: 36
A12: RESTO DEL PAÍS | B12: =+C12+D12+E12 -> 439 | C12: =SUM(C14:C31) -> 400 | D12: =SUM(D14:D31) -> 16 | E12: =SUM(E14:E31) -> 23
A14: Artigas | B14: =+C14+D14 -> 4 | C14: 4 | D14: 0 | E14: 0
A15: Canelones | B15: 221 | C15: 206 | D15: 15 | E15: 7
A16: Cerro Largo | B16: 15 | C16: 15 | D16: 0 | E16: 1
A17: Colonia | B17: 23 | C17: 23 | D17: 0 | E17: 0
A18: Durazno | B18: 3 | C18: 3 | D18: 0 | E18: 0
A19: Flores | B19: 5 | C19: 5 | D19: 0 | E19: 0
A20: Florida | B20: 4 | C20: 4 | D20: 0 | E20: 2
A21: Lavalleja | B21: 9 | C21: 9 | D21: 0 | E21: 0
A22: Maldonado | B22: 52 | C22: 52 | D22: 0 | E22: 3
A23: Paysandú | B23: 4 | C23: 4 | D23: 0 | E23: 1
A24: Río Negro | B24: 7 | C24: 7 | D24: 0 | E24: 0
A25: Rivera | B25: 14 | C25: 14 | D25: 0 | E25: 0
A26: Rocha | B26: 9 | C26: 9 | D26: 0 | E26: 0
A27: Salto | B27: 14 | C27: 14 | D27: 0 | E27: 5
A28: San José | B28: 11 | C28: 10 | D28: 1 | E28: 1
A29: Soriano | B29: 6 | C29: 6 | D29: 0 | E29: 1
A30: Tacuarembó | B30: 13 | C30: 13 | D30: 0 | E30: 2
A31: Treinta y Tres | B31: 2 | C31: 2 | D31: 0 | E31: 0
A32: Fuente: D.E.E. — C.E.P. | B32: C.E.I.P
A33: Nota: Para 2012 se incluye el personal docente de Jardines de Infantes Autorizados.

Sheet II-1.3.3
A1: MINISTERIO DE EDUCACIÓN Y CULTURA | L1: PERSONAL DOCENTE
A3: Cuadro Nº II-1.3.3
A5: CANTIDAD DE PERSONAL DOCENTE EN EDUCACIÓN EN LA PRIMERA INFANCIA E INICIAL SEGÚN NIVEL EDUCATIVO ALCANZADO Y SITUACIÓN DE ESCOLARIDAD. AÑO 2012.
C7: SITUACIÓN DE ESCOLARIDAD
A8: NIVEL EDUCATIVO ALCANZADO | B8: TOTAL | C8: Sin dato | F8: Finalizó | I8: No finalizó y asiste | L8: No finalizó y no asiste
C9: SEXO
C10: S/D | D10: M | E10: F | F10: S/D | G10: M | H10: F | I10: S/D | J10: M | K10: F | L10: S/D | M10: M | N10: F
A11: TOTAL | B11: =SUM(C11:N11) -> 3977 | C11: =SUM(C12:C33) -> 6 | D11: 156 | E11: 27 | F11: 11 | G11: 2766 | H11: 119 | I11: 0 | J11: =SUM(J12:J33) -> 605 | K11: =SUM(K12:K33) -> 28 | L11: =SUM(L12:L33) -> 0 | M11: =SUM(M12:M33) -> 249 | N11: =SUM(N12:N33) -> 10
A12: Sin dato | B12: =SUM(D12:N12) -> 79 | C12: 6 | D12: 65 | E12: 14 | F12: 0 | H12: 0 | I12: 0 | J12: 0 | K12: 0 | L12: 0 | M12: 0 | N12: 0
A13: Sin formación | B13: 12 | C13: 0 | D13: 2 | E13: 0 | F13: 0 | G13: 1 | H13: 0 | I13: 0 | J13: 0 | K13: 0 | L13: 0 | M13: 9 | N13: 0
A14: Primaria | B14: 69 | C14: 0 | D14: 1 | E14: 0 | F14: 0 | G14: 59 | H14: 1 | I14: 0 | J14: 2 | K14: 0 | L14: 0 | M14: 6 | N14: 0
A15: Otros cursos de educación inicial no reconocidos que tengan una duración mínima de 6 meses y NO TENGAN requisitos mínimos de ingreso. | B15: 307 | C15: 0 | D15: 3 | E15: 0 | F15: 0 | G15: 284 | H15: 1 | I15: 0 | J15: 14 | K15: 0 | L15: 0 | M15: 5 | N15: 0
A16: Ciclo básico de secundaria o UTU | B16: 197 | C16: 0 | D16: 14 | E16: 1 | F16: 2 | G16: 112 | H16: 9 | I16: 0 | J16: 11 | K16: 0 | L16: 0 | M16: 48 | N16: 0
A17: Segundo ciclo de secundaria o UTU | B17: 302 | C17: 0 | D17: 12 | E17: 1 | F17: 0 | G17: 148 | H17: 13 | I17: 0 | J17: 51 | K17: 3 | L17: 0 | M17: 69 | N17: 5
A18: Otros cursos de educación inicial no reconocidos que tengan una duración mínima de 6 meses y requiera para su ingreso ciclo básico de enseñanza media completa como mínimo. | B18: 607 | C18: 0 | D18: 7 | E18: 0 | F18: 2 | G18: 555 | H18: 4 | I18: 0 | J18: 31 | K18: 0 | L18: 0 | M18: 8 | N18: 0
A19: Terciarios específicos de educación inicial privados reconocidos por Decreto 308/995 | B19: 35 | C19: 0 | D19: 1 | E19: 0 | F19: 0 | G19: 27 | H19: 1 | I19: 0 | J19: 5 | K19: 0 | L19: 0 | M19: 1 | N19: 0
A20: Formación básica en primera infancia. (CENFORES - INAU) | B20: 236 | C20: 0 | D20: 3 | E20: 0 | F20: 0 | G20: 148 | H20: 0 | I20: 0 | J20: 64 | K20: 1 | L20: 0 | M20: 20 | N20: 0
A21: Educador Social (CENFORES - INAU) | B21: 38 | C21: 0 | E21: 0 | F21: 0 | G21: 23 | H21: 0 | I21: 0 | J21: 10 | K21: 0 | L21: 0 | M21: 5 | N21: 0
A22: Tec. en Jardín Maternal (CIEP). | B22: 60 | C22: 0 | E22: 0 | F22: 0 | G22: 52 | H22: 0 | I22: 0 | J22: 6 | K22: 0 | L22: 0 | M22: 2 | N22: 0
A23: Tec. en Ed. Inicial (UCUDAL), Educador Preescolar (CIEP) | B23: 264 | C23: 0 | D23: 5 | E23: 0 | F23: 5 | G23: 198 | H23: 0 | I23: 0 | J23: 46 | K23: 0 | L23: 0 | M23: 10 | N23: 0
A24: Instituto de Formación Docente ANEP. Maestro de educación común | B24: 330 | C24: 0 | D24: 2 | E24: 0 | F24: 0 | G24: 249 | H24: 4 | I24: 0 | J24: 62 | K24: 1 | L24: 0 | M24: 12 | N24: 0
A25: Instituto de Formación Docente - ANEP - Maestro de Educación Inicial | B25: 194 | C25: 0 | D25: 5 | E25: 0 | F25: 0 | G25: 122 | H25: 6 | I25: 0 | J25: 53 | K25: 0 | L25: 0 | M25: 8 | N25: 0
A26: Doble titulación (Maestro de Educación Común y de Educación Inicial) | B26: 205 | C26: 0 | D26: 2 | E26: 0 | F26: 1 | G26: 161 | H26: 5 | I26: 0 | J26: 31 | K26: 1 | L26: 0 | M26: 4 | N26: 0
A27: Curso de especialización en preescolares (IMS) | B27: 42 | C27: 0 | D27: 3 | E27: 0 | F27: 0 | G27: 35 | I27: 0 | J27: 4 | K27: 0 | L27: 0 | N27: 0
A28: Otros de Formación Docente (IPA, ISEF, ACJ) | B28: 130 | C28: 0 | D28: 5 | E28: 1 | F28: 0 | G28: 61 | H28: 29 | I28: 0 | J28: 23 | K28: 8 | L28: 0 | M28: 3 | N28: 0
A29: Curso de director de ANEP | B29: 26 | C29: 0 | D29: 1 | E29: 0 | F29: 0 | G29: 22 | H29: 2 | I29: 0 | J29: 1 | K29: 0 | L29: 0 | N29: 0
A30: Lic. en Ed. Inicial (UCUDAL), | B30: 51 | C30: 0 | E30: 0 | F30: 1 | G30: 34 | H30: 0 | I30: 0 | J30: 12 | K30: 0 | L30: 0 | M30: 4 | N30: 0
A31: Terciario de educación (Licenciatura en Educación - UCUDAL, UDELAR), | B31: 31 | C31: 0 | D31: 7 | E31: 3 | F31: 0 | G31: 13 | I31: 0 | J31: 8 | K31: 0 | L31: 0 | N31: 0
A32: Terciarios en otras disciplinas | B32: 692 | C32: 0 | D32: 15 | E32: 7 | F32: 0 | G32: 414 | H32: 41 | I32: 0 | J32: 162 | K32: 14 | L32: 0 | M32: 34 | N32: 5
A33: Posgrados relacionados a educación (en UDELAR o universidades privadas) | B33: 64 | C33: 0 | D33: 3 | E33: 0 | F33: 0 | G33: 48 | H33: 3 | I33: 0 | J33: 9 | K33: 0 | L33: 0 | M33: 1 | N33: 0
A34: Fuente: Procesamiento propio en base a datos proporcionados por: Registro Nacional de Centros de Educación Infantil Privados. MEC

Sheet II-1.3.4
A1: MINISTERIO DE EDUCACIÓN Y CULTURA | H1: PERSONAL DOCENTE
A3: Cuadro Nº II-1.3.4
A5: CANTIDAD DE PERSONAL DOCENTE EN EDUCACIÓN EN LA PRIMERA INFANCIA E INICIAL POR DEPARTAMENTO SEGÚN NIVEL EDUCATIVO ALCANZADO. AÑO 2012.
A6: DEPARTAMENTO | B6: TOTAL | C6: Sin Dato | D6: Sin Formación | E6: Primaria (1) | F6: Hasta Secundaria completa (2) | G6: Terciario No Universitario (3) | H6: Terciario Universitario (4)
A8: TOTAL | B8: =SUM(C8:H8) -> 3977 | C8: =C9+C10 -> 85 | D8: 12 | E8: 376 | F8: 1106 | G8: 1560 | H8: 838
A9: MONTEVIDEO | B9: =SUM(C9:H9) -> 2517 | C9: 43 | D9: 8 | E9: 205 | F9: 675 | G9: 1006 | H9: 580
A10: RESTO DEL PAÍS | B10: 1460 | C10: =SUM(C11:C28) -> 42 | D10: 4 | E10: 171 | F10: 431 | G10: 554 | H10: 258
A11: Artigas | B11: 38 | C11: 2 | D11: 0 | E11: 2 | F11: 15 | G11: 17 | H11: 2
A12: Canelones | B12: 499 | C12: 6 | D12: 1 | E12: 54 | F12: 132 | G12: 200 | H12: 106
A13: Cerro Largo | B13: 27 | C13: 0 | D13: 0 | E13: 3 | F13: 8 | G13: 11 | H13: 5
A14: Colonia | B14: 98 | C14: 4 | D14: 0 | E14: 4 | F14: 47 | G14: 34 | H14: 9
A15: Durazno | B15: 9 | C15: 0 | D15: 0 | E15: 2 | F15: 3 | G15: 4 | H15: 0
A16: Flores | B16: 21 | C16: 0 | D16: 0 | E16: 0 | F16: 8 | G16: 10 | H16: 3
A17: Florida | B17: 69 | C17: 0 | D17: 1 | E17: 11 | F17: 16 | G17: 28 | H17: 13
A18: Lavalleja | B18: 38 | C18: 0 | D18: 0 | E18: 8 | F18: 12 | G18: 14 | H18: 4
A19: Maldonado | B19: 218 | C19: 11 | D19: 0 | E19: 31 | F19: 67 | G19: 69 | H19: 40
A20: Paysandú | B20: 103 | C20: 7 | D20: 1 | E20: 9 | F20: 25 | G20: 42 | H20: 19
A21: Río Negro | B21: 26 | C21: 0 | D21: 0 | E21: 1 | F21: 8 | G21: 13 | H21: 4
A22: Rivera | B22: 86 | C22: 0 | D22: 0 | E22: 18 | F22: 17 | G22: 33 | H22: 18
A23: Rocha | B23: 15 | C23: 0 | D23: 0 | E23: 4 | F23: 4 | G23: 6 | H23: 1
A24: Salto | B24: 69 | C24: 9 | D24: 0 | E24: 11 | F24: 23 | G24: 22 | H24: 4
A25: San José | B25: 64 | C25: 3 | D25: 1 | E25: 9 | F25: 26 | G25: 13 | H25: 12
A26: Soriano | B26: 56 | C26: 0 | D26: 0 | E26: 3 | F26: 16 | G26: 22 | H26: 15
A27: Tacuarembó | B27: 24 | C27: 0 | D27: 0 | E27: 1 | F27: 4 | G27: 16 | H27: 3
A28: Treinta y Tres | B28: 0 | C28: 0 | D28: 0 | E28: 0 | F28: 0 | G28: 0 | H28: 0
A29: Fuente: Procesamiento propio en base a datos proporcionados por: Registro Nacional de Centros de Educación Infantil Privados. MEC
A30: Notas:
A31: 1 - Primaria incluye las categorías: Primaria y Otros cursos de educación inicial no reconocidos que tengan una duración mínima de 6 meses y NO TENGAN requisitos mínimos de ingreso.
A32: 2 - Hasta Secundaria Completa incluye: Ciclo básico de secundaria o UTU, Segundo ciclo de secundaria o UTU y Otros cursos de educación inicial no reconocidos que tengan una duración mínima de 6 meses y requiera para su ingreso ciclo básico de enseñanza media completa como mínimo.
A33: 3 - Terciario No Universitario incluye: Terciarios específicos de educación inicial privados reconocidos por Decreto 308/995, Formación básica en primera infancia. (CENFORES - INAU), Educador Social (CENFORES - INAU), Tec. en Jardín Maternal (CIEP), Tec. en Ed. Inicial (UCUDAL), Educador Preescolar (CIEP), Instituto de Formación Docente ANEP. Maestro de educación común, Instituto de Formación Docente - ANEP - Maestro de Educación Inicial, Doble titulación (Maestro de Educación Común y de Educación Inicial), Curso de especialización en preescolares (IMS), Otros de Formación Docente (IPA, ISEF, ACJ) y Curso de director de ANEP.
A34: 4 - Terciario Universitario incluye: Lic. en Ed. Inicial (UCUDAL), Terciario de educación (Licenciatura en Educación - UCUDAL, UDELAR), Terciarios en otras disciplinas y Posgrados relacionados a educación (en UDELAR o universidades privadas)

Sheet PRIMARIA

Sheet II-2.1.1
A1: CONSEJO DE EDUCACIÓN PRIMARIA | E1: ESTABLECIMIENTOS
A3: Cuadro Nº II-2.1.1
A4: ESTABLECIMIENTOS DE EDUCACIÓN PRIMARIA POR FORMA DE ADMINISTRACIÓN Y TIPO DE EDUCACIÓN SEGÚN DEPARTAMENTO. AÑO 2012.
A5: DEPARTAMENTO | C5: FORMA DE ADMINISTRACIÓN
B6: TOTAL | C6: TIPO DE EDUCACIÓN
C7: PÚBLICA | E7: PRIVADA
C8: Común | D8: Especial | E8: Común | F8: Especial
A10: TOTAL | B10: =+C10+D10+E10+F10 -> 2559 | C10: =SUM(C11:C12) -> 2065 | D10: =SUM(D11:D12) -> 82 | E10: =SUM(E11,E12) -> 342 | F10: =SUM(F11:F12) -> 70
A11: MONTEVIDEO | B11: =+C11+D11+E11+F11 -> 495 | C11: 251 | D11: 27 | E11: 173 | F11: 44
A12: RESTO DEL PAÍS. | B12: 2064 | C12: =SUM(C13:C30) -> 1814 | D12: =SUM(D13:D30) -> 55 | E12: =SUM(E13:E30) -> 169 | F12: =SUM(F13:F30) -> 26
A13: Artigas | B13: 81 | C13: 76 | D13: 2 | E13: 1 | F13: 2
A14: Canelones | B14: 306 | C14: 231 | D14: 10 | E14: 61 | F14: 4
A15: Cerro Largo. | B15: 127 | C15: 118 | D15: 3 | E15: 6 | F15: 0
A16: Colonia | B16: 140 | C16: 126 | D16: 4 | E16: 9 | F16: 1
A17: Durazno | B17: 87 | C17: 81 | D17: 2 | E17: 4 | F17: 0
A18: Flores. | B18: 40 | C18: 36 | D18: 1 | E18: 3 | F18: 0
A19: Florida | B19: 106 | C19: 99 | D19: 2 | E19: 4 | F19: 1
A20: Lavalleja | B20: 98 | C20: 90 | D20: 2 | E20: 6 | F20: 0
A21: Maldonado | B21: 110 | C21: 79 | D21: 4 | E21: 24 | F21: 3
A22: Paysandú. | B22: 119 | C22: 104 | D22: 2 | E22: 8 | F22: 5
A23: Río Negro. | B23: 71 | C23: 62 | D23: 2 | E23: 6 | F23: 1
A24: Rivera | B24: 138 | C24: 126 | D24: 4 | E24: 8 | F24: 0
A25: Rocha. | B25: 79 | C25: 71 | D25: 3 | E25: 4 | F25: 1
A26: Salto | B26: 116 | C26: 101 | D26: 3 | E26: 8 | F26: 4
A27: San José | B27: 116 | C27: 105 | D27: 5 | E27: 6 | F27: 0
A28: Soriano | B28: 110 | C28: 100 | D28: 3 | E28: 3 | F28: 4
A29: Tacuarembó. | B29: 143 | C29: 135 | D29: 2 | E29: 6 | F29: 0
A30: Treinta y Tres. | B30: 77 | C30: 74 | D30: 1 | E30: 2 | F30: 0
A31: Fuente: Procesamiento propio en base a datos proporcionados por el D.E.E. — C.E.I.P.
A32: Nota: Pública no incluye JICI

Sheet II-2.1.2
A1: CONSEJO DE EDUCACIÓN PRIMARIA | K1: ESTABLECIMIENTOS
A3: Cuadro Nº II-2.1.2
A5: ESTABLECIMIENTOS DE EDUCACIÓN PRIMARIA PÚBLICA COMÚN POR ÁREA DEMOGRÁFICA Y CATEGORÍA SEGÚN DEPARTAMENTO AÑO 2012.
A6: DEPARTAMENTO | B6: TOTAL | C6: ÁREA DEMOGRÁFICA
D7: URBANA | K7: RURAL
C8: Total Urbana | D8: CATEGORÍA | J8: Total Rural | K8: CATEGORÍA
D9: Común | E9: De Práctica | F9: Tiempo Completo | G9: Aprender | H9: Tiempo Extendido | I9: JICI | K9: Común | L9: Internado Rural
A11: TOTAL | B11: =+C11+J11 -> 2079 | C11: =+D11+E11+F11+G11+H11+I11 -> 948 | D11: =SUM(D12:D13) -> 348 | E11: =SUM(E12:E13) -> 127 | F11: 170 | G11: 271 | H11: 18 | I11: 14 | J11: =SUM(J12:J13) -> 1131 | K11: 1125 | L11: 6
A12: MONTEVIDEO | B12: =+C12+J12 -> 255 | C12: =+D12+E12+F12+G12+H12+I12 -> 255 | D12: 97 | E12: 22 | F12: 41 | G12: 87 | H12: 4 | I12: 4 | J12: 0 | K12: 0 | L12: 0
A13: RESTO DEL PAÍS | B13: 1824 | C13: =+D13+E13+F13+G13+H13+I13 -> 693 | D13: =SUM(D14:D31) -> 251 | E13: 105 | F13: 129 | G13: 184 | H13: 14 | I13: 10 | J13: 1131 | K13: 1125 | L13: 6
A14: Artigas | B14: 76 | C14: 30 | D14: 6 | E14: 5 | F14: 8 | G14: 10 | H14: 1 | I14: 0 | J14: =+K14+L14 -> 46 | K14: 45 | L14: 1
A15: Canelones | B15: 233 | C15: 135 | D15: 42 | E15: 18 | F15: 21 | G15: 48 | H15: 4 | I15: 2 | J15: =+K15+L15 -> 98 | K15: 98 | L15: 0
A16: Cerro Largo | B16: 119 | C16: 30 | D16: 7 | E16: 5 | F16: 5 | G16: 11 | H16: 1 | I16: 1 | J16: 89 | K16: 89 | L16: 0
A17: Colonia | B17: 127 | C17: 44 | D17: 24 | E17: 6 | F17: 5 | G17: 7 | H17: 1 | I17: 1 | J17: 83 | K17: 83 | L17: 0
A18: Durazno | B18: 82 | C18: 25 | D18: 8 | E18: 5 | F18: 5 | G18: 6 | H18: 0 | I18: 1 | J18: 57 | K18: 57 | L18: 0
A19: Flores | B19: 36 | C19: 10 | D19: 4 | E19: 2 | F19: 3 | G19: 0 | H19: 1 | I19: 0 | J19: 26 | K19: 25 | L19: 1
A20: Florida | B20: 99 | C20: 31 | D20: 13 | E20: 5 | F20: 6 | G20: 2 | H20: 5 | I20: 0 | J20: 68 | K20: 68 | L20: 0
A21: Lavalleja | B21: 90 | C21: 25 | D21: 11 | E21: 4 | F21: 6 | G21: 4 | H21: 0 | I21: 0 | J21: 65 | K21: 65 | L21: 0
A22: Maldonado | B22: 79 | C22: 41 | D22: 20 | E22: 5 | F22: 11 | G22: 5 | H22: 0 | I22: 0 | J22: 38 | K22: 37 | L22: 1
A23: Paysandú | B23: 105 | C23: 47 | D23: 18 | E23: 6 | F23: 7 | G23: 15 | H23: 0 | I23: 1 | J23: 58 | K23: 56 | L23: 2
A24: Río Negro | B24: 63 | C24: 23 | D24: 10 | E24: 5 | F24: 4 | G24: 3 | H24: 0 | I24: 1 | J24: 40 | K24: 39 | L24: 1
A25: Rivera | B25: 127 | C25: 42 | D25: 10 | E25: 6 | F25: 7 | G25: 18 | H25: 0 | I25: 1 | J25: 85 | K25: 85 | L25: 0
A26: Rocha | B26: 71 | C26: 32 | D26: 14 | E26: 4 | F26: 7 | G26: 7 | H26: 0 | I26: 0 | J26: 39 | K26: 39 | L26: 0
A27: Salto | B27: 101 | C27: 40 | D27: 8 | E27: 8 | F27: 11 | G27: 13 | H27: 0 | I27: 0 | J27: 61 | K27: 61 | L27: 0
A28: San José | B28: 106 | C28: 37 | D28: 20 | E28: 6 | F28: 5 | G28: 5 | H28: 0 | I28: 1 | J28: 69 | K28: 69 | L28: 0
A29: Soriano | B29: 100 | C29: 36 | D29: 15 | E29: 4 | F29: 7 | G29: 10 | H29: 0 | I29: 0 | J29: 64 | K29: 64 | L29: 0
A30: Tacuarembó | B30: 135 | C30: 42 | D30: 13 | E30: 5 | F30: 6 | G30: 17 | H30: 1 | I30: 0 | J30: 93 | K30: 93 | L30: 0
A31: Treinta y Tres | B31: 75 | C31: 23 | D31: 8 | E31: 6 | F31: 5 | G31: 3 | H31: 0 | I31: 1 | J31: 52 | K31: 52 | L31: 0
A32: Fuente: Procesamiento propio en base a datos proporcionados por el DEE — CEIP | F32: D.E.E.-C.E.I.P.
A33: Nota: Este año se incorpora la categoría Tiempo Extendido

Sheet II-2.1.3
A1: CONSEJO DE EDUCACIÓN PRIMARIA | D1: Establecimientos
A3: Cuadro Nº II-2.1.3
A5: ESTABLECIMIENTOS DE EDUCACIÓN PRIMARIA PÚBLICA ESPECIAL POR TIPO DE DISCAPACIDAD SEGÚN DEPARTAMENTO AÑO 2012.
A6: DEPARTAMENTO | B6: TOTAL | C6: DISCAPACIDAD
C7: Intelectual | D7: Auditiva | E7: Visual
A9: TOTAL | B9: =+B10+B11 -> 82 | C9: =SUM(C10:C11) -> 74 | D9: =SUM(D10:D11) -> 4 | E9: =SUM(E10:E11) -> 4
A10: MONTEVIDEO | B10: =+C10+D10+E10 -> 27 | C10: 22 | D10: 1 | E10: 4
A11: RESTO DEL PAÍS | B11: =SUM(B13:B30) -> 55 | C11: =SUM(C13:C30) -> 52 | D11: =SUM(D13:D30) -> 3 | E11: =SUM(E13:E30) -> 0
A13: Artigas | B13: =+C13+D13+E13 -> 2 | C13: 2 | D13: 0 | E13: 0
A14: Canelones | B14: 10 | C14: 10 | D14: 0 | E14: 0
A15: Cerro Largo | B15: 3 | C15: 3 | D15: 0 | E15: 0
A16: Colonia | B16: 4 | C16: 4 | D16: 0 | E16: 0
A17: Durazno | B17: 2 | C17: 2 | D17: 0 | E17: 0
A18: Flores | B18: 1 | C18: 1 | D18: 0 | E18: 0
A19: Florida | B19: 2 | C19: 2 | D19: 0 | E19: 0
A20: Lavalleja | B20: 2 | C20: 2 | D20: 0 | E20: 0
A21: Maldonado | B21: 4 | C21: 3 | D21: 1 | E21: 0
A22: Paysandú | B22: 2 | C22: 2 | D22: 0 | E22: 0
A23: Río Negro | B23: 2 | C23: 2 | D23: 0 | E23: 0
A24: Rivera | B24: 4 | C24: 3 | D24: 1 | E24: 0
A25: Rocha | B25: 3 | C25: 3 | D25: 0 | E25: 0
A26: Salto | B26: 3 | C26: 2 | D26: 1 | E26: 0
A27: San José | B27: 5 | C27: 5 | D27: 0 | E27: 0
A28: Soriano | B28: 3 | C28: 3 | D28: 0 | E28: 0
A29: Tacuarembó | B29: 2 | C29: 2 | D29: 0 | E29: 0
A30: Treinta y Tres | B30: 1 | C30: 1 | D30: 0 | E30: 0
A31: Fuente: DEE — CEIP
A32: Nota: Los establecimientos que atienden discapacidades intelectuales, además de atender niños con disfunciones clásicamente tipificadas como “Intelectuales”, atienden a los niños con discapacidades de orden motriz o de carácter, lo que implica que la matrícula correspondiente los agrupa.

Sheet II-2.1.4
A1: CONSEJO DE EDUCACIÓN PRIMARIA | E1: ESTABLECIMIENTOS
A3: Cuadro Nº II-2.1.4
A5: ESTABLECIMIENTOS DE EDUCACIÓN PRIMARIA PRIVADA POR TIPO DE EDUCACIÓN SEGÚN DEPARTAMENTO. AÑO 2012.
A6: DEPARTAMENTO | B6: TOTAL | D6: TIPO DE EDUCACIÓN
C7: Total | D7: EDUCACIÓN COMÚN | F7: EDUCACIÓN ESPECIAL
D8: Habilitados | E8: Autorizados
A10: TOTAL DEL PAÍS | B10: =+C10+F10 -> 412 | C10: =+D10+E10 -> 342 | D10: =SUM(D11:D12) -> 324 | E10: =SUM(E11:E12) -> 18 | F10: =SUM(F11:F12) -> 70
A11: MONTEVIDEO | B11: =+C11+F11 -> 217 | C11: =+D11+E11 -> 173 | D11: 162 | E11: 11 | F11: 44
A12: RESTO DEL PAÍS | B12: 195 | C12: 169 | D12: =SUM(D13:D30) -> 162 | E12: =SUM(E13:E30) -> 7 | F12: =SUM(F13:F30) -> 26
A13: Artigas | B13: 3 | C13: 1 | D13: 1 | E13: 0 | F13: 2
A14: Canelones | B14: 65 | C14: 61 | D14: 57 | E14: 4 | F14: 4
A15: Cerro Largo | B15: 6 | C15: 6 | D15: 6 | E15: 0 | F15: 0
A16: Colonia | B16: 10 | C16: 9 | D16: 9 | E16: 0 | F16: 1
A17: Durazno | B17: 4 | C17: 4 | D17: 4 | E17: 0 | F17: 0
A18: Flores | B18: 3 | C18: 3 | D18: 3 | E18: 0 | F18: 0
A19: Florida | B19: 5 | C19: 4 | D19: 4 | E19: 0 | F19: 1
A20: Lavalleja | B20: 6 | C20: 6 | D20: 6 | E20: 0 | F20: 0
A21: Maldonado | B21: 27 | C21: 24 | D21: 24 | E21: 0 | F21: 3
A22: Paysandú | B22: 13 | C22: 8 | D22: 8 | E22: 0 | F22: 5
A23: Río Negro | B23: 7 | C23: 6 | D23: 4 | E23: 2 | F23: 1
A24: Rivera | B24: 8 | C24: 8 | D24: 8 | E24: 0 | F24: 0
A25: Rocha | B25: 5 | C25: 4 | D25: 4 | E25: 0 | F25: 1
A26: Salto | B26: 12 | C26: 8 | D26: 8 | E26: 0 | F26: 4
A27: San José | B27: 6 | C27: 6 | D27: 5 | E27: 1 | F27: 0
A28: Soriano | B28: 7 | C28: 3 | D28: 3 | E28: 0 | F28: 4
A29: Tacuarembó | B29: 6 | C29: 6 | D29: 6 | E29: 0 | F29: 0
A30: Treinta y Tres | B30: 2 | C30: 2 | D30: 2 | E30: 0 | F30: 0
A31: Fuente: Procesamiento propio en base a datos proporcionados por el D.E.E. — C.E.I.P.

Sheet II-2.2.1
A1: CONSEJO DE EDUCACIÓN PRIMARIA | H1: ALUMNOS MATRICULADOS
A3: Cuadro Nº II-2.2.1
A4: ALUMNOS MATRICULADOS EN EDUCACIÓN PRIMARIA COMÚN POR FORMA DE ADMINISTRACIÓN Y SEXO SEGÚN DEPARTAMENTO AÑO 2012
A5: DEPARTAMENTO | B5: TOTAL | C5: FORMA DE ADMINISTRACIÓN
C6: TOTAL | E6: PÚBLICA | H6: PRIVADA
E7: TOTAL | F7: SEXO | H7: TOTAL | I7: SEXO
C8: M | D8: F | F8: M | G8: F | I8: M | J8: F
A9: TOTAL | B9: =E9+H9 -> 318474 | C9: =+F9+I9 -> 164238 | D9: =+G9+J9 -> 154236 | E9: =+F9+G9 -> 265585 | F9: =SUM(F10:F11) -> 137489 | G9: =SUM(G10:G11) -> 128096 | H9: =+I9+J9 -> 52889 | I9: =SUM(I10:I11) -> 26749 | J9: =SUM(J10:J11) -> 26140
A10: MONTEVIDEO | B10: =E10+H10 -> 113654 | C10: =+F10+I10 -> 58251 | D10: 55403 | E10: =+F10+G10 -> 81008 | F10: 41765 | G10: 39243 | H10: =+I10+J10 -> 32646 | I10: 16486 | J10: 16160
A11: RESTO DEL PAÍS | B11: 204820 | C11: 105987 | D11: 98833 | E11: =SUM(E12:E29) -> 184577 | F11: =SUM(F12:F29) -> 95724 | G11: =SUM(G12:G29) -> 88853 | H11: =+I11+J11 -> 20243 | I11: =SUM(I12:I29) -> 10263 | J11: =SUM(J12:J29) -> 9980
A12: Artigas | B12: 8506 | C12: 4444 | D12: 4062 | E12: =+F12+G12 -> 8388 | F12: 4387 | G12: 4001 | H12: =+I12+J12 -> 118 | I12: 57 | J12: 61
A13: Canelones | B13: 51499 | C13: 26608 | D13: 24891 | E13: =+F13+G13 -> 44161 | F13: 22864 | G13: 21297 | H13: 7338 | I13: 3744 | J13: 3594
A14: Cerro Largo | B14: 9430 | C14: 4845 | D14: 4585 | E14: 8832 | F14: 4533 | G14: 4299 | H14: 598 | I14: 312 | J14: 286
A15: Colonia | B15: 11425 | C15: 5849 | D15: 5576 | E15: 10633 | F15: 5457 | G15: 5176 | H15: 792 | I15: 392 | J15: 400
A16: Durazno | B16: 6183 | C16: 3165 | D16: 3018 | E16: 5522 | F16: 2859 | G16: 2663 | H16: 661 | I16: 306 | J16: 355
A17: Flores | B17: 2492 | C17: 1212 | D17: 1280 | E17: 2151 | F17: 1040 | G17: 1111 | H17: 341 | I17: 172 | J17: 169
A18: Florida | B18: 6545 | C18: 3376 | D18: 3169 | E18: 6241 | F18: 3223 | G18: 3018 | H18: 304 | I18: 153 | J18: 151
A19: Lavalleja | B19: 5568 | C19: 2921 | D19: 2647 | E19: 4912 | F19: 2585 | G19: 2327 | H19: 656 | I19: 336 | J19: 320
A20: Maldonado | B20: 17329 | C20: 8969 | D20: 8360 | E20: 13473 | F20: 6988 | G20: 6485 | H20: 3856 | I20: 1981 | J20: 1875
A21: Paysandú | B21: 12834 | C21: 6735 | D21: 6099 | E21: 11672 | F21: 6145 | G21: 5527 | H21: 1162 | I21: 590 | J21: 572
A22: Río Negro | B22: 6076 | C22: 3155 | D22: 2921 | E22: 5642 | F22: 2936 | G22: 2706 | H22: 434 | I22: 219 | J22: 215
A23: Rivera | B23: 11555 | C23: 6087 | D23: 5468 | E23: 10887 | F23: 5728 | G23: 5159 | H23: 668 | I23: 359 | J23: 309
A24: Rocha | B24: 7022 | C24: 3646 | D24: 3376 | E24: 6625 | F24: 3450 | G24: 3175 | H24: 397 | I24: 196 | J24: 201
A25: Salto | B25: 14277 | C25: 7428 | D25: 6849 | E25: 13194 | F25: 6897 | G25: 6297 | H25: 1083 | I25: 531 | J25: 552
A26: San José | B26: 10475 | C26: 5418 | D26: 5057 | E26: 9895 | F26: 5141 | G26: 4754 | H26: 580 | I26: 277 | J26: 303
A27: Soriano | B27: 8833 | C27: 4487 | D27: 4346 | E27: 8396 | F27: 4275 | G27: 4121 | H27: 437 | I27: 212 | J27: 225
A28: Tacuarembó | B28: 9879 | C28: 5114 | D28: 4765 | E28: 9260 | F28: 4803 | G28: 4457 | H28: 619 | I28: 311 | J28: 308
A29: Treinta y Tres | B29: 4892 | C29: 2528 | D29: 2364 | E29: 4693 | F29: 2413 | G29: 2280 | H29: 199 | I29: 115 | J29: 84
A30: Fuente: Procesamiento propio en base a datos proporcionados por el DEE — CEIP.
A31: Nota: Pública no incluye JICI.

Sheet II-2.2.2
A1: CONSEJO DE EDUCACIÓN PRIMARIA | H1: ALUMNOS MATRICULADOS
A3: Cuadro Nº II-2.2.2
A5: ALUMNOS MATRICULADOS EN EDUCACIÓN PRIMARIA PÚBLICA POR TIPO DE EDUCACIÓN Y SEXO SEGÚN DEPARTAMENTO. AÑO 2012.
A6: DEPARTAMENTO | B6: TOTAL | C6: TOTAL SEXO | E6: TIPO DE EDUCACIÓN
E7: COMÚN | H7: ESPECIAL
H8: Total | I8: ESCUELAS ESPECIALES | K8: CLASES ESPECIALES EN ESCUELAS COMUNES
E9: Total | F9: SEXO | I9: SEXO | K9: SEXO
C10: M | D10: F | F10: M | G10: F | I10: M | J10: F | K10: M | L10: F
A11: TOTAL | B11: =+C11+D11 -> 272495 | C11: =+F11+I11+K11 -> 141720 | D11: =+G11+J11+L11 -> 130775 | E11: =+F11+G11 -> 265585 | F11: =SUM(F12:F13) -> 137489 | G11: =SUM(G12:G13) -> 128096 | H11: =+I11+J11+K11+L11 -> 6910 | I11: =SUM(I12:I13) -> 4140 | J11: =SUM(J12:J13) -> 2621 | K11: =SUM(K12:K13) -> 91 | L11: =SUM(L12:L13) -> 58
A12: MONTEVIDEO | B12: =+C12+D12 -> 83724 | C12: =+F12+I12+K12 -> 43435 | D12: 40289 | E12: =+F12+G12 -> 81008 | F12: ='II-2.2.1'!F10 -> 41765 | G12: ='II-2.2.1'!G10 -> 39243 | H12: =+I12+J12+K12+L12 -> 2716 | I12: 1670 | J12: 1046 | K12: 0 | L12: 0
A13: RESTO DEL PAÍS | B13: 188771 | C13: 98285 | D13: 90486 | E13: =+F13+G13 -> 184577 | F13: =SUM(F14:F31) -> 95724 | G13: 88853 | H13: 4194 | I13: 2470 | J13: 1575 | K13: 91 | L13: 58
A14: Artigas | B14: 8575 | C14: 4502 | D14: 4073 | E14: =+F14+G14 -> 8388 | F14: ='II-2.2.1'!F12 -> 4387 | G14: ='II-2.2.1'!G12 -> 4001 | H14: 187 | I14: 109 | J14: 68 | K14: 6 | L14: 4
A15: Canelones | B15: 44909 | C15: 23341 | D15: 21568 | E15: 44161 | F15: ='II-2.2.1'!F13 -> 22864 | G15: ='II-2.2.1'!G13 -> 21297 | H15: 748 | I15: 449 | J15: 264 | K15: 28 | L15: 7
A16: Cerro Largo | B16: 9064 | C16: 4671 | D16: 4393 | E16: 8832 | F16: ='II-2.2.1'!F14 -> 4533 | G16: ='II-2.2.1'!G14 -> 4299 | H16: 232 | I16: 129 | J16: 90 | K16: 9 | L16: 4
A17: Colonia | B17: 10875 | C17: 5617 | D17: 5258 | E17: 10633 | F17: ='II-2.2.1'!F15 -> 5457 | G17: ='II-2.2.1'!G15 -> 5176 | H17: 242 | I17: 153 | J17: 79 | K17: 7 | L17: 3
A18: Durazno | B18: 5718 | C18: 2977 | D18: 2741 | E18: 5522 | F18: ='II-2.2.1'!F16 -> 2859 | G18: ='II-2.2.1'!G16 -> 2663 | H18: 196 | I18: 113 | J18: 69 | K18: 5 | L18: 9
A19: Flores | B19: 2201 | C19: 1071 | D19: 1130 | E19: 2151 | F19: ='II-2.2.1'!F17 -> 1040 | G19: ='II-2.2.1'!G17 -> 1111 | H19: 50 | I19: 31 | J19: 19 | K19: 0 | L19: 0
A20: Florida | B20: 6401 | C20: 3321 | D20: 3080 | E20: 6241 | F20: ='II-2.2.1'!F18 -> 3223 | G20: ='II-2.2.1'!G18 -> 3018 | H20: 160 | I20: 96 | J20: 58 | K20: 2 | L20: 4
A21: Lavalleja | B21: 5075 | C21: 2679 | D21: 2396 | E21: 4912 | F21: ='II-2.2.1'!F19 -> 2585 | G21: ='II-2.2.1'!G19 -> 2327 | H21: 163 | I21: 90 | J21: 67 | K21: 4 | L21: 2
A22: Maldonado | B22: 13754 | C22: 7146 | D22: 6608 | E22: 13473 | F22: ='II-2.2.1'!F20 -> 6988 | G22: ='II-2.2.1'!G20 -> 6485 | H22: 281 | I22: 158 | J22: 123 | K22: 0 | L22: 0
A23: Paysandú | B23: 11877 | C23: 6263 | D23: 5614 | E23: 11672 | F23: ='II-2.2.1'!F21 -> 6145 | G23: ='II-2.2.1'!G21 -> 5527 | H23: 205 | I23: 108 | J23: 80 | K23: 10 | L23: 7
A24: Río Negro | B24: 5807 | C24: 3023 | D24: 2784 | E24: 5642 | F24: ='II-2.2.1'!F22 -> 2936 | G24: ='II-2.2.1'!G22 -> 2706 | H24: 165 | I24: 86 | J24: 75 | K24: 1 | L24: 3
A25: Rivera | B25: 11104 | C25: 5866 | D25: 5238 | E25: 10887 | F25: ='II-2.2.1'!F23 -> 5728 | G25: ='II-2.2.1'!G23 -> 5159 | H25: 217 | I25: 138 | J25: 79 | K25: 0 | L25: 0
A26: Rocha | B26: 6877 | C26: 3606 | D26: 3271 | E26: 6625 | F26: ='II-2.2.1'!F24 -> 3450 | G26: ='II-2.2.1'!G24 -> 3175 | H26: 252 | I26: 156 | J26: 96 | K26: 0 | L26: 0
A27: Salto | B27: 13546 | C27: 7110 | D27: 6436 | E27: 13194 | F27: ='II-2.2.1'!F25 -> 6897 | G27: ='II-2.2.1'!G25 -> 6297 | H27: 352 | I27: 211 | J27: 134 | K27: 2 | L27: 5
A28: San José | B28: 10119 | C28: 5284 | D28: 4835 | E28: 9895 | F28: ='II-2.2.1'!F26 -> 5141 | G28: ='II-2.2.1'!G26 -> 4754 | H28: 224 | I28: 138 | J28: 81 | K28: 5 | L28: 0
A29: Soriano | B29: 8602 | C29: 4403 | D29: 4199 | E29: 8396 | F29: ='II-2.2.1'!F27 -> 4275 | G29: ='II-2.2.1'!G27 -> 4121 | H29: 206 | I29: 126 | J29: 78 | K29: 2 | L29: 0
A30: Tacuarembó | B30: 9453 | C30: 4918 | D30: 4535 | E30: 9260 | F30: ='II-2.2.1'!F28 -> 4803 | G30: ='II-2.2.1'!G28 -> 4457 | H30: 193 | I30: 108 | J30: 70 | K30: 7 | L30: 8
A31: Treinta y Tres | B31: 4814 | C31: 2487 | D31: 2327 | E31: 4693 | F31: ='II-2.2.1'!F29 -> 2413 | G31: ='II-2.2.1'!G29 -> 2280 | H31: 121 | I31: 71 | J31: 45 | K31: 3 | L31: 2
A32: Fuente: Procesamiento propio en base a datos proporcionados por el D.E.E. — C.E.I.P.

Sheet II-2.2.3
A1: CONSEJO DE EDUCACIÓN PRIMARIA | J1: ALUMNOS MATRICULADOS
A3: Cuadro Nº II-2.2.3
A5: ALUMNOS MATRICULADOS EN EDUCACIÓN PRIMARIA PÚBLICA COMÚN POR ÁREA DEMOGRÁFICA Y CATEGORÍA SEGÚN DEPARTAMENTO AÑO 2012. | N5: VOLVER
A6: DEPARTAMENTO | B6: TOTAL | C6: ÁREA DEMOGRÁFICA
C7: URBANA | K7: RURAL
C8: Total Urbana | D8: CATEGORÍA | J8: Total Rural | K8: CATEGORÍA
D9: Común | E9: De Práctica | F9: Tiempo Completo | G9: Aprender | H9: Tiempo Extendido | I9: JICI | K9: Común | L9: Internado Rural
A11: TOTAL | B11: =+C11+J11 -> 266349 | C11: =+D11+E11+F11+G11+H11+I11 -> 249885 | D11: =SUM(D12:D13) -> 95170 | E11: 41185 | F11: 30238 | G11: 80289 | H11: 2239 | I11: 764 | J11: =+K11+L11 -> 16464 | K11: =SUM(K12:K13) -> 16346 | L11: =SUM(L12:L13) -> 118
A12: MONTEVIDEO | B12: =+C12+J12 -> 81296 | C12: =+D12+E12+F12+G12+H12+I12 -> 81296 | D12: 32143 | E12: 6396 | F12: 9246 | G12: 32313 | H12: 910 | I12: 288 | J12: =+K12+L12 -> 0 | K12: 0 | L12: 0
A13: RESTO DEL PAÍS | B13: =+C13+J13 -> 185053 | C13: =+D13+E13+F13+G13+H13+I13 -> 168589 | D13: =SUM(D14:D31) -> 63027 | E13: 34789 | F13: 20992 | G13: 47976 | H13: 1329 | I13: 476 | J13: 16464 | K13: =SUM(K14:K31) -> 16346 | L13: =SUM(L14:L31) -> 118
A14: Artigas | B14: =+C14+J14 -> 8388 | C14: =+D14+E14+F14+G14+H14+I14 -> 7625 | D14: 1968 | E14: 1682 | F14: 1334 | G14: 2518 | H14: 123 | I14: 0 | J14: 763 | K14: 726 | L14: 37
A15: Canelones | B15: 44257 | C15: =+D15+E15+F15+G15+H15+I15 -> 41598 | D15: 14776 | E15: 6391 | F15: 3866 | G15: 16219 | H15: 250 | I15: 96 | J15: 2659 | K15: 2659 | L15: 0
A16: Cerro Largo | B16: 8882 | C16: 7903 | D16: 2442 | E16: 1723 | F16: 781 | G16: 2732 | H16: 175 | I16: 50 | J16: 979 | K16: 979 | L16: 0
A17: Colonia | B17: 10667 | C17: 9545 | D17: 6296 | E17: 1842 | F17: 779 | G17: 527 | H17: 67 | I17: 34 | J17: 1122 | K17: 1122 | L17: 0
A18: Durazno | B18: 5569 | C18: 5072 | D18: 1374 | E18: 1606 | F18: 770 | G18: 1275 | H18: 0 | I18: 47 | J18: 497 | K18: 497 | L18: 0
A19: Flores | B19: 2151 | C19: 1904 | D19: 879 | E19: 537 | F19: 362 | G19: 0 | H19: 126 | I19: 0 | J19: 247 | K19: 229 | L19: 18
A20: Florida | B20: 6241 | C20: 5435 | D20: 2167 | E20: 1572 | F20: 718 | G20: 510 | H20: 468 | I20: 0 | J20: 806 | K20: 806 | L20: 0
A21: Lavalleja | B21: 4912 | C21: 4463 | D21: 1609 | E21: 1334 | F21: 792 | G21: 728 | H21: 0 | I21: 0 | J21: 449 | K21: 449 | L21: 0
A22: Maldonado | B22: 13473 | C22: 12832 | D22: 6909 | E22: 2268 | F22: 1438 | G22: 2217 | H22: 0 | I22: 0 | J22: 641 | K22: 626 | L22: 15
A23: Paysandú | B23: 11699 | C23: 10552 | D23: 3528 | E23: 1996 | F23: 1474 | G23: 3527 | H23: 0 | I23: 27 | J23: 1147 | K23: 1110 | L23: 37
A24: Río Negro | B24: 5680 | C24: 5115 | D24: 2587 | E24: 1478 | F24: 463 | G24: 549 | H24: 0 | I24: 38 | J24: 565 | K24: 554 | L24: 11
A25: Rivera | B25: 10931 | C25: 9835 | D25: 2629 | E25: 1687 | F25: 1216 | G25: 4259 | H25: 0 | I25: 44 | J25: 1096 | K25: 1096 | L25: 0
A26: Rocha | B26: 6625 | C26: 6329 | D26: 3117 | E26: 1152 | F26: 837 | G26: 1223 | H26: 0 | I26: 0 | J26: 296 | K26: 296 | L26: 0
A27: Salto | B27: 13194 | C27: 11738 | D27: 2135 | E27: 3109 | F27: 2316 | G27: 4178 | H27: 0 | I27: 0 | J27: 1456 | K27: 1456 | L27: 0
A28: San José | B28: 9985 | C28: 8734 | D28: 3991 | E28: 1707 | F28: 1166 | G28: 1780 | H28: 0 | I28: 90 | J28: 1251 | K28: 1251 | L28: 0
A29: Soriano | B29: 8396 | C29: 7635 | D29: 2768 | E29: 1657 | F29: 1046 | G29: 2164 | H29: 0 | I29: 0 | J29: 761 | K29: 761 | L29: 0
A30: Tacuarembó | B30: 9260 | C30: 7933 | D30: 2250 | E30: 1355 | F30: 938 | G30: 3270 | H30: 120 | I30: 0 | J30: 1327 | K30: 1327 | L30: 0
A31: Treinta y Tres | B31: 4743 | C31: 4341 | D31: 1602 | E31: 1693 | F31: 696 | G31: 300 | H31: 0 | I31: 50 | J31: 402 | K31: 402 | L31: 0
A32: Fuente: Procesamiento propio en base a datos proporcionados por el D.E.E .— C.E.I.P.

Sheet II-2.2.4
A1: CONSEJO DE EDUCACIÓN PRIMARIA | E1: Alumnos matriculados
A3: Cuadro Nº II-2.2.4
A5: ALUMNOS MATRICULADOS EN EDUCACIÓN PRIMARIA PÚBLICA ESPECIAL POR TIPO DE DISCAPACIDAD SEGÚN DEPARTAMENTO. AÑO 2012.
A6: DEPARTAMENTO | C6: TOTAL | D6: DISCAPACIDAD
D7: Intelectual | E7: Auditiva | F7: Visual
A9: TOTAL | C9: =+C11+C12 -> 6910 | D9: =SUM(D11:D12) -> 6547 | E9: =SUM(E11:E12) -> 285 | F9: =SUM(F11:F12) -> 78
A11: MONTEVIDEO | C11: =+D11+E11+F11 -> 2716 | D11: 2567 | E11: 92 | F11: 57
A12: RESTO DEL PAÍS | C12: =SUM(C13:C30) -> 4194 | D12: =SUM(D13:D30) -> 3980 | E12: =SUM(E13:E30) -> 193 | F12: =SUM(F13:F30) -> 21
A13: Artigas | C13: =+D13+E13+F13 -> 187 | D13: 177 | E13: 10 | F13: 0
A14: Canelones | C14: 748 | D14: 723 | E14: 25 | F14: 0
A15: Cerro Largo | C15: 232 | D15: 219 | E15: 13 | F15: 0
A16: Colonia | C16: 242 | D16: 232 | E16: 10 | F16: 0
A17: Durazno | C17: 196 | D17: 182 | E17: 11 | F17: 3
A18: Flores | C18: 50 | D18: 50 | E18: 0 | F18: 0
A19: Florida | C19: 160 | D19: 154 | E19: 6 | F19: 0
A20: Lavalleja | C20: 163 | D20: 157 | E20: 6 | F20: 0
A21: Maldonado | C21: 281 | D21: 261 | E21: 20 | F21: 0
A22: Paysandú | C22: 205 | D22: 188 | E22: 13 | F22: 4
A23: Río Negro | C23: 165 | D23: 161 | E23: 4 | F23: 0
A24: Rivera | C24: 217 | D24: 201 | E24: 16 | F24: 0
A25: Rocha | C25: 252 | D25: 252 | E25: 0 | F25: 0
A26: Salto | C26: 352 | D26: 306 | E26: 39 | F26: 7
A27: San José | C27: 224 | D27: 219 | E27: 5 | F27: 0
A28: Soriano | C28: 206 | D28: 204 | E28: 2 | F28: 0
A29: Tacuarembó | C29: 193 | D29: 178 | E29: 8 | F29: 7
A30: Treinta y Tres | C30: 121 | D30: 116 | E30: 5 | F30: 0
A31: Fuente: D.E.E. — C.E.P.
A32: Nota: Incluyen Escuelas Especiales y Clases Especiales en Escuelas Comunes.
A33: Para el Interior del país las clases orientadas a discapacitados visuales y fonoaudiología se realizan en Escuelas Comunes, excepto en Maldonado, Rivera y Salto donde funcionan Escuelas de Fonoaudiología.

Sheet II-2.2.5
A1: CONSEJO DE EDUCACIÓN PRIMARIA | N1: ALUMNOS MATRICULADOS
A3: Cuadro Nº II-2.2.5
A5: ALUMNOS MATRICULADOS EN EDUCACIÓN ESPECIAL PÚBLICA POR EDADES SIMPLES Y SEXO SEGÚN DEPARTAMENTO AÑO 2012
A6: DEPARTAMENTO | B6: TOTAL GENERAL | C6: TOTAL MASCULINO | D6: TOTAL FEMENINO | E6: EDAD
E7: Menos de 3 años | G7: 3 años | I7: 4 años | K7: 5 años | M7: 6 años | O7: 7 años | Q7: 8 años | S7: 9 años | U7: 10 años | W7: 11 años | Y7: 12 años | AA7: 13 años | AC7: 14 años | AE7: 15 años | AG7: 16 años | AI7: 17 años | AK7: 18 años | AM7: 19 años | AO7: 20 años | AQ7: 21 años
E8: SEXO
E9: M | F9: F | G9: M | H9: F | I9: M | J9: F | K9: M | L9: F | M9: M | N9: F | O9: M | P9: F | Q9: M | R9: F | S9: M | T9: F | U9: M | V9: F | W9: M | X9: F | Y9: M | Z9: F | AA9: M | AB9: F | AC9: M | AD9: F | AE9: M | AF9: F | AG9: M | AH9: F | AI9: M | AJ9: F | AK9: M | AL9: F | AM9: M | AN9: F | AO9: M | AP9: F | AQ9: M | AR9: F
A11: TOTAL | B11: 6910 | C11: 4231 | D11: 2679 | E11: =SUM(E12:E13) -> 4 | F11: 1 | G11: 7 | H11: 3 | I11: 30 | J11: 11 | K11: 54 | L11: 44 | M11: 129 | N11: 88 | O11: 228 | P11: 156 | Q11: =SUM(Q12:Q13) -> 350 | R11: 229 | S11: 440 | T11: 272 | U11: 475 | V11: 280 | W11: 481 | X11: 289 | Y11: 488 | Z11: 265 | AA11: 465 | AB11: 292 | AC11: 449 | AD11: 232 | AE11: 212 | AF11: 161 | AG11: 129 | AH11: 127 | AI11: 95 | AJ11: 70 | AK11: 49 | AL11: 40 | AM11: 28 | AN11: 28 | AO11: 23 | AP11: 21 | AQ11: 95 | AR11: 70
A12: MONTEVIDEO | B12: 2716 | C12: 1670 | D12: 1046 | E12: 1 | F12: 1 | G12: 4 | H12: 3 | I12: 12 | J12: 4 | K12: 23 | L12: 13 | M12: 50 | N12: 33 | O12: 85 | P12: 53 | Q12: 96 | R12: 85 | S12: 167 | T12: 102 | U12: 177 | V12: 91 | W12: 190 | X12: 90 | Y12: 187 | Z12: 102 | AA12: 168 | AB12: 102 | AC12: 171 | AD12: 88 | AE12: 75 | AF12: 70 | AG12: 67 | AH12: 65 | AI12: 55 | AJ12: 38 | AK12: 31 | AL12: 22 | AM12: 21 | AN12: 21 | AO12: 15 | AP12: 16 | AQ12: 75 | AR12: 47
A13: RESTO DEL PAÍS | B13: 4194 | C13: 2561 | D13: 1633 | E13: =SUM(E14:E31) -> 3 | F13: 0 | G13: 3 | H13: 0 | I13: 18 | J13: 7 | K13: 31 | L13: 31 | M13: 79 | N13: 55 | O13: 143 | P13: 103 | Q13: 254 | R13: 144 | S13: 273 | T13: 170 | U13: 298 | V13: 189 | W13: 291 | X13: 199 | Y13: 301 | Z13: 163 | AA13: 297 | AB13: 190 | AC13: 278 | AD13: 144 | AE13: 137 | AF13: 91 | AG13: 62 | AH13: 62 | AI13: 40 | AJ13: 32 | AK13: 18 | AL13: 18 | AM13: 7 | AN13: 7 | AO13: 8 | AP13: 5 | AQ13: 20 | AR13: 23
A14: Artigas | B14: 187 | C14: 115 | D14: 72 | E14: 0 | F14: 0 | G14: 0 | H14: 0 | I14: 2 | J14: 1 | K14: 2 | L14: 0 | M14: 3 | N14: 2 | O14: 8 | P14: 10 | Q14: 19 | R14: 5 | S14: 13 | T14: 5 | U14: 9 | V14: 10 | W14: 9 | X14: 7 | Y14: 9 | Z14: 7 | AA14: 24 | AB14: 9 | AC14: 9 | AD14: 10 | AE14: 4 | AF14: 2 | AG14: 2 | AH14: 2 | AI14: 2 | AJ14: 2 | AK14: 0 | AL14: 0 | AM14: 0 | AN14: 0 | AO14: 0 | AP14: 0 | AQ14: 0 | AR14: 0
A15: Canelones | B15: 748 | C15: 477 | D15: 271 | E15: 0 | F15: 0 | G15: 1 | H15: 0 | I15: 6 | J15: 0 | K15: 8 | L15: 3 | M15: 14 | N15: 9 | O15: 29 | P15: 16 | Q15: 48 | R15: 24 | S15: 45 | T15: 33 | U15: 53 | V15: 27 | W15: 43 | X15: 24 | Y15: 48 | Z15: 20 | AA15: 58 | AB15: 33 | AC15: 67 | AD15: 30 | AE15: 33 | AF15: 24 | AG15: 11 | AH15: 15 | AI15: 6 | AJ15: 7 | AK15: 4 | AL15: 3 | AM15: 0 | AN15: 3 | AO15: 1 | AP15: 0 | AQ15: 2 | AR15: 0
A16: Cerro Largo | B16: 232 | C16: 138 | D16: 94 | E16: 0 | F16: 0 | G16: 0 | H16: 0 | I16: 0 | J16: 0 | K16: 1 | L16: 1 | M16: 4 | N16: 1 | O16: 8 | P16: 3 | Q16: 13 | R16: 5 | S16: 18 | T16: 6 | U16: 14 | V16: 12 | W16: 16 | X16: 14 | Y16: 6 | Z16: 7 | AA16: 22 | AB16: 17 | AC16: 16 | AD16: 8 | AE16: 7 | AF16: 6 | AG16: 2 | AH16: 6 | AI16: 3 | AJ16: 1 | AK16: 1 | AL16: 2 | AM16: 1 | AN16: 0 | AO16: 2 | AP16: 0 | AQ16: 4 | AR16: 5
A17: Colonia | B17: 242 | C17: 160 | D17: 82 | E17: 0 | F17: 0 | G17: 0 | H17: 0 | I17: 0 | J17: 0 | K17: 0 | L17: 2 | M17: 6 | N17: 2 | O17: 7 | P17: 4 | Q17: 15 | R17: 6 | S17: 9 | T17: 7 | U17: 14 | V17: 7 | W17: 17 | X17: 4 | Y17: 21 | Z17: 6 | AA17: 19 | AB17: 15 | AC17: 20 | AD17: 5 | AE17: 9 | AF17: 9 | AG17: 15 | AH17: 8 | AI17: 3 | AJ17: 2 | AK17: 3 | AL17: 2 | AM17: 2 | AN17: 2 | AO17: 0 | AP17: 0 | AQ17: 0 | AR17: 1
A18: Durazno | B18: 196 | C18: 118 | D18: 78 | E18: 0 | F18: 0 | G18: 0 | H18: 0 | I18: 2 | J18: 0 | K18: 1 | L18: 3 | M18: 3 | N18: 3 | O18: 9 | P18: 4 | Q18: 11 | R18: 4 | S18: 8 | T18: 11 | U18: 14 | V18: 4 | W18: 13 | X18: 10 | Y18: 16 | Z18: 4 | AA18: 12 | AB18: 10 | AC18: 13 | AD18: 8 | AE18: 6 | AF18: 5 | AG18: 2 | AH18: 4 | AI18: 6 | AJ18: 6 | AK18: 1 | AL18: 0 | AM18: 1 | AN18: 1 | AO18: 0 | AP18: 0 | AQ18: 0 | AR18: 1
A19: Flores | B19: 50 | C19: 31 | D19: 19 | E19: 0 | F19: 0 | G19: 0 | H19: 0 | I19: 0 | J19: 0 | K19: 0 | L19: 0 | M19: 0 | N19: 0 | O19: 3 | P19: 1 | Q19: 1 | R19: 4 | S19: 3 | T19: 2 | U19: 1 | V19: 0 | W19: 4 | X19: 3 | Y19: 6 | Z19: 3 | AA19: 2 | AB19: 2 | AC19: 7 | AD19: 1 | AE19: 1 | AF19: 1 | AG19: 1 | AH19: 0 | AI19: 1 | AJ19: 1 | AK19: 0 | AL19: 0 | AM19: 0 | AN19: 0 | AO19: 1 | AP19: 1 | AQ19: 0 | AR19: 0
A20: Florida | B20: 160 | C20: 98 | D20: 62 | E20: 0 | F20: 0 | G20: 0 | H20: 0 | I20: 0 | J20: 1 | K20: 0 | L20: 0 | M20: 0 | N20: 0 | O20: 4 | P20: 4 | Q20: 11 | R20: 4 | S20: 11 | T20: 10 | U20: 12 | V20: 9 | W20: 13 | X20: 4 | Y20: 13 | Z20: 7 | AA20: 12 | AB20: 7 | AC20: 11 | AD20: 9 | AE20: 6 | AF20: 3 | AG20: 1 | AH20: 0 | AI20: 2 | AJ20: 3 | AK20: 0 | AL20: 0 | AM20: 0 | AN20: 0 | AO20: 0 | AP20: 0 | AQ20: 2 | AR20: 1
A21: Lavalleja | B21: 163 | C21: 94 | D21: 69 | E21: 0 | F21: 0 | G21: 0 | H21: 0 | I21: 0 | J21: 0 | K21: 1 | L21: 0 | M21: 3 | N21: 1 | O21: 4 | P21: 3 | Q21: 7 | R21: 5 | S21: 4 | T21: 9 | U21: 10 | V21: 7 | W21: 11 | X21: 9 | Y21: 11 | Z21: 3 | AA21: 6 | AB21: 5 | AC21: 2 | AD21: 0 | AE21: 11 | AF21: 5 | AG21: 3 | AH21: 2 | AI21: 3 | AJ21: 2 | AK21: 2 | AL21: 1 | AM21: 2 | AN21: 0 | AO21: 2 | AP21: 4 | AQ21: 12 | AR21: 13
A22: Maldonado | B22: 281 | C22: 158 | D22: 123 | E22: 2 | F22: 0 | G22: 1 | H22: 0 | I22: 2 | J22: 2 | K22: 1 | L22: 1 | M22: 5 | N22: 7 | O22: 5 | P22: 10 | Q22: 17 | R22: 14 | S22: 24 | T22: 13 | U22: 25 | V22: 19 | W22: 21 | X22: 17 | Y22: 23 | Z22: 17 | AA22: 12 | AB22: 8 | AC22: 14 | AD22: 5 | AE22: 3 | AF22: 3 | AG22: 3 | AH22: 1 | AI22: 0 | AJ22: 2 | AK22: 0 | AL22: 4 | AM22: 0 | AN22: 0 | AO22: 0 | AP22: 0 | AQ22: 0 | AR22: 0
A23: Paysandú | B23: 205 | C23: 118 | D23: 87 | E23: 0 | F23: 0 | G23: 0 | H23: 0 | I23: 1 | J23: 1 | K23: 2 | L23: 3 | M23: 5 | N23: 4 | O23: 9 | P23: 6 | Q23: 10 | R23: 8 | S23: 23 | T23: 10 | U23: 13 | V23: 8 | W23: 13 | X23: 14 | Y23: 13 | Z23: 18 | AA23: 13 | AB23: 4 | AC23: 7 | AD23: 7 | AE23: 5 | AF23: 0 | AG23: 1 | AH23: 3 | AI23: 2 | AJ23: 0 | AK23: 0 | AL23: 0 | AM23: 0 | AN23: 0 | AO23: 1 | AP23: 0 | AQ23: 0 | AR23: 1
A24: Río Negro | B24: 165 | C24: 87 | D24: 78 | E24: 0 | F24: 0 | G24: 0 | H24: 0 | I24: 0 | J24: 0 | K24: 5 | L24: 1 | M24: 2 | N24: 2 | O24: 6 | P24: 1 | Q24: 7 | R24: 5 | S24: 6 | T24: 8 | U24: 11 | V24: 9 | W24: 12 | X24: 8 | Y24: 12 | Z24: 11 | AA24: 9 | AB24: 9 | AC24: 7 | AD24: 9 | AE24: 5 | AF24: 3 | AG24: 1 | AH24: 5 | AI24: 0 | AJ24: 4 | AK24: 4 | AL24: 2 | AM24: 0 | AN24: 0 | AO24: 0 | AP24: 0 | AQ24: 0 | AR24: 1
A25: Rivera | B25: 217 | C25: 138 | D25: 79 | E25: 1 | F25: 0 | G25: 1 | H25: 0 | I25: 0 | J25: 0 | K25: 0 | L25: 2 | M25: 4 | N25: 2 | O25: 5 | P25: 7 | Q25: 12 | R25: 7 | S25: 13 | T25: 8 | U25: 18 | V25: 11 | W25: 21 | X25: 15 | Y25: 24 | Z25: 10 | AA25: 19 | AB25: 9 | AC25: 8 | AD25: 8 | AE25: 8 | AF25: 0 | AG25: 3 | AH25: 0 | AI25: 1 | AJ25: 0 | AK25: 0 | AL25: 0 | AM25: 0 | AN25: 0 | AO25: 0 | AP25: 0 | AQ25: 0 | AR25: 0
A26: Rocha | B26: 252 | C26: 156 | D26: 96 | E26: 0 | F26: 0 | G26: 0 | H26: 0 | I26: 0 | J26: 0 | K26: 2 | L26: 2 | M26: 6 | N26: 2 | O26: 20 | P26: 11 | Q26: 19 | R26: 17 | S26: 20 | T26: 8 | U26: 13 | V26: 8 | W26: 14 | X26: 11 | Y26: 20 | Z26: 5 | AA26: 10 | AB26: 2 | AC26: 15 | AD26: 7 | AE26: 5 | AF26: 14 | AG26: 6 | AH26: 7 | AI26: 3 | AJ26: 1 | AK26: 2 | AL26: 1 | AM26: 0 | AN26: 0 | AO26: 1 | AP26: 0 | AQ26: 0 | AR26: 0
A27: Salto | B27: 352 | C27: 213 | D27: 139 | E27: 0 | F27: 0 | G27: 0 | H27: 0 | I27: 2 | J27: 2 | K27: 4 | L27: 4 | M27: 14 | N27: 9 | O27: 7 | P27: 7 | Q27: 20 | R27: 13 | S27: 18 | T27: 12 | U27: 22 | V27: 18 | W27: 36 | X27: 14 | Y27: 27 | Z27: 14 | AA27: 25 | AB27: 20 | AC27: 27 | AD27: 15 | AE27: 9 | AF27: 9 | AG27: 2 | AH27: 2 | AI27: 0 | AJ27: 0 | AK27: 0 | AL27: 0 | AM27: 0 | AN27: 0 | AO27: 0 | AP27: 0 | AQ27: 0 | AR27: 0
A28: San José | B28: 224 | C28: 143 | D28: 81 | E28: 0 | F28: 0 | G28: 0 | H28: 0 | I28: 0 | J28: 0 | K28: 1 | L28: 0 | M28: 1 | N28: 4 | O28: 8 | P28: 3 | Q28: 14 | R28: 5 | S28: 20 | T28: 6 | U28: 25 | V28: 14 | W28: 17 | X28: 19 | Y28: 13 | Z28: 9 | AA28: 21 | AB28: 15 | AC28: 19 | AD28: 6 | AE28: 4 | AF28: 0 | AG28: 0 | AH28: 0 | AI28: 0 | AJ28: 0 | AK28: 0 | AL28: 0 | AM28: 0 | AN28: 0 | AO28: 0 | AP28: 0 | AQ28: 0 | AR28: 0
A29: Soriano | B29: 206 | C29: 128 | D29: 78 | E29: 0 | F29: 0 | G29: 0 | H29: 0 | I29: 0 | J29: 0 | K29: 0 | L29: 3 | M29: 4 | N29: 2 | O29: 3 | P29: 5 | Q29: 16 | R29: 7 | S29: 16 | T29: 13 | U29: 15 | V29: 7 | W29: 14 | X29: 12 | Y29: 23 | Z29: 8 | AA29: 13 | AB29: 10 | AC29: 13 | AD29: 6 | AE29: 7 | AF29: 3 | AG29: 2 | AH29: 1 | AI29: 2 | AJ29: 0 | AK29: 0 | AL29: 1 | AM29: 0 | AN29: 0 | AO29: 0 | AP29: 0 | AQ29: 0 | AR29: 0
A30: Tacuarembó | B30: 193 | C30: 115 | D30: 78 | E30: 0 | F30: 0 | G30: 0 | H30: 0 | I30: 3 | J30: 0 | K30: 3 | L30: 5 | M30: 3 | N30: 4 | O30: 5 | P30: 5 | Q30: 11 | R30: 4 | S30: 17 | T30: 7 | U30: 12 | V30: 15 | W30: 13 | X30: 10 | Y30: 11 | Z30: 6 | AA30: 8 | AB30: 9 | AC30: 13 | AD30: 5 | AE30: 9 | AF30: 0 | AG30: 1 | AH30: 4 | AI30: 4 | AJ30: 1 | AK30: 1 | AL30: 2 | AM30: 1 | AN30: 1 | AO30: 0 | AP30: 0 | AQ30: 0 | AR30: 0
A31: Treinta y Tres | B31: 121 | C31: 74 | D31: 47 | E31: 0 | F31: 0 | G31: 0 | H31: 0 | I31: 0 | J31: 0 | K31: 0 | L31: 1 | M31: 2 | N31: 1 | O31: 3 | P31: 3 | Q31: 3 | R31: 7 | S31: 5 | T31: 2 | U31: 17 | V31: 4 | W31: 4 | X31: 4 | Y31: 5 | Z31: 8 | AA31: 12 | AB31: 6 | AC31: 10 | AD31: 5 | AE31: 5 | AF31: 4 | AG31: 6 | AH31: 2 | AI31: 2 | AJ31: 0 | AK31: 0 | AL31: 0 | AM31: 0 | AN31: 0 | AO31: 0 | AP31: 0 | AQ31: 0 | AR31: 0
A32: Fuente: Procesamiento propio en base a datos proporcionados por el DEE — CEIP

Sheet II-2.2.6
A1: CONSEJO DE EDUCACIÓN PRIMARIA | E1: ALUMNOS MATRICULADOS
A3: Cuadro Nº II-2.2.6
A5: ALUMNOS MATRICULADOS EN EDUCACIÓN PRIMARIA PRIVADA POR TIPO DE EDUCACIÓN SEGÚN DEPARTAMENTO AÑO 2012
A6: DEPARTAMENTO | B6: TIPO DE EDUCACIÓN
B7: TOTAL | C7: EDUCACIÓN COMÚN | F7: EDUCACIÓN ESPECIAL
C8: Total | D8: Habilitados | E8: Autorizados
A10: TOTAL DEL PAÍS | B10: =SUM(B11:B12) -> 56483 | C10: =+D10+E10 -> 52889 | D10: =D11+D12 -> 50194 | E10: =E11+E12 -> 2695 | F10: =F11+F12 -> 3594
A11: MONTEVIDEO | B11: =+C11+F11 -> 35083 | C11: =+D11+E11 -> 32646 | D11: 30385 | E11: 2261 | F11: 2437 | AT11: MONTEVIDEO
A12: RESTO DEL PAÍS | B12: =+C12+F12 -> 21400 | C12: =+D12+E12 -> 20243 | D12: =SUM(D13:D30) -> 19809 | E12: =SUM(E13:E30) -> 434 | F12: =SUM(F13:F30) -> 1157 | AT12: RESTO DEL PAÍS
A13: Artigas | B13: =+C13+F13 -> 260 | C13: =+D13+E13 -> 118 | D13: 118 | E13: 0 | F13: 142 | AT13: Artigas
A14: Canelones | B14: 7410 | C14: =+D14+E14 -> 7338 | D14: 6951 | E14: 387 | F14: 72 | AT14: Canelones
A15: Cerro Largo | B15: 598 | C15: 598 | D15: 598 | E15: 0 | F15: 0 | AT15: Cerro Largo
A16: Colonia | B16: 792 | C16: 792 | D16: 792 | E16: 0 | F16: 0 | AT16: Colonia
A17: Durazno | B17: 661 | C17: 661 | D17: 661 | E17: 0 | F17: 0 | AT17: Durazno
A18: Flores | B18: 341 | C18: 341 | D18: 341 | E18: 0 | F18: 0 | AT18: Flores
A19: Florida | B19: 304 | C19: 304 | D19: 304 | E19: 0 | F19: 0 | AT19: Florida
A20: Lavalleja | B20: 656 | C20: 656 | D20: 656 | E20: 0 | F20: 0 | AT20: Lavalleja
A21: Maldonado | B21: 3999 | C21: 3856 | D21: 3856 | E21: 0 | F21: 143 | AT21: Maldonado
A22: Paysandú | B22: 1354 | C22: 1162 | D22: 1162 | E22: 0 | F22: 192 | AT22: Paysandú
A23: Río Negro | B23: 434 | C23: 434 | D23: 404 | E23: 30 | F23: 0 | AT23: Río Negro
A24: Rivera | B24: 668 | C24: 668 | D24: 668 | E24: 0 | F24: 0 | AT24: Rivera
A25: Rocha | B25: 470 | C25: 397 | D25: 397 | E25: 0 | F25: 73 | AT25: Rocha
A26: Salto | B26: 1333 | C26: 1083 | D26: 1083 | E26: 0 | F26: 250 | AT26: Salto
A27: San José | B27: 580 | C27: 580 | D27: 563 | E27: 17 | F27: 0 | AT27: San José
A28: Soriano | B28: 722 | C28: 437 | D28: 437 | E28: 0 | F28: 285 | AT28: Soriano
A29: Tacuarembó | B29: 619 | C29: 619 | D29: 619 | E29: 0 | F29: 0 | AT29: Tacuarembó
A30: Treinta y Tres | B30: 199 | C30: 199 | D30: 199 | E30: 0 | F30: 0 | AT30: Treinta y Tres
A31: Fuente: Procesamiento propio en base a datos proporcionados por el D.E.E. — C.E.I.P.
A32: Nota: Especial incluye la matrícula de clases especiales en escuelas comunes,
A33: Instrucción Temprana, Educación Inicial, Preparatorio y Talleres
A107: 30025 | B107: 2163 | C107: 2209
A108: 19484 | B108: 397 | C108: 1758
A109: 92 | B109: 0 | C109: 162
A110: 6669 | B110: 344 | C110: 0
A111: 615 | B111: 0 | C111: 0
A112: 724 | B112: 0 | C112: 0
A113: 634 | B113: 0 | C113: 0
A114: 361 | B114: 0 | C114: 7
A115: 296 | B115: 0 | C115: 62
A116: 615 | B116: 0 | C116: 0
A117: 3879 | B117: 0 | C117: 141
A118: 1175 | B118: 0 | C118: 276
A119: 428 | B119: 33 | C119: 149
A120: 673 | B120: 0 | C120: 7
A121: 413 | B121: 0 | C121: 87
A122: 1089 | B122: 0 | C122: 208
A123: 556 | B123: 20 | C123: 0
A124: 435 | B124: 0 | C124: 659
A125: 643 | B125: 0 | C125: 0
A126: 187 | B126: 0 | C126: 0

Sheet II-2.2.7
A1: CONSEJO DE EDUCACIÓN PRIMARIA | N1: ALUMNOS MATRICULADOS
A3: Cuadro Nº II-2.2.7
A5: ALUMNOS MATRICULADOS EN EDUCACIÓN ESPECIAL PRIVADA POR EDADES SIMPLES Y SEXO SEGÚN DEPARTAMENTO AÑO 2012
A6: DEPARTAMENTO | B6: TOTAL GENERAL | C6: TOTAL MASCULINO | D6: TOTAL FEMENINO | E6: EDAD
E7: Menos de 3 años | G7: 3 años | I7: 4 años | K7: 5 años | M7: 6 años | O7: 7 años | Q7: 8 años | S7: 9 años | U7: 10 años | W7: 11 años | Y7: 12 años | AA7: 13 años | AC7: 14 años | AE7: 15 años | AG7: 16 años | AI7: 17 años | AK7: 18 años | AM7: 19 años | AO7: 20 años | AQ7: 21 años
E8: SEXO
E9: M | F9: F | G9: M | H9: F | I9: M | J9: F | K9: M | L9: F | M9: M | N9: F | O9: M | P9: F | Q9: M | R9: F | S9: M | T9: F | U9: M | V9: F | W9: M | X9: F | Y9: M | Z9: F | AA9: M | AB9: F | AC9: M | AD9: F | AE9: M | AF9: F | AG9: M | AH9: F | AI9: M | AJ9: F | AK9: M | AL9: F | AM9: M | AN9: F | AO9: M | AP9: F | AQ9: M | AR9: F
A11: TOTAL | B11: =C11+D11 -> 3594 | C11: =E11+G11+I11+K11+M11+O11+Q11+S11+U11+W11+Y11+AA11+AC11+AE11+AG11+AI11+AK11+AM11+AO11+AQ11 -> 2021 | D11: 1573 | E11: =SUM(E12:E13) -> 26 | F11: 16 | G11: 25 | H11: 15 | I11: 21 | J11: 16 | K11: 71 | L11: 49 | M11: 72 | N11: 42 | O11: 66 | P11: 53 | Q11: 104 | R11: 70 | S11: 119 | T11: 68 | U11: 113 | V11: 63 | W11: 146 | X11: 88 | Y11: 92 | Z11: 64 | AA11: 97 | AB11: 58 | AC11: 94 | AD11: 59 | AE11: 86 | AF11: 78 | AG11: 64 | AH11: 72 | AI11: 57 | AJ11: 56 | AK11: 77 | AL11: 51 | AM11: 51 | AN11: 27 | AO11: 62 | AP11: 129 | AQ11: 578 | AR11: 499
A12: MONTEVIDEO | B12: =C12+D12 -> 2437 | C12: 1372 | D12: 1065 | E12: 12 | F12: 8 | G12: 19 | H12: 10 | I12: 15 | J12: 9 | K12: 54 | L12: 34 | M12: 49 | N12: 29 | O12: 50 | P12: 45 | Q12: 84 | R12: 53 | S12: 90 | T12: 51 | U12: 74 | V12: 45 | W12: 105 | X12: 57 | Y12: 53 | Z12: 41 | AA12: 60 | AB12: 30 | AC12: 51 | AD12: 41 | AE12: 57 | AF12: 49 | AG12: 37 | AH12: 40 | AI12: 38 | AJ12: 32 | AK12: 52 | AL12: 30 | AM12: 37 | AN12: 16 | AO12: 47 | AP12: 113 | AQ12: 388 | AR12: 332
A13: RESTO DEL PAÍS | B13: =C13+D13 -> 1157 | C13: 649 | D13: 508 | E13: =SUM(E14:E31) -> 14 | F13: =SUM(F14:F31) -> 8 | G13: 6 | H13: 5 | I13: 6 | J13: 7 | K13: 17 | L13: 15 | M13: 23 | N13: 13 | O13: 16 | P13: 8 | Q13: 20 | R13: 17 | S13: 29 | T13: 17 | U13: 39 | V13: 18 | W13: 41 | X13: 31 | Y13: 39 | Z13: 23 | AA13: 37 | AB13: 28 | AC13: 43 | AD13: 18 | AE13: 29 | AF13: 29 | AG13: 27 | AH13: 32 | AI13: 19 | AJ13: 24 | AK13: 25 | AL13: 21 | AM13: 14 | AN13: 11 | AO13: 15 | AP13: 16 | AQ13: 190 | AR13: 167
A14: Artigas | B14: =C14+D14 -> 142 | C14: =E14+G14+I14+K14+M14+O14+Q14+S14+U14+W14+Y14+AA14+AC14+AE14+AG14+AI14+AK14+AM14+AO14+AQ14 -> 79 | D14: =F14+H14+J14+L14+N14+P14+R14+T14+V14+X14+Z14+AB14+AD14+AF14+AH14+AJ14+AL14+AN14+AP14+AR14 -> 63 | E14: 0 | F14: 0 | G14: 0 | H14: 0 | I14: 0 | J14: 0 | K14: 0 | L14: 0 | M14: 0 | N14: 1 | O14: 1 | P14: 0 | Q14: 1 | R14: 3 | S14: 1 | T14: 1 | U14: 0 | V14: 2 | W14: 2 | X14: 2 | Y14: 1 | Z14: 0 | AA14: 2 | AB14: 2 | AC14: 9 | AD14: 5 | AE14: 8 | AF14: 4 | AG14: 12 | AH14: 7 | AI14: 5 | AJ14: 4 | AK14: 4 | AL14: 4 | AM14: 3 | AN14: 2 | AO14: 3 | AP14: 8 | AQ14: 27 | AR14: 18
A15: Canelones | B15: 72 | C15: 44 | D15: 28 | E15: 9 | F15: 2 | G15: 2 | H15: 4 | I15: 0 | J15: 0 | K15: 4 | L15: 3 | M15: 0 | N15: 2 | O15: 1 | P15: 0 | Q15: 2 | R15: 1 | S15: 3 | T15: 1 | U15: 2 | V15: 0 | W15: 3 | X15: 1 | Y15: 0 | Z15: 0 | AA15: 1 | AB15: 0 | AC15: 1 | AD15: 0 | AE15: 1 | AF15: 0 | AG15: 1 | AH15: 0 | AI15: 2 | AJ15: 7 | AK15: 1 | AL15: 0 | AM15: 0 | AN15: 0 | AO15: 1 | AP15: 1 | AQ15: 10 | AR15: 6
A16: Cerro Largo | B16: 0 | C16: 0 | D16: 0 | E16: 0 | F16: 0 | G16: 0 | H16: 0 | I16: 0 | J16: 0 | K16: 0 | L16: 0 | M16: 0 | N16: 0 | O16: 0 | P16: 0 | Q16: 0 | R16: 0 | S16: 0 | T16: 0 | U16: 0 | V16: 0 | W16: 0 | X16: 0 | Y16: 0 | Z16: 0 | AA16: 0 | AB16: 0 | AC16: 0 | AD16: 0 | AE16: 0 | AF16: 0 | AG16: 0 | AH16: 0 | AI16: 0 | AJ16: 0 | AK16: 0 | AL16: 0 | AM16: 0 | AN16: 0 | AO16: 0 | AP16: 0 | AQ16: 0 | AR16: 0
A17: Colonia | B17: 0 | C17: 0 | D17: 0 | E17: 0 | F17: 0 | G17: 0 | H17: 0 | I17: 0 | J17: 0 | K17: 0 | L17: 0 | M17: 0 | N17: 0 | O17: 0 | P17: 0 | Q17: 0 | R17: 0 | S17: 0 | T17: 0 | U17: 0 | V17: 0 | W17: 0 | X17: 0 | Y17: 0 | Z17: 0 | AA17: 0 | AB17: 0 | AC17: 0 | AD17: 0 | AE17: 0 | AF17: 0 | AG17: 0 | AH17: 0 | AI17: 0 | AJ17: 0 | AK17: 0 | AL17: 0 | AM17: 0 | AN17: 0 | AO17: 0 | AP17: 0 | AQ17: 0 | AR17: 0
A18: Durazno | B18: 0 | C18: 0 | D18: 0 | E18: 0 | F18: 0 | G18: 0 | H18: 0 | I18: 0 | J18: 0 | K18: 0 | L18: 0 | M18: 0 | N18: 0 | O18: 0 | P18: 0 | Q18: 0 | R18: 0 | S18: 0 | T18: 0 | U18: 0 | V18: 0 | W18: 0 | X18: 0 | Y18: 0 | Z18: 0 | AA18: 0 | AB18: 0 | AC18: 0 | AD18: 0 | AE18: 0 | AF18: 0 | AG18: 0 | AH18: 0 | AI18: 0 | AJ18: 0 | AK18: 0 | AL18: 0 | AM18: 0 | AN18: 0 | AO18: 0 | AP18: 0 | AQ18: 0 | AR18: 0
A19: Flores | B19: 0 | C19: 0 | D19: 0 | E19: 0 | F19: 0 | G19: 0 | H19: 0 | I19: 0 | J19: 0 | K19: 0 | L19: 0 | M19: 0 | N19: 0 | O19: 0 | P19: 0 | Q19: 0 | R19: 0 | S19: 0 | T19: 0 | U19: 0 | V19: 0 | W19: 0 | X19: 0 | Y19: 0 | Z19: 0 | AA19: 0 | AB19: 0 | AC19: 0 | AD19: 0 | AE19: 0 | AF19: 0 | AG19: 0 | AH19: 0 | AI19: 0 | AJ19: 0 | AK19: 0 | AL19: 0 | AM19: 0 | AN19: 0 | AO19: 0 | AP19: 0 | AQ19: 0 | AR19: 0
A20: Florida | B20: 0 | C20: 0 | D20: 0 | E20: 0 | F20: 0 | G20: 0 | H20: 0 | I20: 0 | J20: 0 | K20: 0 | L20: 0 | M20: 0 | N20: 0 | O20: 0 | P20: 0 | Q20: 0 | R20: 0 | S20: 0 | T20: 0 | U20: 0 | V20: 0 | W20: 0 | X20: 0 | Y20: 0 | Z20: 0 | AA20: 0 | AB20: 0 | AC20: 0 | AD20: 0 | AE20: 0 | AF20: 0 | AG20: 0 | AH20: 0 | AI20: 0 | AJ20: 0 | AK20: 0 | AL20: 0 | AM20: 0 | AN20: 0 | AO20: 0 | AP20: 0 | AQ20: 0 | AR20: 0
A21: Lavalleja | B21: 0 | C21: 0 | D21: 0 | E21: 0 | F21: 0 | G21: 0 | H21: 0 | I21: 0 | J21: 0 | K21: 0 | L21: 0 | M21: 0 | N21: 0 | O21: 0 | P21: 0 | Q21: 0 | R21: 0 | S21: 0 | T21: 0 | U21: 0 | V21: 0 | W21: 0 | X21: 0 | Y21: 0 | Z21: 0 | AA21: 0 | AB21: 0 | AC21: 0 | AD21: 0 | AE21: 0 | AF21: 0 | AG21: 0 | AH21: 0 | AI21: 0 | AJ21: 0 | AK21: 0 | AL21: 0 | AM21: 0 | AN21: 0 | AO21: 0 | AP21: 0 | AQ21: 0 | AR21: 0
A22: Maldonado | B22: 143 | C22: 77 | D22: 66 | E22: 0 | F22: 1 | G22: 0 | H22: 0 | I22: 2 | J22: 0 | K22: 0 | L22: 1 | M22: 2 | N22: 2 | O22: 2 | P22: 1 | Q22: 0 | R22: 0 | S22: 2 | T22: 1 | U22: 6 | V22: 2 | W22: 8 | X22: 11 | Y22: 3 | Z22: 5 | AA22: 7 | AB22: 4 | AC22: 11 | AD22: 2 | AE22: 4 | AF22: 5 | AG22: 4 | AH22: 3 | AI22: 4 | AJ22: 6 | AK22: 5 | AL22: 3 | AM22: 3 | AN22: 2 | AO22: 2 | AP22: 3 | AQ22: 12 | AR22: 14
A23: Paysandú | B23: 192 | C23: 100 | D23: 92 | E23: 2 | F23: 0 | G23: 0 | H23: 0 | I23: 1 | J23: 1 | K23: 0 | L23: 1 | M23: 3 | N23: 1 | O23: 0 | P23: 1 | Q23: 1 | R23: 0 | S23: 2 | T23: 0 | U23: 2 | V23: 3 | W23: 1 | X23: 3 | Y23: 4 | Z23: 4 | AA23: 3 | AB23: 3 | AC23: 4 | AD23: 4 | AE23: 5 | AF23: 6 | AG23: 3 | AH23: 6 | AI23: 2 | AJ23: 3 | AK23: 5 | AL23: 7 | AM23: 3 | AN23: 3 | AO23: 3 | AP23: 2 | AQ23: 56 | AR23: 44
A24: Río Negro | B24: 0 | C24: 0 | D24: 0 | E24: 0 | F24: 0 | G24: 0 | H24: 0 | I24: 0 | J24: 0 | K24: 0 | L24: 0 | M24: 0 | N24: 0 | O24: 0 | P24: 0 | Q24: 0 | R24: 0 | S24: 0 | T24: 0 | U24: 0 | V24: 0 | W24: 0 | X24: 0 | Y24: 0 | Z24: 0 | AA24: 0 | AB24: 0 | AC24: 0 | AD24: 0 | AE24: 0 | AF24: 0 | AG24: 0 | AH24: 0 | AI24: 0 | AJ24: 0 | AK24: 0 | AL24: 0 | AM24: 0 | AN24: 0 | AO24: 0 | AP24: 0 | AQ24: 0 | AR24: 0
A25: Rivera | B25: 0 | C25: 0 | D25: 0 | E25: 0 | F25: 0 | G25: 0 | H25: 0 | I25: 0 | J25: 0 | K25: 0 | L25: 0 | M25: 0 | N25: 0 | O25: 0 | P25: 0 | Q25: 0 | R25: 0 | S25: 0 | T25: 0 | U25: 0 | V25: 0 | W25: 0 | X25: 0 | Y25: 0 | Z25: 0 | AA25: 0 | AB25: 0 | AC25: 0 | AD25: 0 | AE25: 0 | AF25: 0 | AG25: 0 | AH25: 0 | AI25: 0 | AJ25: 0 | AK25: 0 | AL25: 0 | AM25: 0 | AN25: 0 | AO25: 0 | AP25: 0 | AQ25: 0 | AR25: 0
A26: Rocha | B26: 73 | C26: 40 | D26: 33 | E26: 0 | F26: 0 | G26: 0 | H26: 0 | I26: 0 | J26: 0 | K26: 1 | L26: 1 | M26: 1 | N26: 1 | O26: 0 | P26: 1 | Q26: 0 | R26: 0 | S26: 0 | T26: 0 | U26: 3 | V26: 0 | W26: 4 | X26: 2 | Y26: 1 | Z26: 3 | AA26: 2 | AB26: 1 | AC26: 1 | AD26: 1 | AE26: 0 | AF26: 3 | AG26: 1 | AH26: 1 | AI26: 0 | AJ26: 0 | AK26: 3 | AL26: 0 | AM26: 0 | AN26: 0 | AO26: 1 | AP26: 0 | AQ26: 22 | AR26: 19
A27: Salto | B27: 250 | C27: 153 | D27: 97 | E27: 1 | F27: 0 | G27: 4 | H27: 1 | I27: 2 | J27: 5 | K27: 10 | L27: 8 | M27: 10 | N27: 5 | O27: 11 | P27: 3 | Q27: 6 | R27: 10 | S27: 10 | T27: 10 | U27: 23 | V27: 7 | W27: 13 | X27: 7 | Y27: 18 | Z27: 9 | AA27: 13 | AB27: 11 | AC27: 8 | AD27: 3 | AE27: 4 | AF27: 8 | AG27: 2 | AH27: 7 | AI27: 2 | AJ27: 0 | AK27: 2 | AL27: 0 | AM27: 1 | AN27: 0 | AO27: 1 | AP27: 0 | AQ27: 12 | AR27: 3
A28: San José | B28: 0 | C28: 0 | D28: 0 | E28: 0 | F28: 0 | G28: 0 | H28: 0 | I28: 0 | J28: 0 | K28: 0 | L28: 0 | M28: 0 | N28: 0 | O28: 0 | P28: 0 | Q28: 0 | R28: 0 | S28: 0 | T28: 0 | U28: 0 | V28: 0 | W28: 0 | X28: 0 | Y28: 0 | Z28: 0 | AA28: 0 | AB28: 0 | AC28: 0 | AD28: 0 | AE28: 0 | AF28: 0 | AG28: 0 | AH28: 0 | AI28: 0 | AJ28: 0 | AK28: 0 | AL28: 0 | AM28: 0 | AN28: 0 | AO28: 0 | AP28: 0 | AQ28: 0 | AR28: 0
A29: Soriano | B29: 285 | C29: 156 | D29: 129 | E29: 2 | F29: 5 | G29: 0 | H29: 0 | I29: 1 | J29: 1 | K29: 2 | L29: 1 | M29: 7 | N29: 1 | O29: 1 | P29: 2 | Q29: 10 | R29: 3 | S29: 11 | T29: 4 | U29: 3 | V29: 4 | W29: 10 | X29: 5 | Y29: 12 | Z29: 2 | AA29: 9 | AB29: 7 | AC29: 9 | AD29: 3 | AE29: 7 | AF29: 3 | AG29: 4 | AH29: 8 | AI29: 4 | AJ29: 4 | AK29: 5 | AL29: 7 | AM29: 4 | AN29: 4 | AO29: 4 | AP29: 2 | AQ29: 51 | AR29: 63
A30: Tacuarembó | B30: 0 | C30: 0 | D30: 0 | E30: 0 | F30: 0 | G30: 0 | H30: 0 | I30: 0 | J30: 0 | K30: 0 | L30: 0 | M30: 0 | N30: 0 | O30: 0 | P30: 0 | Q30: 0 | R30: 0 | S30: 0 | T30: 0 | U30: 0 | V30: 0 | W30: 0 | X30: 0 | Y30: 0 | Z30: 0 | AA30: 0 | AB30: 0 | AC30: 0 | AD30: 0 | AE30: 0 | AF30: 0 | AG30: 0 | AH30: 0 | AI30: 0 | AJ30: 0 | AK30: 0 | AL30: 0 | AM30: 0 | AN30: 0 | AO30: 0 | AP30: 0 | AQ30: 0 | AR30: 0
A31: Treinta y Tres | B31: 0 | C31: 0 | D31: 0 | E31: 0 | F31: 0 | G31: 0 | H31: 0 | I31: 0 | J31: 0 | K31: 0 | L31: 0 | M31: 0 | N31: 0 | O31: 0 | P31: 0 | Q31: 0 | R31: 0 | S31: 0 | T31: 0 | U31: 0 | V31: 0 | W31: 0 | X31: 0 | Y31: 0 | Z31: 0 | AA31: 0 | AB31: 0 | AC31: 0 | AD31: 0 | AE31: 0 | AF31: 0 | AG31: 0 | AH31: 0 | AI31: 0 | AJ31: 0 | AK31: 0 | AL31: 0 | AM31: 0 | AN31: 0 | AO31: 0 | AP31: 0 | AQ31: 0 | AR31: 0
A32: Fuente: Procesamiento propio en base a datos proporcionados por el DEE — CEIP

Sheet II-2.2.8
A1: CONSEJO DE EDUCACIÓN PRIMARIA | M1: ALUMNOS MATRICULADOS
A3: Cuadro Nº II-2.2.8
A5: ALUMNOS MATRICULADOS EN EDUCACIÓN PRIMARIA COMÚN POR GRADO Y FORMA DE ADMINISTRACIÓN SEGÚN EDAD AÑO 2012
A6: EDAD | D6: GRADO
B7: TOTAL | D7: Primero | F7: Segundo | H7: Tercero | J7: Cuarto | L7: Quinto | N7: Sexto
D9: FORMA DE ADMINISTRACIÓN
B10: Pública | C10: Privada | D10: Pública | E10: Privada | F10: Pública | G10: Privada | H10: Pública | I10: Privada | J10: Pública | K10: Privada | L10: Pública | M10: Privada | N10: Pública | O10: Privada
A11: TOTAL | B11: =SUM(B12:B20) -> 265585 | C11: =SUM(C12:C20) -> 52889 | D11: =SUM(D12:D20) -> 44157 | E11: =SUM(E12:E20) -> 9297 | F11: =SUM(F12:F20) -> 43761 | G11: =SUM(G12:G20) -> 9242 | H11: =SUM(H12:H20) -> 43722 | I11: 9031 | J11: =SUM(J12:J20) -> 44728 | K11: 8564 | L11: =SUM(L12:L20) -> 44904 | M11: 8361 | N11: =SUM(N12:N20) -> 44313 | O11: 8394
A12: 6 años | B12: =+D12+F12+H12+J12+L12+N12 -> 34188 | C12: =+E12 -> 7923 | D12: 34188 | E12: ='II-2.2.10'!E10+'II-2.2.10'!F10 -> 7923 | F12: 0 | H12: 0 | J12: 0 | L12: 0 | N12: 0 | O12: 0
A13: 7 años | B13: 39940 | C13: =+E13+G13 -> 9012 | D13: 9024 | E13: ='II-2.2.10'!E11+'II-2.2.10'!F11 -> 1314 | F13: 30916 | G13: ='II-2.2.10'!G11+'II-2.2.10'!H11 -> 7698 | H13: 0 | J13: 0 | L13: 0 | N13: 0 | O13: 0
A14: 8 años | B14: 40519 | C14: =+E14+G14+I14 -> 9116 | D14: 869 | E14: ='II-2.2.10'!E12+'II-2.2.10'!F12 -> 56 | F14: 10664 | G14: ='II-2.2.10'!G12+'II-2.2.10'!H12 -> 1444 | H14: 28986 | I14: ='II-2.2.10'!I12+'II-2.2.10'!J12 -> 7616 | J14: 0 | L14: 0 | N14: 0 | O14: 0
A15: 9 años | B15: 42050 | C15: =+E15+G15+I15+K15 -> 8438 | D15: 66 | E15: ='II-2.2.10'!E13+'II-2.2.10'!F13 -> 1 | F15: 1877 | G15: ='II-2.2.10'!G13+'II-2.2.10'!H13 -> 82 | H15: 11453 | I15: ='II-2.2.10'!I13+'II-2.2.10'!J13 -> 1307 | J15: 28654 | K15: ='II-2.2.10'!K13+'II-2.2.10'!L13 -> 7048 | L15: 0 | N15: 0 | O15: 0
A16: 10 años | B16: 42364 | C16: =+E16+G16+I16+K16+M16 -> 8283 | D16: 9 | E16: ='II-2.2.10'!E14+'II-2.2.10'!F14 -> 0 | F16: 266 | G16: ='II-2.2.10'!G14+'II-2.2.10'!H14 -> 11 | H16: 2807 | I16: ='II-2.2.10'!I14+'II-2.2.10'!J14 -> 91 | J16: 11960 | K16: ='II-2.2.10'!K14+'II-2.2.10'!L14 -> 1420 | L16: ='II-2.2.9'!M14+'II-2.2.9'!N14 -> 27322 | M16: ='II-2.2.10'!M14+'II-2.2.10'!N14 -> 6761 | N16: 0 | O16: 0
A17: 11 años | B17: 42303 | C17: =+E17+G17+I17+K17+M17+O17 -> 8216 | D17: 1 | E17: ='II-2.2.10'!E15+'II-2.2.10'!F15 -> 1 | F17: 34 | G17: ='II-2.2.10'!G15+'II-2.2.10'!H15 -> 5 | H17: 389 | I17: ='II-2.2.10'!I15+'II-2.2.10'!J15 -> 11 | J17: 3280 | K17: ='II-2.2.10'!K15+'II-2.2.10'!L15 -> 78 | L17: ='II-2.2.9'!M15+'II-2.2.9'!N15 -> 12532 | M17: ='II-2.2.10'!M15+'II-2.2.10'!N15 -> 1483 | N17: ='II-2.2.9'!O15+'II-2.2.9'!P15 -> 26067 | O17: ='II-2.2.10'!O15+'II-2.2.10'!P15 -> 6638
A18: 12 años | B18: 17835 | C18: =+E18+G18+I18+K18+M18+O18 -> 1720 | D18: 0 | E18: ='II-2.2.10'!E16+'II-2.2.10'!F16 -> 1 | F18: 1 | G18: ='II-2.2.10'!G16+'II-2.2.10'!H16 -> 2 | H18: 74 | I18: ='II-2.2.10'!I16+'II-2.2.10'!J16 -> 4 | J18: 708 | K18: ='II-2.2.10'!K16+'II-2.2.10'!L16 -> 11 | L18: ='II-2.2.9'!M16+'II-2.2.9'!N16 -> 4065 | M18: ='II-2.2.10'!M16+'II-2.2.10'!N16 -> 97 | N18: ='II-2.2.9'!O16+'II-2.2.9'!P16 -> 12987 | O18: ='II-2.2.10'!O16+'II-2.2.10'!P16 -> 1605
A19: 13 años | B19: 5248 | C19: =+E19+G19+I19+K19+M19+O19 -> 143 | D19: 0 | E19: ='II-2.2.10'!E17+'II-2.2.10'!F17 -> 0 | F19: 2 | G19: ='II-2.2.10'!G17+'II-2.2.10'!H17 -> 0 | H19: 12 | I19: ='II-2.2.10'!I17+'II-2.2.10'!J17 -> 2 | J19: 110 | K19: ='II-2.2.10'!K17+'II-2.2.10'!L17 -> 5 | L19: ='II-2.2.9'!M17+'II-2.2.9'!N17 -> 882 | M19: ='II-2.2.10'!M17+'II-2.2.10'!N17 -> 13 | N19: ='II-2.2.9'!O17+'II-2.2.9'!P17 -> 4242 | O19: ='II-2.2.10'!O17+'II-2.2.10'!P17 -> 123
A20: 14 años y más | B20: 1138 | C20: =+E20+G20+I20+K20+M20+O20 -> 38 | D20: 0 | E20: ='II-2.2.10'!E18+'II-2.2.10'!F18 -> 1 | F20: 1 | G20: ='II-2.2.10'!G18+'II-2.2.10'!H18 -> 0 | H20: 1 | I20: ='II-2.2.10'!I18+'II-2.2.10'!J18 -> 0 | J20: 16 | K20: ='II-2.2.10'!K18+'II-2.2.10'!L18 -> 2 | L20: ='II-2.2.9'!M18+'II-2.2.9'!N18 -> 103 | M20: ='II-2.2.10'!M18+'II-2.2.10'!N18 -> 7 | N20: ='II-2.2.9'!O18+'II-2.2.9'!P18 -> 1017 | O20: ='II-2.2.10'!O18+'II-2.2.10'!P18 -> 28
A21: Fuente: Procesamiento propio en base a datos proporcionados por el D.E.E .— C.E.I.P.
A22: Nota: Primaria Pública no incluye la matrícula correspondiente a JICI

Sheet II-2.2.9
A1: CONSEJO DE EDUCACIÓN PRIMARIA | M1: ALUMNOS MATRICULADOS
A3: Cuadro Nº II-2.2.9
A4: ALUMNOS MATRICULADOS EN EDUCACIÓN PRIMARIA COMÚN PÚBLICA POR GRADO Y SEXO SEGÚN EDAD. AÑO 2012.
A5: EDAD | E5: GRADO
C6: TOTAL SEXO | E6: Primero | G6: Segundo | I6: Tercero | K6: Cuarto | M6: Quinto | O6: Sexto
E7: SEXO
B8: TOTAL | C8: M | D8: F | E8: M | F8: F | G8: M | H8: F | I8: M | J8: F | K8: M | L8: F | M8: M | N8: F | O8: M | P8: F
A9: TOTAL | B9: =+C9+D9 -> 265585 | C9: =SUM(E9+G9+I9+K9+M9+O9) -> 137489 | D9: =+F9+H9+J9+L9+N9+P9 -> 128096 | E9: =SUM(E10:E18) -> 23253 | F9: 20904 | G9: 22687 | H9: 21074 | I9: 22556 | J9: 21166 | K9: 23008 | L9: 21720 | M9: 23266 | N9: 21638 | O9: 22719 | P9: 21594
A10: 6 años | B10: =+C10+D10 -> 34188 | C10: =SUM(E10+G10+I10+K10+M10+O10) -> 17464 | D10: =+F10+H10+J10+L10+N10+P10 -> 16724 | E10: 17464 | F10: 16724 | G10: 0 | H10: 0 | I10: 0 | J10: 0 | K10: 0 | L10: 0 | M10: 0 | N10: 0 | O10: 0 | P10: 0
A11: 7 años | B11: =+C11+D11 -> 39940 | C11: =SUM(E11+G11+I11+K11+M11+O11) -> 20601 | D11: =+F11+H11+J11+L11+N11+P11 -> 19339 | E11: 5203 | F11: 3821 | G11: 15398 | H11: 15518 | I11: 0 | J11: 0 | K11: 0 | L11: 0 | M11: 0 | N11: 0 | O11: 0 | P11: 0
A12: 8 años | B12: 40519 | C12: 20622 | D12: 19897 | E12: 537 | F12: 332 | G12: 5959 | H12: 4705 | I12: 14126 | J12: 14860 | K12: 0 | L12: 0 | M12: 0 | N12: 0 | O12: 0 | P12: 0
A13: 9 años | B13: 42050 | C13: 21443 | D13: 20607 | E13: 41 | F13: 25 | G13: 1145 | H13: 732 | I13: 6393 | J13: 5060 | K13: 13864 | L13: 14790 | M13: 0 | N13: 0 | O13: 0 | P13: 0
A14: 10 años | B14: 42364 | C14: 21820 | D14: 20544 | E14: 8 | F14: 1 | G14: 160 | H14: 106 | I14: 1726 | J14: 1081 | K14: 6601 | L14: 5359 | M14: 13325 | N14: 13997 | O14: 0 | P14: 0
A15: 11 años | B15: 42303 | C15: 21513 | D15: 20790 | E15: 0 | F15: 1 | G15: 22 | H15: 12 | I15: 257 | J15: 132 | K15: 1990 | L15: 1290 | M15: 6810 | N15: 5722 | O15: 12434 | P15: 13633
A16: 12 años | B16: 17835 | C16: 10122 | D16: 7713 | E16: 0 | F16: 0 | G16: 0 | H16: 1 | I16: 47 | J16: 27 | K16: 475 | L16: 233 | M16: 2508 | N16: 1557 | O16: 7092 | P16: 5895
A17: 13 años | B17: 5248 | C17: 3160 | D17: 2088 | E17: 0 | F17: 0 | G17: 2 | H17: 0 | I17: 6 | J17: 6 | K17: 66 | L17: 44 | M17: 562 | N17: 320 | O17: 2524 | P17: 1718
A18: 14 años y más | B18: 1138 | C18: 744 | D18: 394 | E18: 0 | F18: 0 | G18: 1 | H18: 0 | I18: 1 | J18: 0 | K18: 12 | L18: 4 | M18: 61 | N18: 42 | O18: 669 | P18: 348
A19: Fuente: Procesamiento propio en base a datos proporcionados por el D.E.E. — C.E.I.P.
A20: Nota: Primaria Pública no incluye la matrícula correspondiente a JICI

Sheet II-2.2.10
A1: CONSEJO DE EDUCACIÓN PRIMARIA | M1: ALUMNOS MATRICULADOS
A3: Cuadro Nº II-2.2.10
A4: ALUMNOS MATRICULADOS EN EDUCACIÓN PRIMARIA COMÚN PRIVADA POR GRADO Y SEXO SEGÚN EDAD AÑO 2012
A5: EDAD | E5: GRADO
B6: TOTAL SEXO | E6: Primero | G6: Segundo | I6: Tercero | K6: Cuarto | M6: Quinto | O6: Sexto
E7: SEXO
B8: TOTAL | C8: M | D8: F | E8: M | F8: F | G8: M | H8: F | I8: M | J8: F | K8: M | L8: F | M8: M | N8: F | O8: M | P8: F
A9: TOTAL | B9: =C9+D9 -> 52889 | C9: =SUM(C10:C18) -> 26749 | D9: =SUM(D10:D18) -> 26140 | E9: 4747 | F9: 4550 | G9: 4648 | H9: 4594 | I9: 4581 | J9: 4450 | K9: 4306 | L9: 4258 | M9: 4246 | N9: 4115 | O9: 4221 | P9: 4173
A10: 6 años | B10: =C10+D10 -> 7923 | C10: =E10+G10+I10+K10+M10+O10 -> 4001 | D10: =F10+H10+J10+L10+N10+P10 -> 3922 | E10: 4001 | F10: 3922
A11: 7 años | B11: 9012 | C11: =E11+G11+I11+K11+M11+O11 -> 4530 | D11: =F11+H11+J11+L11+N11+P11 -> 4482 | E11: 709 | F11: 605 | G11: 3821 | H11: 3877
A12: 8 años | B12: 9116 | C12: 4616 | D12: 4500 | E12: 35 | F12: 21 | G12: 766 | H12: 678 | I12: 3815 | J12: 3801
A13: 9 años | B13: 8438 | C13: 4214 | D13: 4224 | E13: 1 | F13: 0 | G13: 49 | H13: 33 | I13: 695 | J13: 612 | K13: 3469 | L13: 3579
A14: 10 años | B14: 8283 | C14: 4214 | D14: 4069 | E14: 0 | F14: 0 | G14: 8 | H14: 3 | I14: 59 | J14: 32 | K14: 772 | L14: 648 | M14: 3375 | N14: 3386
A15: 11 años | B15: 8216 | C15: 4145 | D15: 4071 | E15: 0 | F15: 1 | G15: 3 | H15: 2 | I15: 9 | J15: 2 | K15: 55 | L15: 23 | M15: 801 | N15: 682 | O15: 3277 | P15: 3361
A16: 12 años | B16: 1720 | C16: 920 | D16: 800 | E16: 1 | F16: 0 | G16: 1 | H16: 1 | I16: 1 | J16: 3 | K16: 6 | L16: 5 | M16: 58 | N16: 39 | O16: 853 | P16: 752
A17: 13 años | B17: 143 | C17: 88 | D17: 55 | E17: 0 | F17: 0 | G17: 0 | H17: 0 | I17: 2 | J17: 0 | K17: 3 | L17: 2 | M17: 8 | N17: 5 | O17: 75 | P17: 48
A18: 14 años y más | B18: 38 | C18: 21 | D18: 17 | E18: 0 | F18: 1 | G18: 0 | H18: 0 | I18: 0 | J18: 0 | K18: 1 | L18: 1 | M18: 4 | N18: 3 | O18: 16 | P18: 12
A19: Fuente: Procesamiento propio en base a datos proporcionados por el D.E.E. — C.E.I.P.

Sheet II-2.2.11
A1: CONSEJO DE EDUCACIÓN PRIMARIA | M1: ALUMNOS MATRICULADOS
A3: Cuadro Nº II-2.2.11
A5: ALUMNOS MATRICULADOS EN EDUCACIÓN PRIMARIA COMÚN POR GRADO Y FORMA DE ADMINISTRACIÓN SEGÚN DEPARTAMENTO AÑO 2012
A6: DEPARTAMENTO | B6: GRADO
B7: TOTAL | D7: Primero | F7: Segundo | H7: Tercero | J7: Cuarto | L7: Quinto | N7: Sexto
D8: FORMA DE ADMINISTRACIÓN
B9: Pública | C9: Privada | D9: Pública | E9: Privada | F9: Pública | G9: Privada | H9: Pública | I9: Privada | J9: Pública | K9: Privada | L9: Pública | M9: Privada | N9: Pública | O9: Privada
A11: TOTAL | B11: =SUM(B12:B13) -> 265585 | C11: 52889 | D11: 44157 | E11: 9297 | F11: 43761 | G11: 9242 | H11: =SUM(H12:H13) -> 43722 | I11: 9031 | J11: 44728 | K11: 8564 | L11: 44904 | M11: 8361 | N11: 44313 | O11: 8394
A12: MONTEVIDEO | B12: =+D12+F12+H12+J12+L12+N12 -> 81008 | C12: =+E12+G12+I12+K12+M12+O12 -> 32646 | D12: 14331 | E12: 5789 | F12: 13396 | G12: 5678 | H12: 13414 | I12: 5597 | J12: 13586 | K12: 5309 | L12: 13521 | M12: 5117 | N12: 12760 | O12: 5156
A13: RESTO DEL PAÍS | B13: =SUM(B14:B31) -> 184577 | C13: =SUM(C14:C31) -> 20243 | D13: 29826 | E13: 3508 | F13: 30365 | G13: 3564 | H13: 30308 | I13: 3434 | J13: 31142 | K13: 3255 | L13: 31383 | M13: 3244 | N13: 31553 | O13: 3238
A14: Artigas | B14: =+D14+F14+H14+J14+L14+N14 -> 8388 | C14: =+E14+G14+I14+K14+M14+O14 -> 118 | D14: 1308 | E14: 19 | F14: 1321 | G14: 23 | H14: 1355 | I14: 28 | J14: 1389 | K14: 13 | L14: 1528 | M14: 14 | N14: 1487 | O14: 21
A15: Canelones | B15: =+D15+F15+H15+J15+L15+N15 -> 44161 | C15: =+E15+G15+I15+K15+M15+O15 -> 7338 | D15: 7342 | E15: 1316 | F15: 7217 | G15: 1281 | H15: 7308 | I15: 1262 | J15: 7473 | K15: 1172 | L15: 7388 | M15: 1155 | N15: 7433 | O15: 1152
A16: Cerro Largo | B16: =+D16+F16+H16+J16+L16+N16 -> 8832 | C16: 598 | D16: 1447 | E16: 84 | F16: 1492 | G16: 115 | H16: 1497 | I16: 102 | J16: 1460 | K16: 84 | L16: 1456 | M16: 113 | N16: 1480 | O16: 100
A17: Colonia | B17: =+D17+F17+H17+J17+L17+N17 -> 10633 | C17: 792 | D17: 1777 | E17: 163 | F17: 1803 | G17: 123 | H17: 1800 | I17: 137 | J17: 1747 | K17: 134 | L17: 1748 | M17: 131 | N17: 1758 | O17: 104
A18: Durazno | B18: 5522 | C18: 661 | D18: 786 | E18: 116 | F18: 889 | G18: 125 | H18: 878 | I18: 117 | J18: 1010 | K18: 105 | L18: 973 | M18: 98 | N18: 986 | O18: 100
A19: Flores | B19: 2151 | C19: 341 | D19: 309 | E19: 58 | F19: 365 | G19: 50 | H19: 379 | I19: 60 | J19: 393 | K19: 55 | L19: 363 | M19: 57 | N19: 342 | O19: 61
A20: Florida | B20: 6241 | C20: 304 | D20: 1041 | E20: 41 | F20: 1060 | G20: 58 | H20: 981 | I20: 41 | J20: 1066 | K20: 57 | L20: 1046 | M20: 40 | N20: 1047 | O20: 67
A21: Lavalleja | B21: 4912 | C21: 656 | D21: 838 | E21: 116 | F21: 791 | G21: 108 | H21: 830 | I21: 109 | J21: 805 | K21: 116 | L21: 813 | M21: 107 | N21: 835 | O21: 100
A22: Maldonado | B22: 13473 | C22: 3856 | D22: 2190 | E22: 637 | F22: 2161 | G22: 709 | H22: 2213 | I22: 595 | J22: 2316 | K22: 635 | L22: 2262 | M22: 655 | N22: 2331 | O22: 625
A23: Paysandú | B23: 11672 | C23: 1162 | D23: 1904 | E23: 187 | F23: 1923 | G23: 210 | H23: 1885 | I23: 201 | J23: 1952 | K23: 176 | L23: 1983 | M23: 207 | N23: 2025 | O23: 181
A24: Río Negro | B24: 5642 | C24: 434 | D24: 931 | E24: 65 | F24: 923 | G24: 85 | H24: 923 | I24: 78 | J24: 909 | K24: 63 | L24: 952 | M24: 65 | N24: 1004 | O24: 78
A25: Rivera | B25: 10887 | C25: 668 | D25: 1680 | E25: 126 | F25: 1792 | G25: 115 | H25: 1795 | I25: 113 | J25: 1854 | K25: 105 | L25: 1856 | M25: 95 | N25: 1910 | O25: 114
A26: Rocha | B26: 6625 | C26: 397 | D26: 1038 | E26: 61 | F26: 1118 | G26: 81 | H26: 1093 | I26: 82 | J26: 1083 | K26: 64 | L26: 1155 | M26: 48 | N26: 1138 | O26: 61
A27: Salto | B27: 13194 | C27: 1083 | D27: 2237 | E27: 201 | F27: 2192 | G27: 183 | H27: 2045 | I27: 166 | J27: 2230 | K27: 185 | L27: 2239 | M27: 167 | N27: 2251 | O27: 181
A28: San José | B28: 9895 | C28: 580 | D28: 1601 | E28: 107 | F28: 1597 | G28: 93 | H28: 1716 | I28: 101 | J28: 1688 | K28: 102 | L28: 1627 | M28: 84 | N28: 1666 | O28: 93
A29: Soriano | B29: 8396 | C29: 437 | D29: 1375 | E29: 72 | F29: 1410 | G29: 75 | H29: 1371 | I29: 84 | J29: 1356 | K29: 62 | L29: 1475 | M29: 72 | N29: 1409 | O29: 72
A30: Tacuarembó | B30: 9260 | C30: 619 | D30: 1325 | E30: 104 | F30: 1534 | G30: 98 | H30: 1484 | I30: 128 | J30: 1591 | K30: 93 | L30: 1704 | M30: 97 | N30: 1622 | O30: 99
A31: Treinta y Tres | B31: 4693 | C31: 199 | D31: 697 | E31: 35 | F31: 777 | G31: 32 | H31: 755 | I31: 30 | J31: 820 | K31: 34 | L31: 815 | M31: 39 | N31: 829 | O31: 29
A32: Fuente: Procesamiento propio en base a datos proporcionados por el DEE — CEIP
A33: Nota: Primaria Pública no incluye la matrícula correspondiente a JICI

Sheet II-2.2.12
A1: CONSEJO DE EDUCACIÓN PRIMARIA | F1: ALUMNOS MATRICULADOS
A3: Cuadro Nº II-2.2.12
A5: ALUMNOS MATRICULADOS EN EDUCACIÓN PRIMARIA COMÚN PÚBLICA POR RENDIMIENTO ESCOLAR Y ÁREA DEMOGRÁFICA SEGÚN GRADO AÑO 2012
A6: GRADO | B6: RENDIMIENTO ESCOLAR
B7: PROMOVIDOS | E7: NO PROMOVIDOS
B8: TOTAL | C8: ÁREA DEMOGRÁFICA | E8: TOTAL | F8: ÁREA DEMOGRÁFICA
C9: Urbana | D9: Rural | F9: Urbana | G9: Rural
A11: TOTAL | B11: =+C11+D11 -> 250621 | C11: =SUM(C12:C17) -> 234836 | D11: =SUM(D12:D17) -> 15785 | E11: =+F11+G11 -> 14964 | F11: =SUM(F12:F17) -> 14285 | G11: =SUM(G12:G17) -> 679
A12: Primero | B12: =+C12+D12 -> 38097 | C12: 35766 | D12: 2331 | E12: =+F12+G12 -> 6060 | F12: 5778 | G12: 282
A13: Segundo | B13: 40674 | C13: 38103 | D13: 2571 | E13: 3087 | F13: 2946 | G13: 141
A14: Tercero | B14: 41579 | C14: 38954 | D14: 2625 | E14: 2143 | F14: 2047 | G14: 96
A15: Cuarto | B15: 43013 | C15: 40275 | D15: 2738 | E15: 1715 | F15: 1648 | G15: 67
A16: Quinto | B16: 43630 | C16: 40892 | D16: 2738 | E16: 1274 | F16: 1218 | G16: 56
A17: Sexto | B17: 43628 | C17: 40846 | D17: 2782 | E17: 685 | F17: 648 | G17: 37
A19: Fuente: Procesamiento propio en base a datos proporcionados por el D.E.E .— C.E.I.P.
A20: Notas: - No incluye datos correspondientes a JICI - No se presenta información para la Educación Primaria Privada porque no existen establecimientos privados en el área demográfica rural

Sheet II-2.2.13
A1: CONSEJO DE EDUCACIÓN PRIMARIA | F1: ALUMNOS MATRICULADOS
A3: Cuadro Nº II-2.2.13
A5: ALUMNOS MATRICULADOS EN EDUCACIÓN PRIMARIA COMÚN PÚBLICA POR RENDIMIENTO ESCOLAR Y ÁREA DEMOGRÁFICA SEGÚN DEPARTAMENTO AÑO 2012
A6: DEPARTAMENTO | B6: RENDIMIENTO ESCOLAR
B7: PROMOVIDOS | F7: NO PROMOVIDOS
B8: TOTAL | C8: ÁREA DEMOGRÁFICA | E8: TOTAL | F8: ÁREA DEMOGRÁFICA
C9: Urbana | D9: Rural | F9: Urbana | G9: Rural
A11: TOTAL | B11: =+C11+D11 -> 250621 | C11: =SUM(C12:C13) -> 234836 | D11: =SUM(D12:D13) -> 15785 | E11: =+F11+G11 -> 14964 | F11: =SUM(F12:F13) -> 14285 | G11: =SUM(G12:G13) -> 679
A12: MONTEVIDEO | B12: =+C12+D12 -> 74083 | C12: 74083 | D12: 0 | E12: =+F12+G12 -> 6925 | F12: 6925 | G12: 0
A13: RESTO DEL PAÍS | B13: =+C13+D13 -> 176538 | C13: =SUM(C14:C31) -> 160753 | D13: =SUM(D14:D31) -> 15785 | E13: =+F13+G13 -> 8039 | F13: =SUM(F14:F31) -> 7360 | G13: =SUM(G14:G31) -> 679
A14: Artigas | B14: =+C14+D14 -> 8176 | C14: 7450 | D14: 726 | E14: =+F14+G14 -> 212 | F14: 175 | G14: 37
A15: Canelones | B15: 41377 | C15: 38842 | D15: 2535 | E15: 2784 | F15: 2660 | G15: 124
A16: Cerro Largo | B16: 8370 | C16: 7436 | D16: 934 | E16: 462 | F16: 417 | G16: 45
A17: Colonia | B17: 10288 | C17: 9209 | D17: 1079 | E17: 345 | F17: 302 | G17: 43
A18: Durazno | B18: 5449 | C18: 4956 | D18: 493 | E18: 73 | F18: 69 | G18: 4
A19: Flores | B19: 2129 | C19: 1887 | D19: 242 | E19: 22 | F19: 17 | G19: 5
A20: Florida | B20: 5987 | C20: 5220 | D20: 767 | E20: 254 | F20: 215 | G20: 39
A21: Lavalleja | B21: 4674 | C21: 4254 | D21: 420 | E21: 238 | F21: 209 | G21: 29
A22: Maldonado | B22: 13014 | C22: 12414 | D22: 600 | E22: 459 | F22: 418 | G22: 41
A23: Paysandú | B23: 11115 | C23: 10025 | D23: 1090 | E23: 557 | F23: 500 | G23: 57
A24: Río Negro | B24: 5485 | C24: 4936 | D24: 549 | E24: 157 | F24: 141 | G24: 16
A25: Rivera | B25: 10615 | C25: 9545 | D25: 1070 | E25: 272 | F25: 246 | G25: 26
A26: Rocha | B26: 6383 | C26: 6097 | D26: 286 | E26: 242 | F26: 232 | G26: 10
A27: Salto | B27: 12376 | C27: 11001 | D27: 1375 | E27: 818 | F27: 737 | G27: 81
A28: San José | B28: 9398 | C28: 8189 | D28: 1209 | E28: 497 | F28: 455 | G28: 42
A29: Soriano | B29: 8015 | C29: 7299 | D29: 716 | E29: 381 | F29: 336 | G29: 45
A30: Tacuarembó | B30: 9089 | C30: 7791 | D30: 1298 | E30: 171 | F30: 142 | G30: 29
A31: Treinta y Tres | B31: 4598 | C31: 4202 | D31: 396 | E31: 95 | F31: 89 | G31: 6
A32: Fuente: Procesamiento propio en base a datos proporcionados por el D.E.E .— C.E.I.P.
A33: Nota: No incluye datos correspondientes a JICI
A34: Nota: No se presenta información para la Educación Primaria Privada porque no existen establecimientos privados en el área demográfica rural

Sheet II-2.2.14
A1: CONSEJO DE EDUCACIÓN PRIMARIA | F1: ALUMNOS MATRICULADOS
A3: Cuadro Nº II-2.2.14
A5: ALUMNOS MATRICULADOS EN EDUCACIÓN PRIMARIA COMÚN PÚBLICA POR RENDIMIENTO ESCOLAR Y SEXO SEGÚN DEPARTAMENTO. AÑO 2012.
A6: DEPARTAMENTO | B6: RENDIMIENTO ESCOLAR
B7: PROMOVIDOS | E7: NO PROMOVIDOS
B8: TOTAL | C8: SEXO | E8: TOTAL | F8: SEXO
C9: M | D9: F | F9: M | G9: F
A10: TOTAL | B10: =+C10+D10 -> 250621 | C10: =SUM(C11:C12) -> 128341 | D10: =SUM(D11:D12) -> 122280 | E10: =+F10+G10 -> 14964 | F10: =SUM(F11:F12) -> 9148 | G10: =SUM(G11:G12) -> 5816
A11: MONTEVIDEO | B11: =+C11+D11 -> 74083 | C11: 37578 | D11: 36505 | E11: =+F11+G11 -> 6925 | F11: 4187 | G11: 2738
A12: RESTO DEL PAÍS | B12: 176538 | C12: =SUM(C13:C30) -> 90763 | D12: =SUM(D13:D30) -> 85775 | E12: 8039 | F12: =SUM(F13:F30) -> 4961 | G12: =SUM(G13:G30) -> 3078
A13: Artigas | B13: 8176 | C13: 4255 | D13: 3921 | E13: 212 | F13: 132 | G13: 80
A14: Canelones | B14: 41377 | C14: 21133 | D14: 20244 | E14: 2784 | F14: 1731 | G14: 1053
A15: Cerro Largo | B15: 8370 | C15: 4253 | D15: 4117 | E15: 462 | F15: 280 | G15: 182
A16: Colonia | B16: 10288 | C16: 5252 | D16: 5036 | E16: 345 | F16: 205 | G16: 140
A17: Durazno | B17: 5449 | C17: 2811 | D17: 2638 | E17: 73 | F17: 48 | G17: 25
A18: Flores | B18: 2129 | C18: 1027 | D18: 1102 | E18: 22 | F18: 13 | G18: 9
A19: Florida | B19: 5987 | C19: 3071 | D19: 2916 | E19: 254 | F19: 152 | G19: 102
A20: Lavalleja | B20: 4674 | C20: 2428 | D20: 2246 | E20: 238 | F20: 157 | G20: 81
A21: Maldonado | B21: 13014 | C21: 6707 | D21: 6307 | E21: 459 | F21: 281 | G21: 178
A22: Paysandú | B22: 11115 | C22: 5779 | D22: 5336 | E22: 557 | F22: 366 | G22: 191
A23: Río Negro | B23: 5485 | C23: 2847 | D23: 2638 | E23: 157 | F23: 89 | G23: 68
A24: Rivera | B24: 10615 | C24: 5561 | D24: 5054 | E24: 272 | F24: 167 | G24: 105
A25: Rocha | B25: 6383 | C25: 3304 | D25: 3079 | E25: 242 | F25: 146 | G25: 96
A26: Salto | B26: 12376 | C26: 6389 | D26: 5987 | E26: 818 | F26: 508 | G26: 310
A27: San José | B27: 9398 | C27: 4847 | D27: 4551 | E27: 497 | F27: 294 | G27: 203
A28: Soriano | B28: 8015 | C28: 4044 | D28: 3971 | E28: 381 | F28: 231 | G28: 150
A29: Tacuarembó | B29: 9089 | C29: 4698 | D29: 4391 | E29: 171 | F29: 105 | G29: 66
A30: Treinta y Tres | B30: 4598 | C30: 2357 | D30: 2241 | E30: 95 | F30: 56 | G30: 39
A31: Fuente: Procesamiento propio en base a datos proporcionados por el D.E.E. — C.E.I.P.
A32: Nota: No incluye datos correspondientes a JICI .

Sheet II-2.2.15
A1: CONSEJO DE EDUCACIÓN PRIMARIA | F1: ALUMNOS MATRICULADOS
A3: Cuadro Nº II-2.2.15
A5: ALUMNOS MATRICULADOS EN EDUCACIÓN PRIMARIA COMÚN PRIVADA POR RENDIMIENTO ESCOLAR Y SEXO SEGÚN DEPARTAMENTO AÑO 2012
A6: DEPARTAMENTO | B6: RENDIMIENTO ESCOLAR
B7: PROMOVIDOS | E7: NO PROMOVIDOS
B8: TOTAL | C8: SEXO | E8: TOTAL | F8: SEXO
C9: M | D9: F | F9: M | G9: F
A10: TOTAL | B10: =+C10+D10 -> 52153 | C10: =SUM(C11:C12) -> 26291 | D10: =SUM(D11:D12) -> 25862 | E10: =+F10+G10 -> 736 | F10: =SUM(F11:F12) -> 458 | G10: =SUM(G11:G12) -> 278
A11: MONTEVIDEO | B11: =+C11+D11 -> 32143 | C11: 16182 | D11: 15961 | E11: =+F11+G11 -> 503 | F11: 304 | G11: 199
A12: RESTO DEL PAÍS | B12: 20010 | C12: =SUM(C13:C30) -> 10109 | D12: =SUM(D13:D30) -> 9901 | E12: 233 | F12: =SUM(F13:F30) -> 154 | G12: =SUM(G13:G30) -> 79
A13: Artigas | B13: 117 | C13: 56 | D13: 61 | E13: 1 | F13: 1 | G13: 0
A14: Canelones | B14: 7245 | C14: 3682 | D14: 3563 | E14: 93 | F14: 62 | G14: 31
A15: Cerro Largo | B15: 592 | C15: 307 | D15: 285 | E15: 6 | F15: 5 | G15: 1
A16: Colonia | B16: 784 | C16: 387 | D16: 397 | E16: 8 | F16: 5 | G16: 3
A17: Durazno | B17: 657 | C17: 303 | D17: 354 | E17: 4 | F17: 3 | G17: 1
A18: Flores | B18: 338 | C18: 171 | D18: 167 | E18: 3 | F18: 1 | G18: 2
A19: Florida | B19: 303 | C19: 152 | D19: 151 | E19: 1 | F19: 1 | G19: 0
A20: Lavalleja | B20: 645 | C20: 331 | D20: 314 | E20: 11 | F20: 5 | G20: 6
A21: Maldonado | B21: 3806 | C21: 1950 | D21: 1856 | E21: 50 | F21: 31 | G21: 19
A22: Paysandú | B22: 1150 | C22: 580 | D22: 570 | E22: 12 | F22: 10 | G22: 2
A23: Río Negro | B23: 428 | C23: 218 | D23: 210 | E23: 6 | F23: 1 | G23: 5
A24: Rivera | B24: 660 | C24: 353 | D24: 307 | E24: 8 | F24: 6 | G24: 2
A25: Rocha | B25: 395 | C25: 194 | D25: 201 | E25: 2 | F25: 2 | G25: 0
A26: Salto | B26: 1070 | C26: 522 | D26: 548 | E26: 13 | F26: 9 | G26: 4
A27: San José | B27: 576 | C27: 273 | D27: 303 | E27: 4 | F27: 4 | G27: 0
A28: Soriano | B28: 433 | C28: 208 | D28: 225 | E28: 4 | F28: 4 | G28: 0
A29: Tacuarembó | B29: 616 | C29: 310 | D29: 306 | E29: 3 | F29: 1 | G29: 2
A30: Treinta y Tres | B30: 195 | C30: 112 | D30: 83 | E30: 4 | F30: 3 | G30: 1
A31: Fuente: Procesamiento propio en base a datos proporcionados por el D.E.E. — C.E.I.P.

Sheet II-2.2.16
A1: CONSEJO DE EDUCACIÓN PRIMARIA | E1: ALUMNOS MATRICULADOS
A3: Cuadro Nº II-2.2.16
A5: ALUMNOS MATRICULADOS EGRESADOS DE EDUCACIÓN PRIMARIA COMÚN PÚBLICA POR ÁREA DEMOGRÁFICA SEGÚN DEPARTAMENTO AÑO 2012
A6: DEPARTAMENTO | C6: ÁREA DEMOGRÁFICA
B7: TOTAL
C8: Urbana | D8: Rural
A10: TOTAL | B10: =+C10+D10 -> 43628 | C10: =SUM(C11:C12) -> 40846 | D10: =SUM(D11:D12) -> 2782
A11: MONTEVIDEO | B11: =C11+D11 -> 12504 | C11: 12504 | D11: 0
A12: RESTO DEL PAÍS | B12: =+C12+D12 -> 31124 | C12: =SUM(C13:C30) -> 28342 | D12: =SUM(D13:D30) -> 2782
A13: Artigas | B13: =+C13+D13 -> 1472 | C13: 1331 | D13: 141
A14: Canelones | B14: 7292 | C14: 6855 | D14: 437
A15: Cerro Largo | B15: 1460 | C15: 1288 | D15: 172
A16: Colonia | B16: 1738 | C16: 1574 | D16: 164
A17: Durazno | B17: 983 | C17: 894 | D17: 89
A18: Flores | B18: 342 | C18: 311 | D18: 31
A19: Florida | B19: 1033 | C19: 900 | D19: 133
A20: Lavalleja | B20: 825 | C20: 758 | D20: 67
A21: Maldonado | B21: 2320 | C21: 2215 | D21: 105
A22: Paysandú | B22: 1992 | C22: 1788 | D22: 204
A23: Río Negro | B23: 997 | C23: 901 | D23: 96
A24: Rivera | B24: 1902 | C24: 1702 | D24: 200
A25: Rocha | B25: 1118 | C25: 1070 | D25: 48
A26: Salto | B26: 2186 | C26: 1954 | D26: 232
A27: San José | B27: 1643 | C27: 1416 | D27: 227
A28: Soriano | B28: 1389 | C28: 1263 | D28: 126
A29: Tacuarembó | B29: 1611 | C29: 1372 | D29: 239
A30: Treinta y Tres | B30: 821 | C30: 750 | D30: 71
A31: Fuente: Procesamiento propio en base a datos proporcionados por el D.E.E .— C.E.I.P.
A32: Nota: No se presenta información para Montevideo Rural por que no existen establecimientos en el área demográfica rural.

Sheet II-2.2.17
A1: CONSEJO DE EDUCACIÓN PRIMARIA | G1: ALUMNOS MATRICULADOS
A3: Cuadro Nº II-2.2.17
A5: ALUMNOS MATRICULADOS EGRESADOS DE EDUCACIÓN PRIMARIA COMÚN POR FORMA DE ADMINISTRACIÓN SEGÚN DEPARTAMENTO AÑO 2012
A6: DEPARTAMENTO | B6: TOTAL | C6: PÚBLICA | G6: PRIVADA
C7: TOTAL | D7: SEXO | G7: TOTAL | H7: SEXO
D8: M | E8: M | F8: F | H8: M | I8: F
A9: TOTAL | B9: =+C9+G9 -> 51997 | C9: =+E9+F9 -> 43628 | E9: =SUM(E10:E11) -> 22301 | F9: =SUM(F10:F11) -> 21327 | G9: =+H9+I9 -> 8369 | H9: =SUM(H10,H11) -> 4208 | I9: =SUM(I10,I11) -> 4161
A10: MONTEVIDEO | B10: =+C10+G10 -> 17641 | C10: =+E10+F10 -> 12504 | D10: 6560 | E10: 6270 | F10: 6234 | G10: =+H10+I10 -> 5137 | H10: 2576 | I10: 2561
A11: RESTO DEL PAÍS | B11: =+C11+G11 -> 34356 | C11: 31124 | E11: =SUM(E12:E29) -> 16031 | F11: =SUM(F12:F29) -> 15093 | G11: 3232 | H11: =SUM(H12:H29) -> 1632 | I11: =SUM(I12:I29) -> 1600
A12: Artigas | B12: =+C12+G12 -> 1493 | C12: 1472 | D12: 765 | E12: 755 | F12: 717 | G12: 21 | H12: 11 | I12: 10
A13: Canelones | B13: 8442 | C13: 7292 | D13: 3826 | E13: 3657 | F13: 3635 | G13: 1150 | H13: 586 | I13: 564
A14: Cerro Largo | B14: 1560 | C14: 1460 | D14: 802 | E14: 758 | F14: 702 | G14: 100 | H14: 58 | I14: 42
A15: Colonia | B15: 1840 | C15: 1738 | D15: 891 | E15: 920 | F15: 818 | G15: 102 | H15: 51 | I15: 51
A16: Durazno | B16: 1083 | C16: 983 | D16: 502 | E16: 522 | F16: 461 | G16: 100 | H16: 41 | I16: 59
A17: Flores | B17: 403 | C17: 342 | D17: 192 | E17: 178 | F17: 164 | G17: 61 | H17: 33 | I17: 28
A18: Florida | B18: 1100 | C18: 1033 | D18: 502 | E18: 522 | F18: 511 | G18: 67 | H18: 30 | I18: 37
A19: Lavalleja | B19: 925 | C19: 825 | D19: 426 | E19: 426 | F19: 399 | G19: 100 | H19: 48 | I19: 52
A20: Maldonado | B20: 2944 | C20: 2320 | D20: 1183 | E20: 1246 | F20: 1074 | G20: 624 | H20: 338 | I20: 286
A21: Paysandú | B21: 2173 | C21: 1992 | D21: 976 | E21: 1047 | F21: 945 | G21: 181 | H21: 70 | I21: 111
A22: Río Negro | B22: 1075 | C22: 997 | D22: 501 | E22: 531 | F22: 466 | G22: 78 | H22: 38 | I22: 40
A23: Rivera | B23: 2016 | C23: 1902 | D23: 995 | E23: 963 | F23: 939 | G23: 114 | H23: 54 | I23: 60
A24: Rocha | B24: 1179 | C24: 1118 | D24: 603 | E24: 589 | F24: 529 | G24: 61 | H24: 28 | I24: 33
A25: Salto | B25: 2366 | C25: 2186 | D25: 1191 | E25: 1136 | F25: 1050 | G25: 180 | H25: 92 | I25: 88
A26: San José | B26: 1736 | C26: 1643 | D26: 824 | E26: 834 | F26: 809 | G26: 93 | H26: 49 | I26: 44
A27: Soriano | B27: 1461 | C27: 1389 | D27: 717 | E27: 702 | F27: 687 | G27: 72 | H27: 36 | I27: 36
A28: Tacuarembó | B28: 1710 | C28: 1611 | D28: 845 | E28: 824 | F28: 787 | G28: 99 | H28: 53 | I28: 46
A29: Treinta y Tres | B29: 850 | C29: 821 | D29: 443 | E29: 421 | F29: 400 | G29: 29 | H29: 16 | I29: 13
A30: Fuente: Procesamiento propio en base a datos proporcionados por el D.E.E. — C.E.I.P.

Sheet II-2.2.18
A1: CONSEJO DE EDUCACIÓN PRIMARIA | E1: ALUMNOS MATRICULADOS
A3: Cuadro Nº II-2.2.18
A5: ASISTENCIA INSUFICIENTE Y ABANDONO INTERMITENTE DE 1º GRADO Y 1º A 6º GRADO EN EDUCACIÓN COMÚN PÚBLICA SEGÚN DEPARTAMENTO. AÑO 2012
A6: DEPARTAMENTO | C6: ASISTENCIA INSUFICIENTE | E6: ABANDONO INTERMITENTE
C7: Sólo 1.er año | D7: 1.º a 6.º años | E7: Sólo 1.er año | F7: 1.º a 6.º años
A8: TOTAL | B8: =SUM(B9:B10) -> 265585 | C8: =SUM(C9:C10) -> 4439 | D8: =SUM(D9:D10) -> 17435 | E8: =SUM(E9:E10) -> 656 | F8: =SUM(F9:F10) -> 2664
A9: MONTEVIDEO | B9: ='II-2.2.1'!E10 -> 81008 | C9: 1938 | D9: 7306 | E9: 253 | F9: 1045
A10: RESTO DEL PAÍS | B10: =SUM(B11:B28) -> 184577 | C10: =SUM(C11:C28) -> 2501 | D10: =SUM(D11:D28) -> 10129 | E10: =SUM(E11:E28) -> 403 | F10: =SUM(F11:F28) -> 1619
A11: Artigas | B11: ='II-2.2.1'!E12 -> 8388 | C11: 112 | D11: 504 | E11: 14 | F11: 90
A12: Canelones | B12: ='II-2.2.1'!E13 -> 44161 | C12: 890 | D12: 3372 | E12: 158 | F12: 531
A13: Cerro Largo | B13: ='II-2.2.1'!E14 -> 8832 | C13: 92 | D13: 411 | E13: 37 | F13: 72
A14: Colonia | B14: ='II-2.2.1'!E15 -> 10633 | C14: 79 | D14: 368 | E14: 12 | F14: 78
A15: Durazno | B15: ='II-2.2.1'!E16 -> 5522 | C15: 80 | D15: 365 | E15: 12 | F15: 49
A16: Flores | B16: ='II-2.2.1'!E17 -> 2151 | C16: 24 | D16: 82 | E16: 1 | F16: 9
A17: Florida | B17: ='II-2.2.1'!E18 -> 6241 | C17: 97 | D17: 349 | E17: 8 | F17: 55
A18: Lavalleja | B18: ='II-2.2.1'!E19 -> 4912 | C18: 60 | D18: 224 | E18: 20 | F18: 48
A19: Maldonado | B19: ='II-2.2.1'!E20 -> 13473 | C19: 189 | D19: 728 | E19: 19 | F19: 70
A20: Paysandú | B20: ='II-2.2.1'!E21 -> 11672 | C20: 145 | D20: 622 | E20: 21 | F20: 102
A21: Río Negro | B21: ='II-2.2.1'!E22 -> 5642 | C21: 44 | D21: 189 | E21: 3 | F21: 32
A22: Rivera | B22: ='II-2.2.1'!E23 -> 10887 | C22: 94 | D22: 426 | E22: 16 | F22: 97
A23: Rocha | B23: ='II-2.2.1'!E24 -> 6625 | C23: 79 | D23: 366 | E23: 22 | F23: 71
A24: Salto | B24: ='II-2.2.1'!E25 -> 13194 | C24: 180 | D24: 726 | E24: 24 | F24: 122
A25: San José | B25: ='II-2.2.1'!E26 -> 9895 | C25: 136 | D25: 539 | E25: 17 | F25: 74
A26: Soriano | B26: ='II-2.2.1'!E27 -> 8396 | C26: 92 | D26: 370 | E26: 6 | F26: 45
A27: Tacuarembó | B27: ='II-2.2.1'!E28 -> 9260 | C27: 75 | D27: 317 | E27: 6 | F27: 28
A28: Treinta y Tres | B28: ='II-2.2.1'!E29 -> 4693 | C28: 33 | D28: 171 | E28: 7 | F28: 46
A29: Fuente: Procesamiento propio en base a datos proporcionados por el D.E.E. — C.E.I.P.
A30: No incluye datos correspondientes a JICI .

Sheet II-2.3.1
A1: CONSEJO DE EDUCACIÓN PRIMARIA | G1: PERSONAL DOCENTE
A3: Cuadro Nº II-2.3.1
A5: PERSONAL DOCENTE DE EDUCACIÓN PRIMARIA PÚBLICA POR TIPO DE DESEMPEÑO DOCENTE SEGÚN DEPARTAMENTO AÑO 2012
A6: DEPARTAMENTO | C6: TIPO DE DESEMPEÑO DOCENTE
B7: TOTAL | C7: Inspección | D7: Educación Común | E7: Educación en Colonias | F7: Educación Especial | G7: Servicios Docentes Especiales | H7: Profesores Especiales | I7: Coordinación Apoyo
A9: TOTAL | B9: =SUM(B11:B12) -> 19220 | C9: 265 | D9: 15169 | E9: 39 | F9: 962 | G9: 130 | H9: 2563 | I9: 92
A11: MONTEVIDEO | B11: =SUM(C11:I11) -> 5634 | C11: 96 | D11: 4158 | E11: 14 | F11: 408 | G11: 75 | H11: 870 | I11: 13
A12: RESTO DEL PAÍS | B12: =SUM(B14:B31) -> 13586 | C12: 169 | D12: 11011 | E12: 25 | F12: 554 | G12: 55 | H12: 1693 | I12: 79
A14: Artigas | B14: =SUM(C14:I14) -> 661 | C14: 7 | D14: 526 | E14: 0 | F14: 23 | G14: 0 | H14: 101 | I14: 4
A15: Canelones | B15: 2680 | C15: 31 | D15: 2230 | E15: 0 | F15: 108 | G15: 14 | H15: 285 | I15: 12
A16: Cerro Largo | B16: 684 | C16: 9 | D16: 558 | E16: 0 | F16: 32 | G16: 4 | H16: 77 | I16: 4
A17: Colonia | B17: 808 | C17: 9 | D17: 649 | E17: 0 | F17: 36 | G17: 3 | H17: 107 | I17: 4
A18: Durazno | B18: 465 | C18: 7 | D18: 378 | E18: 0 | F18: 22 | G18: 0 | H18: 54 | I18: 4
A19: Flores | B19: 210 | C19: 3 | D19: 160 | E19: 0 | F19: 9 | G19: 0 | H19: 35 | I19: 3
A20: Florida | B20: 536 | C20: 7 | D20: 411 | E20: 0 | F20: 23 | G20: 5 | H20: 86 | I20: 4
A21: Lavalleja | B21: 433 | C21: 6 | D21: 348 | E21: 0 | F21: 20 | G21: 4 | H21: 51 | I21: 4
A22: Maldonado | B22: 836 | C22: 11 | D22: 650 | E22: 15 | F22: 38 | G22: 7 | H22: 111 | I22: 4
A23: Paysandú | B23: 844 | C23: 10 | D23: 701 | E23: 0 | F23: 37 | G23: 5 | H23: 87 | I23: 4
A24: Río Negro | B24: 456 | C24: 5 | D24: 371 | E24: 0 | F24: 21 | G24: 0 | H24: 55 | I24: 4
A25: Rivera | B25: 891 | C25: 12 | D25: 714 | E25: 0 | F25: 31 | G25: 1 | H25: 129 | I25: 4
A26: Rocha | B26: 542 | C26: 7 | D26: 419 | E26: 0 | F26: 27 | G26: 3 | H26: 82 | I26: 4
A27: Salto | B27: 948 | C27: 11 | D27: 755 | E27: 9 | F27: 32 | G27: 2 | H27: 134 | I27: 5
A28: San José | B28: 729 | C28: 9 | D28: 615 | E28: 0 | F28: 29 | G28: 0 | H28: 72 | I28: 4
A29: Soriano | B29: 653 | C29: 9 | D29: 528 | E29: 0 | F29: 29 | G29: 2 | H29: 81 | I29: 4
A30: Tacuarembó | B30: 790 | C30: 10 | D30: 664 | E30: 1 | F30: 22 | G30: 5 | H30: 85 | I30: 3
A31: Treinta y Tres | B31: 420 | C31: 6 | D31: 334 | E31: 0 | F31: 15 | G31: 0 | H31: 61 | I31: 4
A32: Fuente: DEE — CEP Listado de cargos de la División Hacienda a Julio 2011
A33: Nota: Personal docente refiere a cargos de dos tipos: vacantes y ocupados
A74: =SUM(A76:A77) -> 147
A76: 92
A77: =SUM(A79:A96) -> 55
A79: 0
A80: 14
A81: 4
A82: 3
A83: 0
A84: 0
A85: 5
A86: 4
A87: 7
A88: 5
A89: 0
A90: 1
A91: 3
A92: 2
A93: 0
A94: 2
A95: 5
A96: 0

Sheet II-2.3.2
A1: CONSEJO DE EDUCACIÓN PRIMARIA | J1: PERSONAL DOCENTE
A3: Cuadro Nº II-2.3.2
A5: PERSONAL DOCENTE DE EDUCACIÓN PRIMARIA PRIVADA POR TIPO DE ESTABLECIMIENTO Y TIPO DE DESEMPEÑO DOCENTE SEGÚN DEPARTAMENTO AÑO 2012
A6: DEPARTAMENTO | C6: TOTAL | D6: MAESTROS | E6: PROFESORES | F6: ESTABLECIMIENTOS
F7: HABILITADOS | I7: AUTORIZADOS
F8: Total | G8: Maestros | H8: Profesores | I8: Total | J8: Maestros | K8: Profesores
A10: TOTAL | C10: =+F10+I10 -> 7815 | D10: =+G10+J10 -> 3270 | E10: =+H10+K10 -> 4545 | F10: =+G10+H10 -> 7369 | G10: =SUM(G11:G12) -> 3109 | H10: =SUM(H11:H12) -> 4260 | I10: =+J10+K10 -> 446 | J10: =SUM(J11:J12) -> 161 | K10: =SUM(K11:K12) -> 285
A11: MONTEVIDEO | C11: =+F11+I11 -> 4712 | D11: 1983 | E11: 2729 | F11: =+G11+H11 -> 4329 | G11: 1846 | H11: 2483 | I11: =+J11+K11 -> 383 | J11: 137 | K11: 246
A12: RESTO DEL PAÍS | C12: 3103 | D12: 1287 | E12: 1816 | F12: 3040 | G12: =SUM(G13:G30) -> 1263 | H12: =SUM(H13:H30) -> 1777 | I12: 63 | J12: =SUM(J13:J30) -> 24 | K12: =SUM(K13:K30) -> 39
A13: Artigas | C13: 12 | D13: 6 | E13: 6 | F13: 12 | G13: 6 | H13: 6 | I13: 0 | J13: 0 | K13: 0
A14: Canelones | C14: 1066 | D14: 415 | E14: 651 | F14: 1008 | G14: 394 | H14: 614 | I14: 58 | J14: 21 | K14: 37
A15: Cerro Largo | C15: 79 | D15: 33 | E15: 46 | F15: 79 | G15: 33 | H15: 46 | I15: 0 | J15: 0 | K15: 0
A16: Colonia | C16: 169 | D16: 68 | E16: 101 | F16: 169 | G16: 68 | H16: 101 | I16: 0 | J16: 0 | K16: 0
A17: Durazno | C17: 59 | D17: 38 | E17: 21 | F17: 59 | G17: 38 | H17: 21 | I17: 0 | J17: 0 | K17: 0
A18: Flores | C18: 61 | D18: 24 | E18: 37 | F18: 61 | G18: 24 | H18: 37 | I18: 0 | J18: 0 | K18: 0
A19: Florida | C19: 53 | D19: 22 | E19: 31 | F19: 53 | G19: 22 | H19: 31 | I19: 0 | J19: 0 | K19: 0
A20: Lavalleja | C20: 101 | D20: 46 | E20: 55 | F20: 101 | G20: 46 | H20: 55 | I20: 0 | J20: 0 | K20: 0
A21: Maldonado | C21: 513 | D21: 235 | E21: 278 | F21: 513 | G21: 235 | H21: 278 | I21: 0 | J21: 0 | K21: 0
A22: Paysandú | C22: 179 | D22: 80 | E22: 99 | F22: 179 | G22: 80 | H22: 99 | I22: 0 | J22: 0 | K22: 0
A23: Río Negro | C23: 104 | D23: 37 | E23: 67 | F23: 102 | G23: 35 | H23: 67 | I23: 2 | J23: 2 | K23: 0
A24: Rivera | C24: 134 | D24: 55 | E24: 79 | F24: 134 | G24: 55 | H24: 79 | I24: 0 | J24: 0 | K24: 0
A25: Rocha | C25: 78 | D25: 33 | E25: 45 | F25: 78 | G25: 33 | H25: 45 | I25: 0 | J25: 0 | K25: 0
A26: Salto | C26: 151 | D26: 60 | E26: 91 | F26: 151 | G26: 60 | H26: 91 | I26: 0 | J26: 0 | K26: 0
A27: San José | C27: 108 | D27: 41 | E27: 67 | F27: 105 | G27: 40 | H27: 65 | I27: 3 | J27: 1 | K27: 2
A28: Soriano | C28: 76 | D28: 32 | E28: 44 | F28: 76 | G28: 32 | H28: 44 | I28: 0 | J28: 0 | K28: 0
A29: Tacuarembó | C29: 139 | D29: 52 | E29: 87 | F29: 139 | G29: 52 | H29: 87 | I29: 0 | J29: 0 | K29: 0
A30: Treinta y Tres | C30: 21 | D30: 10 | E30: 11 | F30: 21 | G30: 10 | H30: 11 | I30: 0 | J30: 0 | K30: 0
A31: Fuente: DEE — CEP Planillas enviadas por las Inspecciones Departamentales a abril de 2011.
A32: NOTA: El personal docente incluye exclusivamente docencia directa

Sheet MEDIA BASICA

Sheet II-3.1.1
A1: CONSEJO DE EDUCACIÓN INICIAL Y PRIMARIA (CEIP), | J1: ESTABLECIMIENTOS
A2: CONSEJO DE EDUCACIÓN SECUNDARIA (CES) Y CONSEJO DE EDUCACIÓN TÉCNICO PROFESIONAL (UTU)
A4: Cuadro Nº II-3.1.1
A6: ESTABLECIMIENTOS DE EDUCACIÓN MEDIA BÁSICA POR MODALIDAD Y FORMA DE ADMINISTRACIÓN SEGÚN DEPARTAMENTO. AÑO 2012.
A7: DEPARTAMENTO | D7: MODALIDAD
B8: TOTAL GENERAL | D8: CES | K8: CEIP | L8: CETP
D9: FORMA DE ADMINISTRACIÓN
C10: TOTAL LICEOS PÚBLICOS | D10: LICEOS PÚBLICOS | H10: TOTAL LICEOS PRIVADOS | I10: Liceos Privados | K10: Escuelas con Ciclo Básico Rural | L10: Escuelas de CBT y Técnica.
D12: Diurnos Oficiales | F12: Extra Edad Oficiales (Nocturno Y Diurno)
D15: Ciclo Básico | E15: C.Básico y Bachillerato | F15: Ciclo Básico | G15: C.Básico y Bachillerato | I15: Ciclo Básico | J15: C.Básico y Bachillerato
A16: TOTAL | B16: =SUM(C16+H16) -> 488 | C16: =SUM(C17,C18) -> 315 | D16: =D17+D18 -> 108 | E16: 140 | F16: 5 | G16: 62 | H16: =SUM(I16:J16) -> 173 | I16: 15 | J16: 158 | K16: 61 | L16: 112
A17: MONTEVIDEO | B17: =SUM(C17+H17) -> 168 | C17: 68 | D17: 48 | E17: 5 | F17: 1 | G17: 14 | H17: =SUM(I17:J17) -> 100 | I17: 6 | J17: 94 | K17: 1 | L17: 17
A18: RESTO DEL PAÍS | B18: 320 | C18: =SUM(C19:C36) -> 247 | D18: =SUM(D19:D36) -> 60 | E18: 135 | F18: 4 | G18: 48 | H18: =SUM(I18:J18) -> 73 | I18: 9 | J18: 64 | K18: =SUM(K19:K36) -> 60 | L18: =SUM(L19:L36) -> 95
A19: Artigas | B19: 11 | C19: 10 | D19: 4 | E19: 5 | F19: 0 | G19: 1 | H19: 1 | I19: 1 | J19: 0 | K19: 3 | L19: 5
A20: Canelones | B20: 80 | C20: 57 | D20: 14 | E20: 28 | F20: 2 | G20: 13 | H20: 23 | I20: 4 | J20: 19 | K20: 0 | L20: 19
A21: Cerro Largo | B21: 11 | C21: 9 | D21: 2 | E21: 5 | F21: 0 | G21: 2 | H21: 2 | I21: 0 | J21: 2 | K21: 5 | L21: 5
A22: Colonia | B22: 21 | C22: 19 | D22: 3 | E22: 9 | F22: 0 | G22: 6 | H22: 2 | I22: 0 | J22: 2 | K22: 6 | L22: 9
A23: Durazno | B23: 11 | C23: 9 | D23: 2 | E23: 5 | F23: 0 | G23: 1 | H23: 2 | I23: 0 | J23: 2 | K23: 1 | L23: 4
A24: Flores | B24: 7 | C24: 5 | D24: 1 | E24: 2 | F24: 0 | G24: 1 | H24: 2 | I24: 0 | J24: 2 | K24: 1 | L24: 2
A25: Florida | B25: 13 | C25: 12 | D25: 2 | E25: 9 | F25: 0 | G25: 1 | H25: 1 | I25: 0 | J25: 1 | K25: 2 | L25: 4
A26: Lavalleja | B26: 11 | C26: 9 | D26: 2 | E26: 6 | F26: 0 | G26: 1 | H26: 2 | I26: 1 | J26: 1 | K26: 2 | L26: 2
A27: Maldonado | B27: 24 | C27: 13 | D27: 4 | E27: 6 | F27: 0 | G27: 4 | H27: 11 | I27: 0 | J27: 11 | K27: 4 | L27: 5
A28: Paysandú | B28: 17 | C28: 13 | D28: 5 | E28: 7 | F28: 0 | G28: 1 | H28: 4 | I28: 0 | J28: 4 | K28: 10 | L28: 5
A29: Río Negro | B29: 11 | C29: 9 | D29: 3 | E29: 4 | F29: 0 | G29: 2 | H29: 2 | I29: 0 | J29: 2 | K29: 5 | L29: 3
A30: Rivera | B30: 21 | C30: 15 | D30: 4 | E30: 8 | F30: 2 | G30: 1 | H30: 6 | I30: 2 | J30: 4 | K30: 4 | L30: 4
A31: Rocha | B31: 15 | C31: 13 | D31: 3 | E31: 7 | F31: 0 | G31: 3 | H31: 2 | I31: 0 | J31: 2 | K31: 3 | L31: 5
A32: Salto | B32: 16 | C32: 11 | D32: 1 | E32: 9 | F32: 0 | G32: 1 | H32: 5 | I32: 0 | J32: 5 | K32: 1 | L32: 4
A33: San José | B33: 14 | C33: 12 | D33: 3 | E33: 5 | F33: 0 | G33: 5 | H33: 2 | I33: 0 | J33: 2 | K33: 6 | L33: 6
A34: Soriano | B34: 12 | C34: 11 | D34: 3 | E34: 5 | F34: 0 | G34: 3 | H34: 1 | I34: 0 | J34: 1 | K34: 1 | L34: 6
A35: Tacuarembó | B35: 15 | C35: 12 | D35: 3 | E35: 9 | F35: 0 | G35: 1 | H35: 3 | I35: 1 | J35: 2 | K35: 4 | L35: 5
A36: Treinta y Tres | B36: 10 | C36: 8 | D36: 1 | E36: 6 | F36: 0 | G36: 1 | H36: 2 | I36: 0 | J36: 2 | K36: 2 | L36: 2
A37: Fuente: D.E.- C.E.S .
A38: Notas: 1- Los establecimientos considerados en el Tipo de Educación Escuelas con Ciclo Básico Rural” ya fueron considerados en los totales de establecimientos de Educación Primaria por lo cual, si bien se presentan en la columna correspondiente, no participan en el “Total” del presente cuadro. 2- En un mismo establecimiento del CETP, coexisten ofertas educativas de diferentes niveles. Los establecimientos fueron contabilizados por el nivel educativo, por lo tanto cada dependencia física será contada tantas veces como niveles educativos contenga. Por ello el presente cuadro computa los establecimientos con cursos de Educación Media Básica, independientemente que en el mismo espacio locativo se dicten ofertas de otros niveles.

Sheet II-3.1.2
A1: CONSEJO DE EDUCACIÓN INICIAL Y PRIMARIA (CEIP), | G1: ESTABLECIMIENTOS
A2: CONSEJO DE EDUCACIÓN SECUNDARIA (CES) Y CONSEJO DE EDUCACIÓN TÉCNICO PROFESIONAL (UTU)
A3: Cuadro Nº II-3.1.2
A5: ESTABLECIMIENTOS FÍSICOS DE EDUCACIÓN MEDIA POR FORMA DE ADMINISTRACIÓN SEGÚN DEPARTAMENTO. AÑO 2012.
A6: DEPARTAMENTO | C6: MODALIDAD
B7: TOTAL GENERAL | C7: CES | E7: CEIP | F7: CETP
C9: LICEOS PÚBLICOS | D9: LICEOS PRIVADOS | E9: Escuelas con Ciclo Básico Rural | F9: Escuelas de CBT y Técnica.
A10: TOTAL | B10: =C10+D10+E10+F10 -> 767 | C10: =C11+C12 -> 287 | D10: =D11+D12 -> 184 | E10: =E11+E12 -> 61 | F10: =F11+F12 -> 235
A11: MONTEVIDEO | B11: =C11+D11+E11+F11 -> 228 | C11: 70 | D11: 106 | E11: 1 | F11: 51
A12: RESTO DEL PAÍS | B12: 539 | C12: =SUM(C13:C30) -> 217 | D12: =SUM(D13:D30) -> 78 | E12: =SUM(E13:E30) -> 60 | F12: =SUM(F13:F30) -> 184
A13: Artigas | B13: 28 | C13: 11 | D13: 1 | E13: 3 | F13: 13
A14: Canelones | B14: 112 | C14: 49 | D14: 26 | E14: 0 | F14: 37
A15: Cerro Largo | B15: 21 | C15: 7 | D15: 2 | E15: 5 | F15: 7
A16: Colonia | B16: 40 | C16: 14 | D16: 2 | E16: 6 | F16: 18
A17: Durazno | B17: 18 | C17: 8 | D17: 2 | E17: 1 | F17: 7
A18: Flores | B18: 11 | C18: 3 | D18: 2 | E18: 1 | F18: 5
A19: Florida | B19: 22 | C19: 12 | D19: 2 | E19: 2 | F19: 6
A20: Lavalleja | B20: 16 | C20: 8 | D20: 2 | E20: 2 | F20: 4
A21: Maldonado | B21: 36 | C21: 11 | D21: 12 | E21: 4 | F21: 9
A22: Paysandú | B22: 39 | C22: 14 | D22: 4 | E22: 10 | F22: 11
A23: Río Negro | B23: 20 | C23: 8 | D23: 2 | E23: 5 | F23: 5
A24: Rivera | B24: 30 | C24: 12 | D24: 6 | E24: 4 | F24: 8
A25: Rocha | B25: 24 | C25: 11 | D25: 2 | E25: 3 | F25: 8
A26: Salto | B26: 24 | C26: 11 | D26: 5 | E26: 1 | F26: 7
A27: San José | B27: 31 | C27: 9 | D27: 2 | E27: 6 | F27: 14
A28: Soriano | B28: 18 | C28: 9 | D28: 1 | E28: 1 | F28: 7
A29: Tacuarembó | B29: 33 | C29: 13 | D29: 3 | E29: 4 | F29: 13
A30: Treinta y Tres | B30: 16 | C30: 7 | D30: 2 | E30: 2 | F30: 5
A31: Fuente: C.E.S - CETP- CEIP
A32: Nota: 1- A diferencia del cuadro anterior II-3.1.1, el presente consolida la cantidad de establecimientos físicos con independencia del nivel educativo al cual son dirigidos los programas de estudios impartidos. En el caso del CETP debe considerarse que además de Educación Media se dictan programas dirigidos a Educación Terciaria No Universitaria y Educación de Jóvenes y Adultos.
A33: 2- Dentro de la cantidad de establecimientos declarados en el CETP se encuentran 114 reparticiones denominadas satélites en las cuales se imparten cursos administrados por el CETP, en establecimientos que no forman parte de los activos de ANEP.

Sheet II-3.2.1
A1: CONSEJO DE EDUCACIÓN SECUNDARIA | D1: ALUMNOS MATRICULADOS
A3: Cuadro Nº II-3.2.1
A5: ALUMNOS MATRICULADOS EN EDUCACION MEDIA BÁSICA GENERAL POR GRADO SEGÚN GRANDES ÁREAS Y FORMA DE ADMINISTRACIÓN. AÑO 2012.
A6: GRANDES ÁREAS Y FORMA DE ADMINISTRACIÓN | C6: GRADO
B7: TOTAL
C8: PRIMERO | D8: SEGUNDO | E8: TERCERO
A9: TOTAL DEL PAÍS | B9: =C9+D9+E9 -> 153287 | C9: =C14+C19 -> 56175 | D9: 49263 | E9: 47849
A10: MEDIA BÁSICA PÚBLICA | B10: 127593 | C10: 47277 | D10: 40734 | E10: 39582
A11: Diurna | B11: 114343 | C11: 44179 | D11: 36814 | E11: 33350
A12: Nocturna | B12: 13250 | C12: =C17+C22 -> 3098 | D12: 3920 | E12: 6232
A13: MEDIA BÁSICA PRIVADA | B13: 25694 | C13: 8898 | D13: 8529 | E13: 8267
A14: TOTAL MONTEVIDEO | B14: 56275 | C14: =C15+C18 -> 20827 | D14: =D15+D18 -> 18040 | E14: =E15+E18 -> 17408
A15: MEDIA BÁSICA PÚBLICA | B15: 39642 | C15: =C16+C17 -> 15085 | D15: =D16+D17 -> 12545 | E15: =E16+E17 -> 12012
A16: Diurna | B16: 35190 | C16: 14211 | D16: 11237 | E16: 9742
A17: Nocturna | B17: =C17+D17+E17 -> 4452 | C17: 874 | D17: 1308 | E17: 2270
A18: MEDIA BÁSICA PRIVADA | B18: =C18+D18+E18 -> 16633 | C18: 5742 | D18: 5495 | E18: 5396
A19: TOTAL RESTO DEL PAÍS | B19: 97012 | C19: =C20+C23 -> 35348 | D19: =D20+D23 -> 31223 | E19: =E20+E23 -> 30441
A20: MEDIA BÁSICA PÚBLICA | B20: 87951 | C20: =C21+C22 -> 32192 | D20: =D21+D22 -> 28189 | E20: =E21+E22 -> 27570
A21: Diurna | B21: 79153 | C21: 29968 | D21: 25577 | E21: 23608
A22: Nocturna | B22: 8798 | C22: 2224 | D22: 2612 | E22: 3962
A23: MEDIA BÁSICA PRIVADA | B23: 9061 | C23: 3156 | D23: 3034 | E23: 2871
A24: Fuente: D.E. — C.E.S.
A25: Nota: La referencia "Privada", (incluye los Habilitados "Liceo Naval" y "Liceo Militar"), se corresponde con la de "Liceos Habilitados" presente en ediciones anteriores del Anuario Estadístico del MEC.

Sheet II-3.2.2
A1: CONSEJO DE EDUCACIÓN TÉCNICO PROFESIONAL (U.T.U.) | H1: ALUMNOS MATRICULADOS
A5: Cuadro II-3.2.2.
A6: ALUMNOS MATRICULADOS EN EL CETP EN EDUCACIÓN MEDIA BÁSICA TECNOLÓGICA POR TIPO DE CURSO SEGÚN GRANDES ÁREAS, DEPARTAMENTO Y SEXO .AÑO 2012.
A9: GRANDES ÁREAS,DEPARTAMENTO Y SEXO | B9: TOTAL | D9: EDUCACIÓN MEDIA BÁSICA TECNOLÓGICA
C10: TOTAL | D10: Articulación Ed.Media Básica | F10: TOTAL | G10: C. B. T. Agrario | I10: TOTAL | J10: Ciclo Básico Tecnológico | L10: TOTAL | M10: Formación Profesional Básica 2007
D11: Sexo | G11: Sexo | J11: Sexo | M11: Sexo
D12: M | E12: F | G12: M | H12: F | J12: M | K12: F | M12: M | N12: F
A14: TOTAL | B14: =SUM(B15:B16) -> 26241 | C14: =SUM(C15:C16) -> 460 | D14: =SUM(D15:D16) -> 258 | E14: =SUM(E15:E16) -> 202 | F14: =SUM(F15:F16) -> 1101 | G14: =SUM(G15:G16) -> 325 | H14: 776 | I14: 16291 | J14: 6622 | K14: 9669 | L14: 8389 | M14: =SUM(M15:M16) -> 3051 | N14: =SUM(N15:N16) -> 5338
A15: Montevideo | B15: =+C15+F15+I15+L15 -> 4849 | C15: =+D15+E15 -> 161 | D15: 66 | E15: 95 | F15: =+G15+H15 -> 72 | G15: 25 | H15: 47 | I15: =+J15+K15 -> 2334 | J15: 935 | K15: 1399 | L15: =+M15+N15 -> 2282 | M15: 847 | N15: 1435
A16: Resto del País | B16: =+C16+F16+I16+L16 -> 21392 | C16: =+D16+E16 -> 299 | D16: 192 | E16: 107 | F16: =SUM(F17:F34) -> 1029 | G16: 300 | H16: 729 | I16: 13957 | J16: 5687 | K16: 8270 | L16: 6107 | M16: 2204 | N16: 3903
A17: Artigas | B17: =+C17+F17+I17+L17 -> 1162 | C17: 43 | D17: 28 | E17: 15 | F17: =+G17+H17 -> 0 | G17: 0 | H17: 0 | I17: =+J17+K17 -> 864 | J17: 341 | K17: 523 | L17: =+M17+N17 -> 255 | M17: 127 | N17: 128
A18: Canelones | B18: =+C18+F18+I18+L18 -> 4503 | C18: 54 | D18: 31 | E18: 23 | F18: 88 | G18: 31 | H18: 57 | I18: 2503 | J18: 1048 | K18: 1455 | L18: 1858 | M18: 663 | N18: 1195
A19: Cerro Largo | B19: 1337 | C19: 30 | D19: 24 | E19: 6 | F19: 77 | G19: 25 | H19: 52 | I19: 811 | J19: 311 | K19: 500 | L19: 419 | M19: 140 | N19: 279
A20: Colonia | B20: 1517 | C20: 41 | D20: 27 | E20: 14 | F20: 110 | G20: 33 | H20: 77 | I20: 1141 | J20: 444 | K20: 697 | L20: 225 | M20: 71 | N20: 154
A21: Durazno | B21: 923 | C21: 0 | D21: 0 | E21: 0 | F21: 117 | G21: 50 | H21: 67 | I21: 639 | J21: 259 | K21: 380 | L21: 167 | M21: 81 | N21: 86
A22: Flores | B22: 276 | C22: 0 | D22: 0 | E22: 0 | F22: 0 | G22: 0 | H22: 0 | I22: 183 | J22: 69 | K22: 114 | L22: 93 | M22: 25 | N22: 68
A23: Florida | B23: 612 | C23: 43 | D23: 29 | E23: 14 | F23: 0 | G23: 0 | H23: 0 | I23: 313 | J23: 141 | K23: 172 | L23: 256 | M23: 100 | N23: 156
A24: Lavalleja | B24: 576 | C24: 0 | D24: 0 | E24: 0 | F24: 0 | G24: 0 | H24: 0 | I24: 341 | J24: 144 | K24: 197 | L24: 235 | M24: 80 | N24: 155
A25: Maldonado | B25: 1410 | C25: 0 | D25: 0 | E25: 0 | F25: 0 | G25: 0 | H25: 0 | I25: 1146 | J25: 486 | K25: 660 | L25: 264 | M25: 109 | N25: 155
A26: Paysandú | B26: 1217 | C26: 0 | D26: 0 | E26: 0 | F26: 218 | G26: 64 | H26: 154 | I26: 645 | J26: 257 | K26: 388 | L26: 354 | M26: 133 | N26: 221
A27: Rio Negro | B27: 626 | C27: 0 | D27: 0 | E27: 0 | F27: 0 | G27: 0 | H27: 0 | I27: 476 | J27: 169 | K27: 307 | L27: 150 | M27: 47 | N27: 103
A28: Rivera | B28: 767 | C28: 0 | D28: 0 | E28: 0 | F28: 92 | G28: 19 | H28: 73 | I28: 376 | J28: 133 | K28: 243 | L28: 299 | M28: 103 | N28: 196
A29: Rocha | B29: 626 | C29: 0 | D29: 0 | E29: 0 | F29: 29 | G29: 4 | H29: 25 | I29: 505 | J29: 201 | K29: 304 | L29: 92 | M29: 37 | N29: 55
A30: Salto | B30: 1184 | C30: 0 | D30: 0 | E30: 0 | F30: 29 | G30: 8 | H30: 21 | I30: 884 | J30: 392 | K30: 492 | L30: 271 | M30: 74 | N30: 197
A31: San José | B31: 1467 | C31: 44 | D31: 28 | E31: 16 | F31: 58 | G31: 12 | H31: 46 | I31: 1176 | J31: 512 | K31: 664 | L31: 189 | M31: 78 | N31: 111
A32: Soriano | B32: 1643 | C32: 15 | D32: 8 | E32: 7 | F32: 145 | G32: 34 | H32: 111 | I32: 1098 | J32: 465 | K32: 633 | L32: 385 | M32: 133 | N32: 252
A33: Tacuarembó | B33: 1058 | C33: 29 | D33: 17 | E33: 12 | F33: 0 | G33: 0 | H33: 0 | I33: 476 | J33: 170 | K33: 306 | L33: 553 | M33: 183 | N33: 370
A34: Treinta y Tres | B34: 488 | C34: 0 | D34: 0 | E34: 0 | F34: 66 | G34: 20 | H34: 46 | I34: 380 | J34: 145 | K34: 235 | L34: 42 | M34: 20 | N34: 22
A35: Fuente: Procesamiento propio en base a datos proporcionados por el D.E. - CETP (U.T.U) .

Sheet II-3.2.3
A1: CONSEJO DE EDUCACIÓN PRIMARIA | I1: ALUMNOS MATRICULADOS
A3: Cuadro Nº II-3.2.3
A6: ALUMNOS MATRICULADOS EN SÉPTIMO, OCTAVO Y NOVENO GRADO DE CICLO BÁSICO RURAL POR SEXO SEGÚN DEPARTAMENTO AÑO 2012.
A7: DEPARTAMENTO | B7: TOTAL | E7: CICLO BÁSICO RURAL
E8: GRADO
E9: SÉPTIMO | H9: OCTAVO | K9: NOVENO
E10: SEXO | H10: SEXO | K10: SEXO
B11: T | C11: M | D11: F | E11: T | F11: M | G11: F | H11: T | I11: M | J11: F | K11: T | L11: M | M11: F
A13: TOTAL | B13: =E13+H13+K13 -> 1916 | C13: 982 | D13: 934 | E13: =F13+G13 -> 697 | F13: =F14+F15 -> 385 | G13: =G14+G15 -> 312 | H13: =I13+J13 -> 640 | I13: =I14+I15 -> 318 | J13: =J14+J15 -> 322 | K13: =L13+M13 -> 579 | L13: =L14+L15 -> 279 | M13: =M14+M15 -> 300
A14: MONTEVIDEO | B14: 72 | C14: 32 | D14: 40 | E14: =F14+G14 -> 23 | F14: 11 | G14: 12 | H14: =I14+J14 -> 22 | I14: 11 | J14: 11 | K14: =L14+M14 -> 27 | L14: 10 | M14: 17
A15: RESTO DEL PAÍS | B15: 1844 | C15: 950 | D15: 894 | E15: =F15+G15 -> 674 | F15: =SUM(F16:F33) -> 374 | G15: =SUM(G16:G33) -> 300 | H15: =I15+J15 -> 618 | I15: =SUM(I16:I33) -> 307 | J15: =SUM(J16:J33) -> 311 | K15: =L15+M15 -> 552 | L15: =SUM(L16:L33) -> 269 | M15: =SUM(M16:M33) -> 283
A16: Artigas | B16: 133 | C16: 69 | D16: 64 | E16: 51 | F16: 25 | G16: 26 | H16: =I16+J16 -> 39 | I16: 20 | J16: 19 | K16: =L16+M16 -> 43 | L16: 24 | M16: 19
A17: Canelones | B17: =E17+H17+K17 -> 0 | C17: =F17+I17+L17 -> 0 | D17: =G17+J17+M17 -> 0 | E17: 0 | F17: 0 | G17: 0 | H17: 0 | I17: 0 | J17: 0 | K17: 0 | L17: 0 | M17: 0
A18: Cerro Largo | B18: 166 | C18: 77 | D18: 89 | E18: 60 | F18: 27 | G18: 33 | H18: 54 | I18: 27 | J18: 27 | K18: 52 | L18: 23 | M18: 29
A19: Colonia | B19: 204 | C19: 109 | D19: 95 | E19: 69 | F19: 43 | G19: 26 | H19: 62 | I19: 30 | J19: 32 | K19: 73 | L19: 36 | M19: 37
A20: Durazno | B20: 29 | C20: 13 | D20: 16 | E20: 10 | F20: 3 | G20: 7 | H20: 11 | I20: 5 | J20: 6 | K20: 8 | L20: 5 | M20: 3
A21: Flores | B21: 15 | C21: 12 | D21: 3 | E21: 5 | F21: 4 | G21: 1 | H21: 5 | I21: 3 | J21: 2 | K21: 5 | L21: 5 | M21: 0
A22: Florida | B22: 52 | C22: 26 | D22: 26 | E22: 25 | F22: 11 | G22: 14 | H22: 18 | I22: 10 | J22: 8 | K22: 9 | L22: 5 | M22: 4
A23: Lavalleja | B23: 72 | C23: 32 | D23: 40 | E23: 34 | F23: 18 | G23: 16 | H23: 19 | I23: 7 | J23: 12 | K23: 19 | L23: 7 | M23: 12
A24: Maldonado | B24: 100 | C24: 60 | D24: 40 | E24: 26 | F24: 19 | G24: 7 | H24: 40 | I24: 29 | J24: 11 | K24: 34 | L24: 12 | M24: 22
A25: Paysandú | B25: 320 | C25: 173 | D25: 147 | E25: 122 | F25: 72 | G25: 50 | H25: 113 | I25: 59 | J25: 54 | K25: 85 | L25: 42 | M25: 43
A26: Río Negro | B26: 123 | C26: 64 | D26: 59 | E26: 36 | F26: 24 | G26: 12 | H26: 46 | I26: 22 | J26: 24 | K26: 41 | L26: 18 | M26: 23
A27: Rivera | B27: 125 | C27: 56 | D27: 69 | E27: 46 | F27: 23 | G27: 23 | H27: 43 | I27: 16 | J27: 27 | K27: 36 | L27: 17 | M27: 19
A28: Rocha | B28: 88 | C28: 44 | D28: 44 | E28: 34 | F28: 19 | G28: 15 | H28: 24 | I28: 10 | J28: 14 | K28: 30 | L28: 15 | M28: 15
A29: Salto | B29: 23 | C29: 12 | D29: 11 | E29: 11 | F29: 6 | G29: 5 | H29: 9 | I29: 5 | J29: 4 | K29: 3 | L29: 1 | M29: 2
A30: San José | B30: 145 | C30: 76 | D30: 69 | E30: 55 | F30: 27 | G30: 28 | H30: 49 | I30: 23 | J30: 26 | K30: 41 | L30: 26 | M30: 15
A31: Soriano | B31: 30 | C31: 12 | D31: 18 | E31: 13 | F31: 6 | G31: 7 | H31: 10 | I31: 2 | J31: 8 | K31: 7 | L31: 4 | M31: 3
A32: Tacuarembó | B32: 141 | C32: 74 | D32: 67 | E32: 48 | F32: 30 | G32: 18 | H32: 49 | I32: 26 | J32: 23 | K32: 44 | L32: 18 | M32: 26
A33: Treinta y Tres | B33: 78 | C33: 41 | D33: 37 | E33: 29 | F33: 17 | G33: 12 | H33: 27 | I33: 13 | J33: 14 | K33: 22 | L33: 11 | M33: 11
A34: Fuente: DE — CES

Sheet II-3.2.4
A1: CONSEJO DE EDUCACIÓN SECUNDARIA | E1: ALUMNOS MATRICULADOS
A3: Cuadro Nº II-3.2.4
A5: ALUMNOS MATRICULADOS DE EDUCACIÓN MEDIA BÁSICA GENERAL POR GRADO Y FORMA DE ADMINISTRACIÓN SEGÚN DEPARTAMENTO AÑO 2012
A7: DEPARTAMENTO | B7: GRADO
B8: PRIMERO | D8: SEGUNDO | F8: TERCERO
B9: FORMA DE ADMINISTRACIÓN
B10: Públicos | C10: Privados | D10: Públicos | E10: Privados | F10: Públicos | G10: Privados
A11: TOTAL | B11: =B12+B13 -> 47277 | C11: 8898 | D11: 40734 | E11: 8529 | F11: 39582 | G11: 8267
A12: MONTEVIDEO | B12: 15085 | C12: 5742 | D12: 12545 | E12: 5495 | F12: 12012 | G12: 5396
A13: RESTO DEL PAÍS | B13: 32192 | C13: 3156 | D13: 28189 | E13: 3034 | F13: 27570 | G13: 2871
A14: Artigas | B14: 1324 | C14: 24 | D14: 1239 | E14: 18 | F14: 1220 | G14: 21
A15: Canelones | B15: 8407 | C15: 1120 | D15: 7116 | E15: 1094 | F15: 7012 | G15: 1088
A16: Cerro Largo | B16: 1358 | C16: 79 | D16: 1268 | E16: 81 | F16: 1376 | G16: 58
A17: Colonia | B17: 1596 | C17: 31 | D17: 1560 | E17: 34 | F17: 1614 | G17: 28
A18: Durazno | B18: 934 | C18: 93 | D18: 828 | E18: 74 | F18: 761 | G18: 89
A19: Flores | B19: 410 | C19: 62 | D19: 303 | E19: 44 | F19: 336 | G19: 52
A20: Florida | B20: 922 | C20: 62 | D20: 828 | E20: 47 | F20: 906 | G20: 47
A21: Lavalleja | B21: 982 | C21: 53 | D21: 835 | E21: 60 | F21: 766 | G21: 41
A22: Maldonado | B22: 2354 | C22: 440 | D22: 2031 | E22: 459 | F22: 1864 | G22: 384
A23: Paysandú | B23: 1729 | C23: 214 | D23: 1509 | E23: 219 | F23: 1515 | G23: 219
A24: Río Negro | B24: 935 | C24: 50 | D24: 859 | E24: 61 | F24: 802 | G24: 49
A25: Rivera | B25: 2304 | C25: 175 | D25: 1815 | E25: 160 | F25: 1768 | G25: 157
A26: Rocha | B26: 1277 | C26: 90 | D26: 1064 | E26: 67 | F26: 1054 | G26: 62
A27: Salto | B27: 2226 | C27: 240 | D27: 1967 | E27: 206 | F27: 1906 | G27: 189
A28: San José | B28: 1454 | C28: 119 | D28: 1364 | E28: 106 | F28: 1352 | G28: 120
A29: Soriano | B29: 1238 | C29: 70 | D29: 1124 | E29: 86 | F29: 1062 | G29: 77
A30: Tacuarembó | B30: 1779 | C30: 139 | D30: 1626 | E30: 130 | F30: 1479 | G30: 116
A31: Treinta y Tres | B31: 963 | C31: 95 | D31: 853 | E31: 88 | F31: 777 | G31: 74
A32: Fuente: DE — CES
A33: Nota: Incluye la matrícula correspondiente a los liceos de cuarto turno (nocturnos).

Sheet II-3.2.5
A1: CONSEJO DE EDUCACIÓN TÉCNICO PROFESIONAL (U.T.U.) | E1: ALUMNOS MATRICULADOS
A3: Cuadro Nº II-3.2.5
A5: ALUMNOS MATRICULADOS EN EDUCACIÓN TÉCNICA MEDIA BÁSICA POR TIPO DE CURSO SEGÚN EDAD. AÑO 2012
A7: EDAD | B7: TOTAL | C7: TIPO DE CURSO
C8: C.T.B Agrario | D8: Ciclo Básico Tecnológico | E8: Formación Profesional Básica Plan 2007 | F8: Articulación Educación Media Básica
A9: TOTAL | B9: =+C9+D9+E9+F9 -> 26241 | C9: =+C10+C11+C12++C13+C14+C15+C16+C17+C18+C19+C20+C21 -> 1101 | D9: =+D10+D11+D12++D13+D14+D15+D16+D17+D18+D19+D20+D21 -> 16291 | E9: =+E10+E11+E12++E13+E14+E15+E16+E17+E18+E19+E20+E21+F21 -> 8389 | F9: =+F10+F11+F12++F13+F14+F15+F16+F17+F18+F19+F20+F21 -> 460
A10: 11 y 12 años | B10: =+C10+D10+E10+F10 -> 3461 | C10: 278 | D10: 3175 | E10: 8 | F10: 0
A11: 13 años | B11: 4978 | C11: 364 | D11: 4584 | E11: 30 | F11: 0
A12: 14 años | B12: 5761 | C12: 289 | D12: 4923 | E12: 548 | F12: 1
A13: 15 años | B13: 4534 | C13: 104 | D13: 2307 | E13: 2120 | F13: 3
A14: 16 años | B14: 3415 | C14: 40 | D14: 951 | E14: 2416 | F14: 8
A15: 17 años | B15: 2103 | C15: 5 | D15: 278 | E15: 1799 | F15: 21
A16: 18 años | B16: 743 | C16: 1 | D16: 34 | E16: 646 | F16: 62
A17: 19 años | B17: 272 | C17: 1 | D17: 12 | E17: 234 | F17: 25
A18: 20 a 24 años | B18: 382 | C18: 2 | D18: 16 | E18: 278 | F18: 86
A19: 25 a 29 años | B19: 175 | C19: 0 | D19: 4 | E19: 117 | F19: 54
A20: 30 años y más | B20: 417 | C20: 17 | D20: 7 | E20: 193 | F20: 200
A21: Edad desc | B21: 0 | C21: 0 | D21: 0 | E21: 0 | F21: 0
A22: Fuente : Procesamiento propio en base a datos proporcionados por el D.E.-CETP (U.T.U.)

Sheet II-3.2.6
A1: CONSEJO DE EDUCACIÓN TÉCNICO PROFESIONAL (U.T.U.) | C1: ALUMNOS MATRICULADOS
A4: Cuadro Nº II-3.2.6.
A6: ALUMNOS MATRICULADOS EN EL CETP EN EDUCACIÓN MEDIA BÁSICA POR TIPO DE CURSO SEGÚN SECTORES DE ESTUDIO. AÑO 2012.
A7: SECTORES DE ESTUDIO | B7: TOTAL | C7: TIPO DE CURSO
C8: Ciclo Básico Tecnológico | D8: Formación Profesional Básica Plan 2007 | E8: CTB AGRARIO | F8: Articulación Educación Media
A10: Prog. Ciclo Básico. Educación Media | B10: =+C10+D10+E10+F10 -> 26241 | C10: =SUM(C11:C24) -> 16291 | D10: =SUM(D11:D24) -> 8389 | E10: =SUM(E11:E24) -> 1101 | F10: =SUM(F11:F24) -> 460
A11: Agropecuario | B11: =+C11+D11+E11+F11 -> 161 | C11: 0 | D11: 161 | E11: 0 | F11: 0
A12: Construcción y Arquitectura | B12: 151 | C12: 0 | D12: 151 | E12: 0 | F12: 0
A13: Deportes | B13: 396 | C13: 0 | D13: 396 | E13: 0 | F13: 0
A14: Electricidad y Electrónica | B14: 1172 | C14: 0 | D14: 1169 | E14: 0 | F14: 3
A15: Gastronomía | B15: 1146 | C15: 0 | D15: 1137 | E15: 0 | F15: 9
A16: Hortifruticultura y Jardinería | B16: 49 | C16: 0 | D16: 49 | E16: 0 | F16: 0
A17: Informática | B17: 965 | C17: 0 | D17: 965 | E17: 0 | F17: 0
A18: Madera y Muebles | B18: 1121 | C18: 0 | D18: 1113 | E18: 0 | F18: 8
A19: Mant. y Reparación de Vehículos | B19: 1034 | C19: 0 | D19: 1034 | E19: 0 | F19: 0
A20: Metal - Mecánica | B20: 601 | C20: 0 | D20: 601 | E20: 0 | F20: 0
A21: Prog. Articulación entre Niveles | B21: 1538 | C21: 0 | D21: 0 | E21: 1101 | F21: 437
A22: Prog. Ciclo Básico. Educación Media | B22: 16291 | C22: 16291 | D22: 0 | E22: 0 | F22: 0
A23: Servicios personales | B23: 1237 | C23: 0 | D23: 1237 | E23: 0 | F23: 0
A24: Textil y Confección de Vestimenta | B24: 379 | C24: 0 | D24: 376 | E24: 0 | F24: 3
A25: Fuente: Procesamiento propio en base a datos proporcionados por el D.E.- CETP . (UTU)

Sheet II-3.3.1
A1: CONSEJO DE EDUCACIÓN SECUNDARIA | F1: PERSONAL DOCENTE
A3: Cuadro Nº II-3.3.1.
A5: PERSONAL DOCENTE Y HORAS DOCENTES DEL CES EN EDUACIÓN MEDIA BÁSICA GENERAL POR TITULACIÓN SEGÚN ASIGNATURAS. AÑO 2012.
A7: ASIGNATURAS | B7: TOTAL DOCENTES | C7: PERSONAL DOCENTE | E7: TOTAL HORAS | F7: HORAS DOCENTES
C8: Titulados | D8: No Titulados | F8: Titulados | G8: No Titulados
A9: TOTAL | B9: =SUM(C9:D9) -> 15940 | C9: =SUM(C10:C46) -> 8680 | D9: =SUM(D10:D46) -> 7260 | E9: =SUM(F9:G9) -> 229002 | F9: =SUM(F10:F46) -> 128659 | G9: =SUM(G10:G46) -> 100343
A10: ASTRONOMÍA | B10: =SUM(C10:D10) -> 165 | C10: 38 | D10: 127 | E10: =SUM(F10:G10) -> 2213 | F10: 420 | G10: 1793
A11: BIOLOGÍA | B11: 1240 | C11: 991 | D11: 249 | E11: 16237 | F11: 13884 | G11: 2353
A12: CONTABILIDAD | B12: 4 | C12: 0 | D12: 4 | E12: 19 | F12: 0 | G12: 19
A13: DIBUJO | B13: 759 | C13: 352 | D13: 407 | E13: 11953 | F13: 6144 | G13: 5809
A14: EDUCACIÓN FÍSICA | B14: 971 | C14: 827 | D14: 144 | E14: 15416 | F14: 13610 | G14: 1806
A15: EDUCACIÓN MUSICAL | B15: 538 | C15: 101 | D15: 437 | E15: 8447 | F15: 1579 | G15: 6868
A16: ED Y CÍVICA -DERECHO- | B16: 468 | C16: 381 | D16: 87 | E16: 4231 | F16: 3675 | G16: 556
A17: FILOSOFÍA | B17: 384 | C17: 260 | D17: 124 | E17: 4618 | F17: 3428 | G17: 1190
A18: FÍSICA | B18: 599 | C18: 254 | D18: 345 | E18: 7640 | F18: 3523 | G18: 4117
A19: FRANCÉS | B19: 70 | C19: 15 | D19: 55 | E19: 1209 | F19: 288 | G19: 921
A20: GEOGRAFÍA | B20: 840 | C20: 636 | D20: 204 | E20: 12268 | F20: 10185 | G20: 2083
A21: HISTORIA | B21: 1425 | C21: 1175 | D21: 250 | E21: 18291 | F21: 16211 | G21: 2080
A22: IDIOMA ESPAÑOL | B22: 1100 | C22: 813 | D22: 287 | E22: 18089 | F22: 14246 | G22: 3843
A23: INGLÉS | B23: 1311 | C23: 424 | D23: 887 | E23: 22336 | F23: 7836 | G23: 14500
A24: ITALIANO | B24: 63 | C24: 20 | D24: 43 | E24: 1174 | F24: 437 | G24: 737
A25: LITERATURA | B25: 808 | C25: 617 | D25: 191 | E25: 10096 | F25: 8241 | G25: 1855
A26: FÍSICO - QUÍMICA | B26: 789 | C26: 395 | D26: 394 | E26: 9255 | F26: 5063 | G26: 4192
A27: MATEMÁTICA | B27: 1489 | C27: 503 | D27: 986 | E27: 26797 | F27: 9864 | G27: 16933
A28: QUÍMICA | B28: 714 | C28: 453 | D28: 261 | E28: 7759 | F28: 5281 | G28: 2478
A29: REC.NATUR Y PAISAJE AGRARIA | B29: 0 | C29: 0 | D29: 0 | E29: 0 | F29: 0 | G29: 0
A30: GEOLOGÍA | B30: 2 | C30: 2 | D30: 0 | E30: 18 | F30: 18 | G30: 0
A31: DIRECTOR DE COROS | B31: 132 | C31: 44 | D31: 88 | E31: 1486 | F31: 554 | G31: 932
A32: PIANISTA ACOMPAÑANTE | B32: 108 | C32: 26 | D32: 82 | E32: 1066 | F32: 231 | G32: 835
A33: INFORMÁTICA | B33: 875 | C33: 136 | D33: 739 | E33: 15009 | F33: 2009 | G33: 13000
A34: LENG,COMU,Y MEDIOS AUDIOVISUAL | B34: 0 | C34: 0 | D34: 0 | E34: 0 | F34: 0 | G34: 0
A35: ESTUDIOS ECONÓMICOS Y SOCIALES | B35: 3 | C35: 2 | D35: 1 | E35: 6 | F35: 4 | G35: 2
A36: LABORATORIO INFORMÁTICA EDUCAT | B36: 308 | C36: 47 | D36: 261 | E36: 6579 | F36: 942 | G36: 5637
A37: MANUALIDADES | B37: 2 | C37: 0 | D37: 2 | E37: 40 | F37: 0 | G37: 40
A38: LENGUA ALEMÁN | B38: 5 | C38: 0 | D38: 5 | E38: 97 | F38: 0 | G38: 97
A39: TEATRO | B39: 1 | C39: 0 | D39: 1 | E39: 6 | F39: 0 | G39: 6
A40: LENGUAS PORTUGUES | B40: 81 | C40: 8 | D40: 73 | E40: 1270 | F40: 75 | G40: 1195
A41: EXPRESIÓN CORPORAL Y TEATRO | B41: 1 | C41: 1 | D41: 0 | E41: 3 | F41: 3 | G41: 0
A42: EXPRESIÓN CORPORAL Y DANZA | B42: 0 | C42: 0 | D42: 0 | E42: 0 | F42: 0 | G42: 0
A43: ACTADAPTADAS AL MEDIO AMBIENT | B43: 60 | C43: 2 | D43: 58 | E43: 602 | F43: 18 | G43: 584
A44: ECONOMÍA | B44: 1 | C44: 1 | D44: 0 | E44: 4 | F44: 4 | G44: 0
A45: ESPACIO CURRICULAR ABIERTO | B45: 615 | C45: 156 | D45: 459 | E45: 4623 | F45: 886 | G45: 3737
A46: LENGUA DE SEÑAS | B46: 9 | C46: 0 | D46: 9 | E46: 145 | F46: 0 | G46: 145
A47: Fuente: Departamento de Computación - División Hacienda — C.E.S.
A48: Nota: Los docentes que dictan más de una asignatura son considerados como personas distintas en cada asignatura.

Sheet II-3.3.2
A1: CONSEJO DE EDUCACIÓN TÉCNICO PROFESIONAL (U.T.U.) | E1: PERSONAL DOCENTE
A3: Cuadro Nº II-3.3.2.
A5: PERSONAL DOCENTE DEL CETP EN EDUCACIÓN MEDIA BÁSICA TECNOLÓGICA POR TIPO DE CURSO. AÑO 2012.
A6: EDUCACIÓN MEDIA BÁSICA | B6: TOTAL
A9: TOTAL | B9: =SUM(B10:B13) -> 5276
A10: Ciclo Básico Tecnológico | B10: 3431
A11: Ciclo Básico Tecnológico Agrario | B11: S/D
A12: Formación Profesional Básica Plan 2007 | B12: 1662
A13: Articulación Educ.Media Básica | B13: 183
A14: Fuente: U.T.U. División Informática.

Sheet II-3.4.1
A1: CONSEJO DE EDUCACIÓN SECUNDARIA | D1: GRUPOS
A3: Cuadro Nº II-3.4.1.
A5: GRUPOS DEL CES EN EDUCACIÓN MEDIA BÁSICA GENERAL COMPARADOS CON EL TOTAL DE GRUPOS EN EDUCACIÓN MEDIA GENERAL SEGÚN GRANDES ÁREAS Y FORMA DE ADMINISTRACIÓN. AÑO 2012.
A6: GRANDES ÁREAS Y FORMA DE ADMINISTRACIÓN | B6: FORMA DE ADMINISTRACIÓN
B8: Grupos en Educación Media Básica General | C8: Total de grupos en Educación Media General
A10: TOTAL DEL PAÍS | B10: =B15+B20 -> 5353 | C10: =C15+C20 -> 9745
A11: MEDIA BÁSICA PÚBLICA | B11: =B12+B13 -> 4301 | C11: =C12+C13 -> 7452
A12: Diurna | B12: =B17+B22 -> 3924 | C12: 6469
A13: Cuarto Turno | B13: 377 | C13: 983
A14: MEDIA BÁSICA PRIVADA | B14: 1052 | C14: 2293
A15: TOTAL MONTEVIDEO | B15: =B16+B19 -> 1947 | C15: =C16+C19 -> 3682
A16: MEDIA BÁSICA PÚBLICA | B16: =B17+B18 -> 1287 | C16: =C17+C18 -> 2158
A17: Diurna | B17: 1159 | C17: 1802
A18: Cuarto Turno | B18: 128 | C18: 356
A19: MEDIA BÁSICA PRIVADA | B19: 660 | C19: 1524
A20: TOTAL RESTO DEL PAÍS | B20: =B21+B24 -> 3406 | C20: =C21+C24 -> 6063
A21: MEDIA BÁSICA PÚBLICA | B21: =B22+B23 -> 3014 | C21: =C22+C23 -> 5294
A22: Diurna | B22: 2765 | C22: 4667
A23: Cuarto Turno | B23: 249 | C23: 627
A24: MEDIA BÁSICA PRIVADA | B24: 392 | C24: 769
A26: Fuente: D.E. — C.E.S.

Sheet MEDIA SUPERIOR

Sheet II-4.1.1
A1: CONSEJO DE EDUCACIÓN SECUNDARIA Y CONSEJO DE EDUCACIÓN TÉCNICO PROFESIONAL (UTU) | H1: ESTABLECIMIENTOS
A3: Cuadro Nº II-4.1.1
A5: ESTABLECIMIENTOS DE EDUCACIÓN MEDIA SUPERIOR POR MODALIDAD Y FORMA DE ADMINISTRACIÓN SEGÚN DEPARTAMENTO. AÑO 2012.
A6: DEPARTAMENTO | D6: MODALIDAD
B7: TOTAL GENERAL | D7: CES | K7: CETP
D8: FORMA DE ADMINISTRACIÓN
C9: TOTAL LICEOS PÚBLICOS | D9: LICEOS PÚBLICOS | H9: TOTAL LICEOS PRIVADOS | I9: Liceos Privados | K9: Escuelas de CBT y Técnica.
D11: Diurnos Oficiales | F11: Extra Edad Oficiales (Nocturno Y Diurno)
D14: Bachillerato | E14: C.Básico y Bachillerato | F14: Bachillerato | G14: C.Básico y Bachillerato | I14: Bachillerato | J14: C.Básico y Bachillerato
A15: TOTAL | B15: =B16+B17 -> 428 | C15: =C16+C17 -> 262 | D15: =D16+D17 -> 41 | E15: 140 | F15: 33 | G15: 62 | H15: =SUM(I15:J15) -> 166 | I15: 8 | J15: 158 | K15: 126
A16: MONTEVIDEO | B16: =SUM(C16+H16) -> 151 | C16: 51 | D16: 17 | E16: 5 | F16: 15 | G16: 14 | H16: =SUM(I16:J16) -> 100 | I16: 6 | J16: 94 | K16: 26
A17: RESTO DEL PAÍS | B17: =SUM(C17+H17) -> 277 | C17: =SUM(C18:C35) -> 211 | D17: =SUM(D18:D35) -> 24 | E17: 135 | F17: 18 | G17: 48 | H17: 66 | I17: 2 | J17: 64 | K17: 100
A18: Artigas | B18: =SUM(C18+H18) -> 8 | C18: 8 | D18: 2 | E18: 5 | F18: 1 | G18: 1 | H18: 0 | I18: 0 | J18: 0 | K18: 5
A19: Canelones | B19: 71 | C19: 51 | D19: 8 | E19: 28 | F19: 6 | G19: 13 | H19: 20 | I19: 1 | J19: 19 | K19: 18
A20: Cerro Largo | B20: 9 | C20: 7 | D20: 0 | E20: 5 | F20: 0 | G20: 2 | H20: 2 | I20: 0 | J20: 2 | K20: 5
A21: Colonia | B21: 19 | C21: 17 | D21: 2 | E21: 9 | F21: 2 | G21: 6 | H21: 2 | I21: 0 | J21: 2 | K21: 10
A22: Durazno | B22: 10 | C22: 8 | D22: 1 | E22: 5 | F22: 2 | G22: 1 | H22: 2 | I22: 0 | J22: 2 | K22: 3
A23: Flores | B23: 5 | C23: 3 | D23: 0 | E23: 2 | F23: 1 | G23: 1 | H23: 2 | I23: 0 | J23: 2 | K23: 2
A24: Florida | B24: 12 | C24: 11 | D24: 1 | E24: 9 | F24: 1 | G24: 1 | H24: 1 | I24: 0 | J24: 1 | K24: 3
A25: Lavalleja | B25: 7 | C25: 6 | D25: 0 | E25: 6 | F25: 0 | G25: 1 | H25: 1 | I25: 0 | J25: 1 | K25: 4
A26: Maldonado | B26: 23 | C26: 11 | D26: 1 | E26: 6 | F26: 0 | G26: 4 | H26: 12 | I26: 1 | J26: 11 | K26: 6
A27: Paysandú | B27: 14 | C27: 10 | D27: 2 | E27: 7 | F27: 1 | G27: 1 | H27: 4 | I27: 0 | J27: 4 | K27: 6
A28: Río Negro | B28: 8 | C28: 6 | D28: 1 | E28: 4 | F28: 1 | G28: 2 | H28: 2 | I28: 0 | J28: 2 | K28: 3
A29: Rivera | B29: 15 | C29: 11 | D29: 1 | E29: 8 | F29: 0 | G29: 1 | H29: 4 | I29: 0 | J29: 4 | K29: 5
A30: Rocha | B30: 14 | C30: 12 | D30: 1 | E30: 7 | F30: 1 | G30: 3 | H30: 2 | I30: 0 | J30: 2 | K30: 5
A31: Salto | B31: 17 | C31: 12 | D31: 1 | E31: 9 | F31: 1 | G31: 1 | H31: 5 | I31: 0 | J31: 5 | K31: 6
A32: San José | B32: 13 | C32: 11 | D32: 1 | E32: 5 | F32: 0 | G32: 5 | H32: 2 | I32: 0 | J32: 2 | K32: 7
A33: Soriano | B33: 10 | C33: 9 | D33: 1 | E33: 5 | F33: 1 | G33: 3 | H33: 1 | I33: 0 | J33: 1 | K33: 6
A34: Tacuarembó | B34: 13 | C34: 11 | D34: 1 | E34: 9 | F34: 0 | G34: 1 | H34: 2 | I34: 0 | J34: 2 | K34: 3
A35: Treinta y Tres | B35: 9 | C35: 7 | D35: 0 | E35: 6 | F35: 0 | G35: 1 | H35: 2 | I35: 0 | J35: 2 | K35: 3
A37: Fuente: D.E.- C.E.S .
